{"text_format":"1","workbook":"xlsx","n_sheets":1,"sheets":["final_candidates_library"],"not_rendered":{"charts":0,"images":0,"macros":0,"external_links":0,"defined_names":0,"comments":0,"pivot_tables":0},"unopened":[],"bounds":{"document_bytes":16777216,"sheet_cells":100000,"rows_first":2000,"rows_last":500,"rows_between":2000,"halvings":0,"cell_chars":16384,"cell_head_chars":4096},"cells_cut":0,"cells_raw":0,"read":"whole","date_system":"1900"}

{"sheet":"final_candidates_library","index":0,"n_rows":1455,"n_cols":6,"rows_kept":1455,"cut":false,"hidden":false,"merged":[]}
["sgRNA","gene","sequence","adapters + sgRNA","mark","oligo length"]
["CTRL0004","CTRL0001","CTTGAGCACATACGCGAAT",{"$f":"CONCATENATE(\"CTTTATATATCTTGTGGAAAGGACGAAACACCG\",C2,\"GTTTTAGAGCTAGAAATAGCAAGTTAAAATAAGGCTAGTCCG\")","v":"CTTTATATATCTTGTGGAAAGGACGAAACACCGCTTGAGCACATACGCGAATGTTTTAGAGCTAGAAATAGCAAGTTAAAATAAGGCTAGTCCG"},"Negative",{"$f":"LEN(D2)","v":94}]
["CTRL0007","CTRL0001","ATACACGAAGCATCACTAG",{"$f":"CONCATENATE(\"CTTTATATATCTTGTGGAAAGGACGAAACACCG\",C3,\"GTTTTAGAGCTAGAAATAGCAAGTTAAAATAAGGCTAGTCCG\")","v":"CTTTATATATCTTGTGGAAAGGACGAAACACCGATACACGAAGCATCACTAGGTTTTAGAGCTAGAAATAGCAAGTTAAAATAAGGCTAGTCCG"},"Negative",94]
["CTRL0009","CTRL0001","ATCCATGTAATGCGTTCGA","CTTTATATATCTTGTGGAAAGGACGAAACACCGATCCATGTAATGCGTTCGAGTTTTAGAGCTAGAAATAGCAAGTTAAAATAAGGCTAGTCCG","Negative",94]
["CTRL0010","CTRL0001","TCGTGAAGTGCATTCGATC","CTTTATATATCTTGTGGAAAGGACGAAACACCGTCGTGAAGTGCATTCGATCGTTTTAGAGCTAGAAATAGCAAGTTAAAATAAGGCTAGTCCG","Negative",94]
["CTRL0015","CTRL0002","TACCGCGCCTGAAGTTCGC","CTTTATATATCTTGTGGAAAGGACGAAACACCGTACCGCGCCTGAAGTTCGCGTTTTAGAGCTAGAAATAGCAAGTTAAAATAAGGCTAGTCCG","Negative",94]
["CTRL0020","CTRL0002","TATCCTGACCTACGCGCTG","CTTTATATATCTTGTGGAAAGGACGAAACACCGTATCCTGACCTACGCGCTGGTTTTAGAGCTAGAAATAGCAAGTTAAAATAAGGCTAGTCCG","Negative",94]
["CTRL0026","CTRL0003","TCTTCCGCCGCTCAAGTTA","CTTTATATATCTTGTGGAAAGGACGAAACACCGTCTTCCGCCGCTCAAGTTAGTTTTAGAGCTAGAAATAGCAAGTTAAAATAAGGCTAGTCCG","Negative",94]
["CTRL0033","CTRL0003","CCGACCAACGTCAGCGGTA","CTTTATATATCTTGTGGAAAGGACGAAACACCGCCGACCAACGTCAGCGGTAGTTTTAGAGCTAGAAATAGCAAGTTAAAATAAGGCTAGTCCG","Negative",94]
["CTRL0039","CTRL0004","GAGATGCATCGAAGTCGAT","CTTTATATATCTTGTGGAAAGGACGAAACACCGGAGATGCATCGAAGTCGATGTTTTAGAGCTAGAAATAGCAAGTTAAAATAAGGCTAGTCCG","Negative",94]
["CTRL0042","CTRL0004","AGATTCCGATGTAACGTAC","CTTTATATATCTTGTGGAAAGGACGAAACACCGAGATTCCGATGTAACGTACGTTTTAGAGCTAGAAATAGCAAGTTAAAATAAGGCTAGTCCG","Negative",94]
["CTRL0048","CTRL0005","CAACTATTGGAATACGTGA","CTTTATATATCTTGTGGAAAGGACGAAACACCGCAACTATTGGAATACGTGAGTTTTAGAGCTAGAAATAGCAAGTTAAAATAAGGCTAGTCCG","Negative",94]
["CTRL0055","CTRL0005","CGCACGTATAATCCTGCGT","CTTTATATATCTTGTGGAAAGGACGAAACACCGCGCACGTATAATCCTGCGTGTTTTAGAGCTAGAAATAGCAAGTTAAAATAAGGCTAGTCCG","Negative",94]
["CTRL0068","CTRL0006","CGCTACGGAATCATACGTT","CTTTATATATCTTGTGGAAAGGACGAAACACCGCGCTACGGAATCATACGTTGTTTTAGAGCTAGAAATAGCAAGTTAAAATAAGGCTAGTCCG","Negative",94]
["CTRL0076","CTRL0007","TGTAATTGCGTCTAGTCGG","CTTTATATATCTTGTGGAAAGGACGAAACACCGTGTAATTGCGTCTAGTCGGGTTTTAGAGCTAGAAATAGCAAGTTAAAATAAGGCTAGTCCG","Negative",94]
["CTRL0082","CTRL0007","CGGATCCAGATCTCATTCG","CTTTATATATCTTGTGGAAAGGACGAAACACCGCGGATCCAGATCTCATTCGGTTTTAGAGCTAGAAATAGCAAGTTAAAATAAGGCTAGTCCG","Negative",94]
["CTRL0092","CTRL0008","TAACCTCTCGAGCGATAGA","CTTTATATATCTTGTGGAAAGGACGAAACACCGTAACCTCTCGAGCGATAGAGTTTTAGAGCTAGAAATAGCAAGTTAAAATAAGGCTAGTCCG","Negative",94]
["CTRL0094","CTRL0008","TCACTGTGGTCGAACATGT","CTTTATATATCTTGTGGAAAGGACGAAACACCGTCACTGTGGTCGAACATGTGTTTTAGAGCTAGAAATAGCAAGTTAAAATAAGGCTAGTCCG","Negative",94]
["CTRL0095","CTRL0008","TACTCCAATCCGCGATGAC","CTTTATATATCTTGTGGAAAGGACGAAACACCGTACTCCAATCCGCGATGACGTTTTAGAGCTAGAAATAGCAAGTTAAAATAAGGCTAGTCCG","Negative",94]
["Zhang_100","Zhang_1","AGAGCGAATCGATTTCGTG","CTTTATATATCTTGTGGAAAGGACGAAACACCGAGAGCGAATCGATTTCGTGGTTTTAGAGCTAGAAATAGCAAGTTAAAATAAGGCTAGTCCG","Negative",94]
["Zhang_107","Zhang_1","AATCGGCGACGTTTTAAAT","CTTTATATATCTTGTGGAAAGGACGAAACACCGAATCGGCGACGTTTTAAATGTTTTAGAGCTAGAAATAGCAAGTTAAAATAAGGCTAGTCCG","Negative",94]
["Zhang_11","Zhang_2","GCGGAAATTTTACCGACGA","CTTTATATATCTTGTGGAAAGGACGAAACACCGGCGGAAATTTTACCGACGAGTTTTAGAGCTAGAAATAGCAAGTTAAAATAAGGCTAGTCCG","Negative",94]
["Zhang_111","Zhang_2","AACGCCGCTCAAGTTGATA","CTTTATATATCTTGTGGAAAGGACGAAACACCGAACGCCGCTCAAGTTGATAGTTTTAGAGCTAGAAATAGCAAGTTAAAATAAGGCTAGTCCG","Negative",94]
["Zhang_117","Zhang_2","CGGGAGATTAACGTTAATT","CTTTATATATCTTGTGGAAAGGACGAAACACCGCGGGAGATTAACGTTAATTGTTTTAGAGCTAGAAATAGCAAGTTAAAATAAGGCTAGTCCG","Negative",94]
["Zhang_124","Zhang_3","TAAGGCCCGCGTACGAGCT","CTTTATATATCTTGTGGAAAGGACGAAACACCGTAAGGCCCGCGTACGAGCTGTTTTAGAGCTAGAAATAGCAAGTTAAAATAAGGCTAGTCCG","Negative",94]
["Zhang_130","Zhang_3","AACGCGCATATCTGAACAC","CTTTATATATCTTGTGGAAAGGACGAAACACCGAACGCGCATATCTGAACACGTTTTAGAGCTAGAAATAGCAAGTTAAAATAAGGCTAGTCCG","Negative",94]
["Zhang_135","Zhang_4","TGGATCGCCCGCAGAAATA","CTTTATATATCTTGTGGAAAGGACGAAACACCGTGGATCGCCCGCAGAAATAGTTTTAGAGCTAGAAATAGCAAGTTAAAATAAGGCTAGTCCG","Negative",94]
["Zhang_138","Zhang_4","TTAGCCGTTGCCATATCAA","CTTTATATATCTTGTGGAAAGGACGAAACACCGTTAGCCGTTGCCATATCAAGTTTTAGAGCTAGAAATAGCAAGTTAAAATAAGGCTAGTCCG","Negative",94]
["Zhang_143","Zhang_4","TTACGCGCCTGGTCAAAAG","CTTTATATATCTTGTGGAAAGGACGAAACACCGTTACGCGCCTGGTCAAAAGGTTTTAGAGCTAGAAATAGCAAGTTAAAATAAGGCTAGTCCG","Negative",94]
["Zhang_144","Zhang_4","GCATAAGTCGATAGACACA","CTTTATATATCTTGTGGAAAGGACGAAACACCGGCATAAGTCGATAGACACAGTTTTAGAGCTAGAAATAGCAAGTTAAAATAAGGCTAGTCCG","Negative",94]
["Zhang_152","Zhang_5","TCACCGTCCACGTGCGCAT","CTTTATATATCTTGTGGAAAGGACGAAACACCGTCACCGTCCACGTGCGCATGTTTTAGAGCTAGAAATAGCAAGTTAAAATAAGGCTAGTCCG","Negative",94]
["Zhang_159","Zhang_6","GATTGAATGGCTAACGCGG","CTTTATATATCTTGTGGAAAGGACGAAACACCGGATTGAATGGCTAACGCGGGTTTTAGAGCTAGAAATAGCAAGTTAAAATAAGGCTAGTCCG","Negative",94]
["Zhang_164","Zhang_6","GTTCGAGACCTACTTAAGT","CTTTATATATCTTGTGGAAAGGACGAAACACCGGTTCGAGACCTACTTAAGTGTTTTAGAGCTAGAAATAGCAAGTTAAAATAAGGCTAGTCCG","Negative",94]
["Zhang_169","Zhang_7","TAACTCGAACGCTCGAAAG","CTTTATATATCTTGTGGAAAGGACGAAACACCGTAACTCGAACGCTCGAAAGGTTTTAGAGCTAGAAATAGCAAGTTAAAATAAGGCTAGTCCG","Negative",94]
["Zhang_171","Zhang_7","AGTAGCGATCGAATGTCAA","CTTTATATATCTTGTGGAAAGGACGAAACACCGAGTAGCGATCGAATGTCAAGTTTTAGAGCTAGAAATAGCAAGTTAAAATAAGGCTAGTCCG","Negative",94]
["Zhang_179","Zhang_8","GGTATAGACGCGATCCTCA","CTTTATATATCTTGTGGAAAGGACGAAACACCGGGTATAGACGCGATCCTCAGTTTTAGAGCTAGAAATAGCAAGTTAAAATAAGGCTAGTCCG","Negative",94]
["Zhang_184","Zhang_8","AAACATCGACCGAAAGCGT","CTTTATATATCTTGTGGAAAGGACGAAACACCGAAACATCGACCGAAAGCGTGTTTTAGAGCTAGAAATAGCAAGTTAAAATAAGGCTAGTCCG","Negative",94]
["Zhang_194","Zhang_9","TTCCGTTATTCGGAAGTGA","CTTTATATATCTTGTGGAAAGGACGAAACACCGTTCCGTTATTCGGAAGTGAGTTTTAGAGCTAGAAATAGCAAGTTAAAATAAGGCTAGTCCG","Negative",94]
["Zhang_206","Zhang_11","CCGCCGATTTCATAAGTAA","CTTTATATATCTTGTGGAAAGGACGAAACACCGCCGCCGATTTCATAAGTAAGTTTTAGAGCTAGAAATAGCAAGTTAAAATAAGGCTAGTCCG","Negative",94]
["Zhang_207","Zhang_11","TTCCGTGAGGGTTACTTCA","CTTTATATATCTTGTGGAAAGGACGAAACACCGTTCCGTGAGGGTTACTTCAGTTTTAGAGCTAGAAATAGCAAGTTAAAATAAGGCTAGTCCG","Negative",94]
["Zhang_21","Zhang_11","ACGAACTCACACCGCGCGA","CTTTATATATCTTGTGGAAAGGACGAAACACCGACGAACTCACACCGCGCGAGTTTTAGAGCTAGAAATAGCAAGTTAAAATAAGGCTAGTCCG","Negative",94]
["Zhang_214","Zhang_11","CATTCTCAACCGGTCCAAT","CTTTATATATCTTGTGGAAAGGACGAAACACCGCATTCTCAACCGGTCCAATGTTTTAGAGCTAGAAATAGCAAGTTAAAATAAGGCTAGTCCG","Negative",94]
["Zhang_237","Zhang_13","TTACCTGCTACGAAAACGA","CTTTATATATCTTGTGGAAAGGACGAAACACCGTTACCTGCTACGAAAACGAGTTTTAGAGCTAGAAATAGCAAGTTAAAATAAGGCTAGTCCG","Negative",94]
["Zhang_238","Zhang_13","AAGCGATCCGAGAGTGTAT","CTTTATATATCTTGTGGAAAGGACGAAACACCGAAGCGATCCGAGAGTGTATGTTTTAGAGCTAGAAATAGCAAGTTAAAATAAGGCTAGTCCG","Negative",94]
["Zhang_253","Zhang_15","CGTAAACACACGACCAAGT","CTTTATATATCTTGTGGAAAGGACGAAACACCGCGTAAACACACGACCAAGTGTTTTAGAGCTAGAAATAGCAAGTTAAAATAAGGCTAGTCCG","Negative",94]
["Zhang_254","Zhang_15","CTACTCCGGCAAATACTCG","CTTTATATATCTTGTGGAAAGGACGAAACACCGCTACTCCGGCAAATACTCGGTTTTAGAGCTAGAAATAGCAAGTTAAAATAAGGCTAGTCCG","Negative",94]
["Zhang_257","Zhang_15","CTGATATATACGACAAGCC","CTTTATATATCTTGTGGAAAGGACGAAACACCGCTGATATATACGACAAGCCGTTTTAGAGCTAGAAATAGCAAGTTAAAATAAGGCTAGTCCG","Negative",94]
["Zhang_260","Zhang_15","TAATCACGACCTCACCCTA","CTTTATATATCTTGTGGAAAGGACGAAACACCGTAATCACGACCTCACCCTAGTTTTAGAGCTAGAAATAGCAAGTTAAAATAAGGCTAGTCCG","Negative",94]
["Zhang_261","Zhang_15","TCGGTACCTCTTCACATAT","CTTTATATATCTTGTGGAAAGGACGAAACACCGTCGGTACCTCTTCACATATGTTTTAGAGCTAGAAATAGCAAGTTAAAATAAGGCTAGTCCG","Negative",94]
["Zhang_274","Zhang_17","GTTGAATGGACCTCGACTA","CTTTATATATCTTGTGGAAAGGACGAAACACCGGTTGAATGGACCTCGACTAGTTTTAGAGCTAGAAATAGCAAGTTAAAATAAGGCTAGTCCG","Negative",94]
["Zhang_277","Zhang_17","CTGTTGCCGCGCCAACTGC","CTTTATATATCTTGTGGAAAGGACGAAACACCGCTGTTGCCGCGCCAACTGCGTTTTAGAGCTAGAAATAGCAAGTTAAAATAAGGCTAGTCCG","Negative",94]
["Zhang_28","Zhang_17","GCGACGACTCAACCTAGTC","CTTTATATATCTTGTGGAAAGGACGAAACACCGGCGACGACTCAACCTAGTCGTTTTAGAGCTAGAAATAGCAAGTTAAAATAAGGCTAGTCCG","Negative",94]
["Zhang_280","Zhang_17","CGCTGTCTCACTAATCTCA","CTTTATATATCTTGTGGAAAGGACGAAACACCGCGCTGTCTCACTAATCTCAGTTTTAGAGCTAGAAATAGCAAGTTAAAATAAGGCTAGTCCG","Negative",94]
["Zhang_29","Zhang_18","GTCACCGATCGAGAGCTAG","CTTTATATATCTTGTGGAAAGGACGAAACACCGGTCACCGATCGAGAGCTAGGTTTTAGAGCTAGAAATAGCAAGTTAAAATAAGGCTAGTCCG","Negative",94]
["Zhang_294","Zhang_18","TTCGTGCCGATGTAACACA","CTTTATATATCTTGTGGAAAGGACGAAACACCGTTCGTGCCGATGTAACACAGTTTTAGAGCTAGAAATAGCAAGTTAAAATAAGGCTAGTCCG","Negative",94]
["Zhang_299","Zhang_19","ATATCCCGCGAAAAAATCT","CTTTATATATCTTGTGGAAAGGACGAAACACCGATATCCCGCGAAAAAATCTGTTTTAGAGCTAGAAATAGCAAGTTAAAATAAGGCTAGTCCG","Negative",94]
["Zhang_301","Zhang_19","TGTTATTACAGACGCGTGT","CTTTATATATCTTGTGGAAAGGACGAAACACCGTGTTATTACAGACGCGTGTGTTTTAGAGCTAGAAATAGCAAGTTAAAATAAGGCTAGTCCG","Negative",94]
["Zhang_304","Zhang_19","GGCGCTAAGATATATGCCC","CTTTATATATCTTGTGGAAAGGACGAAACACCGGGCGCTAAGATATATGCCCGTTTTAGAGCTAGAAATAGCAAGTTAAAATAAGGCTAGTCCG","Negative",94]
["Zhang_305","Zhang_19","GTCATATACACAAACGCCC","CTTTATATATCTTGTGGAAAGGACGAAACACCGGTCATATACACAAACGCCCGTTTTAGAGCTAGAAATAGCAAGTTAAAATAAGGCTAGTCCG","Negative",94]
["Zhang_310","Zhang_20","ATCCAGGAGTGATCGAGTA","CTTTATATATCTTGTGGAAAGGACGAAACACCGATCCAGGAGTGATCGAGTAGTTTTAGAGCTAGAAATAGCAAGTTAAAATAAGGCTAGTCCG","Negative",94]
["Zhang_312","Zhang_20","TGTCCCTGAGAAAACGCGG","CTTTATATATCTTGTGGAAAGGACGAAACACCGTGTCCCTGAGAAAACGCGGGTTTTAGAGCTAGAAATAGCAAGTTAAAATAAGGCTAGTCCG","Negative",94]
["Zhang_316","Zhang_20","CATCACCGATCGTGAGCCT","CTTTATATATCTTGTGGAAAGGACGAAACACCGCATCACCGATCGTGAGCCTGTTTTAGAGCTAGAAATAGCAAGTTAAAATAAGGCTAGTCCG","Negative",94]
["Zhang_32","Zhang_21","TAGCCGCCCAGATCGAGCC","CTTTATATATCTTGTGGAAAGGACGAAACACCGTAGCCGCCCAGATCGAGCCGTTTTAGAGCTAGAAATAGCAAGTTAAAATAAGGCTAGTCCG","Negative",94]
["Zhang_320","Zhang_21","AAGTGAGCATAAGCGATGT","CTTTATATATCTTGTGGAAAGGACGAAACACCGAAGTGAGCATAAGCGATGTGTTTTAGAGCTAGAAATAGCAAGTTAAAATAAGGCTAGTCCG","Negative",94]
["Zhang_323","Zhang_21","CCAGGTGTATAATGAAACG","CTTTATATATCTTGTGGAAAGGACGAAACACCGCCAGGTGTATAATGAAACGGTTTTAGAGCTAGAAATAGCAAGTTAAAATAAGGCTAGTCCG","Negative",94]
["Zhang_328","Zhang_21","GCAATCCCTTAGGATAGCC",{"$f":"CONCATENATE(\"CTTTATATATCTTGTGGAAAGGACGAAACACCG\",C66,\"GTTTTAGAGCTAGAAATAGCAAGTTAAAATAAGGCTAGTCCG\")","v":"CTTTATATATCTTGTGGAAAGGACGAAACACCGGCAATCCCTTAGGATAGCCGTTTTAGAGCTAGAAATAGCAAGTTAAAATAAGGCTAGTCCG"},"Negative",{"$f":"LEN(D66)","v":94}]
["Zhang_343","Zhang_23","CCGGAGGCTCAAACCAAGT","CTTTATATATCTTGTGGAAAGGACGAAACACCGCCGGAGGCTCAAACCAAGTGTTTTAGAGCTAGAAATAGCAAGTTAAAATAAGGCTAGTCCG","Negative",94]
["Zhang_350","Zhang_23","ACAGATCACGTATCAGGGC","CTTTATATATCTTGTGGAAAGGACGAAACACCGACAGATCACGTATCAGGGCGTTTTAGAGCTAGAAATAGCAAGTTAAAATAAGGCTAGTCCG","Negative",94]
["Zhang_351","Zhang_23","AGGTATGTCATCGCCATGA","CTTTATATATCTTGTGGAAAGGACGAAACACCGAGGTATGTCATCGCCATGAGTTTTAGAGCTAGAAATAGCAAGTTAAAATAAGGCTAGTCCG","Negative",94]
["Zhang_36","Zhang_24","GCCTAATTTCCGGATCAAT","CTTTATATATCTTGTGGAAAGGACGAAACACCGGCCTAATTTCCGGATCAATGTTTTAGAGCTAGAAATAGCAAGTTAAAATAAGGCTAGTCCG","Negative",94]
["Zhang_380","Zhang_26","CATAGCTCTAGCGATAAAC","CTTTATATATCTTGTGGAAAGGACGAAACACCGCATAGCTCTAGCGATAAACGTTTTAGAGCTAGAAATAGCAAGTTAAAATAAGGCTAGTCCG","Negative",94]
["Zhang_386","Zhang_26","ACGGATCACCAAATCTTAG","CTTTATATATCTTGTGGAAAGGACGAAACACCGACGGATCACCAAATCTTAGGTTTTAGAGCTAGAAATAGCAAGTTAAAATAAGGCTAGTCCG","Negative",94]
["Zhang_390","Zhang_27","CCGCTCATATAGGTAAAAA","CTTTATATATCTTGTGGAAAGGACGAAACACCGCCGCTCATATAGGTAAAAAGTTTTAGAGCTAGAAATAGCAAGTTAAAATAAGGCTAGTCCG","Negative",94]
["Zhang_393","Zhang_27","CTCGCAAGTATTTAAGGAC","CTTTATATATCTTGTGGAAAGGACGAAACACCGCTCGCAAGTATTTAAGGACGTTTTAGAGCTAGAAATAGCAAGTTAAAATAAGGCTAGTCCG","Negative",94]
["Zhang_404","Zhang_28","CACCTCCGAACGAACACCT","CTTTATATATCTTGTGGAAAGGACGAAACACCGCACCTCCGAACGAACACCTGTTTTAGAGCTAGAAATAGCAAGTTAAAATAAGGCTAGTCCG","Negative",94]
["Zhang_408","Zhang_29","CTGTCGCTATCGTTAGAGA","CTTTATATATCTTGTGGAAAGGACGAAACACCGCTGTCGCTATCGTTAGAGAGTTTTAGAGCTAGAAATAGCAAGTTAAAATAAGGCTAGTCCG","Negative",94]
["Zhang_412","Zhang_29","CACGCTGTACAGACGACAA","CTTTATATATCTTGTGGAAAGGACGAAACACCGCACGCTGTACAGACGACAAGTTTTAGAGCTAGAAATAGCAAGTTAAAATAAGGCTAGTCCG","Negative",94]
["Zhang_416","Zhang_29","GAGCGGCCTCTAATTAATC","CTTTATATATCTTGTGGAAAGGACGAAACACCGGAGCGGCCTCTAATTAATCGTTTTAGAGCTAGAAATAGCAAGTTAAAATAAGGCTAGTCCG","Negative",94]
["Zhang_418","Zhang_29","GTTAACATCGCCACTCTGA","CTTTATATATCTTGTGGAAAGGACGAAACACCGGTTAACATCGCCACTCTGAGTTTTAGAGCTAGAAATAGCAAGTTAAAATAAGGCTAGTCCG","Negative",94]
["Zhang_419","Zhang_30","TTTCTCTTGAACCCCGCGA","CTTTATATATCTTGTGGAAAGGACGAAACACCGTTTCTCTTGAACCCCGCGAGTTTTAGAGCTAGAAATAGCAAGTTAAAATAAGGCTAGTCCG","Negative",94]
["Zhang_42","Zhang_30","TAATCCGGAAACGCTCGAC","CTTTATATATCTTGTGGAAAGGACGAAACACCGTAATCCGGAAACGCTCGACGTTTTAGAGCTAGAAATAGCAAGTTAAAATAAGGCTAGTCCG","Negative",94]
["Zhang_422","Zhang_30","CCCATTGAGAGTCGCCTGA","CTTTATATATCTTGTGGAAAGGACGAAACACCGCCCATTGAGAGTCGCCTGAGTTTTAGAGCTAGAAATAGCAAGTTAAAATAAGGCTAGTCCG","Negative",94]
["Zhang_426","Zhang_30","GGATGCGTCTTGCTAAACC","CTTTATATATCTTGTGGAAAGGACGAAACACCGGGATGCGTCTTGCTAAACCGTTTTAGAGCTAGAAATAGCAAGTTAAAATAAGGCTAGTCCG","Negative",94]
["Zhang_430","Zhang_31","TTATCCTGTCGAAGTAAAG","CTTTATATATCTTGTGGAAAGGACGAAACACCGTTATCCTGTCGAAGTAAAGGTTTTAGAGCTAGAAATAGCAAGTTAAAATAAGGCTAGTCCG","Negative",94]
["Zhang_434","Zhang_31","CTAGTTCATAAGCTACGCC","CTTTATATATCTTGTGGAAAGGACGAAACACCGCTAGTTCATAAGCTACGCCGTTTTAGAGCTAGAAATAGCAAGTTAAAATAAGGCTAGTCCG","Negative",94]
["Zhang_436","Zhang_31","GCACATCTAAAGTTACTAC","CTTTATATATCTTGTGGAAAGGACGAAACACCGGCACATCTAAAGTTACTACGTTTTAGAGCTAGAAATAGCAAGTTAAAATAAGGCTAGTCCG","Negative",94]
["Zhang_441","Zhang_32","TTATGCATTTAATACGCCG","CTTTATATATCTTGTGGAAAGGACGAAACACCGTTATGCATTTAATACGCCGGTTTTAGAGCTAGAAATAGCAAGTTAAAATAAGGCTAGTCCG","Negative",94]
["Zhang_443","Zhang_32","CCCCGTAAATCTCATTACA","CTTTATATATCTTGTGGAAAGGACGAAACACCGCCCCGTAAATCTCATTACAGTTTTAGAGCTAGAAATAGCAAGTTAAAATAAGGCTAGTCCG","Negative",94]
["Zhang_445","Zhang_32","TCGGAATACTCCTATTACA","CTTTATATATCTTGTGGAAAGGACGAAACACCGTCGGAATACTCCTATTACAGTTTTAGAGCTAGAAATAGCAAGTTAAAATAAGGCTAGTCCG","Negative",94]
["Zhang_448","Zhang_32","TCTTCTCGACGAAAATGCG","CTTTATATATCTTGTGGAAAGGACGAAACACCGTCTTCTCGACGAAAATGCGGTTTTAGAGCTAGAAATAGCAAGTTAAAATAAGGCTAGTCCG","Negative",94]
["Zhang_452","Zhang_33","CACCCATTCTCATAACGGA","CTTTATATATCTTGTGGAAAGGACGAAACACCGCACCCATTCTCATAACGGAGTTTTAGAGCTAGAAATAGCAAGTTAAAATAAGGCTAGTCCG","Negative",94]
["Zhang_457","Zhang_33","CCACACGAATCATAAAGAG","CTTTATATATCTTGTGGAAAGGACGAAACACCGCCACACGAATCATAAAGAGGTTTTAGAGCTAGAAATAGCAAGTTAAAATAAGGCTAGTCCG","Negative",94]
["Zhang_46","Zhang_33","GCCGTTCCGAGATACTTGA","CTTTATATATCTTGTGGAAAGGACGAAACACCGGCCGTTCCGAGATACTTGAGTTTTAGAGCTAGAAATAGCAAGTTAAAATAAGGCTAGTCCG","Negative",94]
["Zhang_462","Zhang_33","TTGCTCTGTCGCATCAATC","CTTTATATATCTTGTGGAAAGGACGAAACACCGTTGCTCTGTCGCATCAATCGTTTTAGAGCTAGAAATAGCAAGTTAAAATAAGGCTAGTCCG","Negative",94]
["Zhang_464","Zhang_34","CTACTGGCTATCCGCGCCA","CTTTATATATCTTGTGGAAAGGACGAAACACCGCTACTGGCTATCCGCGCCAGTTTTAGAGCTAGAAATAGCAAGTTAAAATAAGGCTAGTCCG","Negative",94]
["Zhang_466","Zhang_34","CCTATAATCGACCACATTT","CTTTATATATCTTGTGGAAAGGACGAAACACCGCCTATAATCGACCACATTTGTTTTAGAGCTAGAAATAGCAAGTTAAAATAAGGCTAGTCCG","Negative",94]
["Zhang_47","Zhang_34","GGGACGTCGCGAAAATGTA","CTTTATATATCTTGTGGAAAGGACGAAACACCGGGGACGTCGCGAAAATGTAGTTTTAGAGCTAGAAATAGCAAGTTAAAATAAGGCTAGTCCG","Negative",94]
["Zhang_473","Zhang_35","TCGTAGGAACTAAACTGTA","CTTTATATATCTTGTGGAAAGGACGAAACACCGTCGTAGGAACTAAACTGTAGTTTTAGAGCTAGAAATAGCAAGTTAAAATAAGGCTAGTCCG","Negative",94]
["Zhang_48","Zhang_35","CGGCATACGGGACACACGC","CTTTATATATCTTGTGGAAAGGACGAAACACCGCGGCATACGGGACACACGCGTTTTAGAGCTAGAAATAGCAAGTTAAAATAAGGCTAGTCCG","Negative",94]
["Zhang_485","Zhang_35","GCCGCTATACTAAAACCTT","CTTTATATATCTTGTGGAAAGGACGAAACACCGGCCGCTATACTAAAACCTTGTTTTAGAGCTAGAAATAGCAAGTTAAAATAAGGCTAGTCCG","Negative",94]
["Zhang_491","Zhang_36","ATACCAGACCACAGCGCCG","CTTTATATATCTTGTGGAAAGGACGAAACACCGATACCAGACCACAGCGCCGGTTTTAGAGCTAGAAATAGCAAGTTAAAATAAGGCTAGTCCG","Negative",94]
["Zhang_496","Zhang_36","CTAGAGTCATGATCAGCGA","CTTTATATATCTTGTGGAAAGGACGAAACACCGCTAGAGTCATGATCAGCGAGTTTTAGAGCTAGAAATAGCAAGTTAAAATAAGGCTAGTCCG","Negative",94]
["Zhang_50","Zhang_37","TCGTATCATCAGCTAGCGC","CTTTATATATCTTGTGGAAAGGACGAAACACCGTCGTATCATCAGCTAGCGCGTTTTAGAGCTAGAAATAGCAAGTTAAAATAAGGCTAGTCCG","Negative",94]
["Zhang_504","Zhang_37","GTAGACGGGGCATCTCAGC","CTTTATATATCTTGTGGAAAGGACGAAACACCGGTAGACGGGGCATCTCAGCGTTTTAGAGCTAGAAATAGCAAGTTAAAATAAGGCTAGTCCG","Negative",94]
["Zhang_505","Zhang_37","TGTAACGAGTTGTAAGTCA","CTTTATATATCTTGTGGAAAGGACGAAACACCGTGTAACGAGTTGTAAGTCAGTTTTAGAGCTAGAAATAGCAAGTTAAAATAAGGCTAGTCCG","Negative",94]
["Zhang_508","Zhang_37","TAGCTGCTGTAAATCGCAT","CTTTATATATCTTGTGGAAAGGACGAAACACCGTAGCTGCTGTAAATCGCATGTTTTAGAGCTAGAAATAGCAAGTTAAAATAAGGCTAGTCCG","Negative",94]
["Zhang_510","Zhang_38","TAAGCCACACTACCCGCCT","CTTTATATATCTTGTGGAAAGGACGAAACACCGTAAGCCACACTACCCGCCTGTTTTAGAGCTAGAAATAGCAAGTTAAAATAAGGCTAGTCCG","Negative",94]
["Zhang_511","Zhang_38","ACGTAAGTGACGACAGGAA","CTTTATATATCTTGTGGAAAGGACGAAACACCGACGTAAGTGACGACAGGAAGTTTTAGAGCTAGAAATAGCAAGTTAAAATAAGGCTAGTCCG","Negative",94]
["Zhang_514","Zhang_38","CACTGGTAAAGGCTAGACT","CTTTATATATCTTGTGGAAAGGACGAAACACCGCACTGGTAAAGGCTAGACTGTTTTAGAGCTAGAAATAGCAAGTTAAAATAAGGCTAGTCCG","Negative",94]
["Zhang_515","Zhang_38","CCCTATGCAGACTACAATT","CTTTATATATCTTGTGGAAAGGACGAAACACCGCCCTATGCAGACTACAATTGTTTTAGAGCTAGAAATAGCAAGTTAAAATAAGGCTAGTCCG","Negative",94]
["Zhang_516","Zhang_38","TGGTGACCGACAATTACAC","CTTTATATATCTTGTGGAAAGGACGAAACACCGTGGTGACCGACAATTACACGTTTTAGAGCTAGAAATAGCAAGTTAAAATAAGGCTAGTCCG","Negative",94]
["Zhang_518","Zhang_38","CGTGGGGACATATACGTGT","CTTTATATATCTTGTGGAAAGGACGAAACACCGCGTGGGGACATATACGTGTGTTTTAGAGCTAGAAATAGCAAGTTAAAATAAGGCTAGTCCG","Negative",94]
["Zhang_52","Zhang_38","TCGACAGTTCGTCCCGAGC","CTTTATATATCTTGTGGAAAGGACGAAACACCGTCGACAGTTCGTCCCGAGCGTTTTAGAGCTAGAAATAGCAAGTTAAAATAAGGCTAGTCCG","Negative",94]
["Zhang_522","Zhang_39","TGACGTGTCTGAAATGAGT","CTTTATATATCTTGTGGAAAGGACGAAACACCGTGACGTGTCTGAAATGAGTGTTTTAGAGCTAGAAATAGCAAGTTAAAATAAGGCTAGTCCG","Negative",94]
["Zhang_523","Zhang_39","TTTCCCTACGGAGATATCC","CTTTATATATCTTGTGGAAAGGACGAAACACCGTTTCCCTACGGAGATATCCGTTTTAGAGCTAGAAATAGCAAGTTAAAATAAGGCTAGTCCG","Negative",94]
["Zhang_524","Zhang_39","TCAAGTCAGGTTATGCGGG","CTTTATATATCTTGTGGAAAGGACGAAACACCGTCAAGTCAGGTTATGCGGGGTTTTAGAGCTAGAAATAGCAAGTTAAAATAAGGCTAGTCCG","Negative",94]
["Zhang_526","Zhang_39","TCCGTTATGTGGCATGAGA","CTTTATATATCTTGTGGAAAGGACGAAACACCGTCCGTTATGTGGCATGAGAGTTTTAGAGCTAGAAATAGCAAGTTAAAATAAGGCTAGTCCG","Negative",94]
["Zhang_529","Zhang_39","CGGGCAGAACGACCCTGAC","CTTTATATATCTTGTGGAAAGGACGAAACACCGCGGGCAGAACGACCCTGACGTTTTAGAGCTAGAAATAGCAAGTTAAAATAAGGCTAGTCCG","Negative",94]
["Zhang_53","Zhang_39","GGTAGTATTAATCGCTGAC","CTTTATATATCTTGTGGAAAGGACGAAACACCGGGTAGTATTAATCGCTGACGTTTTAGAGCTAGAAATAGCAAGTTAAAATAAGGCTAGTCCG","Negative",94]
["Zhang_535","Zhang_40","ACGTCATTAAGAGTTCAAC","CTTTATATATCTTGTGGAAAGGACGAAACACCGACGTCATTAAGAGTTCAACGTTTTAGAGCTAGAAATAGCAAGTTAAAATAAGGCTAGTCCG","Negative",94]
["Zhang_537","Zhang_40","CTGCGGCGAGATCACATAA","CTTTATATATCTTGTGGAAAGGACGAAACACCGCTGCGGCGAGATCACATAAGTTTTAGAGCTAGAAATAGCAAGTTAAAATAAGGCTAGTCCG","Negative",94]
["Zhang_539","Zhang_40","ATTGTATGAACGCAATAGC","CTTTATATATCTTGTGGAAAGGACGAAACACCGATTGTATGAACGCAATAGCGTTTTAGAGCTAGAAATAGCAAGTTAAAATAAGGCTAGTCCG","Negative",94]
["Zhang_542","Zhang_40","CGCGCATTTCAGAGCACAA","CTTTATATATCTTGTGGAAAGGACGAAACACCGCGCGCATTTCAGAGCACAAGTTTTAGAGCTAGAAATAGCAAGTTAAAATAAGGCTAGTCCG","Negative",94]
["Zhang_548","Zhang_41","TGTATTAACGAACCTTGTG","CTTTATATATCTTGTGGAAAGGACGAAACACCGTGTATTAACGAACCTTGTGGTTTTAGAGCTAGAAATAGCAAGTTAAAATAAGGCTAGTCCG","Negative",94]
["Zhang_549","Zhang_41","GTCATAACTGAGTGAATCG","CTTTATATATCTTGTGGAAAGGACGAAACACCGGTCATAACTGAGTGAATCGGTTTTAGAGCTAGAAATAGCAAGTTAAAATAAGGCTAGTCCG","Negative",94]
["Zhang_55","Zhang_41","GACGCTAGGTAACGTAGAG","CTTTATATATCTTGTGGAAAGGACGAAACACCGGACGCTAGGTAACGTAGAGGTTTTAGAGCTAGAAATAGCAAGTTAAAATAAGGCTAGTCCG","Negative",94]
["Zhang_560","Zhang_42","TATTAAGATGCGTCTTAGA","CTTTATATATCTTGTGGAAAGGACGAAACACCGTATTAAGATGCGTCTTAGAGTTTTAGAGCTAGAAATAGCAAGTTAAAATAAGGCTAGTCCG","Negative",94]
["Zhang_561","Zhang_42","GCCACAAAAACTCGCTAAG","CTTTATATATCTTGTGGAAAGGACGAAACACCGGCCACAAAAACTCGCTAAGGTTTTAGAGCTAGAAATAGCAAGTTAAAATAAGGCTAGTCCG","Negative",94]
["Zhang_562","Zhang_42","CTCTCGGAGTGGAGCAACA","CTTTATATATCTTGTGGAAAGGACGAAACACCGCTCTCGGAGTGGAGCAACAGTTTTAGAGCTAGAAATAGCAAGTTAAAATAAGGCTAGTCCG","Negative",94]
["Zhang_564","Zhang_42","CTGAGTGGGTAACACGCAT",{"$f":"CONCATENATE(\"CTTTATATATCTTGTGGAAAGGACGAAACACCG\",C130,\"GTTTTAGAGCTAGAAATAGCAAGTTAAAATAAGGCTAGTCCG\")","v":"CTTTATATATCTTGTGGAAAGGACGAAACACCGCTGAGTGGGTAACACGCATGTTTTAGAGCTAGAAATAGCAAGTTAAAATAAGGCTAGTCCG"},"Negative",{"$f":"LEN(D130)","v":94}]
["Zhang_567","Zhang_42","CTAAACTCAGACGCACTAC","CTTTATATATCTTGTGGAAAGGACGAAACACCGCTAAACTCAGACGCACTACGTTTTAGAGCTAGAAATAGCAAGTTAAAATAAGGCTAGTCCG","Negative",94]
["Zhang_571","Zhang_43","AGCTCGAGTCATTTCTCTA","CTTTATATATCTTGTGGAAAGGACGAAACACCGAGCTCGAGTCATTTCTCTAGTTTTAGAGCTAGAAATAGCAAGTTAAAATAAGGCTAGTCCG","Negative",94]
["Zhang_576","Zhang_43","AATACAAGCTATAGCGATA","CTTTATATATCTTGTGGAAAGGACGAAACACCGAATACAAGCTATAGCGATAGTTTTAGAGCTAGAAATAGCAAGTTAAAATAAGGCTAGTCCG","Negative",94]
["Zhang_577","Zhang_43","ATGAGCGCATTGAATAATA","CTTTATATATCTTGTGGAAAGGACGAAACACCGATGAGCGCATTGAATAATAGTTTTAGAGCTAGAAATAGCAAGTTAAAATAAGGCTAGTCCG","Negative",94]
["Zhang_578","Zhang_43","ACTTTGGTTGAGCTTCAAT","CTTTATATATCTTGTGGAAAGGACGAAACACCGACTTTGGTTGAGCTTCAATGTTTTAGAGCTAGAAATAGCAAGTTAAAATAAGGCTAGTCCG","Negative",94]
["Zhang_581","Zhang_44","TCACGGGGACATACAGGGC","CTTTATATATCTTGTGGAAAGGACGAAACACCGTCACGGGGACATACAGGGCGTTTTAGAGCTAGAAATAGCAAGTTAAAATAAGGCTAGTCCG","Negative",94]
["Zhang_582","Zhang_44","ATCATAATCGCTTCAAGCA","CTTTATATATCTTGTGGAAAGGACGAAACACCGATCATAATCGCTTCAAGCAGTTTTAGAGCTAGAAATAGCAAGTTAAAATAAGGCTAGTCCG","Negative",94]
["Zhang_584","Zhang_44","ATTTTGACTTGACGCAGGC","CTTTATATATCTTGTGGAAAGGACGAAACACCGATTTTGACTTGACGCAGGCGTTTTAGAGCTAGAAATAGCAAGTTAAAATAAGGCTAGTCCG","Negative",94]
["Zhang_588","Zhang_44","AACCCAACCTTTTACCGCA","CTTTATATATCTTGTGGAAAGGACGAAACACCGAACCCAACCTTTTACCGCAGTTTTAGAGCTAGAAATAGCAAGTTAAAATAAGGCTAGTCCG","Negative",94]
["Zhang_589","Zhang_44","TACACACTTATGCCATCAC","CTTTATATATCTTGTGGAAAGGACGAAACACCGTACACACTTATGCCATCACGTTTTAGAGCTAGAAATAGCAAGTTAAAATAAGGCTAGTCCG","Negative",94]
["Zhang_591","Zhang_44","TCCTGCCCGAACTGCAGAA","CTTTATATATCTTGTGGAAAGGACGAAACACCGTCCTGCCCGAACTGCAGAAGTTTTAGAGCTAGAAATAGCAAGTTAAAATAAGGCTAGTCCG","Negative",94]
["Zhang_596","Zhang_45","ATCGCAGGTATCCCAGAGC","CTTTATATATCTTGTGGAAAGGACGAAACACCGATCGCAGGTATCCCAGAGCGTTTTAGAGCTAGAAATAGCAAGTTAAAATAAGGCTAGTCCG","Negative",94]
["Zhang_60","Zhang_45","TCGCACGATTGCACCTTGG","CTTTATATATCTTGTGGAAAGGACGAAACACCGTCGCACGATTGCACCTTGGGTTTTAGAGCTAGAAATAGCAAGTTAAAATAAGGCTAGTCCG","Negative",94]
["Zhang_601","Zhang_45","TACATTCCAGTATTCACGC","CTTTATATATCTTGTGGAAAGGACGAAACACCGTACATTCCAGTATTCACGCGTTTTAGAGCTAGAAATAGCAAGTTAAAATAAGGCTAGTCCG","Negative",94]
["Zhang_606","Zhang_46","TTTAAACCGTTACACAGTC","CTTTATATATCTTGTGGAAAGGACGAAACACCGTTTAAACCGTTACACAGTCGTTTTAGAGCTAGAAATAGCAAGTTAAAATAAGGCTAGTCCG","Negative",94]
["Zhang_607","Zhang_46","ACGCCAACTAAAACTGCAG","CTTTATATATCTTGTGGAAAGGACGAAACACCGACGCCAACTAAAACTGCAGGTTTTAGAGCTAGAAATAGCAAGTTAAAATAAGGCTAGTCCG","Negative",94]
["Zhang_610","Zhang_46","CTCGATGGTCACCTGTAGC","CTTTATATATCTTGTGGAAAGGACGAAACACCGCTCGATGGTCACCTGTAGCGTTTTAGAGCTAGAAATAGCAAGTTAAAATAAGGCTAGTCCG","Negative",94]
["Zhang_612","Zhang_46","GACTCGTATTGTCATATTA","CTTTATATATCTTGTGGAAAGGACGAAACACCGGACTCGTATTGTCATATTAGTTTTAGAGCTAGAAATAGCAAGTTAAAATAAGGCTAGTCCG","Negative",94]
["Zhang_616","Zhang_46","TATGACAGGGCAAACGCAT","CTTTATATATCTTGTGGAAAGGACGAAACACCGTATGACAGGGCAAACGCATGTTTTAGAGCTAGAAATAGCAAGTTAAAATAAGGCTAGTCCG","Negative",94]
["Zhang_618","Zhang_47","GCATTCTCACCAAGACCGA","CTTTATATATCTTGTGGAAAGGACGAAACACCGGCATTCTCACCAAGACCGAGTTTTAGAGCTAGAAATAGCAAGTTAAAATAAGGCTAGTCCG","Negative",94]
["Zhang_620","Zhang_47","GAATATTATTTCTATCGGG","CTTTATATATCTTGTGGAAAGGACGAAACACCGGAATATTATTTCTATCGGGGTTTTAGAGCTAGAAATAGCAAGTTAAAATAAGGCTAGTCCG","Negative",94]
["Zhang_621","Zhang_47","AGTGTAAGCTAACACTCTG","CTTTATATATCTTGTGGAAAGGACGAAACACCGAGTGTAAGCTAACACTCTGGTTTTAGAGCTAGAAATAGCAAGTTAAAATAAGGCTAGTCCG","Negative",94]
["Zhang_629","Zhang_48","AATGCACAGATCGCTGATC","CTTTATATATCTTGTGGAAAGGACGAAACACCGAATGCACAGATCGCTGATCGTTTTAGAGCTAGAAATAGCAAGTTAAAATAAGGCTAGTCCG","Negative",94]
["Zhang_632","Zhang_48","GTGTTAGCCGAGATCTCTG","CTTTATATATCTTGTGGAAAGGACGAAACACCGGTGTTAGCCGAGATCTCTGGTTTTAGAGCTAGAAATAGCAAGTTAAAATAAGGCTAGTCCG","Negative",94]
["Zhang_643","Zhang_48","TTTTTTTATTTATCGATCG","CTTTATATATCTTGTGGAAAGGACGAAACACCGTTTTTTTATTTATCGATCGGTTTTAGAGCTAGAAATAGCAAGTTAAAATAAGGCTAGTCCG","Negative",94]
["Zhang_658","Zhang_50","TTTTCTCACCCGATGAATC","CTTTATATATCTTGTGGAAAGGACGAAACACCGTTTTCTCACCCGATGAATCGTTTTAGAGCTAGAAATAGCAAGTTAAAATAAGGCTAGTCCG","Negative",94]
["Zhang_660","Zhang_50","GGCTTAAATGGCGAGATTG","CTTTATATATCTTGTGGAAAGGACGAAACACCGGGCTTAAATGGCGAGATTGGTTTTAGAGCTAGAAATAGCAAGTTAAAATAAGGCTAGTCCG","Negative",94]
["Zhang_661","Zhang_50","ATTAGTCTGATACCTGTGC","CTTTATATATCTTGTGGAAAGGACGAAACACCGATTAGTCTGATACCTGTGCGTTTTAGAGCTAGAAATAGCAAGTTAAAATAAGGCTAGTCCG","Negative",94]
["Zhang_666","Zhang_50","GCGATCTGGACACTCTCCA","CTTTATATATCTTGTGGAAAGGACGAAACACCGGCGATCTGGACACTCTCCAGTTTTAGAGCTAGAAATAGCAAGTTAAAATAAGGCTAGTCCG","Negative",94]
["Zhang_676","Zhang_51","CCCCAAGCTAGAACTCAGC","CTTTATATATCTTGTGGAAAGGACGAAACACCGCCCCAAGCTAGAACTCAGCGTTTTAGAGCTAGAAATAGCAAGTTAAAATAAGGCTAGTCCG","Negative",94]
["Zhang_678","Zhang_51","AACCTAGCCCCAATACTTA","CTTTATATATCTTGTGGAAAGGACGAAACACCGAACCTAGCCCCAATACTTAGTTTTAGAGCTAGAAATAGCAAGTTAAAATAAGGCTAGTCCG","Negative",94]
["Zhang_682","Zhang_52","AGCAATCCAAAGTTAACGG","CTTTATATATCTTGTGGAAAGGACGAAACACCGAGCAATCCAAAGTTAACGGGTTTTAGAGCTAGAAATAGCAAGTTAAAATAAGGCTAGTCCG","Negative",94]
["Zhang_685","Zhang_52","TCTCTATACTGTCACTCGC","CTTTATATATCTTGTGGAAAGGACGAAACACCGTCTCTATACTGTCACTCGCGTTTTAGAGCTAGAAATAGCAAGTTAAAATAAGGCTAGTCCG","Negative",94]
["Zhang_695","Zhang_53","GAAACTGGGTTTCATCGTC","CTTTATATATCTTGTGGAAAGGACGAAACACCGGAAACTGGGTTTCATCGTCGTTTTAGAGCTAGAAATAGCAAGTTAAAATAAGGCTAGTCCG","Negative",94]
["Zhang_696","Zhang_53","ATGACCCTGTTACATTGCC","CTTTATATATCTTGTGGAAAGGACGAAACACCGATGACCCTGTTACATTGCCGTTTTAGAGCTAGAAATAGCAAGTTAAAATAAGGCTAGTCCG","Negative",94]
["Zhang_699","Zhang_53","GGGGACGTTTATCAATATA","CTTTATATATCTTGTGGAAAGGACGAAACACCGGGGGACGTTTATCAATATAGTTTTAGAGCTAGAAATAGCAAGTTAAAATAAGGCTAGTCCG","Negative",94]
["Zhang_700","Zhang_53","TTCATTTCCAAGTCCGCTG","CTTTATATATCTTGTGGAAAGGACGAAACACCGTTCATTTCCAAGTCCGCTGGTTTTAGAGCTAGAAATAGCAAGTTAAAATAAGGCTAGTCCG","Negative",94]
["Zhang_703","Zhang_53","TTTTTGGTTAATTGCCTAC","CTTTATATATCTTGTGGAAAGGACGAAACACCGTTTTTGGTTAATTGCCTACGTTTTAGAGCTAGAAATAGCAAGTTAAAATAAGGCTAGTCCG","Negative",94]
["Zhang_724","Zhang_55","AGTTTCTAGTAGTGGTAGG","CTTTATATATCTTGTGGAAAGGACGAAACACCGAGTTTCTAGTAGTGGTAGGGTTTTAGAGCTAGAAATAGCAAGTTAAAATAAGGCTAGTCCG","Negative",94]
["Zhang_725","Zhang_55","AAACGAGAAGTTTGTACTA","CTTTATATATCTTGTGGAAAGGACGAAACACCGAAACGAGAAGTTTGTACTAGTTTTAGAGCTAGAAATAGCAAGTTAAAATAAGGCTAGTCCG","Negative",94]
["Zhang_73","Zhang_55","AATGCTGCACACGCCGAAT","CTTTATATATCTTGTGGAAAGGACGAAACACCGAATGCTGCACACGCCGAATGTTTTAGAGCTAGAAATAGCAAGTTAAAATAAGGCTAGTCCG","Negative",94]
["Zhang_746","Zhang_57","AGCCTATTTTGCTACCTAC","CTTTATATATCTTGTGGAAAGGACGAAACACCGAGCCTATTTTGCTACCTACGTTTTAGAGCTAGAAATAGCAAGTTAAAATAAGGCTAGTCCG","Negative",94]
["Zhang_748","Zhang_57","CGCTCTCCTGGCAACAAGT","CTTTATATATCTTGTGGAAAGGACGAAACACCGCGCTCTCCTGGCAACAAGTGTTTTAGAGCTAGAAATAGCAAGTTAAAATAAGGCTAGTCCG","Negative",94]
["Zhang_749","Zhang_57","GGAGAAACGAGGTGTAATA","CTTTATATATCTTGTGGAAAGGACGAAACACCGGGAGAAACGAGGTGTAATAGTTTTAGAGCTAGAAATAGCAAGTTAAAATAAGGCTAGTCCG","Negative",94]
["Zhang_750","Zhang_57","ATAGACCTCCCAAATACAT","CTTTATATATCTTGTGGAAAGGACGAAACACCGATAGACCTCCCAAATACATGTTTTAGAGCTAGAAATAGCAAGTTAAAATAAGGCTAGTCCG","Negative",94]
["Zhang_760","Zhang_58","AACCCAGAAGCCCATTCAG","CTTTATATATCTTGTGGAAAGGACGAAACACCGAACCCAGAAGCCCATTCAGGTTTTAGAGCTAGAAATAGCAAGTTAAAATAAGGCTAGTCCG","Negative",94]
["Zhang_762","Zhang_58","GACCCATGGATGTGAACCC","CTTTATATATCTTGTGGAAAGGACGAAACACCGGACCCATGGATGTGAACCCGTTTTAGAGCTAGAAATAGCAAGTTAAAATAAGGCTAGTCCG","Negative",94]
["Zhang_772","Zhang_58","GGAGTTGATTGTTTCGAGA","CTTTATATATCTTGTGGAAAGGACGAAACACCGGGAGTTGATTGTTTCGAGAGTTTTAGAGCTAGAAATAGCAAGTTAAAATAAGGCTAGTCCG","Negative",94]
["Zhang_781","Zhang_59","GCCGGCTTGTGACAGTGAA","CTTTATATATCTTGTGGAAAGGACGAAACACCGGCCGGCTTGTGACAGTGAAGTTTTAGAGCTAGAAATAGCAAGTTAAAATAAGGCTAGTCCG","Negative",94]
["Zhang_782","Zhang_59","CAAAAAGATGAATATCTCG","CTTTATATATCTTGTGGAAAGGACGAAACACCGCAAAAAGATGAATATCTCGGTTTTAGAGCTAGAAATAGCAAGTTAAAATAAGGCTAGTCCG","Negative",94]
["Zhang_783","Zhang_59","ATTCATACTAAACACTCTA","CTTTATATATCTTGTGGAAAGGACGAAACACCGATTCATACTAAACACTCTAGTTTTAGAGCTAGAAATAGCAAGTTAAAATAAGGCTAGTCCG","Negative",94]
["Zhang_788","Zhang_59","GTTCTGTTCGATAGATGCC","CTTTATATATCTTGTGGAAAGGACGAAACACCGGTTCTGTTCGATAGATGCCGTTTTAGAGCTAGAAATAGCAAGTTAAAATAAGGCTAGTCCG","Negative",94]
["Zhang_790","Zhang_60","CCTCACCTAAAGTGCAATA","CTTTATATATCTTGTGGAAAGGACGAAACACCGCCTCACCTAAAGTGCAATAGTTTTAGAGCTAGAAATAGCAAGTTAAAATAAGGCTAGTCCG","Negative",94]
["Zhang_791","Zhang_60","TTTTCAGTTGCCCAACAGC","CTTTATATATCTTGTGGAAAGGACGAAACACCGTTTTCAGTTGCCCAACAGCGTTTTAGAGCTAGAAATAGCAAGTTAAAATAAGGCTAGTCCG","Negative",94]
["Zhang_794","Zhang_60","TTTCGAAACTTGAAGTAAG","CTTTATATATCTTGTGGAAAGGACGAAACACCGTTTCGAAACTTGAAGTAAGGTTTTAGAGCTAGAAATAGCAAGTTAAAATAAGGCTAGTCCG","Negative",94]
["Zhang_8","Zhang_60","GGCCCGCATAGGATATCGC","CTTTATATATCTTGTGGAAAGGACGAAACACCGGGCCCGCATAGGATATCGCGTTTTAGAGCTAGAAATAGCAAGTTAAAATAAGGCTAGTCCG","Negative",94]
["Zhang_80","Zhang_60","TTCGCTTCGTAACGAGGAA","CTTTATATATCTTGTGGAAAGGACGAAACACCGTTCGCTTCGTAACGAGGAAGTTTTAGAGCTAGAAATAGCAAGTTAAAATAAGGCTAGTCCG","Negative",94]
["Zhang_824","Zhang_62","ACATAACATGAGGTATCAG","CTTTATATATCTTGTGGAAAGGACGAAACACCGACATAACATGAGGTATCAGGTTTTAGAGCTAGAAATAGCAAGTTAAAATAAGGCTAGTCCG","Negative",94]
["Zhang_825","Zhang_62","TTCCTGCGTGGCTTTAAAC","CTTTATATATCTTGTGGAAAGGACGAAACACCGTTCCTGCGTGGCTTTAAACGTTTTAGAGCTAGAAATAGCAAGTTAAAATAAGGCTAGTCCG","Negative",94]
["Zhang_827","Zhang_62","TTAACACTTTAGTGCGTCA","CTTTATATATCTTGTGGAAAGGACGAAACACCGTTAACACTTTAGTGCGTCAGTTTTAGAGCTAGAAATAGCAAGTTAAAATAAGGCTAGTCCG","Negative",94]
["Zhang_828","Zhang_62","TTATTACTCCAGTATAAGA","CTTTATATATCTTGTGGAAAGGACGAAACACCGTTATTACTCCAGTATAAGAGTTTTAGAGCTAGAAATAGCAAGTTAAAATAAGGCTAGTCCG","Negative",94]
["Zhang_831","Zhang_63","GCAAGGACCTGGTATGAAC","CTTTATATATCTTGTGGAAAGGACGAAACACCGGCAAGGACCTGGTATGAACGTTTTAGAGCTAGAAATAGCAAGTTAAAATAAGGCTAGTCCG","Negative",94]
["Zhang_833","Zhang_63","CTGGAGAGACAATTCTACT","CTTTATATATCTTGTGGAAAGGACGAAACACCGCTGGAGAGACAATTCTACTGTTTTAGAGCTAGAAATAGCAAGTTAAAATAAGGCTAGTCCG","Negative",94]
["Zhang_835","Zhang_63","CGAATGCCTGAAAGTATAA",{"$f":"CONCATENATE(\"CTTTATATATCTTGTGGAAAGGACGAAACACCG\",C194,\"GTTTTAGAGCTAGAAATAGCAAGTTAAAATAAGGCTAGTCCG\")","v":"CTTTATATATCTTGTGGAAAGGACGAAACACCGCGAATGCCTGAAAGTATAAGTTTTAGAGCTAGAAATAGCAAGTTAAAATAAGGCTAGTCCG"},"Negative",{"$f":"LEN(D194)","v":94}]
["Zhang_838","Zhang_63","TGCAATGCTGCTATAGAAG","CTTTATATATCTTGTGGAAAGGACGAAACACCGTGCAATGCTGCTATAGAAGGTTTTAGAGCTAGAAATAGCAAGTTAAAATAAGGCTAGTCCG","Negative",94]
["Zhang_843","Zhang_64","GAGAGGAAAATCGGCACAG","CTTTATATATCTTGTGGAAAGGACGAAACACCGGAGAGGAAAATCGGCACAGGTTTTAGAGCTAGAAATAGCAAGTTAAAATAAGGCTAGTCCG","Negative",94]
["Zhang_844","Zhang_64","CACAAAACCAGCAATGGTC","CTTTATATATCTTGTGGAAAGGACGAAACACCGCACAAAACCAGCAATGGTCGTTTTAGAGCTAGAAATAGCAAGTTAAAATAAGGCTAGTCCG","Negative",94]
["Zhang_852","Zhang_64","TGGCTTATTAGCTATAAAG","CTTTATATATCTTGTGGAAAGGACGAAACACCGTGGCTTATTAGCTATAAAGGTTTTAGAGCTAGAAATAGCAAGTTAAAATAAGGCTAGTCCG","Negative",94]
["Zhang_853","Zhang_64","CAAAAGTGGCATAAAACCG","CTTTATATATCTTGTGGAAAGGACGAAACACCGCAAAAGTGGCATAAAACCGGTTTTAGAGCTAGAAATAGCAAGTTAAAATAAGGCTAGTCCG","Negative",94]
["Zhang_859","Zhang_65","CTGAAAAATAGGCCCAACC","CTTTATATATCTTGTGGAAAGGACGAAACACCGCTGAAAAATAGGCCCAACCGTTTTAGAGCTAGAAATAGCAAGTTAAAATAAGGCTAGTCCG","Negative",94]
["Zhang_892","Zhang_67","ACCTTCATTGAAGAAAAGC","CTTTATATATCTTGTGGAAAGGACGAAACACCGACCTTCATTGAAGAAAAGCGTTTTAGAGCTAGAAATAGCAAGTTAAAATAAGGCTAGTCCG","Negative",94]
["Zhang_895","Zhang_67","TTAGGAATAAAAGCTTTGA","CTTTATATATCTTGTGGAAAGGACGAAACACCGTTAGGAATAAAAGCTTTGAGTTTTAGAGCTAGAAATAGCAAGTTAAAATAAGGCTAGTCCG","Negative",94]
["Zhang_90","Zhang_67","GTCGAGTGCTCGAACTCCA","CTTTATATATCTTGTGGAAAGGACGAAACACCGGTCGAGTGCTCGAACTCCAGTTTTAGAGCTAGAAATAGCAAGTTAAAATAAGGCTAGTCCG","Negative",94]
["Zhang_901","Zhang_67","AATAATATGCATCTCTCGA","CTTTATATATCTTGTGGAAAGGACGAAACACCGAATAATATGCATCTCTCGAGTTTTAGAGCTAGAAATAGCAAGTTAAAATAAGGCTAGTCCG","Negative",94]
["Zhang_909","Zhang_68","GCAACCTTCCTTTTCAGGA","CTTTATATATCTTGTGGAAAGGACGAAACACCGGCAACCTTCCTTTTCAGGAGTTTTAGAGCTAGAAATAGCAAGTTAAAATAAGGCTAGTCCG","Negative",94]
["Zhang_912","Zhang_68","CAGGTTCTTATTCATTGAC","CTTTATATATCTTGTGGAAAGGACGAAACACCGCAGGTTCTTATTCATTGACGTTTTAGAGCTAGAAATAGCAAGTTAAAATAAGGCTAGTCCG","Negative",94]
["Zhang_919","Zhang_68","TCTACAATCCAGCCCTCTA","CTTTATATATCTTGTGGAAAGGACGAAACACCGTCTACAATCCAGCCCTCTAGTTTTAGAGCTAGAAATAGCAAGTTAAAATAAGGCTAGTCCG","Negative",94]
["Zhang_921","Zhang_68","TAAATTAATGTAACTACCG","CTTTATATATCTTGTGGAAAGGACGAAACACCGTAAATTAATGTAACTACCGGTTTTAGAGCTAGAAATAGCAAGTTAAAATAAGGCTAGTCCG","Negative",94]
["Zhang_927","Zhang_68","CTCAGCCATTTTATTAGAA","CTTTATATATCTTGTGGAAAGGACGAAACACCGCTCAGCCATTTTATTAGAAGTTTTAGAGCTAGAAATAGCAAGTTAAAATAAGGCTAGTCCG","Negative",94]
["Zhang_928","Zhang_68","AAGACTTGCTCCAAAACAC","CTTTATATATCTTGTGGAAAGGACGAAACACCGAAGACTTGCTCCAAAACACGTTTTAGAGCTAGAAATAGCAAGTTAAAATAAGGCTAGTCCG","Negative",94]
["Zhang_93","Zhang_69","GCGGCGTAATGCTTGAAAG","CTTTATATATCTTGTGGAAAGGACGAAACACCGGCGGCGTAATGCTTGAAAGGTTTTAGAGCTAGAAATAGCAAGTTAAAATAAGGCTAGTCCG","Negative",94]
["Zhang_931","Zhang_69","AAATTCAGACCACAGCTAA","CTTTATATATCTTGTGGAAAGGACGAAACACCGAAATTCAGACCACAGCTAAGTTTTAGAGCTAGAAATAGCAAGTTAAAATAAGGCTAGTCCG","Negative",94]
["Zhang_932","Zhang_69","GAATGTCCTAGGTTACTGA","CTTTATATATCTTGTGGAAAGGACGAAACACCGGAATGTCCTAGGTTACTGAGTTTTAGAGCTAGAAATAGCAAGTTAAAATAAGGCTAGTCCG","Negative",94]
["Zhang_939","Zhang_69","AAATACAATTACTTATAGC","CTTTATATATCTTGTGGAAAGGACGAAACACCGAAATACAATTACTTATAGCGTTTTAGAGCTAGAAATAGCAAGTTAAAATAAGGCTAGTCCG","Negative",94]
["Zhang_942","Zhang_69","CAAGGTCATGAAACCAAGC","CTTTATATATCTTGTGGAAAGGACGAAACACCGCAAGGTCATGAAACCAAGCGTTTTAGAGCTAGAAATAGCAAGTTAAAATAAGGCTAGTCCG","Negative",94]
["Zhang_945","Zhang_69","TCTTCACAGGGTGCAACGA","CTTTATATATCTTGTGGAAAGGACGAAACACCGTCTTCACAGGGTGCAACGAGTTTTAGAGCTAGAAATAGCAAGTTAAAATAAGGCTAGTCCG","Negative",94]
["Zhang_95","Zhang_69","CCGTGTTGCTGGATACGCC","CTTTATATATCTTGTGGAAAGGACGAAACACCGCCGTGTTGCTGGATACGCCGTTTTAGAGCTAGAAATAGCAAGTTAAAATAAGGCTAGTCCG","Negative",94]
["Zhang_955","Zhang_70","ATTTAAGCTTCGTAACTGG","CTTTATATATCTTGTGGAAAGGACGAAACACCGATTTAAGCTTCGTAACTGGGTTTTAGAGCTAGAAATAGCAAGTTAAAATAAGGCTAGTCCG","Negative",94]
["Zhang_957","Zhang_70","ATCCAGCAATATTTCTTAA","CTTTATATATCTTGTGGAAAGGACGAAACACCGATCCAGCAATATTTCTTAAGTTTTAGAGCTAGAAATAGCAAGTTAAAATAAGGCTAGTCCG","Negative",94]
["Zhang_959","Zhang_70","AGAGACAATGACATGTAGA","CTTTATATATCTTGTGGAAAGGACGAAACACCGAGAGACAATGACATGTAGAGTTTTAGAGCTAGAAATAGCAAGTTAAAATAAGGCTAGTCCG","Negative",94]
["Zhang_964","Zhang_70","CAGCAAAGGACGAAACAAA","CTTTATATATCTTGTGGAAAGGACGAAACACCGCAGCAAAGGACGAAACAAAGTTTTAGAGCTAGAAATAGCAAGTTAAAATAAGGCTAGTCCG","Negative",94]
["Zhang_966","Zhang_70","GTTCCCAGAAATATATTGC","CTTTATATATCTTGTGGAAAGGACGAAACACCGGTTCCCAGAAATATATTGCGTTTTAGAGCTAGAAATAGCAAGTTAAAATAAGGCTAGTCCG","Negative",94]
["Zhang_972","Zhang_71","AAGTTTTCTGAAAGGCAAT","CTTTATATATCTTGTGGAAAGGACGAAACACCGAAGTTTTCTGAAAGGCAATGTTTTAGAGCTAGAAATAGCAAGTTAAAATAAGGCTAGTCCG","Negative",94]
["Zhang_98","Zhang_71","TACGGGGCGATCATCCACA","CTTTATATATCTTGTGGAAAGGACGAAACACCGTACGGGGCGATCATCCACAGTTTTAGAGCTAGAAATAGCAAGTTAAAATAAGGCTAGTCCG","Negative",94]
["Zhang_982","Zhang_71","TTTTAATACAAGGTAATCT","CTTTATATATCTTGTGGAAAGGACGAAACACCGTTTTAATACAAGGTAATCTGTTTTAGAGCTAGAAATAGCAAGTTAAAATAAGGCTAGTCCG","Negative",94]
["Zhang_987","Zhang_71","AAAGCAGAAGAATATACAG","CTTTATATATCTTGTGGAAAGGACGAAACACCGAAAGCAGAAGAATATACAGGTTTTAGAGCTAGAAATAGCAAGTTAAAATAAGGCTAGTCCG","Negative",94]
["ARCN1_01","ARCN1","TGGAGACTACAAACCACAG","CTTTATATATCTTGTGGAAAGGACGAAACACCGTGGAGACTACAAACCACAGGTTTTAGAGCTAGAAATAGCAAGTTAAAATAAGGCTAGTCCG","Positive",94]
["ARCN1_05","ARCN1","TTGATGCCAAAAATAAGAG","CTTTATATATCTTGTGGAAAGGACGAAACACCGTTGATGCCAAAAATAAGAGGTTTTAGAGCTAGAAATAGCAAGTTAAAATAAGGCTAGTCCG","Positive",94]
["ARCN1_08","ARCN1","AGCCATTTCCACTCTCCGA","CTTTATATATCTTGTGGAAAGGACGAAACACCGAGCCATTTCCACTCTCCGAGTTTTAGAGCTAGAAATAGCAAGTTAAAATAAGGCTAGTCCG","Positive",94]
["ARCN1_09","ARCN1","GCAGCTCTGCAGTATCTGG","CTTTATATATCTTGTGGAAAGGACGAAACACCGGCAGCTCTGCAGTATCTGGGTTTTAGAGCTAGAAATAGCAAGTTAAAATAAGGCTAGTCCG","Positive",94]
["CCT3_05","CCT3","TGCACCATTCTCCTCCGGG","CTTTATATATCTTGTGGAAAGGACGAAACACCGTGCACCATTCTCCTCCGGGGTTTTAGAGCTAGAAATAGCAAGTTAAAATAAGGCTAGTCCG","Positive",94]
["CCT3_07","CCT3","ATTCAAGTCCAGCATCCAG","CTTTATATATCTTGTGGAAAGGACGAAACACCGATTCAAGTCCAGCATCCAGGTTTTAGAGCTAGAAATAGCAAGTTAAAATAAGGCTAGTCCG","Positive",94]
["CCT3_08","CCT3","GAGGAACTCACCCGAAGGG","CTTTATATATCTTGTGGAAAGGACGAAACACCGGAGGAACTCACCCGAAGGGGTTTTAGAGCTAGAAATAGCAAGTTAAAATAAGGCTAGTCCG","Positive",94]
["CCT3_09","CCT3","TGGGCCACAGCCATCTCGG","CTTTATATATCTTGTGGAAAGGACGAAACACCGTGGGCCACAGCCATCTCGGGTTTTAGAGCTAGAAATAGCAAGTTAAAATAAGGCTAGTCCG","Positive",94]
["CCT4_05","CCT4","AGAGTGATACCTTTGGCGG","CTTTATATATCTTGTGGAAAGGACGAAACACCGAGAGTGATACCTTTGGCGGGTTTTAGAGCTAGAAATAGCAAGTTAAAATAAGGCTAGTCCG","Positive",94]
["CCT4_06","CCT4","CACTGACTGATACCAACAG","CTTTATATATCTTGTGGAAAGGACGAAACACCGCACTGACTGATACCAACAGGTTTTAGAGCTAGAAATAGCAAGTTAAAATAAGGCTAGTCCG","Positive",94]
["CCT4_08","CCT4","CTGATAGGCGCCTTTCCCG","CTTTATATATCTTGTGGAAAGGACGAAACACCGCTGATAGGCGCCTTTCCCGGTTTTAGAGCTAGAAATAGCAAGTTAAAATAAGGCTAGTCCG","Positive",94]
["CCT4_09","CCT4","AAGATATAGAAGCAGGAGA","CTTTATATATCTTGTGGAAAGGACGAAACACCGAAGATATAGAAGCAGGAGAGTTTTAGAGCTAGAAATAGCAAGTTAAAATAAGGCTAGTCCG","Positive",94]
["CDK11B_01","CDK11B","CTTACCACCACGAACCAGG","CTTTATATATCTTGTGGAAAGGACGAAACACCGCTTACCACCACGAACCAGGGTTTTAGAGCTAGAAATAGCAAGTTAAAATAAGGCTAGTCCG","Positive",94]
["CDK11B_02","CDK11B","ACCGGCAGCAACTCTGAGG","CTTTATATATCTTGTGGAAAGGACGAAACACCGACCGGCAGCAACTCTGAGGGTTTTAGAGCTAGAAATAGCAAGTTAAAATAAGGCTAGTCCG","Positive",94]
["CDK11B_05","CDK11B","AGCCCCGAAGCGCTTGCGG","CTTTATATATCTTGTGGAAAGGACGAAACACCGAGCCCCGAAGCGCTTGCGGGTTTTAGAGCTAGAAATAGCAAGTTAAAATAAGGCTAGTCCG","Positive",94]
["CDK11B_07","CDK11B","CACAGGGTCACCACGACCG","CTTTATATATCTTGTGGAAAGGACGAAACACCGCACAGGGTCACCACGACCGGTTTTAGAGCTAGAAATAGCAAGTTAAAATAAGGCTAGTCCG","Positive",94]
["CLTC_04","CLTC","CGTCCTAGAAACTGCATGG","CTTTATATATCTTGTGGAAAGGACGAAACACCGCGTCCTAGAAACTGCATGGGTTTTAGAGCTAGAAATAGCAAGTTAAAATAAGGCTAGTCCG","Positive",94]
["CLTC_08","CLTC","CACGAGTGTGATCCAACCG","CTTTATATATCTTGTGGAAAGGACGAAACACCGCACGAGTGTGATCCAACCGGTTTTAGAGCTAGAAATAGCAAGTTAAAATAAGGCTAGTCCG","Positive",94]
["CLTC_09","CLTC","GGCATCATAATTATCCAGG","CTTTATATATCTTGTGGAAAGGACGAAACACCGGGCATCATAATTATCCAGGGTTTTAGAGCTAGAAATAGCAAGTTAAAATAAGGCTAGTCCG","Positive",94]
["COPB1_01","COPB1","ATGGAACGAGCATAAAGGT","CTTTATATATCTTGTGGAAAGGACGAAACACCGATGGAACGAGCATAAAGGTGTTTTAGAGCTAGAAATAGCAAGTTAAAATAAGGCTAGTCCG","Positive",94]
["COPB1_03","COPB1","ATTGTGCTAGGATTTACCG","CTTTATATATCTTGTGGAAAGGACGAAACACCGATTGTGCTAGGATTTACCGGTTTTAGAGCTAGAAATAGCAAGTTAAAATAAGGCTAGTCCG","Positive",94]
["COPB1_06","COPB1","TTGAGAAGCCAATTCACCA","CTTTATATATCTTGTGGAAAGGACGAAACACCGTTGAGAAGCCAATTCACCAGTTTTAGAGCTAGAAATAGCAAGTTAAAATAAGGCTAGTCCG","Positive",94]
["COPB1_09","COPB1","TGATAGTGTGATCCTGAAG","CTTTATATATCTTGTGGAAAGGACGAAACACCGTGATAGTGTGATCCTGAAGGTTTTAGAGCTAGAAATAGCAAGTTAAAATAAGGCTAGTCCG","Positive",94]
["COPZ1_07","COPZ1","CTCTTGGAAGGCCTGACAG","CTTTATATATCTTGTGGAAAGGACGAAACACCGCTCTTGGAAGGCCTGACAGGTTTTAGAGCTAGAAATAGCAAGTTAAAATAAGGCTAGTCCG","Positive",94]
["COPZ1_09","COPZ1","TGGATGAAATTGTAGATGG","CTTTATATATCTTGTGGAAAGGACGAAACACCGTGGATGAAATTGTAGATGGGTTTTAGAGCTAGAAATAGCAAGTTAAAATAAGGCTAGTCCG","Positive",94]
["COPZ1_10","COPZ1","ACAGTGAGGTCTTCACCGA","CTTTATATATCTTGTGGAAAGGACGAAACACCGACAGTGAGGTCTTCACCGAGTTTTAGAGCTAGAAATAGCAAGTTAAAATAAGGCTAGTCCG","Positive",94]
["DYNC1H1_03","DYNC1H1","AGGGAACACGTCCGACAGG","CTTTATATATCTTGTGGAAAGGACGAAACACCGAGGGAACACGTCCGACAGGGTTTTAGAGCTAGAAATAGCAAGTTAAAATAAGGCTAGTCCG","Positive",94]
["DYNC1H1_05","DYNC1H1","GAGGGCCACACAAGACCAG","CTTTATATATCTTGTGGAAAGGACGAAACACCGGAGGGCCACACAAGACCAGGTTTTAGAGCTAGAAATAGCAAGTTAAAATAAGGCTAGTCCG","Positive",94]
["DYNC1H1_06","DYNC1H1","TGATAGACCCTGACACAGG","CTTTATATATCTTGTGGAAAGGACGAAACACCGTGATAGACCCTGACACAGGGTTTTAGAGCTAGAAATAGCAAGTTAAAATAAGGCTAGTCCG","Positive",94]
["DYNC1H1_10","DYNC1H1","AACAGAGTCCAGAAAGCAG","CTTTATATATCTTGTGGAAAGGACGAAACACCGAACAGAGTCCAGAAAGCAGGTTTTAGAGCTAGAAATAGCAAGTTAAAATAAGGCTAGTCCG","Positive",94]
["HEATR1_03","HEATR1","GATGGCTCACCAATGGCGA","CTTTATATATCTTGTGGAAAGGACGAAACACCGGATGGCTCACCAATGGCGAGTTTTAGAGCTAGAAATAGCAAGTTAAAATAAGGCTAGTCCG","Positive",94]
["HEATR1_05","HEATR1","CTGCGGCATCTCCGAAAGG",{"$f":"CONCATENATE(\"CTTTATATATCTTGTGGAAAGGACGAAACACCG\",C258,\"GTTTTAGAGCTAGAAATAGCAAGTTAAAATAAGGCTAGTCCG\")","v":"CTTTATATATCTTGTGGAAAGGACGAAACACCGCTGCGGCATCTCCGAAAGGGTTTTAGAGCTAGAAATAGCAAGTTAAAATAAGGCTAGTCCG"},"Positive",{"$f":"LEN(D258)","v":94}]
["HEATR1_08","HEATR1","CAGTTCCTAACCTTAGGCG","CTTTATATATCTTGTGGAAAGGACGAAACACCGCAGTTCCTAACCTTAGGCGGTTTTAGAGCTAGAAATAGCAAGTTAAAATAAGGCTAGTCCG","Positive",94]
["HEATR1_09","HEATR1","TGGTTACCTGATCCACCAG","CTTTATATATCTTGTGGAAAGGACGAAACACCGTGGTTACCTGATCCACCAGGTTTTAGAGCTAGAAATAGCAAGTTAAAATAAGGCTAGTCCG","Positive",94]
["MYC_1","MYC","AGGCTGCGCGCAAAGACAG","CTTTATATATCTTGTGGAAAGGACGAAACACCGAGGCTGCGCGCAAAGACAGGTTTTAGAGCTAGAAATAGCAAGTTAAAATAAGGCTAGTCCG","Positive",94]
["MYC_2","MYC","CACCGAGGAGAATGTCAAG","CTTTATATATCTTGTGGAAAGGACGAAACACCGCACCGAGGAGAATGTCAAGGTTTTAGAGCTAGAAATAGCAAGTTAAAATAAGGCTAGTCCG","Positive",94]
["MYC_3","MYC","ATCCTGTCCGTCCAAGCAG","CTTTATATATCTTGTGGAAAGGACGAAACACCGATCCTGTCCGTCCAAGCAGGTTTTAGAGCTAGAAATAGCAAGTTAAAATAAGGCTAGTCCG","Positive",94]
["MYC_4","MYC","TCGATGCACTCTGAGGCGG","CTTTATATATCTTGTGGAAAGGACGAAACACCGTCGATGCACTCTGAGGCGGGTTTTAGAGCTAGAAATAGCAAGTTAAAATAAGGCTAGTCCG","Positive",94]
["MYC_5","MYC","TCCAGGACTGTATGTGGAG","CTTTATATATCTTGTGGAAAGGACGAAACACCGTCCAGGACTGTATGTGGAGGTTTTAGAGCTAGAAATAGCAAGTTAAAATAAGGCTAGTCCG","Positive",94]
["NUP93_02","NUP93","AATAAAGGACTGTTTGAAG","CTTTATATATCTTGTGGAAAGGACGAAACACCGAATAAAGGACTGTTTGAAGGTTTTAGAGCTAGAAATAGCAAGTTAAAATAAGGCTAGTCCG","Positive",94]
["NUP93_06","NUP93","GTCAAGTCCCCGAGACCCG","CTTTATATATCTTGTGGAAAGGACGAAACACCGGTCAAGTCCCCGAGACCCGGTTTTAGAGCTAGAAATAGCAAGTTAAAATAAGGCTAGTCCG","Positive",94]
["NUP93_08","NUP93","CTTGGCGTACCTTGAGCAG","CTTTATATATCTTGTGGAAAGGACGAAACACCGCTTGGCGTACCTTGAGCAGGTTTTAGAGCTAGAAATAGCAAGTTAAAATAAGGCTAGTCCG","Positive",94]
["NUP98_03","NUP98","TGATATTGTGCATATCCGG","CTTTATATATCTTGTGGAAAGGACGAAACACCGTGATATTGTGCATATCCGGGTTTTAGAGCTAGAAATAGCAAGTTAAAATAAGGCTAGTCCG","Positive",94]
["NUP98_07","NUP98","CAGAGCCAGAGCCCAGAGG","CTTTATATATCTTGTGGAAAGGACGAAACACCGCAGAGCCAGAGCCCAGAGGGTTTTAGAGCTAGAAATAGCAAGTTAAAATAAGGCTAGTCCG","Positive",94]
["NUP98_08","NUP98","GGCAGTACAGGATAGCCAG","CTTTATATATCTTGTGGAAAGGACGAAACACCGGGCAGTACAGGATAGCCAGGTTTTAGAGCTAGAAATAGCAAGTTAAAATAAGGCTAGTCCG","Positive",94]
["PELP1_02","PELP1","GTGAGCAGGGCCTCTCCAG","CTTTATATATCTTGTGGAAAGGACGAAACACCGGTGAGCAGGGCCTCTCCAGGTTTTAGAGCTAGAAATAGCAAGTTAAAATAAGGCTAGTCCG","Positive",94]
["PELP1_06","PELP1","TGAGAGAACCACAAGCCCG","CTTTATATATCTTGTGGAAAGGACGAAACACCGTGAGAGAACCACAAGCCCGGTTTTAGAGCTAGAAATAGCAAGTTAAAATAAGGCTAGTCCG","Positive",94]
["PHB_01","PHB","CGCAAGCTGGAAGCTGCAG","CTTTATATATCTTGTGGAAAGGACGAAACACCGCGCAAGCTGGAAGCTGCAGGTTTTAGAGCTAGAAATAGCAAGTTAAAATAAGGCTAGTCCG","Positive",94]
["PHB_07","PHB","GGATCTCAGTTGTGATGGA","CTTTATATATCTTGTGGAAAGGACGAAACACCGGGATCTCAGTTGTGATGGAGTTTTAGAGCTAGAAATAGCAAGTTAAAATAAGGCTAGTCCG","Positive",94]
["PHB_09","PHB","ACTCATTTTCTCATCCCGT","CTTTATATATCTTGTGGAAAGGACGAAACACCGACTCATTTTCTCATCCCGTGTTTTAGAGCTAGAAATAGCAAGTTAAAATAAGGCTAGTCCG","Positive",94]
["PHB_10","PHB","ATCAGGCCATCCCCTGCAG","CTTTATATATCTTGTGGAAAGGACGAAACACCGATCAGGCCATCCCCTGCAGGTTTTAGAGCTAGAAATAGCAAGTTAAAATAAGGCTAGTCCG","Positive",94]
["PHF5A_01","PHF5A","ACCAACACCAGCCTGCTTG","CTTTATATATCTTGTGGAAAGGACGAAACACCGACCAACACCAGCCTGCTTGGTTTTAGAGCTAGAAATAGCAAGTTAAAATAAGGCTAGTCCG","Positive",94]
["PHF5A_05","PHF5A","ACAGATCACACAGCGCCCC","CTTTATATATCTTGTGGAAAGGACGAAACACCGACAGATCACACAGCGCCCCGTTTTAGAGCTAGAAATAGCAAGTTAAAATAAGGCTAGTCCG","Positive",94]
["PHF5A_07","PHF5A","TATGTGATGAGTGTAACTA","CTTTATATATCTTGTGGAAAGGACGAAACACCGTATGTGATGAGTGTAACTAGTTTTAGAGCTAGAAATAGCAAGTTAAAATAAGGCTAGTCCG","Positive",94]
["PHF5A_10","PHF5A","CCCAAAGATTGTCAATCTG","CTTTATATATCTTGTGGAAAGGACGAAACACCGCCCAAAGATTGTCAATCTGGTTTTAGAGCTAGAAATAGCAAGTTAAAATAAGGCTAGTCCG","Positive",94]
["POLR2A_04","POLR2A","GACCAGGCGCCATAGGCAG","CTTTATATATCTTGTGGAAAGGACGAAACACCGGACCAGGCGCCATAGGCAGGTTTTAGAGCTAGAAATAGCAAGTTAAAATAAGGCTAGTCCG","Positive",94]
["POLR2A_05","POLR2A","AAGAAGATCATCATCACGG","CTTTATATATCTTGTGGAAAGGACGAAACACCGAAGAAGATCATCATCACGGGTTTTAGAGCTAGAAATAGCAAGTTAAAATAAGGCTAGTCCG","Positive",94]
["POLR2A_08","POLR2A","TGATGAGCTCCTTAAGTCG","CTTTATATATCTTGTGGAAAGGACGAAACACCGTGATGAGCTCCTTAAGTCGGTTTTAGAGCTAGAAATAGCAAGTTAAAATAAGGCTAGTCCG","Positive",94]
["POLR2A_09","POLR2A","CGTCGACAGGAACATCAGG","CTTTATATATCTTGTGGAAAGGACGAAACACCGCGTCGACAGGAACATCAGGGTTTTAGAGCTAGAAATAGCAAGTTAAAATAAGGCTAGTCCG","Positive",94]
["POLR2I_01","POLR2I","AACAAGATCACGCACGAAG","CTTTATATATCTTGTGGAAAGGACGAAACACCGAACAAGATCACGCACGAAGGTTTTAGAGCTAGAAATAGCAAGTTAAAATAAGGCTAGTCCG","Positive",94]
["POLR2I_02","POLR2I","AACTGTGATTACCAGCAGG","CTTTATATATCTTGTGGAAAGGACGAAACACCGAACTGTGATTACCAGCAGGGTTTTAGAGCTAGAAATAGCAAGTTAAAATAAGGCTAGTCCG","Positive",94]
["POLR2I_05","POLR2I","AACAACATGCTGTACCCCA","CTTTATATATCTTGTGGAAAGGACGAAACACCGAACAACATGCTGTACCCCAGTTTTAGAGCTAGAAATAGCAAGTTAAAATAAGGCTAGTCCG","Positive",94]
["POLR2I_08","POLR2I","CACCGCGTAGAGCAGAATG","CTTTATATATCTTGTGGAAAGGACGAAACACCGCACCGCGTAGAGCAGAATGGTTTTAGAGCTAGAAATAGCAAGTTAAAATAAGGCTAGTCCG","Positive",94]
["POLR2I_10","POLR2I","TGTGCACAGCCCCACACTG","CTTTATATATCTTGTGGAAAGGACGAAACACCGTGTGCACAGCCCCACACTGGTTTTAGAGCTAGAAATAGCAAGTTAAAATAAGGCTAGTCCG","Positive",94]
["PSMA1_02","PSMA1","CAAGACGAGACACAGGCAG","CTTTATATATCTTGTGGAAAGGACGAAACACCGCAAGACGAGACACAGGCAGGTTTTAGAGCTAGAAATAGCAAGTTAAAATAAGGCTAGTCCG","Positive",94]
["PSMA1_05","PSMA1","CATCAAATTGAATATGCAA","CTTTATATATCTTGTGGAAAGGACGAAACACCGCATCAAATTGAATATGCAAGTTTTAGAGCTAGAAATAGCAAGTTAAAATAAGGCTAGTCCG","Positive",94]
["PSMA1_06","PSMA1","TATTGGTATCTCAATTGCG","CTTTATATATCTTGTGGAAAGGACGAAACACCGTATTGGTATCTCAATTGCGGTTTTAGAGCTAGAAATAGCAAGTTAAAATAAGGCTAGTCCG","Positive",94]
["PSMA3_01","PSMA3","TTCTTCATAAAGTTTAGAA","CTTTATATATCTTGTGGAAAGGACGAAACACCGTTCTTCATAAAGTTTAGAAGTTTTAGAGCTAGAAATAGCAAGTTAAAATAAGGCTAGTCCG","Positive",94]
["PSMA3_03","PSMA3","TAGCATCTTGCAGACAGAG","CTTTATATATCTTGTGGAAAGGACGAAACACCGTAGCATCTTGCAGACAGAGGTTTTAGAGCTAGAAATAGCAAGTTAAAATAAGGCTAGTCCG","Positive",94]
["PSMA3_05","PSMA3","ATGAGCTCAATCGGCACTG","CTTTATATATCTTGTGGAAAGGACGAAACACCGATGAGCTCAATCGGCACTGGTTTTAGAGCTAGAAATAGCAAGTTAAAATAAGGCTAGTCCG","Positive",94]
["PSMA3_06","PSMA3","TTGGAATCAGATGCAAAGA","CTTTATATATCTTGTGGAAAGGACGAAACACCGTTGGAATCAGATGCAAAGAGTTTTAGAGCTAGAAATAGCAAGTTAAAATAAGGCTAGTCCG","Positive",94]
["PSMA3_09","PSMA3","CCGTCAGGAGAGAATGTAG","CTTTATATATCTTGTGGAAAGGACGAAACACCGCCGTCAGGAGAGAATGTAGGTTTTAGAGCTAGAAATAGCAAGTTAAAATAAGGCTAGTCCG","Positive",94]
["PSMB2_01","PSMB2","GGCGACAAGAACATAGTCG","CTTTATATATCTTGTGGAAAGGACGAAACACCGGGCGACAAGAACATAGTCGGTTTTAGAGCTAGAAATAGCAAGTTAAAATAAGGCTAGTCCG","Positive",94]
["PSMB2_02","PSMB2","ATCTCACGTGAGAGGGCAG","CTTTATATATCTTGTGGAAAGGACGAAACACCGATCTCACGTGAGAGGGCAGGTTTTAGAGCTAGAAATAGCAAGTTAAAATAAGGCTAGTCCG","Positive",94]
["PSMB2_07","PSMB2","TGATTCGAACACTGAAGGT","CTTTATATATCTTGTGGAAAGGACGAAACACCGTGATTCGAACACTGAAGGTGTTTTAGAGCTAGAAATAGCAAGTTAAAATAAGGCTAGTCCG","Positive",94]
["PSMB2_09","PSMB2","CTTAGGAAATGTCTGGAGG","CTTTATATATCTTGTGGAAAGGACGAAACACCGCTTAGGAAATGTCTGGAGGGTTTTAGAGCTAGAAATAGCAAGTTAAAATAAGGCTAGTCCG","Positive",94]
["PSMB3_02","PSMB3","TTCAGCATGGCTTGGGAGA","CTTTATATATCTTGTGGAAAGGACGAAACACCGTTCAGCATGGCTTGGGAGAGTTTTAGAGCTAGAAATAGCAAGTTAAAATAAGGCTAGTCCG","Positive",94]
["PSMB3_03","PSMB3","TGGGTGACCGGCTGTACAT","CTTTATATATCTTGTGGAAAGGACGAAACACCGTGGGTGACCGGCTGTACATGTTTTAGAGCTAGAAATAGCAAGTTAAAATAAGGCTAGTCCG","Positive",94]
["PSMB3_04","PSMB3","GGCCGTCATGGCCATGAAG","CTTTATATATCTTGTGGAAAGGACGAAACACCGGGCCGTCATGGCCATGAAGGTTTTAGAGCTAGAAATAGCAAGTTAAAATAAGGCTAGTCCG","Positive",94]
["PSMB3_05","PSMB3","AAGCGCCTGTCTGCAGCGA","CTTTATATATCTTGTGGAAAGGACGAAACACCGAAGCGCCTGTCTGCAGCGAGTTTTAGAGCTAGAAATAGCAAGTTAAAATAAGGCTAGTCCG","Positive",94]
["PSMB3_09","PSMB3","ACCTGTATGAGTTGAAGGA","CTTTATATATCTTGTGGAAAGGACGAAACACCGACCTGTATGAGTTGAAGGAGTTTTAGAGCTAGAAATAGCAAGTTAAAATAAGGCTAGTCCG","Positive",94]
["PSMC4_03","PSMC4","AGATTCGATGCTCAGACAG","CTTTATATATCTTGTGGAAAGGACGAAACACCGAGATTCGATGCTCAGACAGGTTTTAGAGCTAGAAATAGCAAGTTAAAATAAGGCTAGTCCG","Positive",94]
["PSMC4_04","PSMC4","GTCATCGGACAATTTCTGG","CTTTATATATCTTGTGGAAAGGACGAAACACCGGTCATCGGACAATTTCTGGGTTTTAGAGCTAGAAATAGCAAGTTAAAATAAGGCTAGTCCG","Positive",94]
["PSMC4_05","PSMC4","TGATGTACGCGGACATCGG","CTTTATATATCTTGTGGAAAGGACGAAACACCGTGATGTACGCGGACATCGGGTTTTAGAGCTAGAAATAGCAAGTTAAAATAAGGCTAGTCCG","Positive",94]
["PSMC4_10","PSMC4","CACATCCCGGACCATGCGG","CTTTATATATCTTGTGGAAAGGACGAAACACCGCACATCCCGGACCATGCGGGTTTTAGAGCTAGAAATAGCAAGTTAAAATAAGGCTAGTCCG","Positive",94]
["PSMD11_04","PSMD11","TGCACTTCGGTATGCAGGG","CTTTATATATCTTGTGGAAAGGACGAAACACCGTGCACTTCGGTATGCAGGGGTTTTAGAGCTAGAAATAGCAAGTTAAAATAAGGCTAGTCCG","Positive",94]
["PSMD11_07","PSMD11","CCCGACTGCATGTCCAAGG","CTTTATATATCTTGTGGAAAGGACGAAACACCGCCCGACTGCATGTCCAAGGGTTTTAGAGCTAGAAATAGCAAGTTAAAATAAGGCTAGTCCG","Positive",94]
["PSMD6_03","PSMD6","CTGCGCGATACGCAAGTCG","CTTTATATATCTTGTGGAAAGGACGAAACACCGCTGCGCGATACGCAAGTCGGTTTTAGAGCTAGAAATAGCAAGTTAAAATAAGGCTAGTCCG","Positive",94]
["PSMD6_07","PSMD6","ATAGCTTAATAGAAGAAGG","CTTTATATATCTTGTGGAAAGGACGAAACACCGATAGCTTAATAGAAGAAGGGTTTTAGAGCTAGAAATAGCAAGTTAAAATAAGGCTAGTCCG","Positive",94]
["PSMD6_09","PSMD6","ATCACACGAAACACAGAAA","CTTTATATATCTTGTGGAAAGGACGAAACACCGATCACACGAAACACAGAAAGTTTTAGAGCTAGAAATAGCAAGTTAAAATAAGGCTAGTCCG","Positive",94]
["PSMD6_10","PSMD6","AAGACATATGACAAAACTG","CTTTATATATCTTGTGGAAAGGACGAAACACCGAAGACATATGACAAAACTGGTTTTAGAGCTAGAAATAGCAAGTTAAAATAAGGCTAGTCCG","Positive",94]
["PSMD7_02","PSMD7","CAGCTGGTAGATGATCTGG","CTTTATATATCTTGTGGAAAGGACGAAACACCGCAGCTGGTAGATGATCTGGGTTTTAGAGCTAGAAATAGCAAGTTAAAATAAGGCTAGTCCG","Positive",94]
["PSMD7_05","PSMD7","AAGACCAATGACCAGATGG","CTTTATATATCTTGTGGAAAGGACGAAACACCGAAGACCAATGACCAGATGGGTTTTAGAGCTAGAAATAGCAAGTTAAAATAAGGCTAGTCCG","Positive",94]
["PSMD7_06","PSMD7","GTTCAGTCCCTTCAAACCA","CTTTATATATCTTGTGGAAAGGACGAAACACCGGTTCAGTCCCTTCAAACCAGTTTTAGAGCTAGAAATAGCAAGTTAAAATAAGGCTAGTCCG","Positive",94]
["PSMD7_08","PSMD7","CACACTGAGCAGCACCAGG","CTTTATATATCTTGTGGAAAGGACGAAACACCGCACACTGAGCAGCACCAGGGTTTTAGAGCTAGAAATAGCAAGTTAAAATAAGGCTAGTCCG","Positive",94]
["RAN_01","RAN","GTCAAATGACGTTTCACGA",{"$f":"CONCATENATE(\"CTTTATATATCTTGTGGAAAGGACGAAACACCG\",C322,\"GTTTTAGAGCTAGAAATAGCAAGTTAAAATAAGGCTAGTCCG\")","v":"CTTTATATATCTTGTGGAAAGGACGAAACACCGGTCAAATGACGTTTCACGAGTTTTAGAGCTAGAAATAGCAAGTTAAAATAAGGCTAGTCCG"},"Positive",{"$f":"LEN(D322)","v":94}]
["RAN_05","RAN","AGCTTGTATTGGTTGGTGA","CTTTATATATCTTGTGGAAAGGACGAAACACCGAGCTTGTATTGGTTGGTGAGTTTTAGAGCTAGAAATAGCAAGTTAAAATAAGGCTAGTCCG","Positive",94]
["RAN_08","RAN","AATTCGGTGGACTGAGAGA","CTTTATATATCTTGTGGAAAGGACGAAACACCGAATTCGGTGGACTGAGAGAGTTTTAGAGCTAGAAATAGCAAGTTAAAATAAGGCTAGTCCG","Positive",94]
["RPA1_02","RPA1","GGTGTCGCACTTCTCACAG","CTTTATATATCTTGTGGAAAGGACGAAACACCGGGTGTCGCACTTCTCACAGGTTTTAGAGCTAGAAATAGCAAGTTAAAATAAGGCTAGTCCG","Positive",94]
["RPA1_03","RPA1","GCGAATCCTGACATCCCAG","CTTTATATATCTTGTGGAAAGGACGAAACACCGGCGAATCCTGACATCCCAGGTTTTAGAGCTAGAAATAGCAAGTTAAAATAAGGCTAGTCCG","Positive",94]
["RPA1_08","RPA1","CAGTTGAACCCTCTCGTGG","CTTTATATATCTTGTGGAAAGGACGAAACACCGCAGTTGAACCCTCTCGTGGGTTTTAGAGCTAGAAATAGCAAGTTAAAATAAGGCTAGTCCG","Positive",94]
["RPA2_01","RPA2","TACCTGAAAAGATCTCAGG","CTTTATATATCTTGTGGAAAGGACGAAACACCGTACCTGAAAAGATCTCAGGGTTTTAGAGCTAGAAATAGCAAGTTAAAATAAGGCTAGTCCG","Positive",94]
["RPA2_02","RPA2","ATGGCAGCTCCTCATACGG","CTTTATATATCTTGTGGAAAGGACGAAACACCGATGGCAGCTCCTCATACGGGTTTTAGAGCTAGAAATAGCAAGTTAAAATAAGGCTAGTCCG","Positive",94]
["RPA2_08","RPA2","ATCATCAGACATGCAGAGA","CTTTATATATCTTGTGGAAAGGACGAAACACCGATCATCAGACATGCAGAGAGTTTTAGAGCTAGAAATAGCAAGTTAAAATAAGGCTAGTCCG","Positive",94]
["RPA2_10","RPA2","AAGCCGAAAAGAAATCAGT","CTTTATATATCTTGTGGAAAGGACGAAACACCGAAGCCGAAAAGAAATCAGTGTTTTAGAGCTAGAAATAGCAAGTTAAAATAAGGCTAGTCCG","Positive",94]
["RRM1_03","RRM1","TCACCATGAAAGTAATCCA","CTTTATATATCTTGTGGAAAGGACGAAACACCGTCACCATGAAAGTAATCCAGTTTTAGAGCTAGAAATAGCAAGTTAAAATAAGGCTAGTCCG","Positive",94]
["RRM1_05","RRM1","TTCTCCAAAGAGCACACCA","CTTTATATATCTTGTGGAAAGGACGAAACACCGTTCTCCAAAGAGCACACCAGTTTTAGAGCTAGAAATAGCAAGTTAAAATAAGGCTAGTCCG","Positive",94]
["RRM1_07","RRM1","TTCCCCAGGATCTGAGCAG","CTTTATATATCTTGTGGAAAGGACGAAACACCGTTCCCCAGGATCTGAGCAGGTTTTAGAGCTAGAAATAGCAAGTTAAAATAAGGCTAGTCCG","Positive",94]
["RRM1_08","RRM1","AATGGCAAACACTCTCCCA","CTTTATATATCTTGTGGAAAGGACGAAACACCGAATGGCAAACACTCTCCCAGTTTTAGAGCTAGAAATAGCAAGTTAAAATAAGGCTAGTCCG","Positive",94]
["RUVBL2_01","RUVBL2","CTGGAGATGAGCAAGACCG","CTTTATATATCTTGTGGAAAGGACGAAACACCGCTGGAGATGAGCAAGACCGGTTTTAGAGCTAGAAATAGCAAGTTAAAATAAGGCTAGTCCG","Positive",94]
["RUVBL2_05","RUVBL2","ATCACCATCGACAAGGCGA","CTTTATATATCTTGTGGAAAGGACGAAACACCGATCACCATCGACAAGGCGAGTTTTAGAGCTAGAAATAGCAAGTTAAAATAAGGCTAGTCCG","Positive",94]
["RUVBL2_07","RUVBL2","CGTGAGCAGATCAATGCCA","CTTTATATATCTTGTGGAAAGGACGAAACACCGCGTGAGCAGATCAATGCCAGTTTTAGAGCTAGAAATAGCAAGTTAAAATAAGGCTAGTCCG","Positive",94]
["RUVBL2_09","RUVBL2","TGATCATGGCCACCAACCG","CTTTATATATCTTGTGGAAAGGACGAAACACCGTGATCATGGCCACCAACCGGTTTTAGAGCTAGAAATAGCAAGTTAAAATAAGGCTAGTCCG","Positive",94]
["RUVBL2_10","RUVBL2","AAGATTTCACTGCCGGCGA","CTTTATATATCTTGTGGAAAGGACGAAACACCGAAGATTTCACTGCCGGCGAGTTTTAGAGCTAGAAATAGCAAGTTAAAATAAGGCTAGTCCG","Positive",94]
["SDAD1_01","SDAD1","TTCTGCAGCCCCACCAAAG","CTTTATATATCTTGTGGAAAGGACGAAACACCGTTCTGCAGCCCCACCAAAGGTTTTAGAGCTAGAAATAGCAAGTTAAAATAAGGCTAGTCCG","Positive",94]
["SDAD1_02","SDAD1","CCGCCGGCCTACATCGAGG","CTTTATATATCTTGTGGAAAGGACGAAACACCGCCGCCGGCCTACATCGAGGGTTTTAGAGCTAGAAATAGCAAGTTAAAATAAGGCTAGTCCG","Positive",94]
["SDAD1_04","SDAD1","CCAAGAAAGAATGTCAAAG","CTTTATATATCTTGTGGAAAGGACGAAACACCGCCAAGAAAGAATGTCAAAGGTTTTAGAGCTAGAAATAGCAAGTTAAAATAAGGCTAGTCCG","Positive",94]
["SDAD1_10","SDAD1","AGGATTCAGTGTTCGGAAG","CTTTATATATCTTGTGGAAAGGACGAAACACCGAGGATTCAGTGTTCGGAAGGTTTTAGAGCTAGAAATAGCAAGTTAAAATAAGGCTAGTCCG","Positive",94]
["SUPT5H_03","SUPT5H","CCTGGGTCCGCCTCAAGCG","CTTTATATATCTTGTGGAAAGGACGAAACACCGCCTGGGTCCGCCTCAAGCGGTTTTAGAGCTAGAAATAGCAAGTTAAAATAAGGCTAGTCCG","Positive",94]
["SUPT5H_04","SUPT5H","TGCGGCTGCCATCATGCAG","CTTTATATATCTTGTGGAAAGGACGAAACACCGTGCGGCTGCCATCATGCAGGTTTTAGAGCTAGAAATAGCAAGTTAAAATAAGGCTAGTCCG","Positive",94]
["SUPT5H_08","SUPT5H","CTACTGACTTGATCTGCAG","CTTTATATATCTTGTGGAAAGGACGAAACACCGCTACTGACTTGATCTGCAGGTTTTAGAGCTAGAAATAGCAAGTTAAAATAAGGCTAGTCCG","Positive",94]
["SUPT5H_09","SUPT5H","CATCAAACAGCCTCTGTGG","CTTTATATATCTTGTGGAAAGGACGAAACACCGCATCAAACAGCCTCTGTGGGTTTTAGAGCTAGAAATAGCAAGTTAAAATAAGGCTAGTCCG","Positive",94]
["TAF2_01","TAF2","ATGTGGTATGTTTCAGCAA","CTTTATATATCTTGTGGAAAGGACGAAACACCGATGTGGTATGTTTCAGCAAGTTTTAGAGCTAGAAATAGCAAGTTAAAATAAGGCTAGTCCG","Positive",94]
["TAF2_03","TAF2","AGGTACTTCACATGACTGG","CTTTATATATCTTGTGGAAAGGACGAAACACCGAGGTACTTCACATGACTGGGTTTTAGAGCTAGAAATAGCAAGTTAAAATAAGGCTAGTCCG","Positive",94]
["TAF2_08","TAF2","CTTTGGATCAGCCCAAAGG","CTTTATATATCTTGTGGAAAGGACGAAACACCGCTTTGGATCAGCCCAAAGGGTTTTAGAGCTAGAAATAGCAAGTTAAAATAAGGCTAGTCCG","Positive",94]
["TUBA1B_01","TUBA1B","ACCAAGAAGCCCTGAAGAC","CTTTATATATCTTGTGGAAAGGACGAAACACCGACCAAGAAGCCCTGAAGACGTTTTAGAGCTAGAAATAGCAAGTTAAAATAAGGCTAGTCCG","Positive",94]
["TUBA1B_03","TUBA1B","CTTGCTGCCTGTTGTACCG","CTTTATATATCTTGTGGAAAGGACGAAACACCGCTTGCTGCCTGTTGTACCGGTTTTAGAGCTAGAAATAGCAAGTTAAAATAAGGCTAGTCCG","Positive",94]
["TUBA1B_04","TUBA1B","CACCAGGCACCACAGTGGG","CTTTATATATCTTGTGGAAAGGACGAAACACCGCACCAGGCACCACAGTGGGGTTTTAGAGCTAGAAATAGCAAGTTAAAATAAGGCTAGTCCG","Positive",94]
["TUBA1B_07","TUBA1B","GATATGGCTGCCCTTGAGA","CTTTATATATCTTGTGGAAAGGACGAAACACCGGATATGGCTGCCCTTGAGAGTTTTAGAGCTAGAAATAGCAAGTTAAAATAAGGCTAGTCCG","Positive",94]
["TUBB_02","TUBB","AGCTGACCCACTCACTGGG","CTTTATATATCTTGTGGAAAGGACGAAACACCGAGCTGACCCACTCACTGGGGTTTTAGAGCTAGAAATAGCAAGTTAAAATAAGGCTAGTCCG","Positive",94]
["TUBB_03","TUBB","CCCACCGGCACCTACCACG","CTTTATATATCTTGTGGAAAGGACGAAACACCGCCCACCGGCACCTACCACGGTTTTAGAGCTAGAAATAGCAAGTTAAAATAAGGCTAGTCCG","Positive",94]
["TUBB_05","TUBB","GTTGACTGCCAACTTGCGG","CTTTATATATCTTGTGGAAAGGACGAAACACCGGTTGACTGCCAACTTGCGGGTTTTAGAGCTAGAAATAGCAAGTTAAAATAAGGCTAGTCCG","Positive",94]
["TUBB_08","TUBB","AGGTGGTTCAGATCCCCGT","CTTTATATATCTTGTGGAAAGGACGAAACACCGAGGTGGTTCAGATCCCCGTGTTTTAGAGCTAGAAATAGCAAGTTAAAATAAGGCTAGTCCG","Positive",94]
["TUBGCP3_01","TUBGCP3","CTCCCCATCATATATCCAG","CTTTATATATCTTGTGGAAAGGACGAAACACCGCTCCCCATCATATATCCAGGTTTTAGAGCTAGAAATAGCAAGTTAAAATAAGGCTAGTCCG","Positive",94]
["TUBGCP3_04","TUBGCP3","CCACATGCAGGCAATGAGG","CTTTATATATCTTGTGGAAAGGACGAAACACCGCCACATGCAGGCAATGAGGGTTTTAGAGCTAGAAATAGCAAGTTAAAATAAGGCTAGTCCG","Positive",94]
["TUBGCP3_08","TUBGCP3","CAGTCCTGAGATCCTGCGA","CTTTATATATCTTGTGGAAAGGACGAAACACCGCAGTCCTGAGATCCTGCGAGTTTTAGAGCTAGAAATAGCAAGTTAAAATAAGGCTAGTCCG","Positive",94]
["USP39_02","USP39","TTTCTTACAGATTTGGAAG","CTTTATATATCTTGTGGAAAGGACGAAACACCGTTTCTTACAGATTTGGAAGGTTTTAGAGCTAGAAATAGCAAGTTAAAATAAGGCTAGTCCG","Positive",94]
["USP39_03","USP39","TGTGACTGATGTTTTCCAG","CTTTATATATCTTGTGGAAAGGACGAAACACCGTGTGACTGATGTTTTCCAGGTTTTAGAGCTAGAAATAGCAAGTTAAAATAAGGCTAGTCCG","Positive",94]
["USP39_05","USP39","GGCGTGAGACTTCAAACCC","CTTTATATATCTTGTGGAAAGGACGAAACACCGGGCGTGAGACTTCAAACCCGTTTTAGAGCTAGAAATAGCAAGTTAAAATAAGGCTAGTCCG","Positive",94]
["USP39_07","USP39","CTTACCTGAAGGACAGCGT","CTTTATATATCTTGTGGAAAGGACGAAACACCGCTTACCTGAAGGACAGCGTGTTTTAGAGCTAGAAATAGCAAGTTAAAATAAGGCTAGTCCG","Positive",94]
["ADAD1_03","ADAD1","TTAGTTCCCCATTTAAAAG","CTTTATATATCTTGTGGAAAGGACGAAACACCGTTAGTTCCCCATTTAAAAGGTTTTAGAGCTAGAAATAGCAAGTTAAAATAAGGCTAGTCCG","RBP",94]
["ADAD1_04","ADAD1","AAAGATTCTTGGAAAGCAA","CTTTATATATCTTGTGGAAAGGACGAAACACCGAAAGATTCTTGGAAAGCAAGTTTTAGAGCTAGAAATAGCAAGTTAAAATAAGGCTAGTCCG","RBP",94]
["ADAD1_06","ADAD1","TTAAGGAAACTGTGACAAC","CTTTATATATCTTGTGGAAAGGACGAAACACCGTTAAGGAAACTGTGACAACGTTTTAGAGCTAGAAATAGCAAGTTAAAATAAGGCTAGTCCG","RBP",94]
["ADAD1_08","ADAD1","CTGCTTTTATAATTGAAAG","CTTTATATATCTTGTGGAAAGGACGAAACACCGCTGCTTTTATAATTGAAAGGTTTTAGAGCTAGAAATAGCAAGTTAAAATAAGGCTAGTCCG","RBP",94]
["ADAD1_09","ADAD1","AGGTTGTAGCTATAGGCAC","CTTTATATATCTTGTGGAAAGGACGAAACACCGAGGTTGTAGCTATAGGCACGTTTTAGAGCTAGAAATAGCAAGTTAAAATAAGGCTAGTCCG","RBP",94]
["AGO2_02","AGO2","CGCCCTCCATCCTCTACGG","CTTTATATATCTTGTGGAAAGGACGAAACACCGCGCCCTCCATCCTCTACGGGTTTTAGAGCTAGAAATAGCAAGTTAAAATAAGGCTAGTCCG","RBP",94]
["AGO2_03","AGO2","GACTTGTAAACATGGGAGG","CTTTATATATCTTGTGGAAAGGACGAAACACCGGACTTGTAAACATGGGAGGGTTTTAGAGCTAGAAATAGCAAGTTAAAATAAGGCTAGTCCG","RBP",94]
["AGO2_07","AGO2","TGTCCCTCCCAATCGGAAG","CTTTATATATCTTGTGGAAAGGACGAAACACCGTGTCCCTCCCAATCGGAAGGTTTTAGAGCTAGAAATAGCAAGTTAAAATAAGGCTAGTCCG","RBP",94]
["AGO2_08","AGO2","GACGTTGATCTTCAGGCAG","CTTTATATATCTTGTGGAAAGGACGAAACACCGGACGTTGATCTTCAGGCAGGTTTTAGAGCTAGAAATAGCAAGTTAAAATAAGGCTAGTCCG","RBP",94]
["AGO2_10","AGO2","GCTCTAACCCTCTTGGCGG","CTTTATATATCTTGTGGAAAGGACGAAACACCGGCTCTAACCCTCTTGGCGGGTTTTAGAGCTAGAAATAGCAAGTTAAAATAAGGCTAGTCCG","RBP",94]
["ANKRD17_04","ANKRD17","GCAAGGGACCTGCCGCCAG","CTTTATATATCTTGTGGAAAGGACGAAACACCGGCAAGGGACCTGCCGCCAGGTTTTAGAGCTAGAAATAGCAAGTTAAAATAAGGCTAGTCCG","RBP",94]
["ANKRD17_05","ANKRD17","TGTGGCTAGCAGCAAATGG","CTTTATATATCTTGTGGAAAGGACGAAACACCGTGTGGCTAGCAGCAAATGGGTTTTAGAGCTAGAAATAGCAAGTTAAAATAAGGCTAGTCCG","RBP",94]
["ANKRD17_08","ANKRD17","AGCAGAACAAGCTAAACAA","CTTTATATATCTTGTGGAAAGGACGAAACACCGAGCAGAACAAGCTAAACAAGTTTTAGAGCTAGAAATAGCAAGTTAAAATAAGGCTAGTCCG","RBP",94]
["ANKRD17_09","ANKRD17","CCTGAGAAACAGATCCCGG","CTTTATATATCTTGTGGAAAGGACGAAACACCGCCTGAGAAACAGATCCCGGGTTTTAGAGCTAGAAATAGCAAGTTAAAATAAGGCTAGTCCG","RBP",94]
["ANKRD17_10","ANKRD17","CTTCCCCCAGAACAAGCCA","CTTTATATATCTTGTGGAAAGGACGAAACACCGCTTCCCCCAGAACAAGCCAGTTTTAGAGCTAGAAATAGCAAGTTAAAATAAGGCTAGTCCG","RBP",94]
["AQR_03","AQR","TGGCACTAAGTTTGACCGG","CTTTATATATCTTGTGGAAAGGACGAAACACCGTGGCACTAAGTTTGACCGGGTTTTAGAGCTAGAAATAGCAAGTTAAAATAAGGCTAGTCCG","RBP",94]
["AQR_05","AQR","GTATCATTGAAATCAAGGG","CTTTATATATCTTGTGGAAAGGACGAAACACCGGTATCATTGAAATCAAGGGGTTTTAGAGCTAGAAATAGCAAGTTAAAATAAGGCTAGTCCG","RBP",94]
["AQR_06","AQR","CATGGCCACTACCAAGCGA","CTTTATATATCTTGTGGAAAGGACGAAACACCGCATGGCCACTACCAAGCGAGTTTTAGAGCTAGAAATAGCAAGTTAAAATAAGGCTAGTCCG","RBP",94]
["AQR_08","AQR","GTGGAAGATGAAGACACCG","CTTTATATATCTTGTGGAAAGGACGAAACACCGGTGGAAGATGAAGACACCGGTTTTAGAGCTAGAAATAGCAAGTTAAAATAAGGCTAGTCCG","RBP",94]
["AQR_09","AQR","TTTAAACACATCTTGAAGG",{"$f":"CONCATENATE(\"CTTTATATATCTTGTGGAAAGGACGAAACACCG\",C386,\"GTTTTAGAGCTAGAAATAGCAAGTTAAAATAAGGCTAGTCCG\")","v":"CTTTATATATCTTGTGGAAAGGACGAAACACCGTTTAAACACATCTTGAAGGGTTTTAGAGCTAGAAATAGCAAGTTAAAATAAGGCTAGTCCG"},"RBP",{"$f":"LEN(D386)","v":94}]
["ATXN1_01","ATXN1","GCTTAGGAAGAGTCAAAGG","CTTTATATATCTTGTGGAAAGGACGAAACACCGGCTTAGGAAGAGTCAAAGGGTTTTAGAGCTAGAAATAGCAAGTTAAAATAAGGCTAGTCCG","RBP",94]
["ATXN1_06","ATXN1","TTGAAGACAGCCATAGCCC","CTTTATATATCTTGTGGAAAGGACGAAACACCGTTGAAGACAGCCATAGCCCGTTTTAGAGCTAGAAATAGCAAGTTAAAATAAGGCTAGTCCG","RBP",94]
["ATXN1_07","ATXN1","GTCTAATGTAGGCAAGTAG","CTTTATATATCTTGTGGAAAGGACGAAACACCGGTCTAATGTAGGCAAGTAGGTTTTAGAGCTAGAAATAGCAAGTTAAAATAAGGCTAGTCCG","RBP",94]
["ATXN1_08","ATXN1","GGAAAACGGAATCAACCAG","CTTTATATATCTTGTGGAAAGGACGAAACACCGGGAAAACGGAATCAACCAGGTTTTAGAGCTAGAAATAGCAAGTTAAAATAAGGCTAGTCCG","RBP",94]
["ATXN1_10","ATXN1","ATAGAACCCAGCAAGCCCG","CTTTATATATCTTGTGGAAAGGACGAAACACCGATAGAACCCAGCAAGCCCGGTTTTAGAGCTAGAAATAGCAAGTTAAAATAAGGCTAGTCCG","RBP",94]
["BICC1_03","BICC1","TTTGCTGAAGAGCTCAGGG","CTTTATATATCTTGTGGAAAGGACGAAACACCGTTTGCTGAAGAGCTCAGGGGTTTTAGAGCTAGAAATAGCAAGTTAAAATAAGGCTAGTCCG","RBP",94]
["BICC1_04","BICC1","TTTTTGTTACAGATCATGG","CTTTATATATCTTGTGGAAAGGACGAAACACCGTTTTTGTTACAGATCATGGGTTTTAGAGCTAGAAATAGCAAGTTAAAATAAGGCTAGTCCG","RBP",94]
["BICC1_05","BICC1","TGTGCCAAAAGGCAGACAG","CTTTATATATCTTGTGGAAAGGACGAAACACCGTGTGCCAAAAGGCAGACAGGTTTTAGAGCTAGAAATAGCAAGTTAAAATAAGGCTAGTCCG","RBP",94]
["BICC1_06","BICC1","TTGAAGTATTAGCAAGTGG","CTTTATATATCTTGTGGAAAGGACGAAACACCGTTGAAGTATTAGCAAGTGGGTTTTAGAGCTAGAAATAGCAAGTTAAAATAAGGCTAGTCCG","RBP",94]
["BICC1_10","BICC1","AAGAGGGTGCTGCTACCAG","CTTTATATATCTTGTGGAAAGGACGAAACACCGAAGAGGGTGCTGCTACCAGGTTTTAGAGCTAGAAATAGCAAGTTAAAATAAGGCTAGTCCG","RBP",94]
["BRCA1_01","BRCA1","AACCAGGTAATATTGGCAA","CTTTATATATCTTGTGGAAAGGACGAAACACCGAACCAGGTAATATTGGCAAGTTTTAGAGCTAGAAATAGCAAGTTAAAATAAGGCTAGTCCG","RBP",94]
["BRCA1_06","BRCA1","AACTCTGAGGACAAAGCAG","CTTTATATATCTTGTGGAAAGGACGAAACACCGAACTCTGAGGACAAAGCAGGTTTTAGAGCTAGAAATAGCAAGTTAAAATAAGGCTAGTCCG","RBP",94]
["BRCA1_07","BRCA1","ACCTAAAAAGAATAGGCTG","CTTTATATATCTTGTGGAAAGGACGAAACACCGACCTAAAAAGAATAGGCTGGTTTTAGAGCTAGAAATAGCAAGTTAAAATAAGGCTAGTCCG","RBP",94]
["BRCA1_08","BRCA1","CTTCTTCCAGATCTTCAGG","CTTTATATATCTTGTGGAAAGGACGAAACACCGCTTCTTCCAGATCTTCAGGGTTTTAGAGCTAGAAATAGCAAGTTAAAATAAGGCTAGTCCG","RBP",94]
["BRCA1_10","BRCA1","ATTTTCTAGGAATTGCGGG","CTTTATATATCTTGTGGAAAGGACGAAACACCGATTTTCTAGGAATTGCGGGGTTTTAGAGCTAGAAATAGCAAGTTAAAATAAGGCTAGTCCG","RBP",94]
["BRIX1_01","BRIX1","CAACCAAGAGGAAACGGCG","CTTTATATATCTTGTGGAAAGGACGAAACACCGCAACCAAGAGGAAACGGCGGTTTTAGAGCTAGAAATAGCAAGTTAAAATAAGGCTAGTCCG","RBP",94]
["BRIX1_05","BRIX1","GAAACCAATAGAAATACAG","CTTTATATATCTTGTGGAAAGGACGAAACACCGGAAACCAATAGAAATACAGGTTTTAGAGCTAGAAATAGCAAGTTAAAATAAGGCTAGTCCG","RBP",94]
["BRIX1_07","BRIX1","TGAGATTTAAGACAAAACG","CTTTATATATCTTGTGGAAAGGACGAAACACCGTGAGATTTAAGACAAAACGGTTTTAGAGCTAGAAATAGCAAGTTAAAATAAGGCTAGTCCG","RBP",94]
["BRIX1_08","BRIX1","GTTTTTGTAACACCAGCTG","CTTTATATATCTTGTGGAAAGGACGAAACACCGGTTTTTGTAACACCAGCTGGTTTTAGAGCTAGAAATAGCAAGTTAAAATAAGGCTAGTCCG","RBP",94]
["BRIX1_09","BRIX1","GTCATCTTCAGTTCAGCGA","CTTTATATATCTTGTGGAAAGGACGAAACACCGGTCATCTTCAGTTCAGCGAGTTTTAGAGCTAGAAATAGCAAGTTAAAATAAGGCTAGTCCG","RBP",94]
["C9orf114_02","C9orf114","CCATCGGGACGTCAGAGCG","CTTTATATATCTTGTGGAAAGGACGAAACACCGCCATCGGGACGTCAGAGCGGTTTTAGAGCTAGAAATAGCAAGTTAAAATAAGGCTAGTCCG","RBP",94]
["C9orf114_05","C9orf114","TCCAGCTTCCAGACCCTGG","CTTTATATATCTTGTGGAAAGGACGAAACACCGTCCAGCTTCCAGACCCTGGGTTTTAGAGCTAGAAATAGCAAGTTAAAATAAGGCTAGTCCG","RBP",94]
["C9orf114_07","C9orf114","GATGCTGACCCCAACCTGG","CTTTATATATCTTGTGGAAAGGACGAAACACCGGATGCTGACCCCAACCTGGGTTTTAGAGCTAGAAATAGCAAGTTAAAATAAGGCTAGTCCG","RBP",94]
["C9orf114_09","C9orf114","AGGAATCCGAGTTCCGAGA","CTTTATATATCTTGTGGAAAGGACGAAACACCGAGGAATCCGAGTTCCGAGAGTTTTAGAGCTAGAAATAGCAAGTTAAAATAAGGCTAGTCCG","RBP",94]
["C9orf114_10","C9orf114","CTCATCCTGACGCATGTGG","CTTTATATATCTTGTGGAAAGGACGAAACACCGCTCATCCTGACGCATGTGGGTTTTAGAGCTAGAAATAGCAAGTTAAAATAAGGCTAGTCCG","RBP",94]
["CARS2_01","CARS2","GTTACCCTCAGGTACACCG","CTTTATATATCTTGTGGAAAGGACGAAACACCGGTTACCCTCAGGTACACCGGTTTTAGAGCTAGAAATAGCAAGTTAAAATAAGGCTAGTCCG","RBP",94]
["CARS2_03","CARS2","GTACAACAGCCTCACCGGG","CTTTATATATCTTGTGGAAAGGACGAAACACCGGTACAACAGCCTCACCGGGGTTTTAGAGCTAGAAATAGCAAGTTAAAATAAGGCTAGTCCG","RBP",94]
["CARS2_05","CARS2","GACTTCGCCCTGTGGAAGG","CTTTATATATCTTGTGGAAAGGACGAAACACCGGACTTCGCCCTGTGGAAGGGTTTTAGAGCTAGAAATAGCAAGTTAAAATAAGGCTAGTCCG","RBP",94]
["CARS2_07","CARS2","TGCCGCCGGGCGTCCCCCG","CTTTATATATCTTGTGGAAAGGACGAAACACCGTGCCGCCGGGCGTCCCCCGGTTTTAGAGCTAGAAATAGCAAGTTAAAATAAGGCTAGTCCG","RBP",94]
["CARS2_09","CARS2","CATGCGACACCCTGCGCCG","CTTTATATATCTTGTGGAAAGGACGAAACACCGCATGCGACACCCTGCGCCGGTTTTAGAGCTAGAAATAGCAAGTTAAAATAAGGCTAGTCCG","RBP",94]
["CARS_02","CARS","CACTGGTCAGTTTGAGAAG","CTTTATATATCTTGTGGAAAGGACGAAACACCGCACTGGTCAGTTTGAGAAGGTTTTAGAGCTAGAAATAGCAAGTTAAAATAAGGCTAGTCCG","RBP",94]
["CARS_03","CARS","AATGAGCTGGCACAGTCGG","CTTTATATATCTTGTGGAAAGGACGAAACACCGAATGAGCTGGCACAGTCGGGTTTTAGAGCTAGAAATAGCAAGTTAAAATAAGGCTAGTCCG","RBP",94]
["CARS_04","CARS","CCCGGGTTAAGACATCTGG","CTTTATATATCTTGTGGAAAGGACGAAACACCGCCCGGGTTAAGACATCTGGGTTTTAGAGCTAGAAATAGCAAGTTAAAATAAGGCTAGTCCG","RBP",94]
["CARS_05","CARS","CAGAAAGCCCTTCAAGAAG","CTTTATATATCTTGTGGAAAGGACGAAACACCGCAGAAAGCCCTTCAAGAAGGTTTTAGAGCTAGAAATAGCAAGTTAAAATAAGGCTAGTCCG","RBP",94]
["CARS_07","CARS","AAGAGGCCCACCTTCAGGG","CTTTATATATCTTGTGGAAAGGACGAAACACCGAAGAGGCCCACCTTCAGGGGTTTTAGAGCTAGAAATAGCAAGTTAAAATAAGGCTAGTCCG","RBP",94]
["CCT3_03","CCT3","CAGACTTATAAGACAGCAG","CTTTATATATCTTGTGGAAAGGACGAAACACCGCAGACTTATAAGACAGCAGGTTTTAGAGCTAGAAATAGCAAGTTAAAATAAGGCTAGTCCG","RBP",94]
["CCT3_04","CCT3","GAGCACGAGCACTGGACGA","CTTTATATATCTTGTGGAAAGGACGAAACACCGGAGCACGAGCACTGGACGAGTTTTAGAGCTAGAAATAGCAAGTTAAAATAAGGCTAGTCCG","RBP",94]
["CCT3_06","CCT3","ATTGAGATTACACGAGAGG","CTTTATATATCTTGTGGAAAGGACGAAACACCGATTGAGATTACACGAGAGGGTTTTAGAGCTAGAAATAGCAAGTTAAAATAAGGCTAGTCCG","RBP",94]
["CCT3_07","CCT3","ATTCAAGTCCAGCATCCAG","CTTTATATATCTTGTGGAAAGGACGAAACACCGATTCAAGTCCAGCATCCAGGTTTTAGAGCTAGAAATAGCAAGTTAAAATAAGGCTAGTCCG","RBP",94]
["CCT3_08","CCT3","GAGGAACTCACCCGAAGGG","CTTTATATATCTTGTGGAAAGGACGAAACACCGGAGGAACTCACCCGAAGGGGTTTTAGAGCTAGAAATAGCAAGTTAAAATAAGGCTAGTCCG","RBP",94]
["CCT4_04","CCT4","AATAGATTTCTGTATGAGA","CTTTATATATCTTGTGGAAAGGACGAAACACCGAATAGATTTCTGTATGAGAGTTTTAGAGCTAGAAATAGCAAGTTAAAATAAGGCTAGTCCG","RBP",94]
["CCT4_05","CCT4","AGAGTGATACCTTTGGCGG","CTTTATATATCTTGTGGAAAGGACGAAACACCGAGAGTGATACCTTTGGCGGGTTTTAGAGCTAGAAATAGCAAGTTAAAATAAGGCTAGTCCG","RBP",94]
["CCT4_06","CCT4","CACTGACTGATACCAACAG","CTTTATATATCTTGTGGAAAGGACGAAACACCGCACTGACTGATACCAACAGGTTTTAGAGCTAGAAATAGCAAGTTAAAATAAGGCTAGTCCG","RBP",94]
["CCT4_07","CCT4","CAGATGGATAATCAAATAG","CTTTATATATCTTGTGGAAAGGACGAAACACCGCAGATGGATAATCAAATAGGTTTTAGAGCTAGAAATAGCAAGTTAAAATAAGGCTAGTCCG","RBP",94]
["CCT4_09","CCT4","AAGATATAGAAGCAGGAGA","CTTTATATATCTTGTGGAAAGGACGAAACACCGAAGATATAGAAGCAGGAGAGTTTTAGAGCTAGAAATAGCAAGTTAAAATAAGGCTAGTCCG","RBP",94]
["CCT7_03","CCT7","GAATCAAGAAGGTACAGGG","CTTTATATATCTTGTGGAAAGGACGAAACACCGGAATCAAGAAGGTACAGGGGTTTTAGAGCTAGAAATAGCAAGTTAAAATAAGGCTAGTCCG","RBP",94]
["CCT7_04","CCT7","CTCCCACAGCAGCAGGCCG","CTTTATATATCTTGTGGAAAGGACGAAACACCGCTCCCACAGCAGCAGGCCGGTTTTAGAGCTAGAAATAGCAAGTTAAAATAAGGCTAGTCCG","RBP",94]
["CCT7_05","CCT7","CAGGTGAAACCCTATGTGG","CTTTATATATCTTGTGGAAAGGACGAAACACCGCAGGTGAAACCCTATGTGGGTTTTAGAGCTAGAAATAGCAAGTTAAAATAAGGCTAGTCCG","RBP",94]
["CCT7_06","CCT7","CTGCAGAATGATTCAGTGG","CTTTATATATCTTGTGGAAAGGACGAAACACCGCTGCAGAATGATTCAGTGGGTTTTAGAGCTAGAAATAGCAAGTTAAAATAAGGCTAGTCCG","RBP",94]
["CCT7_07","CCT7","GTCTTCATCTTCTGTGCAG","CTTTATATATCTTGTGGAAAGGACGAAACACCGGTCTTCATCTTCTGTGCAGGTTTTAGAGCTAGAAATAGCAAGTTAAAATAAGGCTAGTCCG","RBP",94]
["CDC5L_02","CDC5L","GATGAAATTCTGAAAGCAG","CTTTATATATCTTGTGGAAAGGACGAAACACCGGATGAAATTCTGAAAGCAGGTTTTAGAGCTAGAAATAGCAAGTTAAAATAAGGCTAGTCCG","RBP",94]
["CDC5L_04","CDC5L","ATTGCACGTCAAACTGCCG","CTTTATATATCTTGTGGAAAGGACGAAACACCGATTGCACGTCAAACTGCCGGTTTTAGAGCTAGAAATAGCAAGTTAAAATAAGGCTAGTCCG","RBP",94]
["CDC5L_06","CDC5L","AAGTTAAACATTAATCCCG","CTTTATATATCTTGTGGAAAGGACGAAACACCGAAGTTAAACATTAATCCCGGTTTTAGAGCTAGAAATAGCAAGTTAAAATAAGGCTAGTCCG","RBP",94]
["CDC5L_08","CDC5L","GTTGATGCCAACTCAGTGG","CTTTATATATCTTGTGGAAAGGACGAAACACCGGTTGATGCCAACTCAGTGGGTTTTAGAGCTAGAAATAGCAAGTTAAAATAAGGCTAGTCCG","RBP",94]
["CDC5L_09","CDC5L","CCAATCATTGGAAGAACAG","CTTTATATATCTTGTGGAAAGGACGAAACACCGCCAATCATTGGAAGAACAGGTTTTAGAGCTAGAAATAGCAAGTTAAAATAAGGCTAGTCCG","RBP",94]
["CDK11B_02","CDK11B","ACCGGCAGCAACTCTGAGG","CTTTATATATCTTGTGGAAAGGACGAAACACCGACCGGCAGCAACTCTGAGGGTTTTAGAGCTAGAAATAGCAAGTTAAAATAAGGCTAGTCCG","RBP",94]
["CDK11B_03","CDK11B","CTGACTTCCCGGGGAACAG","CTTTATATATCTTGTGGAAAGGACGAAACACCGCTGACTTCCCGGGGAACAGGTTTTAGAGCTAGAAATAGCAAGTTAAAATAAGGCTAGTCCG","RBP",94]
["CDK11B_04","CDK11B","TCTTCAGGAAAAGAAACGA","CTTTATATATCTTGTGGAAAGGACGAAACACCGTCTTCAGGAAAAGAAACGAGTTTTAGAGCTAGAAATAGCAAGTTAAAATAAGGCTAGTCCG","RBP",94]
["CDK11B_05","CDK11B","AGCCCCGAAGCGCTTGCGG","CTTTATATATCTTGTGGAAAGGACGAAACACCGAGCCCCGAAGCGCTTGCGGGTTTTAGAGCTAGAAATAGCAAGTTAAAATAAGGCTAGTCCG","RBP",94]
["CDK11B_06","CDK11B","CTGGCTTCTGCGCAGGCGC","CTTTATATATCTTGTGGAAAGGACGAAACACCGCTGGCTTCTGCGCAGGCGCGTTTTAGAGCTAGAAATAGCAAGTTAAAATAAGGCTAGTCCG","RBP",94]
["CLTC_01","CLTC","TTATAGCAAAATCGTGTGG","CTTTATATATCTTGTGGAAAGGACGAAACACCGTTATAGCAAAATCGTGTGGGTTTTAGAGCTAGAAATAGCAAGTTAAAATAAGGCTAGTCCG","RBP",94]
["CLTC_03","CLTC","GCCCAGGGAAATTACTCGG","CTTTATATATCTTGTGGAAAGGACGAAACACCGGCCCAGGGAAATTACTCGGGTTTTAGAGCTAGAAATAGCAAGTTAAAATAAGGCTAGTCCG","RBP",94]
["CLTC_04","CLTC","CGTCCTAGAAACTGCATGG","CTTTATATATCTTGTGGAAAGGACGAAACACCGCGTCCTAGAAACTGCATGGGTTTTAGAGCTAGAAATAGCAAGTTAAAATAAGGCTAGTCCG","RBP",94]
["CLTC_07","CLTC","TTCTTCTAACTCTGCAAGG",{"$f":"CONCATENATE(\"CTTTATATATCTTGTGGAAAGGACGAAACACCG\",C450,\"GTTTTAGAGCTAGAAATAGCAAGTTAAAATAAGGCTAGTCCG\")","v":"CTTTATATATCTTGTGGAAAGGACGAAACACCGTTCTTCTAACTCTGCAAGGGTTTTAGAGCTAGAAATAGCAAGTTAAAATAAGGCTAGTCCG"},"RBP",{"$f":"LEN(D450)","v":94}]
["CLTC_08","CLTC","CACGAGTGTGATCCAACCG","CTTTATATATCTTGTGGAAAGGACGAAACACCGCACGAGTGTGATCCAACCGGTTTTAGAGCTAGAAATAGCAAGTTAAAATAAGGCTAGTCCG","RBP",94]
["CMTR1_01","CMTR1","TTCTACAACAAGAAAACCA","CTTTATATATCTTGTGGAAAGGACGAAACACCGTTCTACAACAAGAAAACCAGTTTTAGAGCTAGAAATAGCAAGTTAAAATAAGGCTAGTCCG","RBP",94]
["CMTR1_04","CMTR1","CAGATAGCAGAGTGTCCCG","CTTTATATATCTTGTGGAAAGGACGAAACACCGCAGATAGCAGAGTGTCCCGGTTTTAGAGCTAGAAATAGCAAGTTAAAATAAGGCTAGTCCG","RBP",94]
["CMTR1_05","CMTR1","CAGGACAAGCTGTCCAAGG","CTTTATATATCTTGTGGAAAGGACGAAACACCGCAGGACAAGCTGTCCAAGGGTTTTAGAGCTAGAAATAGCAAGTTAAAATAAGGCTAGTCCG","RBP",94]
["CMTR1_07","CMTR1","GGAGCAGCACTTTAACCAG","CTTTATATATCTTGTGGAAAGGACGAAACACCGGGAGCAGCACTTTAACCAGGTTTTAGAGCTAGAAATAGCAAGTTAAAATAAGGCTAGTCCG","RBP",94]
["CMTR1_10","CMTR1","CAGGTCTAGCTTGATCCAG","CTTTATATATCTTGTGGAAAGGACGAAACACCGCAGGTCTAGCTTGATCCAGGTTTTAGAGCTAGAAATAGCAAGTTAAAATAAGGCTAGTCCG","RBP",94]
["CNOT3_01","CNOT3","CCCAGCCACAGCCACATGG","CTTTATATATCTTGTGGAAAGGACGAAACACCGCCCAGCCACAGCCACATGGGTTTTAGAGCTAGAAATAGCAAGTTAAAATAAGGCTAGTCCG","RBP",94]
["CNOT3_04","CNOT3","GAGGGACCAAATCAAGACA","CTTTATATATCTTGTGGAAAGGACGAAACACCGGAGGGACCAAATCAAGACAGTTTTAGAGCTAGAAATAGCAAGTTAAAATAAGGCTAGTCCG","RBP",94]
["CNOT3_06","CNOT3","ATGTGGTTCCAGAGGCACG","CTTTATATATCTTGTGGAAAGGACGAAACACCGATGTGGTTCCAGAGGCACGGTTTTAGAGCTAGAAATAGCAAGTTAAAATAAGGCTAGTCCG","RBP",94]
["CNOT3_07","CNOT3","TTTGAGTACCGCTACCTGG","CTTTATATATCTTGTGGAAAGGACGAAACACCGTTTGAGTACCGCTACCTGGGTTTTAGAGCTAGAAATAGCAAGTTAAAATAAGGCTAGTCCG","RBP",94]
["CNOT3_08","CNOT3","GTCATTGTCCAGCATGCGC","CTTTATATATCTTGTGGAAAGGACGAAACACCGGTCATTGTCCAGCATGCGCGTTTTAGAGCTAGAAATAGCAAGTTAAAATAAGGCTAGTCCG","RBP",94]
["CNOT6_02","CNOT6","GAATGGAACCACCAATGGA","CTTTATATATCTTGTGGAAAGGACGAAACACCGGAATGGAACCACCAATGGAGTTTTAGAGCTAGAAATAGCAAGTTAAAATAAGGCTAGTCCG","RBP",94]
["CNOT6_04","CNOT6","TGGTTGAGAATAACATCAG","CTTTATATATCTTGTGGAAAGGACGAAACACCGTGGTTGAGAATAACATCAGGTTTTAGAGCTAGAAATAGCAAGTTAAAATAAGGCTAGTCCG","RBP",94]
["CNOT6_05","CNOT6","GGAACCAGATGGAACAAGA","CTTTATATATCTTGTGGAAAGGACGAAACACCGGGAACCAGATGGAACAAGAGTTTTAGAGCTAGAAATAGCAAGTTAAAATAAGGCTAGTCCG","RBP",94]
["CNOT6_06","CNOT6","GTACTGCTAGAACTTCGGA","CTTTATATATCTTGTGGAAAGGACGAAACACCGGTACTGCTAGAACTTCGGAGTTTTAGAGCTAGAAATAGCAAGTTAAAATAAGGCTAGTCCG","RBP",94]
["CNOT6_08","CNOT6","GACCCCTCAGAATTTGCCA","CTTTATATATCTTGTGGAAAGGACGAAACACCGGACCCCTCAGAATTTGCCAGTTTTAGAGCTAGAAATAGCAAGTTAAAATAAGGCTAGTCCG","RBP",94]
["CNOT7_01","CNOT7","CCAGTTTAAACCTTAAAAG","CTTTATATATCTTGTGGAAAGGACGAAACACCGCCAGTTTAAACCTTAAAAGGTTTTAGAGCTAGAAATAGCAAGTTAAAATAAGGCTAGTCCG","RBP",94]
["CNOT7_02","CNOT7","TTCTAGGGTGGATTACAGG","CTTTATATATCTTGTGGAAAGGACGAAACACCGTTCTAGGGTGGATTACAGGGTTTTAGAGCTAGAAATAGCAAGTTAAAATAAGGCTAGTCCG","RBP",94]
["CNOT7_05","CNOT7","AGGGAGGACATGTATGCCC","CTTTATATATCTTGTGGAAAGGACGAAACACCGAGGGAGGACATGTATGCCCGTTTTAGAGCTAGAAATAGCAAGTTAAAATAAGGCTAGTCCG","RBP",94]
["CNOT7_06","CNOT7","ACAGGGAATGCATATGAAG","CTTTATATATCTTGTGGAAAGGACGAAACACCGACAGGGAATGCATATGAAGGTTTTAGAGCTAGAAATAGCAAGTTAAAATAAGGCTAGTCCG","RBP",94]
["CNOT7_09","CNOT7","CAGTTTAAAAAACATGAGG","CTTTATATATCTTGTGGAAAGGACGAAACACCGCAGTTTAAAAAACATGAGGGTTTTAGAGCTAGAAATAGCAAGTTAAAATAAGGCTAGTCCG","RBP",94]
["CPSF4_01","CPSF4","ACTGCATGAATTTACACGA","CTTTATATATCTTGTGGAAAGGACGAAACACCGACTGCATGAATTTACACGAGTTTTAGAGCTAGAAATAGCAAGTTAAAATAAGGCTAGTCCG","RBP",94]
["CPSF4_02","CPSF4","TTTGACTTGGAGATCGCGG","CTTTATATATCTTGTGGAAAGGACGAAACACCGTTTGACTTGGAGATCGCGGGTTTTAGAGCTAGAAATAGCAAGTTAAAATAAGGCTAGTCCG","RBP",94]
["CPSF4_04","CPSF4","CGTGGCCTATGCAAGAAAG","CTTTATATATCTTGTGGAAAGGACGAAACACCGCGTGGCCTATGCAAGAAAGGTTTTAGAGCTAGAAATAGCAAGTTAAAATAAGGCTAGTCCG","RBP",94]
["CPSF4_07","CPSF4","CATGGGCAGTTCAAATCGA","CTTTATATATCTTGTGGAAAGGACGAAACACCGCATGGGCAGTTCAAATCGAGTTTTAGAGCTAGAAATAGCAAGTTAAAATAAGGCTAGTCCG","RBP",94]
["CPSF4_08","CPSF4","GCGCTCACTGTCCATGCCG","CTTTATATATCTTGTGGAAAGGACGAAACACCGGCGCTCACTGTCCATGCCGGTTTTAGAGCTAGAAATAGCAAGTTAAAATAAGGCTAGTCCG","RBP",94]
["CSTF3_01","CSTF3","GCATATGCAGATTATGAAG","CTTTATATATCTTGTGGAAAGGACGAAACACCGGCATATGCAGATTATGAAGGTTTTAGAGCTAGAAATAGCAAGTTAAAATAAGGCTAGTCCG","RBP",94]
["CSTF3_02","CSTF3","AGTAACATAGACATGGTGG","CTTTATATATCTTGTGGAAAGGACGAAACACCGAGTAACATAGACATGGTGGGTTTTAGAGCTAGAAATAGCAAGTTAAAATAAGGCTAGTCCG","RBP",94]
["CSTF3_03","CSTF3","CTGAGGCCATGTCAGGAGA","CTTTATATATCTTGTGGAAAGGACGAAACACCGCTGAGGCCATGTCAGGAGAGTTTTAGAGCTAGAAATAGCAAGTTAAAATAAGGCTAGTCCG","RBP",94]
["CSTF3_06","CSTF3","GACTATAACAAGTATGAAG","CTTTATATATCTTGTGGAAAGGACGAAACACCGGACTATAACAAGTATGAAGGTTTTAGAGCTAGAAATAGCAAGTTAAAATAAGGCTAGTCCG","RBP",94]
["CSTF3_07","CSTF3","GTAAATGTCATGAACAGGG","CTTTATATATCTTGTGGAAAGGACGAAACACCGGTAAATGTCATGAACAGGGGTTTTAGAGCTAGAAATAGCAAGTTAAAATAAGGCTAGTCCG","RBP",94]
["CWC22_02","CWC22","AAGGACTGAGAGAGAAAGA","CTTTATATATCTTGTGGAAAGGACGAAACACCGAAGGACTGAGAGAGAAAGAGTTTTAGAGCTAGAAATAGCAAGTTAAAATAAGGCTAGTCCG","RBP",94]
["CWC22_04","CWC22","GATGAGTCAGACTCTGAAG","CTTTATATATCTTGTGGAAAGGACGAAACACCGGATGAGTCAGACTCTGAAGGTTTTAGAGCTAGAAATAGCAAGTTAAAATAAGGCTAGTCCG","RBP",94]
["CWC22_06","CWC22","GTGATCCCAAAAAGAAGAG","CTTTATATATCTTGTGGAAAGGACGAAACACCGGTGATCCCAAAAAGAAGAGGTTTTAGAGCTAGAAATAGCAAGTTAAAATAAGGCTAGTCCG","RBP",94]
["CWC22_08","CWC22","TTTTAGCTTAGCATACCAG","CTTTATATATCTTGTGGAAAGGACGAAACACCGTTTTAGCTTAGCATACCAGGTTTTAGAGCTAGAAATAGCAAGTTAAAATAAGGCTAGTCCG","RBP",94]
["CWC22_10","CWC22","ACTATGAGCATTCAAGAAG","CTTTATATATCTTGTGGAAAGGACGAAACACCGACTATGAGCATTCAAGAAGGTTTTAGAGCTAGAAATAGCAAGTTAAAATAAGGCTAGTCCG","RBP",94]
["CWC25_01","CWC25","GAAAACGCCAAATGGAGGG","CTTTATATATCTTGTGGAAAGGACGAAACACCGGAAAACGCCAAATGGAGGGGTTTTAGAGCTAGAAATAGCAAGTTAAAATAAGGCTAGTCCG","RBP",94]
["CWC25_03","CWC25","CTCTTTAGGAAGAAGGAGG","CTTTATATATCTTGTGGAAAGGACGAAACACCGCTCTTTAGGAAGAAGGAGGGTTTTAGAGCTAGAAATAGCAAGTTAAAATAAGGCTAGTCCG","RBP",94]
["CWC25_05","CWC25","GGGACTTTGGACAAAACAG","CTTTATATATCTTGTGGAAAGGACGAAACACCGGGGACTTTGGACAAAACAGGTTTTAGAGCTAGAAATAGCAAGTTAAAATAAGGCTAGTCCG","RBP",94]
["CWC25_07","CWC25","ATGGCCAGCAAGATCCGGG","CTTTATATATCTTGTGGAAAGGACGAAACACCGATGGCCAGCAAGATCCGGGGTTTTAGAGCTAGAAATAGCAAGTTAAAATAAGGCTAGTCCG","RBP",94]
["CWC25_10","CWC25","GAGACTGAACATCCTCAAG","CTTTATATATCTTGTGGAAAGGACGAAACACCGGAGACTGAACATCCTCAAGGTTTTAGAGCTAGAAATAGCAAGTTAAAATAAGGCTAGTCCG","RBP",94]
["DARS2_03","DARS2","TCTGTTGCAGAGTTCACAG","CTTTATATATCTTGTGGAAAGGACGAAACACCGTCTGTTGCAGAGTTCACAGGTTTTAGAGCTAGAAATAGCAAGTTAAAATAAGGCTAGTCCG","RBP",94]
["DARS2_05","DARS2","CATAAAATCTTCTTCACAG","CTTTATATATCTTGTGGAAAGGACGAAACACCGCATAAAATCTTCTTCACAGGTTTTAGAGCTAGAAATAGCAAGTTAAAATAAGGCTAGTCCG","RBP",94]
["DARS2_06","DARS2","AGGCAATTCCTCCATGAGG","CTTTATATATCTTGTGGAAAGGACGAAACACCGAGGCAATTCCTCCATGAGGGTTTTAGAGCTAGAAATAGCAAGTTAAAATAAGGCTAGTCCG","RBP",94]
["DARS2_07","DARS2","CAATTTCTTTAGAAAACAG","CTTTATATATCTTGTGGAAAGGACGAAACACCGCAATTTCTTTAGAAAACAGGTTTTAGAGCTAGAAATAGCAAGTTAAAATAAGGCTAGTCCG","RBP",94]
["DARS2_10","DARS2","GGTTAAGTCAGCTGTACAG","CTTTATATATCTTGTGGAAAGGACGAAACACCGGGTTAAGTCAGCTGTACAGGTTTTAGAGCTAGAAATAGCAAGTTAAAATAAGGCTAGTCCG","RBP",94]
["DBR1_03","DBR1","GGGCAGAAAACCAATAAGT","CTTTATATATCTTGTGGAAAGGACGAAACACCGGGGCAGAAAACCAATAAGTGTTTTAGAGCTAGAAATAGCAAGTTAAAATAAGGCTAGTCCG","RBP",94]
["DBR1_05","DBR1","TGCTGCGGCGACTTCCAGG","CTTTATATATCTTGTGGAAAGGACGAAACACCGTGCTGCGGCGACTTCCAGGGTTTTAGAGCTAGAAATAGCAAGTTAAAATAAGGCTAGTCCG","RBP",94]
["DBR1_06","DBR1","CTGGTGTGGTAAAATACCG","CTTTATATATCTTGTGGAAAGGACGAAACACCGCTGGTGTGGTAAAATACCGGTTTTAGAGCTAGAAATAGCAAGTTAAAATAAGGCTAGTCCG","RBP",94]
["DBR1_09","DBR1","GATCTTATCCAGCTCGCCG","CTTTATATATCTTGTGGAAAGGACGAAACACCGGATCTTATCCAGCTCGCCGGTTTTAGAGCTAGAAATAGCAAGTTAAAATAAGGCTAGTCCG","RBP",94]
["DBR1_10","DBR1","TGTAGATGAATTATAAGGG","CTTTATATATCTTGTGGAAAGGACGAAACACCGTGTAGATGAATTATAAGGGGTTTTAGAGCTAGAAATAGCAAGTTAAAATAAGGCTAGTCCG","RBP",94]
["DCP2_02","DCP2","CTCTAGCAGCACAATCATG","CTTTATATATCTTGTGGAAAGGACGAAACACCGCTCTAGCAGCACAATCATGGTTTTAGAGCTAGAAATAGCAAGTTAAAATAAGGCTAGTCCG","RBP",94]
["DCP2_04","DCP2","TGACCAGTGGGTAAAGCAC","CTTTATATATCTTGTGGAAAGGACGAAACACCGTGACCAGTGGGTAAAGCACGTTTTAGAGCTAGAAATAGCAAGTTAAAATAAGGCTAGTCCG","RBP",94]
["DCP2_05","DCP2","AAAGGCTCTGGATGAAAAG","CTTTATATATCTTGTGGAAAGGACGAAACACCGAAAGGCTCTGGATGAAAAGGTTTTAGAGCTAGAAATAGCAAGTTAAAATAAGGCTAGTCCG","RBP",94]
["DCP2_07","DCP2","AGTCTCTTATCCCACACTG","CTTTATATATCTTGTGGAAAGGACGAAACACCGAGTCTCTTATCCCACACTGGTTTTAGAGCTAGAAATAGCAAGTTAAAATAAGGCTAGTCCG","RBP",94]
["DCP2_10","DCP2","TCCTCAACTGGTAGCACGC","CTTTATATATCTTGTGGAAAGGACGAAACACCGTCCTCAACTGGTAGCACGCGTTTTAGAGCTAGAAATAGCAAGTTAAAATAAGGCTAGTCCG","RBP",94]
["DCPS_01","DCPS","CAGGAACATCCTCCACCAG","CTTTATATATCTTGTGGAAAGGACGAAACACCGCAGGAACATCCTCCACCAGGTTTTAGAGCTAGAAATAGCAAGTTAAAATAAGGCTAGTCCG","RBP",94]
["DCPS_02","DCPS","TCTGTGGCAGGGTAAACCA","CTTTATATATCTTGTGGAAAGGACGAAACACCGTCTGTGGCAGGGTAAACCAGTTTTAGAGCTAGAAATAGCAAGTTAAAATAAGGCTAGTCCG","RBP",94]
["DCPS_04","DCPS","TCGCCATCTGCCATCGCCG","CTTTATATATCTTGTGGAAAGGACGAAACACCGTCGCCATCTGCCATCGCCGGTTTTAGAGCTAGAAATAGCAAGTTAAAATAAGGCTAGTCCG","RBP",94]
["DCPS_08","DCPS","GAGAAGACGCCATTTCAGG","CTTTATATATCTTGTGGAAAGGACGAAACACCGGAGAAGACGCCATTTCAGGGTTTTAGAGCTAGAAATAGCAAGTTAAAATAAGGCTAGTCCG","RBP",94]
["DCPS_09","DCPS","TCTCCATCCCCATCCCCAG","CTTTATATATCTTGTGGAAAGGACGAAACACCGTCTCCATCCCCATCCCCAGGTTTTAGAGCTAGAAATAGCAAGTTAAAATAAGGCTAGTCCG","RBP",94]
["DDX17_01","DDX17","TCAGGATGAGTGTGACCGA","CTTTATATATCTTGTGGAAAGGACGAAACACCGTCAGGATGAGTGTGACCGAGTTTTAGAGCTAGAAATAGCAAGTTAAAATAAGGCTAGTCCG","RBP",94]
["DDX17_03","DDX17","AGCTTGTGGACCACAGAGG","CTTTATATATCTTGTGGAAAGGACGAAACACCGAGCTTGTGGACCACAGAGGGTTTTAGAGCTAGAAATAGCAAGTTAAAATAAGGCTAGTCCG","RBP",94]
["DDX17_05","DDX17","ATCGGGGCTACAAAGCCGG",{"$f":"CONCATENATE(\"CTTTATATATCTTGTGGAAAGGACGAAACACCG\",C514,\"GTTTTAGAGCTAGAAATAGCAAGTTAAAATAAGGCTAGTCCG\")","v":"CTTTATATATCTTGTGGAAAGGACGAAACACCGATCGGGGCTACAAAGCCGGGTTTTAGAGCTAGAAATAGCAAGTTAAAATAAGGCTAGTCCG"},"RBP",{"$f":"LEN(D514)","v":94}]
["DDX17_06","DDX17","CCGTCTCCGACGAGAGAGG","CTTTATATATCTTGTGGAAAGGACGAAACACCGCCGTCTCCGACGAGAGAGGGTTTTAGAGCTAGAAATAGCAAGTTAAAATAAGGCTAGTCCG","RBP",94]
["DDX17_09","DDX17","CTTTTGGGACCATGCGCGG","CTTTATATATCTTGTGGAAAGGACGAAACACCGCTTTTGGGACCATGCGCGGGTTTTAGAGCTAGAAATAGCAAGTTAAAATAAGGCTAGTCCG","RBP",94]
["DDX19A_02","DDX19A","CTGAGCATGGCTAAGACAA","CTTTATATATCTTGTGGAAAGGACGAAACACCGCTGAGCATGGCTAAGACAAGTTTTAGAGCTAGAAATAGCAAGTTAAAATAAGGCTAGTCCG","RBP",94]
["DDX19A_03","DDX19A","CCAAGTGGAAGTCCTGCAA","CTTTATATATCTTGTGGAAAGGACGAAACACCGCCAAGTGGAAGTCCTGCAAGTTTTAGAGCTAGAAATAGCAAGTTAAAATAAGGCTAGTCCG","RBP",94]
["DDX19A_06","DDX19A","AAGTCAAAGCAGATACCAA","CTTTATATATCTTGTGGAAAGGACGAAACACCGAAGTCAAAGCAGATACCAAGTTTTAGAGCTAGAAATAGCAAGTTAAAATAAGGCTAGTCCG","RBP",94]
["DDX19A_08","DDX19A","GAGGGTCGATTGAAGCCCA","CTTTATATATCTTGTGGAAAGGACGAAACACCGGAGGGTCGATTGAAGCCCAGTTTTAGAGCTAGAAATAGCAAGTTAAAATAAGGCTAGTCCG","RBP",94]
["DDX19A_09","DDX19A","GCCGAGAAAACAGATGAAG","CTTTATATATCTTGTGGAAAGGACGAAACACCGGCCGAGAAAACAGATGAAGGTTTTAGAGCTAGAAATAGCAAGTTAAAATAAGGCTAGTCCG","RBP",94]
["DDX1_01","DDX1","CAAGACTCAAGGAAGATGG","CTTTATATATCTTGTGGAAAGGACGAAACACCGCAAGACTCAAGGAAGATGGGTTTTAGAGCTAGAAATAGCAAGTTAAAATAAGGCTAGTCCG","RBP",94]
["DDX1_02","DDX1","TTTACCATAAGGAACACCG","CTTTATATATCTTGTGGAAAGGACGAAACACCGTTTACCATAAGGAACACCGGTTTTAGAGCTAGAAATAGCAAGTTAAAATAAGGCTAGTCCG","RBP",94]
["DDX1_04","DDX1","AAGCAGAGAAGTAAAGGAA","CTTTATATATCTTGTGGAAAGGACGAAACACCGAAGCAGAGAAGTAAAGGAAGTTTTAGAGCTAGAAATAGCAAGTTAAAATAAGGCTAGTCCG","RBP",94]
["DDX1_05","DDX1","TTGGCTGCCCTTGAAAAGG","CTTTATATATCTTGTGGAAAGGACGAAACACCGTTGGCTGCCCTTGAAAAGGGTTTTAGAGCTAGAAATAGCAAGTTAAAATAAGGCTAGTCCG","RBP",94]
["DDX1_08","DDX1","TTCCATCAGAGGTAACCTG","CTTTATATATCTTGTGGAAAGGACGAAACACCGTTCCATCAGAGGTAACCTGGTTTTAGAGCTAGAAATAGCAAGTTAAAATAAGGCTAGTCCG","RBP",94]
["DDX21_03","DDX21","CAGAAGATTCAGAGGACAG","CTTTATATATCTTGTGGAAAGGACGAAACACCGCAGAAGATTCAGAGGACAGGTTTTAGAGCTAGAAATAGCAAGTTAAAATAAGGCTAGTCCG","RBP",94]
["DDX21_04","DDX21","ACACTGCGAAAGCAAACCG","CTTTATATATCTTGTGGAAAGGACGAAACACCGACACTGCGAAAGCAAACCGGTTTTAGAGCTAGAAATAGCAAGTTAAAATAAGGCTAGTCCG","RBP",94]
["DDX21_07","DDX21","TACCTGTGGAACAAAAAGA","CTTTATATATCTTGTGGAAAGGACGAAACACCGTACCTGTGGAACAAAAAGAGTTTTAGAGCTAGAAATAGCAAGTTAAAATAAGGCTAGTCCG","RBP",94]
["DDX21_08","DDX21","GTACAAGTGGAGCAAAAAG","CTTTATATATCTTGTGGAAAGGACGAAACACCGGTACAAGTGGAGCAAAAAGGTTTTAGAGCTAGAAATAGCAAGTTAAAATAAGGCTAGTCCG","RBP",94]
["DDX21_09","DDX21","CGTGGGTTAGACATCCCTG","CTTTATATATCTTGTGGAAAGGACGAAACACCGCGTGGGTTAGACATCCCTGGTTTTAGAGCTAGAAATAGCAAGTTAAAATAAGGCTAGTCCG","RBP",94]
["DDX27_01","DDX27","GAGGTGCTCATCCTGGACG","CTTTATATATCTTGTGGAAAGGACGAAACACCGGAGGTGCTCATCCTGGACGGTTTTAGAGCTAGAAATAGCAAGTTAAAATAAGGCTAGTCCG","RBP",94]
["DDX27_04","DDX27","TTCTTACAGATACAAGAGG","CTTTATATATCTTGTGGAAAGGACGAAACACCGTTCTTACAGATACAAGAGGGTTTTAGAGCTAGAAATAGCAAGTTAAAATAAGGCTAGTCCG","RBP",94]
["DDX27_06","DDX27","TGGCTCATGACATCAGCCA","CTTTATATATCTTGTGGAAAGGACGAAACACCGTGGCTCATGACATCAGCCAGTTTTAGAGCTAGAAATAGCAAGTTAAAATAAGGCTAGTCCG","RBP",94]
["DDX27_07","DDX27","TTGCGCAAAGACGACGAGG","CTTTATATATCTTGTGGAAAGGACGAAACACCGTTGCGCAAAGACGACGAGGGTTTTAGAGCTAGAAATAGCAAGTTAAAATAAGGCTAGTCCG","RBP",94]
["DDX27_10","DDX27","CGAAAGAAAAGGAAAACAG","CTTTATATATCTTGTGGAAAGGACGAAACACCGCGAAAGAAAAGGAAAACAGGTTTTAGAGCTAGAAATAGCAAGTTAAAATAAGGCTAGTCCG","RBP",94]
["DDX31_01","DDX31","GAAAAAGAAATGCACGCGC","CTTTATATATCTTGTGGAAAGGACGAAACACCGGAAAAAGAAATGCACGCGCGTTTTAGAGCTAGAAATAGCAAGTTAAAATAAGGCTAGTCCG","RBP",94]
["DDX31_03","DDX31","GGAACAACGCAGCAAGCAA","CTTTATATATCTTGTGGAAAGGACGAAACACCGGGAACAACGCAGCAAGCAAGTTTTAGAGCTAGAAATAGCAAGTTAAAATAAGGCTAGTCCG","RBP",94]
["DDX31_05","DDX31","TCGAAGAGCGAACCGTCGG","CTTTATATATCTTGTGGAAAGGACGAAACACCGTCGAAGAGCGAACCGTCGGGTTTTAGAGCTAGAAATAGCAAGTTAAAATAAGGCTAGTCCG","RBP",94]
["DDX31_07","DDX31","ACTTACTAAATGTGGGTGG","CTTTATATATCTTGTGGAAAGGACGAAACACCGACTTACTAAATGTGGGTGGGTTTTAGAGCTAGAAATAGCAAGTTAAAATAAGGCTAGTCCG","RBP",94]
["DDX31_09","DDX31","TGTGGTTCCCAGCAAACTG","CTTTATATATCTTGTGGAAAGGACGAAACACCGTGTGGTTCCCAGCAAACTGGTTTTAGAGCTAGAAATAGCAAGTTAAAATAAGGCTAGTCCG","RBP",94]
["DDX41_01","DDX41","AGGCCGTAGCCATCCATGG","CTTTATATATCTTGTGGAAAGGACGAAACACCGAGGCCGTAGCCATCCATGGGTTTTAGAGCTAGAAATAGCAAGTTAAAATAAGGCTAGTCCG","RBP",94]
["DDX41_02","DDX41","TCCTGGAGAGTGTTGCCGA","CTTTATATATCTTGTGGAAAGGACGAAACACCGTCCTGGAGAGTGTTGCCGAGTTTTAGAGCTAGAAATAGCAAGTTAAAATAAGGCTAGTCCG","RBP",94]
["DDX41_06","DDX41","CACCAGCACCTTAAAGAGA","CTTTATATATCTTGTGGAAAGGACGAAACACCGCACCAGCACCTTAAAGAGAGTTTTAGAGCTAGAAATAGCAAGTTAAAATAAGGCTAGTCCG","RBP",94]
["DDX41_08","DDX41","TTGATGTCAGTGAAGGAGA","CTTTATATATCTTGTGGAAAGGACGAAACACCGTTGATGTCAGTGAAGGAGAGTTTTAGAGCTAGAAATAGCAAGTTAAAATAAGGCTAGTCCG","RBP",94]
["DDX41_10","DDX41","GGACATGCCCCCAATGCAG","CTTTATATATCTTGTGGAAAGGACGAAACACCGGGACATGCCCCCAATGCAGGTTTTAGAGCTAGAAATAGCAAGTTAAAATAAGGCTAGTCCG","RBP",94]
["DDX51_02","DDX51","CCAGGTGCAGGACGACCAG","CTTTATATATCTTGTGGAAAGGACGAAACACCGCCAGGTGCAGGACGACCAGGTTTTAGAGCTAGAAATAGCAAGTTAAAATAAGGCTAGTCCG","RBP",94]
["DDX51_04","DDX51","GCCCTGTGGAGAAAAGCCG","CTTTATATATCTTGTGGAAAGGACGAAACACCGGCCCTGTGGAGAAAAGCCGGTTTTAGAGCTAGAAATAGCAAGTTAAAATAAGGCTAGTCCG","RBP",94]
["DDX51_07","DDX51","CACGATGTCAGCCAAGCAG","CTTTATATATCTTGTGGAAAGGACGAAACACCGCACGATGTCAGCCAAGCAGGTTTTAGAGCTAGAAATAGCAAGTTAAAATAAGGCTAGTCCG","RBP",94]
["DDX51_08","DDX51","AGAAGAGCAGCTTCTGCAG","CTTTATATATCTTGTGGAAAGGACGAAACACCGAGAAGAGCAGCTTCTGCAGGTTTTAGAGCTAGAAATAGCAAGTTAAAATAAGGCTAGTCCG","RBP",94]
["DDX51_10","DDX51","ACGTCGATGCCTCGCGCGG","CTTTATATATCTTGTGGAAAGGACGAAACACCGACGTCGATGCCTCGCGCGGGTTTTAGAGCTAGAAATAGCAAGTTAAAATAAGGCTAGTCCG","RBP",94]
["DDX53_02","DDX53","CAAGTTAAATCAACAAAAG","CTTTATATATCTTGTGGAAAGGACGAAACACCGCAAGTTAAATCAACAAAAGGTTTTAGAGCTAGAAATAGCAAGTTAAAATAAGGCTAGTCCG","RBP",94]
["DDX53_04","DDX53","CAACTGATATAGTATCCCG","CTTTATATATCTTGTGGAAAGGACGAAACACCGCAACTGATATAGTATCCCGGTTTTAGAGCTAGAAATAGCAAGTTAAAATAAGGCTAGTCCG","RBP",94]
["DDX53_05","DDX53","CGTGTGATGACTTGAAAAG","CTTTATATATCTTGTGGAAAGGACGAAACACCGCGTGTGATGACTTGAAAAGGTTTTAGAGCTAGAAATAGCAAGTTAAAATAAGGCTAGTCCG","RBP",94]
["DDX53_06","DDX53","TTATTTTAAAGCAGAGTGG","CTTTATATATCTTGTGGAAAGGACGAAACACCGTTATTTTAAAGCAGAGTGGGTTTTAGAGCTAGAAATAGCAAGTTAAAATAAGGCTAGTCCG","RBP",94]
["DDX53_07","DDX53","AAATAGAAGACATTAGCAA","CTTTATATATCTTGTGGAAAGGACGAAACACCGAAATAGAAGACATTAGCAAGTTTTAGAGCTAGAAATAGCAAGTTAAAATAAGGCTAGTCCG","RBP",94]
["DDX60L_02","DDX60L","GTCTGGGAAACTTGGCCCA","CTTTATATATCTTGTGGAAAGGACGAAACACCGGTCTGGGAAACTTGGCCCAGTTTTAGAGCTAGAAATAGCAAGTTAAAATAAGGCTAGTCCG","RBP",94]
["DDX60L_03","DDX60L","CATGGAAATTAGATAACCG","CTTTATATATCTTGTGGAAAGGACGAAACACCGCATGGAAATTAGATAACCGGTTTTAGAGCTAGAAATAGCAAGTTAAAATAAGGCTAGTCCG","RBP",94]
["DDX60L_05","DDX60L","GAAGCAATCAGCAGGAAGG","CTTTATATATCTTGTGGAAAGGACGAAACACCGGAAGCAATCAGCAGGAAGGGTTTTAGAGCTAGAAATAGCAAGTTAAAATAAGGCTAGTCCG","RBP",94]
["DDX60L_06","DDX60L","ATCCTTGCCGAACTCCCGG","CTTTATATATCTTGTGGAAAGGACGAAACACCGATCCTTGCCGAACTCCCGGGTTTTAGAGCTAGAAATAGCAAGTTAAAATAAGGCTAGTCCG","RBP",94]
["DDX60L_10","DDX60L","GAAGGCTTTAGCACAAAGG","CTTTATATATCTTGTGGAAAGGACGAAACACCGGAAGGCTTTAGCACAAAGGGTTTTAGAGCTAGAAATAGCAAGTTAAAATAAGGCTAGTCCG","RBP",94]
["DHX15_01","DHX15","TATTTGATAGATTCCACAG","CTTTATATATCTTGTGGAAAGGACGAAACACCGTATTTGATAGATTCCACAGGTTTTAGAGCTAGAAATAGCAAGTTAAAATAAGGCTAGTCCG","RBP",94]
["DHX15_03","DHX15","TACACCATAACGCTCCAGG","CTTTATATATCTTGTGGAAAGGACGAAACACCGTACACCATAACGCTCCAGGGTTTTAGAGCTAGAAATAGCAAGTTAAAATAAGGCTAGTCCG","RBP",94]
["DHX15_06","DHX15","AATGGGAAGCTTTCAAAGG","CTTTATATATCTTGTGGAAAGGACGAAACACCGAATGGGAAGCTTTCAAAGGGTTTTAGAGCTAGAAATAGCAAGTTAAAATAAGGCTAGTCCG","RBP",94]
["DHX15_09","DHX15","TGTTTTGTTCGCCCCACGG","CTTTATATATCTTGTGGAAAGGACGAAACACCGTGTTTTGTTCGCCCCACGGGTTTTAGAGCTAGAAATAGCAAGTTAAAATAAGGCTAGTCCG","RBP",94]
["DHX15_10","DHX15","ACTGTGAAAGATAACCAGG","CTTTATATATCTTGTGGAAAGGACGAAACACCGACTGTGAAAGATAACCAGGGTTTTAGAGCTAGAAATAGCAAGTTAAAATAAGGCTAGTCCG","RBP",94]
["DHX29_01","DHX29","ATGACAGCTATCTTTACAG","CTTTATATATCTTGTGGAAAGGACGAAACACCGATGACAGCTATCTTTACAGGTTTTAGAGCTAGAAATAGCAAGTTAAAATAAGGCTAGTCCG","RBP",94]
["DHX29_03","DHX29","AAAACAAAAACATATGAAG","CTTTATATATCTTGTGGAAAGGACGAAACACCGAAAACAAAAACATATGAAGGTTTTAGAGCTAGAAATAGCAAGTTAAAATAAGGCTAGTCCG","RBP",94]
["DHX29_07","DHX29","GCTCTGGAAGCAGACACGG","CTTTATATATCTTGTGGAAAGGACGAAACACCGGCTCTGGAAGCAGACACGGGTTTTAGAGCTAGAAATAGCAAGTTAAAATAAGGCTAGTCCG","RBP",94]
["DHX29_09","DHX29","AGAGCAGCAACCTAAAAGT","CTTTATATATCTTGTGGAAAGGACGAAACACCGAGAGCAGCAACCTAAAAGTGTTTTAGAGCTAGAAATAGCAAGTTAAAATAAGGCTAGTCCG","RBP",94]
["DHX29_10","DHX29","AACAAGCAAGGCCAAAAAG","CTTTATATATCTTGTGGAAAGGACGAAACACCGAACAAGCAAGGCCAAAAAGGTTTTAGAGCTAGAAATAGCAAGTTAAAATAAGGCTAGTCCG","RBP",94]
["DHX38_01","DHX38","AAGATAAGGATGTCTCCAG","CTTTATATATCTTGTGGAAAGGACGAAACACCGAAGATAAGGATGTCTCCAGGTTTTAGAGCTAGAAATAGCAAGTTAAAATAAGGCTAGTCCG","RBP",94]
["DHX38_03","DHX38","CCAGGCCAATGCCAACCAG","CTTTATATATCTTGTGGAAAGGACGAAACACCGCCAGGCCAATGCCAACCAGGTTTTAGAGCTAGAAATAGCAAGTTAAAATAAGGCTAGTCCG","RBP",94]
["DHX38_06","DHX38","TGCGCCCATCCAGAAAGGG","CTTTATATATCTTGTGGAAAGGACGAAACACCGTGCGCCCATCCAGAAAGGGGTTTTAGAGCTAGAAATAGCAAGTTAAAATAAGGCTAGTCCG","RBP",94]
["DHX38_09","DHX38","ATAATGGGCGTCAAGAAGG","CTTTATATATCTTGTGGAAAGGACGAAACACCGATAATGGGCGTCAAGAAGGGTTTTAGAGCTAGAAATAGCAAGTTAAAATAAGGCTAGTCCG","RBP",94]
["DHX38_10","DHX38","TTCTATAGCGTGAAACAGG","CTTTATATATCTTGTGGAAAGGACGAAACACCGTTCTATAGCGTGAAACAGGGTTTTAGAGCTAGAAATAGCAAGTTAAAATAAGGCTAGTCCG","RBP",94]
["DHX9_02","DHX9","CTGGGCCCACCTGGGACCG","CTTTATATATCTTGTGGAAAGGACGAAACACCGCTGGGCCCACCTGGGACCGGTTTTAGAGCTAGAAATAGCAAGTTAAAATAAGGCTAGTCCG","RBP",94]
["DHX9_06","DHX9","TTGCACTCACAAAAGCCAG",{"$f":"CONCATENATE(\"CTTTATATATCTTGTGGAAAGGACGAAACACCG\",C578,\"GTTTTAGAGCTAGAAATAGCAAGTTAAAATAAGGCTAGTCCG\")","v":"CTTTATATATCTTGTGGAAAGGACGAAACACCGTTGCACTCACAAAAGCCAGGTTTTAGAGCTAGAAATAGCAAGTTAAAATAAGGCTAGTCCG"},"RBP",{"$f":"LEN(D578)","v":94}]
["DHX9_07","DHX9","ACTACAGAGGGCCTAGTGG","CTTTATATATCTTGTGGAAAGGACGAAACACCGACTACAGAGGGCCTAGTGGGTTTTAGAGCTAGAAATAGCAAGTTAAAATAAGGCTAGTCCG","RBP",94]
["DHX9_09","DHX9","TAGTAGCAACATTGATGAG","CTTTATATATCTTGTGGAAAGGACGAAACACCGTAGTAGCAACATTGATGAGGTTTTAGAGCTAGAAATAGCAAGTTAAAATAAGGCTAGTCCG","RBP",94]
["DHX9_10","DHX9","GAGGTTCTAGTTACAGTGG","CTTTATATATCTTGTGGAAAGGACGAAACACCGGAGGTTCTAGTTACAGTGGGTTTTAGAGCTAGAAATAGCAAGTTAAAATAAGGCTAGTCCG","RBP",94]
["DICER1_05","DICER1","TAGCTTAGGAGATCTGAGG","CTTTATATATCTTGTGGAAAGGACGAAACACCGTAGCTTAGGAGATCTGAGGGTTTTAGAGCTAGAAATAGCAAGTTAAAATAAGGCTAGTCCG","RBP",94]
["DICER1_07","DICER1","TGTGGTCCACATCCAGCAG","CTTTATATATCTTGTGGAAAGGACGAAACACCGTGTGGTCCACATCCAGCAGGTTTTAGAGCTAGAAATAGCAAGTTAAAATAAGGCTAGTCCG","RBP",94]
["DICER1_08","DICER1","ACCAGGTTCCACGAAACGA","CTTTATATATCTTGTGGAAAGGACGAAACACCGACCAGGTTCCACGAAACGAGTTTTAGAGCTAGAAATAGCAAGTTAAAATAAGGCTAGTCCG","RBP",94]
["DICER1_09","DICER1","TCAACGTGGAGCTTACCAG","CTTTATATATCTTGTGGAAAGGACGAAACACCGTCAACGTGGAGCTTACCAGGTTTTAGAGCTAGAAATAGCAAGTTAAAATAAGGCTAGTCCG","RBP",94]
["DICER1_10","DICER1","CCGCGGCAGCACTCCCCGG","CTTTATATATCTTGTGGAAAGGACGAAACACCGCCGCGGCAGCACTCCCCGGGTTTTAGAGCTAGAAATAGCAAGTTAAAATAAGGCTAGTCCG","RBP",94]
["DNMT1_02","DNMT1","GGGAGACCACCAACTCCCG","CTTTATATATCTTGTGGAAAGGACGAAACACCGGGGAGACCACCAACTCCCGGTTTTAGAGCTAGAAATAGCAAGTTAAAATAAGGCTAGTCCG","RBP",94]
["DNMT1_07","DNMT1","GGAGAACGCCTTTAAGCGC","CTTTATATATCTTGTGGAAAGGACGAAACACCGGGAGAACGCCTTTAAGCGCGTTTTAGAGCTAGAAATAGCAAGTTAAAATAAGGCTAGTCCG","RBP",94]
["DNMT1_08","DNMT1","ACGATGTCCGACCTGCCGG","CTTTATATATCTTGTGGAAAGGACGAAACACCGACGATGTCCGACCTGCCGGGTTTTAGAGCTAGAAATAGCAAGTTAAAATAAGGCTAGTCCG","RBP",94]
["DNMT1_09","DNMT1","CTGCAGAGCTGCCAAACGG","CTTTATATATCTTGTGGAAAGGACGAAACACCGCTGCAGAGCTGCCAAACGGGTTTTAGAGCTAGAAATAGCAAGTTAAAATAAGGCTAGTCCG","RBP",94]
["DNMT1_10","DNMT1","GCAGGAGCAGACCCCACGG","CTTTATATATCTTGTGGAAAGGACGAAACACCGGCAGGAGCAGACCCCACGGGTTTTAGAGCTAGAAATAGCAAGTTAAAATAAGGCTAGTCCG","RBP",94]
["EDC3_01","EDC3","TTGGCAGCCAGCACCAGAG","CTTTATATATCTTGTGGAAAGGACGAAACACCGTTGGCAGCCAGCACCAGAGGTTTTAGAGCTAGAAATAGCAAGTTAAAATAAGGCTAGTCCG","RBP",94]
["EDC3_02","EDC3","TGTGGACCTCATGTGAAGG","CTTTATATATCTTGTGGAAAGGACGAAACACCGTGTGGACCTCATGTGAAGGGTTTTAGAGCTAGAAATAGCAAGTTAAAATAAGGCTAGTCCG","RBP",94]
["EDC3_04","EDC3","TCCCAAAAATGTTCACCAG","CTTTATATATCTTGTGGAAAGGACGAAACACCGTCCCAAAAATGTTCACCAGGTTTTAGAGCTAGAAATAGCAAGTTAAAATAAGGCTAGTCCG","RBP",94]
["EDC3_05","EDC3","GGCCTGCGTGCTCCCCCAG","CTTTATATATCTTGTGGAAAGGACGAAACACCGGGCCTGCGTGCTCCCCCAGGTTTTAGAGCTAGAAATAGCAAGTTAAAATAAGGCTAGTCCG","RBP",94]
["EDC3_06","EDC3","CGCTCTTCAGCAAGACCCA","CTTTATATATCTTGTGGAAAGGACGAAACACCGCGCTCTTCAGCAAGACCCAGTTTTAGAGCTAGAAATAGCAAGTTAAAATAAGGCTAGTCCG","RBP",94]
["EEF1A1_01","EEF1A1","ATCTGATCTATAAATGCGG","CTTTATATATCTTGTGGAAAGGACGAAACACCGATCTGATCTATAAATGCGGGTTTTAGAGCTAGAAATAGCAAGTTAAAATAAGGCTAGTCCG","RBP",94]
["EEF1A1_02","EEF1A1","GATGCCTTGGTTCAAGGGA","CTTTATATATCTTGTGGAAAGGACGAAACACCGGATGCCTTGGTTCAAGGGAGTTTTAGAGCTAGAAATAGCAAGTTAAAATAAGGCTAGTCCG","RBP",94]
["EEF1A1_03","EEF1A1","AATCCTTACAGATGGGAAA","CTTTATATATCTTGTGGAAAGGACGAAACACCGAATCCTTACAGATGGGAAAGTTTTAGAGCTAGAAATAGCAAGTTAAAATAAGGCTAGTCCG","RBP",94]
["EEF1A1_05","EEF1A1","GCTCCAGTCAACGTTACAA","CTTTATATATCTTGTGGAAAGGACGAAACACCGGCTCCAGTCAACGTTACAAGTTTTAGAGCTAGAAATAGCAAGTTAAAATAAGGCTAGTCCG","RBP",94]
["EEF1A1_07","EEF1A1","TATCAAAAACATGATTACA","CTTTATATATCTTGTGGAAAGGACGAAACACCGTATCAAAAACATGATTACAGTTTTAGAGCTAGAAATAGCAAGTTAAAATAAGGCTAGTCCG","RBP",94]
["EEFSEC_01","EEFSEC","CGGGGGCCCCTGCAAACCA","CTTTATATATCTTGTGGAAAGGACGAAACACCGCGGGGGCCCCTGCAAACCAGTTTTAGAGCTAGAAATAGCAAGTTAAAATAAGGCTAGTCCG","RBP",94]
["EEFSEC_02","EEFSEC","CTCGGGCAAAGACGACCGC","CTTTATATATCTTGTGGAAAGGACGAAACACCGCTCGGGCAAAGACGACCGCGTTTTAGAGCTAGAAATAGCAAGTTAAAATAAGGCTAGTCCG","RBP",94]
["EEFSEC_03","EEFSEC","TGCGGCTGCTTGTCAAAGG","CTTTATATATCTTGTGGAAAGGACGAAACACCGTGCGGCTGCTTGTCAAAGGGTTTTAGAGCTAGAAATAGCAAGTTAAAATAAGGCTAGTCCG","RBP",94]
["EEFSEC_07","EEFSEC","AATCACCAGGCACAGCCGA","CTTTATATATCTTGTGGAAAGGACGAAACACCGAATCACCAGGCACAGCCGAGTTTTAGAGCTAGAAATAGCAAGTTAAAATAAGGCTAGTCCG","RBP",94]
["EEFSEC_09","EEFSEC","TGCTGGGCCACATCGACAG","CTTTATATATCTTGTGGAAAGGACGAAACACCGTGCTGGGCCACATCGACAGGTTTTAGAGCTAGAAATAGCAAGTTAAAATAAGGCTAGTCCG","RBP",94]
["EFTUD2_01","EFTUD2","TTTAAGATCCTGGATGCGG","CTTTATATATCTTGTGGAAAGGACGAAACACCGTTTAAGATCCTGGATGCGGGTTTTAGAGCTAGAAATAGCAAGTTAAAATAAGGCTAGTCCG","RBP",94]
["EFTUD2_02","EFTUD2","GGCCACAGAGATCCAAAGG","CTTTATATATCTTGTGGAAAGGACGAAACACCGGGCCACAGAGATCCAAAGGGTTTTAGAGCTAGAAATAGCAAGTTAAAATAAGGCTAGTCCG","RBP",94]
["EFTUD2_03","EFTUD2","GGTGATGCTGAACACAGAG","CTTTATATATCTTGTGGAAAGGACGAAACACCGGGTGATGCTGAACACAGAGGTTTTAGAGCTAGAAATAGCAAGTTAAAATAAGGCTAGTCCG","RBP",94]
["EFTUD2_04","EFTUD2","CCCAGGAGCCCCTGCACCG","CTTTATATATCTTGTGGAAAGGACGAAACACCGCCCAGGAGCCCCTGCACCGGTTTTAGAGCTAGAAATAGCAAGTTAAAATAAGGCTAGTCCG","RBP",94]
["EFTUD2_06","EFTUD2","GCAGAGACGCAATCTGCAG","CTTTATATATCTTGTGGAAAGGACGAAACACCGGCAGAGACGCAATCTGCAGGTTTTAGAGCTAGAAATAGCAAGTTAAAATAAGGCTAGTCCG","RBP",94]
["EIF2AK2_01","EIF2AK2","GAACAAATAACAAAAGGGG","CTTTATATATCTTGTGGAAAGGACGAAACACCGGAACAAATAACAAAAGGGGGTTTTAGAGCTAGAAATAGCAAGTTAAAATAAGGCTAGTCCG","RBP",94]
["EIF2AK2_03","EIF2AK2","TTACTCTCAAAGAAACCTG","CTTTATATATCTTGTGGAAAGGACGAAACACCGTTACTCTCAAAGAAACCTGGTTTTAGAGCTAGAAATAGCAAGTTAAAATAAGGCTAGTCCG","RBP",94]
["EIF2AK2_04","EIF2AK2","AGGACCTCCACATGATAGG","CTTTATATATCTTGTGGAAAGGACGAAACACCGAGGACCTCCACATGATAGGGTTTTAGAGCTAGAAATAGCAAGTTAAAATAAGGCTAGTCCG","RBP",94]
["EIF2AK2_05","EIF2AK2","AAAGAAACAAAGTATACTG","CTTTATATATCTTGTGGAAAGGACGAAACACCGAAAGAAACAAAGTATACTGGTTTTAGAGCTAGAAATAGCAAGTTAAAATAAGGCTAGTCCG","RBP",94]
["EIF2AK2_08","EIF2AK2","CTCAGAAATAATCAAAGGA","CTTTATATATCTTGTGGAAAGGACGAAACACCGCTCAGAAATAATCAAAGGAGTTTTAGAGCTAGAAATAGCAAGTTAAAATAAGGCTAGTCCG","RBP",94]
["EIF2B3_06","EIF2B3","GGACAAGAAGAAAAAGAGG","CTTTATATATCTTGTGGAAAGGACGAAACACCGGGACAAGAAGAAAAAGAGGGTTTTAGAGCTAGAAATAGCAAGTTAAAATAAGGCTAGTCCG","RBP",94]
["EIF2B3_07","EIF2B3","AGTGACTGAGTTCATGAGA","CTTTATATATCTTGTGGAAAGGACGAAACACCGAGTGACTGAGTTCATGAGAGTTTTAGAGCTAGAAATAGCAAGTTAAAATAAGGCTAGTCCG","RBP",94]
["EIF2B3_08","EIF2B3","AGTGGACAGCACAGGAAAG","CTTTATATATCTTGTGGAAAGGACGAAACACCGAGTGGACAGCACAGGAAAGGTTTTAGAGCTAGAAATAGCAAGTTAAAATAAGGCTAGTCCG","RBP",94]
["EIF2B3_09","EIF2B3","TTGCTATGTTGATGAGAAA","CTTTATATATCTTGTGGAAAGGACGAAACACCGTTGCTATGTTGATGAGAAAGTTTTAGAGCTAGAAATAGCAAGTTAAAATAAGGCTAGTCCG","RBP",94]
["EIF2B3_10","EIF2B3","TGTCCACATCATGAAAGAG","CTTTATATATCTTGTGGAAAGGACGAAACACCGTGTCCACATCATGAAAGAGGTTTTAGAGCTAGAAATAGCAAGTTAAAATAAGGCTAGTCCG","RBP",94]
["EIF2B5_02","EIF2B5","TAGCGGCTTGAGTCAAGCG","CTTTATATATCTTGTGGAAAGGACGAAACACCGTAGCGGCTTGAGTCAAGCGGTTTTAGAGCTAGAAATAGCAAGTTAAAATAAGGCTAGTCCG","RBP",94]
["EIF2B5_03","EIF2B5","CAGAGGAAATGCAAAACGC","CTTTATATATCTTGTGGAAAGGACGAAACACCGCAGAGGAAATGCAAAACGCGTTTTAGAGCTAGAAATAGCAAGTTAAAATAAGGCTAGTCCG","RBP",94]
["EIF2B5_05","EIF2B5","TTTTAGGAACACTACAGCG","CTTTATATATCTTGTGGAAAGGACGAAACACCGTTTTAGGAACACTACAGCGGTTTTAGAGCTAGAAATAGCAAGTTAAAATAAGGCTAGTCCG","RBP",94]
["EIF2B5_08","EIF2B5","GTCGGGCTAACAAGCGCAG","CTTTATATATCTTGTGGAAAGGACGAAACACCGGTCGGGCTAACAAGCGCAGGTTTTAGAGCTAGAAATAGCAAGTTAAAATAAGGCTAGTCCG","RBP",94]
["EIF2B5_10","EIF2B5","CTGAGGTCAGCCTGGGCCA","CTTTATATATCTTGTGGAAAGGACGAAACACCGCTGAGGTCAGCCTGGGCCAGTTTTAGAGCTAGAAATAGCAAGTTAAAATAAGGCTAGTCCG","RBP",94]
["EIF2S1_02","EIF2S1","GAGGTGTTAGAATACACCA","CTTTATATATCTTGTGGAAAGGACGAAACACCGGAGGTGTTAGAATACACCAGTTTTAGAGCTAGAAATAGCAAGTTAAAATAAGGCTAGTCCG","RBP",94]
["EIF2S1_04","EIF2S1","TAAAAGAAGCCCTAAGAGC","CTTTATATATCTTGTGGAAAGGACGAAACACCGTAAAAGAAGCCCTAAGAGCGTTTTAGAGCTAGAAATAGCAAGTTAAAATAAGGCTAGTCCG","RBP",94]
["EIF2S1_05","EIF2S1","TCTTAGTGAATTATCCAGA","CTTTATATATCTTGTGGAAAGGACGAAACACCGTCTTAGTGAATTATCCAGAGTTTTAGAGCTAGAAATAGCAAGTTAAAATAAGGCTAGTCCG","RBP",94]
["EIF2S1_06","EIF2S1","TAGTCATTACATACCGAGG","CTTTATATATCTTGTGGAAAGGACGAAACACCGTAGTCATTACATACCGAGGGTTTTAGAGCTAGAAATAGCAAGTTAAAATAAGGCTAGTCCG","RBP",94]
["EIF2S1_10","EIF2S1","GTAATTGTAGATATTGAAG","CTTTATATATCTTGTGGAAAGGACGAAACACCGGTAATTGTAGATATTGAAGGTTTTAGAGCTAGAAATAGCAAGTTAAAATAAGGCTAGTCCG","RBP",94]
["EIF3L_01","EIF3L","CAGATCCACAAATTTGAGG","CTTTATATATCTTGTGGAAAGGACGAAACACCGCAGATCCACAAATTTGAGGGTTTTAGAGCTAGAAATAGCAAGTTAAAATAAGGCTAGTCCG","RBP",94]
["EIF3L_02","EIF3L","AAGAATACACCTTGGCCCG","CTTTATATATCTTGTGGAAAGGACGAAACACCGAAGAATACACCTTGGCCCGGTTTTAGAGCTAGAAATAGCAAGTTAAAATAAGGCTAGTCCG","RBP",94]
["EIF3L_03","EIF3L","GTAGAGCTTCAGGAAGCTG","CTTTATATATCTTGTGGAAAGGACGAAACACCGGTAGAGCTTCAGGAAGCTGGTTTTAGAGCTAGAAATAGCAAGTTAAAATAAGGCTAGTCCG","RBP",94]
["EIF3L_05","EIF3L","ATGTTGGCGAAGACCCGGA","CTTTATATATCTTGTGGAAAGGACGAAACACCGATGTTGGCGAAGACCCGGAGTTTTAGAGCTAGAAATAGCAAGTTAAAATAAGGCTAGTCCG","RBP",94]
["EIF3L_10","EIF3L","TAGTCGCTGGGATAAGCGT","CTTTATATATCTTGTGGAAAGGACGAAACACCGTAGTCGCTGGGATAAGCGTGTTTTAGAGCTAGAAATAGCAAGTTAAAATAAGGCTAGTCCG","RBP",94]
["EIF4A1_01","EIF4A1","CCGATACAGGCGTGACAGG","CTTTATATATCTTGTGGAAAGGACGAAACACCGCCGATACAGGCGTGACAGGGTTTTAGAGCTAGAAATAGCAAGTTAAAATAAGGCTAGTCCG","RBP",94]
["EIF4A1_05","EIF4A1","GATTTCACTGTATCCGCCA","CTTTATATATCTTGTGGAAAGGACGAAACACCGGATTTCACTGTATCCGCCAGTTTTAGAGCTAGAAATAGCAAGTTAAAATAAGGCTAGTCCG","RBP",94]
["EIF4A1_07","EIF4A1","CAGGGAAAACTATATCCAC","CTTTATATATCTTGTGGAAAGGACGAAACACCGCAGGGAAAACTATATCCACGTTTTAGAGCTAGAAATAGCAAGTTAAAATAAGGCTAGTCCG","RBP",94]
["EIF4A1_08","EIF4A1","TGTTTTCCAGAATCGGTCG","CTTTATATATCTTGTGGAAAGGACGAAACACCGTGTTTTCCAGAATCGGTCGGTTTTAGAGCTAGAAATAGCAAGTTAAAATAAGGCTAGTCCG","RBP",94]
["EIF4A1_10","EIF4A1","AACATCTTGATGTATTTGG","CTTTATATATCTTGTGGAAAGGACGAAACACCGAACATCTTGATGTATTTGGGTTTTAGAGCTAGAAATAGCAAGTTAAAATAAGGCTAGTCCG","RBP",94]
["EIF4E2_01","EIF4E2","AGATTCTCCCAGCAACGGG",{"$f":"CONCATENATE(\"CTTTATATATCTTGTGGAAAGGACGAAACACCG\",C642,\"GTTTTAGAGCTAGAAATAGCAAGTTAAAATAAGGCTAGTCCG\")","v":"CTTTATATATCTTGTGGAAAGGACGAAACACCGAGATTCTCCCAGCAACGGGGTTTTAGAGCTAGAAATAGCAAGTTAAAATAAGGCTAGTCCG"},"RBP",{"$f":"LEN(D642)","v":94}]
["EIF4E2_02","EIF4E2","ATGATGCAAATAAAAATGG","CTTTATATATCTTGTGGAAAGGACGAAACACCGATGATGCAAATAAAAATGGGTTTTAGAGCTAGAAATAGCAAGTTAAAATAAGGCTAGTCCG","RBP",94]
["EIF4E2_03","EIF4E2","CAAGTGGATTATTCGGCTG","CTTTATATATCTTGTGGAAAGGACGAAACACCGCAAGTGGATTATTCGGCTGGTTTTAGAGCTAGAAATAGCAAGTTAAAATAAGGCTAGTCCG","RBP",94]
["EIF4E2_05","EIF4E2","GTTTGAAAGATGATGACAG","CTTTATATATCTTGTGGAAAGGACGAAACACCGGTTTGAAAGATGATGACAGGTTTTAGAGCTAGAAATAGCAAGTTAAAATAAGGCTAGTCCG","RBP",94]
["EIF4E2_07","EIF4E2","CCTGAGTGTGAGAGACAGA","CTTTATATATCTTGTGGAAAGGACGAAACACCGCCTGAGTGTGAGAGACAGAGTTTTAGAGCTAGAAATAGCAAGTTAAAATAAGGCTAGTCCG","RBP",94]
["EIF4ENIF1_01","EIF4ENIF1","ACTCCCCCATTCCAAACAG","CTTTATATATCTTGTGGAAAGGACGAAACACCGACTCCCCCATTCCAAACAGGTTTTAGAGCTAGAAATAGCAAGTTAAAATAAGGCTAGTCCG","RBP",94]
["EIF4ENIF1_02","EIF4ENIF1","GGAGCATCGCCCCAGCCAG","CTTTATATATCTTGTGGAAAGGACGAAACACCGGGAGCATCGCCCCAGCCAGGTTTTAGAGCTAGAAATAGCAAGTTAAAATAAGGCTAGTCCG","RBP",94]
["EIF4ENIF1_05","EIF4ENIF1","CATGGGAACCAGAGCCTGG","CTTTATATATCTTGTGGAAAGGACGAAACACCGCATGGGAACCAGAGCCTGGGTTTTAGAGCTAGAAATAGCAAGTTAAAATAAGGCTAGTCCG","RBP",94]
["EIF4ENIF1_07","EIF4ENIF1","GAGAGCAAAGAGAAAAGCA","CTTTATATATCTTGTGGAAAGGACGAAACACCGGAGAGCAAAGAGAAAAGCAGTTTTAGAGCTAGAAATAGCAAGTTAAAATAAGGCTAGTCCG","RBP",94]
["EIF4ENIF1_08","EIF4ENIF1","TCAGGGCGGAGCTCACCAG","CTTTATATATCTTGTGGAAAGGACGAAACACCGTCAGGGCGGAGCTCACCAGGTTTTAGAGCTAGAAATAGCAAGTTAAAATAAGGCTAGTCCG","RBP",94]
["EIF5_02","EIF5","CATAAACAGGAAGAAGAGG","CTTTATATATCTTGTGGAAAGGACGAAACACCGCATAAACAGGAAGAAGAGGGTTTTAGAGCTAGAAATAGCAAGTTAAAATAAGGCTAGTCCG","RBP",94]
["EIF5_04","EIF5","GGAAAGAACAATTGAGGAG","CTTTATATATCTTGTGGAAAGGACGAAACACCGGGAAAGAACAATTGAGGAGGTTTTAGAGCTAGAAATAGCAAGTTAAAATAAGGCTAGTCCG","RBP",94]
["EIF5_05","EIF5","TTACCTTGGCAATCAGACG","CTTTATATATCTTGTGGAAAGGACGAAACACCGTTACCTTGGCAATCAGACGGTTTTAGAGCTAGAAATAGCAAGTTAAAATAAGGCTAGTCCG","RBP",94]
["EIF5_06","EIF5","AGACTGGATGTAAAAGCCA","CTTTATATATCTTGTGGAAAGGACGAAACACCGAGACTGGATGTAAAAGCCAGTTTTAGAGCTAGAAATAGCAAGTTAAAATAAGGCTAGTCCG","RBP",94]
["EIF5_08","EIF5","TTTATAAAATGGTTGAAGG","CTTTATATATCTTGTGGAAAGGACGAAACACCGTTTATAAAATGGTTGAAGGGTTTTAGAGCTAGAAATAGCAAGTTAAAATAAGGCTAGTCCG","RBP",94]
["EIF6_02","EIF6","TGTCTTCAGCAATCAGGGA","CTTTATATATCTTGTGGAAAGGACGAAACACCGTGTCTTCAGCAATCAGGGAGTTTTAGAGCTAGAAATAGCAAGTTAAAATAAGGCTAGTCCG","RBP",94]
["EIF6_03","EIF6","AGCACAGAGCTGTCAGTGG","CTTTATATATCTTGTGGAAAGGACGAAACACCGAGCACAGAGCTGTCAGTGGGTTTTAGAGCTAGAAATAGCAAGTTAAAATAAGGCTAGTCCG","RBP",94]
["EIF6_05","EIF6","GTTGTGTCCAGGCCACAGA","CTTTATATATCTTGTGGAAAGGACGAAACACCGGTTGTGTCCAGGCCACAGAGTTTTAGAGCTAGAAATAGCAAGTTAAAATAAGGCTAGTCCG","RBP",94]
["EIF6_08","EIF6","GATAGACGCGTGCACCACG","CTTTATATATCTTGTGGAAAGGACGAAACACCGGATAGACGCGTGCACCACGGTTTTAGAGCTAGAAATAGCAAGTTAAAATAAGGCTAGTCCG","RBP",94]
["EIF6_10","EIF6","ACTGTCTGGTAGCGATCGG","CTTTATATATCTTGTGGAAAGGACGAAACACCGACTGTCTGGTAGCGATCGGGTTTTAGAGCTAGAAATAGCAAGTTAAAATAAGGCTAGTCCG","RBP",94]
["ELAVL1_01","ELAVL1","CGGCCCAAACATCTGCCAG","CTTTATATATCTTGTGGAAAGGACGAAACACCGCGGCCCAAACATCTGCCAGGTTTTAGAGCTAGAAATAGCAAGTTAAAATAAGGCTAGTCCG","RBP",94]
["ELAVL1_02","ELAVL1","CGGTTTGACAAACGGTCGG","CTTTATATATCTTGTGGAAAGGACGAAACACCGCGGTTTGACAAACGGTCGGGTTTTAGAGCTAGAAATAGCAAGTTAAAATAAGGCTAGTCCG","RBP",94]
["ELAVL1_07","ELAVL1","CCCAACCAGAACAAAAACG","CTTTATATATCTTGTGGAAAGGACGAAACACCGCCCAACCAGAACAAAAACGGTTTTAGAGCTAGAAATAGCAAGTTAAAATAAGGCTAGTCCG","RBP",94]
["ELAVL1_08","ELAVL1","GTACCACTCGCCAGCGCGA","CTTTATATATCTTGTGGAAAGGACGAAACACCGGTACCACTCGCCAGCGCGAGTTTTAGAGCTAGAAATAGCAAGTTAAAATAAGGCTAGTCCG","RBP",94]
["ELAVL1_10","ELAVL1","GGGCGTCGATCACATGAGC","CTTTATATATCTTGTGGAAAGGACGAAACACCGGGGCGTCGATCACATGAGCGTTTTAGAGCTAGAAATAGCAAGTTAAAATAAGGCTAGTCCG","RBP",94]
["ENDOU_02","ENDOU","ACAGGTGCCAGTTAAGCCT","CTTTATATATCTTGTGGAAAGGACGAAACACCGACAGGTGCCAGTTAAGCCTGTTTTAGAGCTAGAAATAGCAAGTTAAAATAAGGCTAGTCCG","RBP",94]
["ENDOU_04","ENDOU","CAGGCCAGGCCACACAGCA","CTTTATATATCTTGTGGAAAGGACGAAACACCGCAGGCCAGGCCACACAGCAGTTTTAGAGCTAGAAATAGCAAGTTAAAATAAGGCTAGTCCG","RBP",94]
["ENDOU_06","ENDOU","GAAGACACTATGTAGGCTG","CTTTATATATCTTGTGGAAAGGACGAAACACCGGAAGACACTATGTAGGCTGGTTTTAGAGCTAGAAATAGCAAGTTAAAATAAGGCTAGTCCG","RBP",94]
["ENDOU_07","ENDOU","TCAAGAGGCAATGAAGAGG","CTTTATATATCTTGTGGAAAGGACGAAACACCGTCAAGAGGCAATGAAGAGGGTTTTAGAGCTAGAAATAGCAAGTTAAAATAAGGCTAGTCCG","RBP",94]
["ENDOU_10","ENDOU","GTTCCCAAACTCTTGGCAG","CTTTATATATCTTGTGGAAAGGACGAAACACCGGTTCCCAAACTCTTGGCAGGTTTTAGAGCTAGAAATAGCAAGTTAAAATAAGGCTAGTCCG","RBP",94]
["EXOSC3_01","EXOSC3","GTCACAAGGAGCCCGGCAG","CTTTATATATCTTGTGGAAAGGACGAAACACCGGTCACAAGGAGCCCGGCAGGTTTTAGAGCTAGAAATAGCAAGTTAAAATAAGGCTAGTCCG","RBP",94]
["EXOSC3_02","EXOSC3","CTGCTCCTGCCGGAACAGG","CTTTATATATCTTGTGGAAAGGACGAAACACCGCTGCTCCTGCCGGAACAGGGTTTTAGAGCTAGAAATAGCAAGTTAAAATAAGGCTAGTCCG","RBP",94]
["EXOSC3_05","EXOSC3","GTGGACTCTCAGCAGAAGC","CTTTATATATCTTGTGGAAAGGACGAAACACCGGTGGACTCTCAGCAGAAGCGTTTTAGAGCTAGAAATAGCAAGTTAAAATAAGGCTAGTCCG","RBP",94]
["EXOSC3_06","EXOSC3","GCACTTGGTGACCAGCAGG","CTTTATATATCTTGTGGAAAGGACGAAACACCGGCACTTGGTGACCAGCAGGGTTTTAGAGCTAGAAATAGCAAGTTAAAATAAGGCTAGTCCG","RBP",94]
["EXOSC3_09","EXOSC3","GTCGCTCCACTGCACCCCC","CTTTATATATCTTGTGGAAAGGACGAAACACCGGTCGCTCCACTGCACCCCCGTTTTAGAGCTAGAAATAGCAAGTTAAAATAAGGCTAGTCCG","RBP",94]
["EXOSC7_02","EXOSC7","GCACAGAGTGACAATGCAG","CTTTATATATCTTGTGGAAAGGACGAAACACCGGCACAGAGTGACAATGCAGGTTTTAGAGCTAGAAATAGCAAGTTAAAATAAGGCTAGTCCG","RBP",94]
["EXOSC7_03","EXOSC7","GATGCTACTCTTCAGGAGG","CTTTATATATCTTGTGGAAAGGACGAAACACCGGATGCTACTCTTCAGGAGGGTTTTAGAGCTAGAAATAGCAAGTTAAAATAAGGCTAGTCCG","RBP",94]
["EXOSC7_04","EXOSC7","AGCTGGAGAAACCAAATGA","CTTTATATATCTTGTGGAAAGGACGAAACACCGAGCTGGAGAAACCAAATGAGTTTTAGAGCTAGAAATAGCAAGTTAAAATAAGGCTAGTCCG","RBP",94]
["EXOSC7_09","EXOSC7","CTGAATTTGAAGGTAGAGG","CTTTATATATCTTGTGGAAAGGACGAAACACCGCTGAATTTGAAGGTAGAGGGTTTTAGAGCTAGAAATAGCAAGTTAAAATAAGGCTAGTCCG","RBP",94]
["EXOSC7_10","EXOSC7","ATTGGCTATCGGCATGTGG","CTTTATATATCTTGTGGAAAGGACGAAACACCGATTGGCTATCGGCATGTGGGTTTTAGAGCTAGAAATAGCAAGTTAAAATAAGGCTAGTCCG","RBP",94]
["EXOSC9_02","EXOSC9","AACTCAATCGGGCAACAGA","CTTTATATATCTTGTGGAAAGGACGAAACACCGAACTCAATCGGGCAACAGAGTTTTAGAGCTAGAAATAGCAAGTTAAAATAAGGCTAGTCCG","RBP",94]
["EXOSC9_06","EXOSC9","GTACTATCCAGTCCAGTGG","CTTTATATATCTTGTGGAAAGGACGAAACACCGGTACTATCCAGTCCAGTGGGTTTTAGAGCTAGAAATAGCAAGTTAAAATAAGGCTAGTCCG","RBP",94]
["EXOSC9_07","EXOSC9","AGGGAGTAGAAAACTCCTG","CTTTATATATCTTGTGGAAAGGACGAAACACCGAGGGAGTAGAAAACTCCTGGTTTTAGAGCTAGAAATAGCAAGTTAAAATAAGGCTAGTCCG","RBP",94]
["EXOSC9_09","EXOSC9","CCAGGTTCGAAAGCTGGAG","CTTTATATATCTTGTGGAAAGGACGAAACACCGCCAGGTTCGAAAGCTGGAGGTTTTAGAGCTAGAAATAGCAAGTTAAAATAAGGCTAGTCCG","RBP",94]
["EXOSC9_10","EXOSC9","CCACATACAGGAAAGAAGG","CTTTATATATCTTGTGGAAAGGACGAAACACCGCCACATACAGGAAAGAAGGGTTTTAGAGCTAGAAATAGCAAGTTAAAATAAGGCTAGTCCG","RBP",94]
["FTSJ2_01","FTSJ2","GAAAAGTTGCTCCTTCCAG","CTTTATATATCTTGTGGAAAGGACGAAACACCGGAAAAGTTGCTCCTTCCAGGTTTTAGAGCTAGAAATAGCAAGTTAAAATAAGGCTAGTCCG","RBP",94]
["FTSJ2_05","FTSJ2","CCAGACATCCTGCAACCTG","CTTTATATATCTTGTGGAAAGGACGAAACACCGCCAGACATCCTGCAACCTGGTTTTAGAGCTAGAAATAGCAAGTTAAAATAAGGCTAGTCCG","RBP",94]
["FTSJ2_06","FTSJ2","AGCGCCTTCAAGCTCCTGG","CTTTATATATCTTGTGGAAAGGACGAAACACCGAGCGCCTTCAAGCTCCTGGGTTTTAGAGCTAGAAATAGCAAGTTAAAATAAGGCTAGTCCG","RBP",94]
["FTSJ2_07","FTSJ2","CCTGCCAGGAAGCACCTCG","CTTTATATATCTTGTGGAAAGGACGAAACACCGCCTGCCAGGAAGCACCTCGGTTTTAGAGCTAGAAATAGCAAGTTAAAATAAGGCTAGTCCG","RBP",94]
["FTSJ2_08","FTSJ2","CAGTCTCCTCTGTAACCGA","CTTTATATATCTTGTGGAAAGGACGAAACACCGCAGTCTCCTCTGTAACCGAGTTTTAGAGCTAGAAATAGCAAGTTAAAATAAGGCTAGTCCG","RBP",94]
["FUS_05","FUS","CTTCAGACAAACAAGAAAA","CTTTATATATCTTGTGGAAAGGACGAAACACCGCTTCAGACAAACAAGAAAAGTTTTAGAGCTAGAAATAGCAAGTTAAAATAAGGCTAGTCCG","RBP",94]
["FUS_07","FUS","TACCCAACAAGCAACCCAA","CTTTATATATCTTGTGGAAAGGACGAAACACCGTACCCAACAAGCAACCCAAGTTTTAGAGCTAGAAATAGCAAGTTAAAATAAGGCTAGTCCG","RBP",94]
["FUS_08","FUS","CCTGGAATCCATCTTGCCA","CTTTATATATCTTGTGGAAAGGACGAAACACCGCCTGGAATCCATCTTGCCAGTTTTAGAGCTAGAAATAGCAAGTTAAAATAAGGCTAGTCCG","RBP",94]
["FUS_09","FUS","GCTGTCCATAGCCCTGAGG","CTTTATATATCTTGTGGAAAGGACGAAACACCGGCTGTCCATAGCCCTGAGGGTTTTAGAGCTAGAAATAGCAAGTTAAAATAAGGCTAGTCCG","RBP",94]
["FUS_10","FUS","GTGGTGGCTATGAACCCAG","CTTTATATATCTTGTGGAAAGGACGAAACACCGGTGGTGGCTATGAACCCAGGTTTTAGAGCTAGAAATAGCAAGTTAAAATAAGGCTAGTCCG","RBP",94]
["GEMIN4_02","GEMIN4","GTCCGACACAGAGACACGG","CTTTATATATCTTGTGGAAAGGACGAAACACCGGTCCGACACAGAGACACGGGTTTTAGAGCTAGAAATAGCAAGTTAAAATAAGGCTAGTCCG","RBP",94]
["GEMIN4_03","GEMIN4","CCTGACTGAGTCCAGGAGG","CTTTATATATCTTGTGGAAAGGACGAAACACCGCCTGACTGAGTCCAGGAGGGTTTTAGAGCTAGAAATAGCAAGTTAAAATAAGGCTAGTCCG","RBP",94]
["GEMIN4_04","GEMIN4","TTGGTGCAGCCCTCAGGAG","CTTTATATATCTTGTGGAAAGGACGAAACACCGTTGGTGCAGCCCTCAGGAGGTTTTAGAGCTAGAAATAGCAAGTTAAAATAAGGCTAGTCCG","RBP",94]
["GEMIN4_06","GEMIN4","ATGGCCATGCTCCACCCGG","CTTTATATATCTTGTGGAAAGGACGAAACACCGATGGCCATGCTCCACCCGGGTTTTAGAGCTAGAAATAGCAAGTTAAAATAAGGCTAGTCCG","RBP",94]
["GEMIN4_10","GEMIN4","TAGCTGTTCTAACTTGCGG","CTTTATATATCTTGTGGAAAGGACGAAACACCGTAGCTGTTCTAACTTGCGGGTTTTAGAGCTAGAAATAGCAAGTTAAAATAAGGCTAGTCCG","RBP",94]
["GTPBP3_03","GTPBP3","AGGTTGTAAATCCATGTGG","CTTTATATATCTTGTGGAAAGGACGAAACACCGAGGTTGTAAATCCATGTGGGTTTTAGAGCTAGAAATAGCAAGTTAAAATAAGGCTAGTCCG","RBP",94]
["GTPBP3_04","GTPBP3","CACTTTACTAGTCAAGCCG","CTTTATATATCTTGTGGAAAGGACGAAACACCGCACTTTACTAGTCAAGCCGGTTTTAGAGCTAGAAATAGCAAGTTAAAATAAGGCTAGTCCG","RBP",94]
["GTPBP3_07","GTPBP3","GGACCAGCGGCCCCGCCAG","CTTTATATATCTTGTGGAAAGGACGAAACACCGGGACCAGCGGCCCCGCCAGGTTTTAGAGCTAGAAATAGCAAGTTAAAATAAGGCTAGTCCG","RBP",94]
["GTPBP3_08","GTPBP3","GGGGACCAGAAGAAAGCAT","CTTTATATATCTTGTGGAAAGGACGAAACACCGGGGGACCAGAAGAAAGCATGTTTTAGAGCTAGAAATAGCAAGTTAAAATAAGGCTAGTCCG","RBP",94]
["GTPBP3_10","GTPBP3","TGGAGTTCCACGTGCATGG",{"$f":"CONCATENATE(\"CTTTATATATCTTGTGGAAAGGACGAAACACCG\",C706,\"GTTTTAGAGCTAGAAATAGCAAGTTAAAATAAGGCTAGTCCG\")","v":"CTTTATATATCTTGTGGAAAGGACGAAACACCGTGGAGTTCCACGTGCATGGGTTTTAGAGCTAGAAATAGCAAGTTAAAATAAGGCTAGTCCG"},"RBP",{"$f":"LEN(D706)","v":94}]
["HDLBP_01","HDLBP","ATTCGTGACAAATTCCCAG","CTTTATATATCTTGTGGAAAGGACGAAACACCGATTCGTGACAAATTCCCAGGTTTTAGAGCTAGAAATAGCAAGTTAAAATAAGGCTAGTCCG","RBP",94]
["HDLBP_04","HDLBP","AAACGGTGAAGCCAGGAAG","CTTTATATATCTTGTGGAAAGGACGAAACACCGAAACGGTGAAGCCAGGAAGGTTTTAGAGCTAGAAATAGCAAGTTAAAATAAGGCTAGTCCG","RBP",94]
["HDLBP_05","HDLBP","TTTGCCAATAACAAAGCGA","CTTTATATATCTTGTGGAAAGGACGAAACACCGTTTGCCAATAACAAAGCGAGTTTTAGAGCTAGAAATAGCAAGTTAAAATAAGGCTAGTCCG","RBP",94]
["HDLBP_06","HDLBP","AAACCCCCAGCACACGAAG","CTTTATATATCTTGTGGAAAGGACGAAACACCGAAACCCCCAGCACACGAAGGTTTTAGAGCTAGAAATAGCAAGTTAAAATAAGGCTAGTCCG","RBP",94]
["HDLBP_07","HDLBP","TTTGCGAATGGCTTTGCCG","CTTTATATATCTTGTGGAAAGGACGAAACACCGTTTGCGAATGGCTTTGCCGGTTTTAGAGCTAGAAATAGCAAGTTAAAATAAGGCTAGTCCG","RBP",94]
["HNRNPA2B1_02","HNRNPA2B1","CTGCAAGCAAAAGATCAAG","CTTTATATATCTTGTGGAAAGGACGAAACACCGCTGCAAGCAAAAGATCAAGGTTTTAGAGCTAGAAATAGCAAGTTAAAATAAGGCTAGTCCG","RBP",94]
["HNRNPA2B1_03","HNRNPA2B1","AAGTTCAGAGTTCTAGGAG","CTTTATATATCTTGTGGAAAGGACGAAACACCGAAGTTCAGAGTTCTAGGAGGTTTTAGAGCTAGAAATAGCAAGTTAAAATAAGGCTAGTCCG","RBP",94]
["HNRNPA2B1_07","HNRNPA2B1","CAGGAAGTAACTTTAGAGG","CTTTATATATCTTGTGGAAAGGACGAAACACCGCAGGAAGTAACTTTAGAGGGTTTTAGAGCTAGAAATAGCAAGTTAAAATAAGGCTAGTCCG","RBP",94]
["HNRNPA2B1_08","HNRNPA2B1","GCAGCATCAACCTCAGCCA","CTTTATATATCTTGTGGAAAGGACGAAACACCGGCAGCATCAACCTCAGCCAGTTTTAGAGCTAGAAATAGCAAGTTAAAATAAGGCTAGTCCG","RBP",94]
["HNRNPA2B1_10","HNRNPA2B1","TCTTCCTCCTCCATAACCG","CTTTATATATCTTGTGGAAAGGACGAAACACCGTCTTCCTCCTCCATAACCGGTTTTAGAGCTAGAAATAGCAAGTTAAAATAAGGCTAGTCCG","RBP",94]
["HNRNPH1_01","HNRNPH1","CTCGGCCGATGAAGTGCAG","CTTTATATATCTTGTGGAAAGGACGAAACACCGCTCGGCCGATGAAGTGCAGGTTTTAGAGCTAGAAATAGCAAGTTAAAATAAGGCTAGTCCG","RBP",94]
["HNRNPH1_03","HNRNPH1","CCAGCCAGCAGCTGAGTGG","CTTTATATATCTTGTGGAAAGGACGAAACACCGCCAGCCAGCAGCTGAGTGGGTTTTAGAGCTAGAAATAGCAAGTTAAAATAAGGCTAGTCCG","RBP",94]
["HNRNPH1_07","HNRNPH1","CAAACCAGTCCAGCTACGG","CTTTATATATCTTGTGGAAAGGACGAAACACCGCAAACCAGTCCAGCTACGGGTTTTAGAGCTAGAAATAGCAAGTTAAAATAAGGCTAGTCCG","RBP",94]
["HNRNPH1_08","HNRNPH1","GGTCAGATAGATTTGGAAG","CTTTATATATCTTGTGGAAAGGACGAAACACCGGGTCAGATAGATTTGGAAGGTTTTAGAGCTAGAAATAGCAAGTTAAAATAAGGCTAGTCCG","RBP",94]
["HNRNPH1_10","HNRNPH1","TGTGAAGCAAACTGCACGA","CTTTATATATCTTGTGGAAAGGACGAAACACCGTGTGAAGCAAACTGCACGAGTTTTAGAGCTAGAAATAGCAAGTTAAAATAAGGCTAGTCCG","RBP",94]
["IARS2_03","IARS2","TGTATACTTCCAACAACGG","CTTTATATATCTTGTGGAAAGGACGAAACACCGTGTATACTTCCAACAACGGGTTTTAGAGCTAGAAATAGCAAGTTAAAATAAGGCTAGTCCG","RBP",94]
["IARS2_05","IARS2","TGGAGGACCAAGAAACCTG","CTTTATATATCTTGTGGAAAGGACGAAACACCGTGGAGGACCAAGAAACCTGGTTTTAGAGCTAGAAATAGCAAGTTAAAATAAGGCTAGTCCG","RBP",94]
["IARS2_08","IARS2","ATCAGCTACCCACCAGCGA","CTTTATATATCTTGTGGAAAGGACGAAACACCGATCAGCTACCCACCAGCGAGTTTTAGAGCTAGAAATAGCAAGTTAAAATAAGGCTAGTCCG","RBP",94]
["IARS2_09","IARS2","CCCCACAAACTTCGGGCAG","CTTTATATATCTTGTGGAAAGGACGAAACACCGCCCCACAAACTTCGGGCAGGTTTTAGAGCTAGAAATAGCAAGTTAAAATAAGGCTAGTCCG","RBP",94]
["IARS2_10","IARS2","TATTCGTGCCAGCAAGCAG","CTTTATATATCTTGTGGAAAGGACGAAACACCGTATTCGTGCCAGCAAGCAGGTTTTAGAGCTAGAAATAGCAAGTTAAAATAAGGCTAGTCCG","RBP",94]
["IGF2BP2_01","IGF2BP2","ACGTCTGGGCCTTCCGCAG","CTTTATATATCTTGTGGAAAGGACGAAACACCGACGTCTGGGCCTTCCGCAGGTTTTAGAGCTAGAAATAGCAAGTTAAAATAAGGCTAGTCCG","RBP",94]
["IGF2BP2_04","IGF2BP2","GCCATCATCGGGAAGAAGG","CTTTATATATCTTGTGGAAAGGACGAAACACCGGCCATCATCGGGAAGAAGGGTTTTAGAGCTAGAAATAGCAAGTTAAAATAAGGCTAGTCCG","RBP",94]
["IGF2BP2_07","IGF2BP2","ATCTTTGGGAAACTGAAAG","CTTTATATATCTTGTGGAAAGGACGAAACACCGATCTTTGGGAAACTGAAAGGTTTTAGAGCTAGAAATAGCAAGTTAAAATAAGGCTAGTCCG","RBP",94]
["IGF2BP2_08","IGF2BP2","AAAGATGCCAAGTGCGCTG","CTTTATATATCTTGTGGAAAGGACGAAACACCGAAAGATGCCAAGTGCGCTGGTTTTAGAGCTAGAAATAGCAAGTTAAAATAAGGCTAGTCCG","RBP",94]
["IGF2BP2_10","IGF2BP2","AGCAGCCTCACCTTGATAG","CTTTATATATCTTGTGGAAAGGACGAAACACCGAGCAGCCTCACCTTGATAGGTTTTAGAGCTAGAAATAGCAAGTTAAAATAAGGCTAGTCCG","RBP",94]
["INTS5_03","INTS5","CCAGAGGCAGCCAAAGCAG","CTTTATATATCTTGTGGAAAGGACGAAACACCGCCAGAGGCAGCCAAAGCAGGTTTTAGAGCTAGAAATAGCAAGTTAAAATAAGGCTAGTCCG","RBP",94]
["INTS5_04","INTS5","CTTGGGTGGCTTTAAGCCA","CTTTATATATCTTGTGGAAAGGACGAAACACCGCTTGGGTGGCTTTAAGCCAGTTTTAGAGCTAGAAATAGCAAGTTAAAATAAGGCTAGTCCG","RBP",94]
["INTS5_07","INTS5","ACTGCAGCAGTGAACCAGG","CTTTATATATCTTGTGGAAAGGACGAAACACCGACTGCAGCAGTGAACCAGGGTTTTAGAGCTAGAAATAGCAAGTTAAAATAAGGCTAGTCCG","RBP",94]
["INTS5_08","INTS5","TGTGGAGAATGCTGAACAG","CTTTATATATCTTGTGGAAAGGACGAAACACCGTGTGGAGAATGCTGAACAGGTTTTAGAGCTAGAAATAGCAAGTTAAAATAAGGCTAGTCCG","RBP",94]
["INTS5_09","INTS5","GCGCTGTGCGACCCTCCCG","CTTTATATATCTTGTGGAAAGGACGAAACACCGGCGCTGTGCGACCCTCCCGGTTTTAGAGCTAGAAATAGCAAGTTAAAATAAGGCTAGTCCG","RBP",94]
["IPO5_03","IPO5","ACGCCTAGCGCAATGGCGG","CTTTATATATCTTGTGGAAAGGACGAAACACCGACGCCTAGCGCAATGGCGGGTTTTAGAGCTAGAAATAGCAAGTTAAAATAAGGCTAGTCCG","RBP",94]
["IPO5_05","IPO5","GAAGAGTCACTACAAGATG","CTTTATATATCTTGTGGAAAGGACGAAACACCGGAAGAGTCACTACAAGATGGTTTTAGAGCTAGAAATAGCAAGTTAAAATAAGGCTAGTCCG","RBP",94]
["IPO5_06","IPO5","GAGTCATGGCACAGTACGG","CTTTATATATCTTGTGGAAAGGACGAAACACCGGAGTCATGGCACAGTACGGGTTTTAGAGCTAGAAATAGCAAGTTAAAATAAGGCTAGTCCG","RBP",94]
["IPO5_09","IPO5","TTCAGGAGCTCCTGAATGG","CTTTATATATCTTGTGGAAAGGACGAAACACCGTTCAGGAGCTCCTGAATGGGTTTTAGAGCTAGAAATAGCAAGTTAAAATAAGGCTAGTCCG","RBP",94]
["IPO5_10","IPO5","AGACGTCTTAGGAGAACGG","CTTTATATATCTTGTGGAAAGGACGAAACACCGAGACGTCTTAGGAGAACGGGTTTTAGAGCTAGAAATAGCAAGTTAAAATAAGGCTAGTCCG","RBP",94]
["IPO7_01","IPO7","TTCTGCAGTGCAAAGGGCG","CTTTATATATCTTGTGGAAAGGACGAAACACCGTTCTGCAGTGCAAAGGGCGGTTTTAGAGCTAGAAATAGCAAGTTAAAATAAGGCTAGTCCG","RBP",94]
["IPO7_02","IPO7","TAACCAAGTAATCCAGACG","CTTTATATATCTTGTGGAAAGGACGAAACACCGTAACCAAGTAATCCAGACGGTTTTAGAGCTAGAAATAGCAAGTTAAAATAAGGCTAGTCCG","RBP",94]
["IPO7_03","IPO7","GTCCACAATGGCAGTCCAG","CTTTATATATCTTGTGGAAAGGACGAAACACCGGTCCACAATGGCAGTCCAGGTTTTAGAGCTAGAAATAGCAAGTTAAAATAAGGCTAGTCCG","RBP",94]
["IPO7_07","IPO7","ATGGTGGAAATGCAAGAAG","CTTTATATATCTTGTGGAAAGGACGAAACACCGATGGTGGAAATGCAAGAAGGTTTTAGAGCTAGAAATAGCAAGTTAAAATAAGGCTAGTCCG","RBP",94]
["IPO7_09","IPO7","TTAGAAAGACTGACAAGAG","CTTTATATATCTTGTGGAAAGGACGAAACACCGTTAGAAAGACTGACAAGAGGTTTTAGAGCTAGAAATAGCAAGTTAAAATAAGGCTAGTCCG","RBP",94]
["IPO9_02","IPO9","CCTGGAACAAGTAGCCCAG","CTTTATATATCTTGTGGAAAGGACGAAACACCGCCTGGAACAAGTAGCCCAGGTTTTAGAGCTAGAAATAGCAAGTTAAAATAAGGCTAGTCCG","RBP",94]
["IPO9_06","IPO9","CAGAAATTCGAACTGATGG","CTTTATATATCTTGTGGAAAGGACGAAACACCGCAGAAATTCGAACTGATGGGTTTTAGAGCTAGAAATAGCAAGTTAAAATAAGGCTAGTCCG","RBP",94]
["IPO9_07","IPO9","GTGGTACAGCAGTTCACAG","CTTTATATATCTTGTGGAAAGGACGAAACACCGGTGGTACAGCAGTTCACAGGTTTTAGAGCTAGAAATAGCAAGTTAAAATAAGGCTAGTCCG","RBP",94]
["IPO9_08","IPO9","ACTGGACCCGGCAGCCCGG","CTTTATATATCTTGTGGAAAGGACGAAACACCGACTGGACCCGGCAGCCCGGGTTTTAGAGCTAGAAATAGCAAGTTAAAATAAGGCTAGTCCG","RBP",94]
["IPO9_10","IPO9","CTGAGCAAACCAAAAACAG","CTTTATATATCTTGTGGAAAGGACGAAACACCGCTGAGCAAACCAAAAACAGGTTTTAGAGCTAGAAATAGCAAGTTAAAATAAGGCTAGTCCG","RBP",94]
["KRAS_01","KRAS","AGAACAGTAGACACAAAAC","CTTTATATATCTTGTGGAAAGGACGAAACACCGAGAACAGTAGACACAAAACGTTTTAGAGCTAGAAATAGCAAGTTAAAATAAGGCTAGTCCG","RBP",94]
["KRAS_04","KRAS","AACTTGTGGTAGTTGGAGC","CTTTATATATCTTGTGGAAAGGACGAAACACCGAACTTGTGGTAGTTGGAGCGTTTTAGAGCTAGAAATAGCAAGTTAAAATAAGGCTAGTCCG","RBP",94]
["KRAS_07","KRAS","TCTCGAACTAATGTATAGA","CTTTATATATCTTGTGGAAAGGACGAAACACCGTCTCGAACTAATGTATAGAGTTTTAGAGCTAGAAATAGCAAGTTAAAATAAGGCTAGTCCG","RBP",94]
["KRAS_09","KRAS","GAATATGATCCAACAATAG","CTTTATATATCTTGTGGAAAGGACGAAACACCGGAATATGATCCAACAATAGGTTTTAGAGCTAGAAATAGCAAGTTAAAATAAGGCTAGTCCG","RBP",94]
["KRAS_10","KRAS","GACCAGTACATGAGGACTG","CTTTATATATCTTGTGGAAAGGACGAAACACCGGACCAGTACATGAGGACTGGTTTTAGAGCTAGAAATAGCAAGTTAAAATAAGGCTAGTCCG","RBP",94]
["KRR1_01","KRR1","CAATTGTGAAACCTAAGGA","CTTTATATATCTTGTGGAAAGGACGAAACACCGCAATTGTGAAACCTAAGGAGTTTTAGAGCTAGAAATAGCAAGTTAAAATAAGGCTAGTCCG","RBP",94]
["KRR1_02","KRR1","CAACCCTGGACCTGATCGA","CTTTATATATCTTGTGGAAAGGACGAAACACCGCAACCCTGGACCTGATCGAGTTTTAGAGCTAGAAATAGCAAGTTAAAATAAGGCTAGTCCG","RBP",94]
["KRR1_03","KRR1","CATTTTTGTGTTTGAACTG","CTTTATATATCTTGTGGAAAGGACGAAACACCGCATTTTTGTGTTTGAACTGGTTTTAGAGCTAGAAATAGCAAGTTAAAATAAGGCTAGTCCG","RBP",94]
["KRR1_04","KRR1","TTAATGATTAAGAGAGAGT","CTTTATATATCTTGTGGAAAGGACGAAACACCGTTAATGATTAAGAGAGAGTGTTTTAGAGCTAGAAATAGCAAGTTAAAATAAGGCTAGTCCG","RBP",94]
["KRR1_06","KRR1","AGCGGCCAGAAAAAGGCGC",{"$f":"CONCATENATE(\"CTTTATATATCTTGTGGAAAGGACGAAACACCG\",C761,\"GTTTTAGAGCTAGAAATAGCAAGTTAAAATAAGGCTAGTCCG\")","v":"CTTTATATATCTTGTGGAAAGGACGAAACACCGAGCGGCCAGAAAAAGGCGCGTTTTAGAGCTAGAAATAGCAAGTTAAAATAAGGCTAGTCCG"},"RBP",94]
["LARS2_04","LARS2","GGGCTGGCCTATCAAAAGG","CTTTATATATCTTGTGGAAAGGACGAAACACCGGGGCTGGCCTATCAAAAGGGTTTTAGAGCTAGAAATAGCAAGTTAAAATAAGGCTAGTCCG","RBP",94]
["LARS2_07","LARS2","AAGATATCCTTCTCAGGAG","CTTTATATATCTTGTGGAAAGGACGAAACACCGAAGATATCCTTCTCAGGAGGTTTTAGAGCTAGAAATAGCAAGTTAAAATAAGGCTAGTCCG","RBP",94]
["LARS2_08","LARS2","AAGTCCAAACACAACGGGG","CTTTATATATCTTGTGGAAAGGACGAAACACCGAAGTCCAAACACAACGGGGGTTTTAGAGCTAGAAATAGCAAGTTAAAATAAGGCTAGTCCG","RBP",94]
["LARS2_09","LARS2","TCACAGGCAAGTCCTCCAG","CTTTATATATCTTGTGGAAAGGACGAAACACCGTCACAGGCAAGTCCTCCAGGTTTTAGAGCTAGAAATAGCAAGTTAAAATAAGGCTAGTCCG","RBP",94]
["LARS2_10","LARS2","CCCTGACTCAGAAAGCCCG","CTTTATATATCTTGTGGAAAGGACGAAACACCGCCCTGACTCAGAAAGCCCGGTTTTAGAGCTAGAAATAGCAAGTTAAAATAAGGCTAGTCCG","RBP",94]
["LSM11_02","LSM11","CTCTTGTTTCAGTGCACGA","CTTTATATATCTTGTGGAAAGGACGAAACACCGCTCTTGTTTCAGTGCACGAGTTTTAGAGCTAGAAATAGCAAGTTAAAATAAGGCTAGTCCG","RBP",94]
["LSM11_06","LSM11","CCTTTCAAACATGGAGGAG","CTTTATATATCTTGTGGAAAGGACGAAACACCGCCTTTCAAACATGGAGGAGGTTTTAGAGCTAGAAATAGCAAGTTAAAATAAGGCTAGTCCG","RBP",94]
["LSM11_07","LSM11","GGAGGACTACACGGACAGA","CTTTATATATCTTGTGGAAAGGACGAAACACCGGGAGGACTACACGGACAGAGTTTTAGAGCTAGAAATAGCAAGTTAAAATAAGGCTAGTCCG","RBP",94]
["LSM11_09","LSM11","CCCTGCTTCAACAACGTGG",{"$f":"CONCATENATE(\"CTTTATATATCTTGTGGAAAGGACGAAACACCG\",C770,\"GTTTTAGAGCTAGAAATAGCAAGTTAAAATAAGGCTAGTCCG\")","v":"CTTTATATATCTTGTGGAAAGGACGAAACACCGCCCTGCTTCAACAACGTGGGTTTTAGAGCTAGAAATAGCAAGTTAAAATAAGGCTAGTCCG"},"RBP",{"$f":"LEN(D770)","v":94}]
["LSM11_10","LSM11","GAAGAGCAGACACTGGCCG","CTTTATATATCTTGTGGAAAGGACGAAACACCGGAAGAGCAGACACTGGCCGGTTTTAGAGCTAGAAATAGCAAGTTAAAATAAGGCTAGTCCG","RBP",94]
["LSM12_02","LSM12","GCTTCACTCAATGTTAGTA","CTTTATATATCTTGTGGAAAGGACGAAACACCGGCTTCACTCAATGTTAGTAGTTTTAGAGCTAGAAATAGCAAGTTAAAATAAGGCTAGTCCG","RBP",94]
["LSM12_03","LSM12","AAACTGTAAAGGCAAAGAG","CTTTATATATCTTGTGGAAAGGACGAAACACCGAAACTGTAAAGGCAAAGAGGTTTTAGAGCTAGAAATAGCAAGTTAAAATAAGGCTAGTCCG","RBP",94]
["LSM12_06","LSM12","CAGAATGTCCCTCTTCCAG","CTTTATATATCTTGTGGAAAGGACGAAACACCGCAGAATGTCCCTCTTCCAGGTTTTAGAGCTAGAAATAGCAAGTTAAAATAAGGCTAGTCCG","RBP",94]
["LSM12_07","LSM12","CTAGCTTGCCAGCAAAGCA","CTTTATATATCTTGTGGAAAGGACGAAACACCGCTAGCTTGCCAGCAAAGCAGTTTTAGAGCTAGAAATAGCAAGTTAAAATAAGGCTAGTCCG","RBP",94]
["LSM12_10","LSM12","CGCTGAAGTACTCGCCCGG","CTTTATATATCTTGTGGAAAGGACGAAACACCGCGCTGAAGTACTCGCCCGGGTTTTAGAGCTAGAAATAGCAAGTTAAAATAAGGCTAGTCCG","RBP",94]
["LSM14A_03","LSM14A","TCCCGCGTACCTTTGGCAA","CTTTATATATCTTGTGGAAAGGACGAAACACCGTCCCGCGTACCTTTGGCAAGTTTTAGAGCTAGAAATAGCAAGTTAAAATAAGGCTAGTCCG","RBP",94]
["LSM14A_05","LSM14A","CCCCTCGAGGATTTCGCGG","CTTTATATATCTTGTGGAAAGGACGAAACACCGCCCCTCGAGGATTTCGCGGGTTTTAGAGCTAGAAATAGCAAGTTAAAATAAGGCTAGTCCG","RBP",94]
["LSM14A_06","LSM14A","TTGAGAAAAAGCCCAACCA","CTTTATATATCTTGTGGAAAGGACGAAACACCGTTGAGAAAAAGCCCAACCAGTTTTAGAGCTAGAAATAGCAAGTTAAAATAAGGCTAGTCCG","RBP",94]
["LSM14A_07","LSM14A","CAAAGACTTCATCTCGAGG","CTTTATATATCTTGTGGAAAGGACGAAACACCGCAAAGACTTCATCTCGAGGGTTTTAGAGCTAGAAATAGCAAGTTAAAATAAGGCTAGTCCG","RBP",94]
["LSM14A_09","LSM14A","TTTGGCTGGCAGATGGCAA","CTTTATATATCTTGTGGAAAGGACGAAACACCGTTTGGCTGGCAGATGGCAAGTTTTAGAGCTAGAAATAGCAAGTTAAAATAAGGCTAGTCCG","RBP",94]
["LUC7L2_03","LUC7L2","CATGACCTGGCTTTAAGAG","CTTTATATATCTTGTGGAAAGGACGAAACACCGCATGACCTGGCTTTAAGAGGTTTTAGAGCTAGAAATAGCAAGTTAAAATAAGGCTAGTCCG","RBP",94]
["LUC7L2_04","LUC7L2","CAGAGAACGATCCAAGAGG","CTTTATATATCTTGTGGAAAGGACGAAACACCGCAGAGAACGATCCAAGAGGGTTTTAGAGCTAGAAATAGCAAGTTAAAATAAGGCTAGTCCG","RBP",94]
["LUC7L2_05","LUC7L2","TGTGATCGTAGAACAGAAG","CTTTATATATCTTGTGGAAAGGACGAAACACCGTGTGATCGTAGAACAGAAGGTTTTAGAGCTAGAAATAGCAAGTTAAAATAAGGCTAGTCCG","RBP",94]
["LUC7L2_09","LUC7L2","AGAGACTTACCGTCCCGGG","CTTTATATATCTTGTGGAAAGGACGAAACACCGAGAGACTTACCGTCCCGGGGTTTTAGAGCTAGAAATAGCAAGTTAAAATAAGGCTAGTCCG","RBP",94]
["LUC7L2_10","LUC7L2","AGATCGGAAAGATAAGAAG","CTTTATATATCTTGTGGAAAGGACGAAACACCGAGATCGGAAAGATAAGAAGGTTTTAGAGCTAGAAATAGCAAGTTAAAATAAGGCTAGTCCG","RBP",94]
["MARS2_02","MARS2","CCGGAAGCCACTCCAGCGG","CTTTATATATCTTGTGGAAAGGACGAAACACCGCCGGAAGCCACTCCAGCGGGTTTTAGAGCTAGAAATAGCAAGTTAAAATAAGGCTAGTCCG","RBP",94]
["MARS2_03","MARS2","GATTTCATCCGCACCACGG","CTTTATATATCTTGTGGAAAGGACGAAACACCGGATTTCATCCGCACCACGGGTTTTAGAGCTAGAAATAGCAAGTTAAAATAAGGCTAGTCCG","RBP",94]
["MARS2_04","MARS2","ATGCCGGCCCCTAACAGGA","CTTTATATATCTTGTGGAAAGGACGAAACACCGATGCCGGCCCCTAACAGGAGTTTTAGAGCTAGAAATAGCAAGTTAAAATAAGGCTAGTCCG","RBP",94]
["MARS2_07","MARS2","CTGCCGAAGGAGAAAGTAG","CTTTATATATCTTGTGGAAAGGACGAAACACCGCTGCCGAAGGAGAAAGTAGGTTTTAGAGCTAGAAATAGCAAGTTAAAATAAGGCTAGTCCG","RBP",94]
["MARS2_09","MARS2","TTACCTATGATATGAGAGG","CTTTATATATCTTGTGGAAAGGACGAAACACCGTTACCTATGATATGAGAGGGTTTTAGAGCTAGAAATAGCAAGTTAAAATAAGGCTAGTCCG","RBP",94]
["MARS_04","MARS","CAAAAGGCAGACAAGAACG","CTTTATATATCTTGTGGAAAGGACGAAACACCGCAAAAGGCAGACAAGAACGGTTTTAGAGCTAGAAATAGCAAGTTAAAATAAGGCTAGTCCG","RBP",94]
["MARS_05","MARS","CCCCGGGCTCTCCCGGCGG","CTTTATATATCTTGTGGAAAGGACGAAACACCGCCCCGGGCTCTCCCGGCGGGTTTTAGAGCTAGAAATAGCAAGTTAAAATAAGGCTAGTCCG","RBP",94]
["MARS_07","MARS","AGTGGTCCAAGGCAAGAAG","CTTTATATATCTTGTGGAAAGGACGAAACACCGAGTGGTCCAAGGCAAGAAGGTTTTAGAGCTAGAAATAGCAAGTTAAAATAAGGCTAGTCCG","RBP",94]
["MARS_08","MARS","ACATTGTTGACGTAAGGGA","CTTTATATATCTTGTGGAAAGGACGAAACACCGACATTGTTGACGTAAGGGAGTTTTAGAGCTAGAAATAGCAAGTTAAAATAAGGCTAGTCCG","RBP",94]
["MARS_09","MARS","GGATTGTGGCACTAACCGT","CTTTATATATCTTGTGGAAAGGACGAAACACCGGGATTGTGGCACTAACCGTGTTTTAGAGCTAGAAATAGCAAGTTAAAATAAGGCTAGTCCG","RBP",94]
["MATR3_04","MATR3","TCTTTTAGATTCCAAACAG","CTTTATATATCTTGTGGAAAGGACGAAACACCGTCTTTTAGATTCCAAACAGGTTTTAGAGCTAGAAATAGCAAGTTAAAATAAGGCTAGTCCG","RBP",94]
["MATR3_05","MATR3","GTTGTGTAATAATCCACTG","CTTTATATATCTTGTGGAAAGGACGAAACACCGGTTGTGTAATAATCCACTGGTTTTAGAGCTAGAAATAGCAAGTTAAAATAAGGCTAGTCCG","RBP",94]
["MATR3_06","MATR3","AGACTGAGAGTTCAACCGA","CTTTATATATCTTGTGGAAAGGACGAAACACCGAGACTGAGAGTTCAACCGAGTTTTAGAGCTAGAAATAGCAAGTTAAAATAAGGCTAGTCCG","RBP",94]
["MATR3_07","MATR3","CCCCAAGATGAAATGAGGG","CTTTATATATCTTGTGGAAAGGACGAAACACCGCCCCAAGATGAAATGAGGGGTTTTAGAGCTAGAAATAGCAAGTTAAAATAAGGCTAGTCCG","RBP",94]
["MATR3_09","MATR3","CGCCATGTTAGGAGCGCAG","CTTTATATATCTTGTGGAAAGGACGAAACACCGCGCCATGTTAGGAGCGCAGGTTTTAGAGCTAGAAATAGCAAGTTAAAATAAGGCTAGTCCG","RBP",94]
["METTL1_01","METTL1","GAGGCACACGCTCAAACAG","CTTTATATATCTTGTGGAAAGGACGAAACACCGGAGGCACACGCTCAAACAGGTTTTAGAGCTAGAAATAGCAAGTTAAAATAAGGCTAGTCCG","RBP",94]
["METTL1_02","METTL1","AATAGCCCTGTGAAGCCAG","CTTTATATATCTTGTGGAAAGGACGAAACACCGAATAGCCCTGTGAAGCCAGGTTTTAGAGCTAGAAATAGCAAGTTAAAATAAGGCTAGTCCG","RBP",94]
["METTL1_05","METTL1","TAAGTGTGTCTGGGAACAG","CTTTATATATCTTGTGGAAAGGACGAAACACCGTAAGTGTGTCTGGGAACAGGTTTTAGAGCTAGAAATAGCAAGTTAAAATAAGGCTAGTCCG","RBP",94]
["METTL1_09","METTL1","GCTCACTCCAACCCCATGG","CTTTATATATCTTGTGGAAAGGACGAAACACCGGCTCACTCCAACCCCATGGGTTTTAGAGCTAGAAATAGCAAGTTAAAATAAGGCTAGTCCG","RBP",94]
["METTL1_10","METTL1","TACGCGCAGCTCCTGCAGG","CTTTATATATCTTGTGGAAAGGACGAAACACCGTACGCGCAGCTCCTGCAGGGTTTTAGAGCTAGAAATAGCAAGTTAAAATAAGGCTAGTCCG","RBP",94]
["METTL3_02","METTL3","TTAGATCTACGGAATCCAG","CTTTATATATCTTGTGGAAAGGACGAAACACCGTTAGATCTACGGAATCCAGGTTTTAGAGCTAGAAATAGCAAGTTAAAATAAGGCTAGTCCG","RBP",94]
["METTL3_05","METTL3","TAAGGCCAGATCAGAGAGG","CTTTATATATCTTGTGGAAAGGACGAAACACCGTAAGGCCAGATCAGAGAGGGTTTTAGAGCTAGAAATAGCAAGTTAAAATAAGGCTAGTCCG","RBP",94]
["METTL3_08","METTL3","GTGTGGTCTTTGCTGCCAG","CTTTATATATCTTGTGGAAAGGACGAAACACCGGTGTGGTCTTTGCTGCCAGGTTTTAGAGCTAGAAATAGCAAGTTAAAATAAGGCTAGTCCG","RBP",94]
["METTL3_09","METTL3","TGTGACTATGGAACCAAGG","CTTTATATATCTTGTGGAAAGGACGAAACACCGTGTGACTATGGAACCAAGGGTTTTAGAGCTAGAAATAGCAAGTTAAAATAAGGCTAGTCCG","RBP",94]
["METTL3_10","METTL3","CTGGGCTTAGGGCCACCAG","CTTTATATATCTTGTGGAAAGGACGAAACACCGCTGGGCTTAGGGCCACCAGGTTTTAGAGCTAGAAATAGCAAGTTAAAATAAGGCTAGTCCG","RBP",94]
["MRPL13_01","MRPL13","TACCATATTCTAGCAAAAG","CTTTATATATCTTGTGGAAAGGACGAAACACCGTACCATATTCTAGCAAAAGGTTTTAGAGCTAGAAATAGCAAGTTAAAATAAGGCTAGTCCG","RBP",94]
["MRPL13_02","MRPL13","TAGCAGCAAGTTTGCCAGG","CTTTATATATCTTGTGGAAAGGACGAAACACCGTAGCAGCAAGTTTGCCAGGGTTTTAGAGCTAGAAATAGCAAGTTAAAATAAGGCTAGTCCG","RBP",94]
["MRPL13_03","MRPL13","TACTCAGTGCATGGTACAC","CTTTATATATCTTGTGGAAAGGACGAAACACCGTACTCAGTGCATGGTACACGTTTTAGAGCTAGAAATAGCAAGTTAAAATAAGGCTAGTCCG","RBP",94]
["MRPL13_05","MRPL13","GGAGTCCACAATCTTGGGA","CTTTATATATCTTGTGGAAAGGACGAAACACCGGGAGTCCACAATCTTGGGAGTTTTAGAGCTAGAAATAGCAAGTTAAAATAAGGCTAGTCCG","RBP",94]
["MRPL13_06","MRPL13","CAGAAGAACAATGATGGAA","CTTTATATATCTTGTGGAAAGGACGAAACACCGCAGAAGAACAATGATGGAAGTTTTAGAGCTAGAAATAGCAAGTTAAAATAAGGCTAGTCCG","RBP",94]
["MRPL15_01","MRPL15","AGTTGGCCAGGCTCACACG","CTTTATATATCTTGTGGAAAGGACGAAACACCGAGTTGGCCAGGCTCACACGGTTTTAGAGCTAGAAATAGCAAGTTAAAATAAGGCTAGTCCG","RBP",94]
["MRPL15_04","MRPL15","GGGCCCTGGACCTACTCCG","CTTTATATATCTTGTGGAAAGGACGAAACACCGGGGCCCTGGACCTACTCCGGTTTTAGAGCTAGAAATAGCAAGTTAAAATAAGGCTAGTCCG","RBP",94]
["MRPL15_05","MRPL15","CTGCCATTGAAAAAAATGG","CTTTATATATCTTGTGGAAAGGACGAAACACCGCTGCCATTGAAAAAAATGGGTTTTAGAGCTAGAAATAGCAAGTTAAAATAAGGCTAGTCCG","RBP",94]
["MRPL15_08","MRPL15","CAGAGGCCATAAAGGAGAA","CTTTATATATCTTGTGGAAAGGACGAAACACCGCAGAGGCCATAAAGGAGAAGTTTTAGAGCTAGAAATAGCAAGTTAAAATAAGGCTAGTCCG","RBP",94]
["MRPL15_09","MRPL15","ATGGTACCAGTTCTTCTGG","CTTTATATATCTTGTGGAAAGGACGAAACACCGATGGTACCAGTTCTTCTGGGTTTTAGAGCTAGAAATAGCAAGTTAAAATAAGGCTAGTCCG","RBP",94]
["MRPL18_04","MRPL18","ATAGCCCACTCACGAGTGG","CTTTATATATCTTGTGGAAAGGACGAAACACCGATAGCCCACTCACGAGTGGGTTTTAGAGCTAGAAATAGCAAGTTAAAATAAGGCTAGTCCG","RBP",94]
["MRPL18_05","MRPL18","CTGTCAACCAGCTCCGAGC","CTTTATATATCTTGTGGAAAGGACGAAACACCGCTGTCAACCAGCTCCGAGCGTTTTAGAGCTAGAAATAGCAAGTTAAAATAAGGCTAGTCCG","RBP",94]
["MRPL18_06","MRPL18","TAAAAGCTCCAGGTTCCGG","CTTTATATATCTTGTGGAAAGGACGAAACACCGTAAAAGCTCCAGGTTCCGGGTTTTAGAGCTAGAAATAGCAAGTTAAAATAAGGCTAGTCCG","RBP",94]
["MRPL18_07","MRPL18","CTGTAGCCAGGAAAGAGCG","CTTTATATATCTTGTGGAAAGGACGAAACACCGCTGTAGCCAGGAAAGAGCGGTTTTAGAGCTAGAAATAGCAAGTTAAAATAAGGCTAGTCCG","RBP",94]
["MRPL18_08","MRPL18","TATAGTACCAGAAATGTGG","CTTTATATATCTTGTGGAAAGGACGAAACACCGTATAGTACCAGAAATGTGGGTTTTAGAGCTAGAAATAGCAAGTTAAAATAAGGCTAGTCCG","RBP",94]
["MRPL34_03","MRPL34","GCCCTTGAGCATTCGGCGA","CTTTATATATCTTGTGGAAAGGACGAAACACCGGCCCTTGAGCATTCGGCGAGTTTTAGAGCTAGAAATAGCAAGTTAAAATAAGGCTAGTCCG","RBP",94]
["MRPL34_05","MRPL34","TCAAACGCAAGAACAAGCA","CTTTATATATCTTGTGGAAAGGACGAAACACCGTCAAACGCAAGAACAAGCAGTTTTAGAGCTAGAAATAGCAAGTTAAAATAAGGCTAGTCCG","RBP",94]
["MRPL34_08","MRPL34","CGGATATGGCTGTCTTGGC","CTTTATATATCTTGTGGAAAGGACGAAACACCGCGGATATGGCTGTCTTGGCGTTTTAGAGCTAGAAATAGCAAGTTAAAATAAGGCTAGTCCG","RBP",94]
["MRPL34_09","MRPL34","GGAACCCCAGCCAGGCCCG","CTTTATATATCTTGTGGAAAGGACGAAACACCGGGAACCCCAGCCAGGCCCGGTTTTAGAGCTAGAAATAGCAAGTTAAAATAAGGCTAGTCCG","RBP",94]
["MRPL34_10","MRPL34","TTGGGCCCCACGAGTAGGT","CTTTATATATCTTGTGGAAAGGACGAAACACCGTTGGGCCCCACGAGTAGGTGTTTTAGAGCTAGAAATAGCAAGTTAAAATAAGGCTAGTCCG","RBP",94]
["MRPL39_02","MRPL39","TCTGGCTGGTCGCACCCGG","CTTTATATATCTTGTGGAAAGGACGAAACACCGTCTGGCTGGTCGCACCCGGGTTTTAGAGCTAGAAATAGCAAGTTAAAATAAGGCTAGTCCG","RBP",94]
["MRPL39_05","MRPL39","CATCACGAAGACAGTACCG","CTTTATATATCTTGTGGAAAGGACGAAACACCGCATCACGAAGACAGTACCGGTTTTAGAGCTAGAAATAGCAAGTTAAAATAAGGCTAGTCCG","RBP",94]
["MRPL39_06","MRPL39","TGAGACTGTTCCATGGAGG",{"$f":"CONCATENATE(\"CTTTATATATCTTGTGGAAAGGACGAAACACCG\",C834,\"GTTTTAGAGCTAGAAATAGCAAGTTAAAATAAGGCTAGTCCG\")","v":"CTTTATATATCTTGTGGAAAGGACGAAACACCGTGAGACTGTTCCATGGAGGGTTTTAGAGCTAGAAATAGCAAGTTAAAATAAGGCTAGTCCG"},"RBP",{"$f":"LEN(D834)","v":94}]
["MRPL39_08","MRPL39","AAAACTACGTCATAACAGA","CTTTATATATCTTGTGGAAAGGACGAAACACCGAAAACTACGTCATAACAGAGTTTTAGAGCTAGAAATAGCAAGTTAAAATAAGGCTAGTCCG","RBP",94]
["MRPL39_09","MRPL39","CTGGAAGTTGAAGCAAAAG","CTTTATATATCTTGTGGAAAGGACGAAACACCGCTGGAAGTTGAAGCAAAAGGTTTTAGAGCTAGAAATAGCAAGTTAAAATAAGGCTAGTCCG","RBP",94]
["MRPL40_01","MRPL40","AACCTGTTCCCCTTTGAGA","CTTTATATATCTTGTGGAAAGGACGAAACACCGAACCTGTTCCCCTTTGAGAGTTTTAGAGCTAGAAATAGCAAGTTAAAATAAGGCTAGTCCG","RBP",94]
["MRPL40_02","MRPL40","TTATCCAAGAACTTTAGAG","CTTTATATATCTTGTGGAAAGGACGAAACACCGTTATCCAAGAACTTTAGAGGTTTTAGAGCTAGAAATAGCAAGTTAAAATAAGGCTAGTCCG","RBP",94]
["MRPL40_06","MRPL40","AAAAAAGACCAAGAAGCAA","CTTTATATATCTTGTGGAAAGGACGAAACACCGAAAAAAGACCAAGAAGCAAGTTTTAGAGCTAGAAATAGCAAGTTAAAATAAGGCTAGTCCG","RBP",94]
["MRPL40_07","MRPL40","GAGATACTTCGCAGCACGG","CTTTATATATCTTGTGGAAAGGACGAAACACCGGAGATACTTCGCAGCACGGGTTTTAGAGCTAGAAATAGCAAGTTAAAATAAGGCTAGTCCG","RBP",94]
["MRPL40_09","MRPL40","CATTGTACCTGCCTTCAGG","CTTTATATATCTTGTGGAAAGGACGAAACACCGCATTGTACCTGCCTTCAGGGTTTTAGAGCTAGAAATAGCAAGTTAAAATAAGGCTAGTCCG","RBP",94]
["MRPL44_01","MRPL44","GACTTACTAGGCAGTCTGG","CTTTATATATCTTGTGGAAAGGACGAAACACCGGACTTACTAGGCAGTCTGGGTTTTAGAGCTAGAAATAGCAAGTTAAAATAAGGCTAGTCCG","RBP",94]
["MRPL44_02","MRPL44","TGGAAGATAATAAATCCCA","CTTTATATATCTTGTGGAAAGGACGAAACACCGTGGAAGATAATAAATCCCAGTTTTAGAGCTAGAAATAGCAAGTTAAAATAAGGCTAGTCCG","RBP",94]
["MRPL44_04","MRPL44","GTATTGGTTGCAGAAGAAG","CTTTATATATCTTGTGGAAAGGACGAAACACCGGTATTGGTTGCAGAAGAAGGTTTTAGAGCTAGAAATAGCAAGTTAAAATAAGGCTAGTCCG","RBP",94]
["MRPL44_05","MRPL44","GAGCCCTGTTACAGAGCAG","CTTTATATATCTTGTGGAAAGGACGAAACACCGGAGCCCTGTTACAGAGCAGGTTTTAGAGCTAGAAATAGCAAGTTAAAATAAGGCTAGTCCG","RBP",94]
["MRPL44_08","MRPL44","TCTGCTGTAACACAGCTGG","CTTTATATATCTTGTGGAAAGGACGAAACACCGTCTGCTGTAACACAGCTGGGTTTTAGAGCTAGAAATAGCAAGTTAAAATAAGGCTAGTCCG","RBP",94]
["MRPL45_03","MRPL45","ATATCATCTCTTTCAAAGG","CTTTATATATCTTGTGGAAAGGACGAAACACCGATATCATCTCTTTCAAAGGGTTTTAGAGCTAGAAATAGCAAGTTAAAATAAGGCTAGTCCG","RBP",94]
["MRPL45_04","MRPL45","GAGAACCCTTGAGGTATGG","CTTTATATATCTTGTGGAAAGGACGAAACACCGGAGAACCCTTGAGGTATGGGTTTTAGAGCTAGAAATAGCAAGTTAAAATAAGGCTAGTCCG","RBP",94]
["MRPL45_05","MRPL45","AGATTCCACAAAGCTCCAG","CTTTATATATCTTGTGGAAAGGACGAAACACCGAGATTCCACAAAGCTCCAGGTTTTAGAGCTAGAAATAGCAAGTTAAAATAAGGCTAGTCCG","RBP",94]
["MRPL45_06","MRPL45","GAACTTGAACAACATGAGA","CTTTATATATCTTGTGGAAAGGACGAAACACCGGAACTTGAACAACATGAGAGTTTTAGAGCTAGAAATAGCAAGTTAAAATAAGGCTAGTCCG","RBP",94]
["MRPL45_08","MRPL45","GGACAGGAAGATGTACCCA","CTTTATATATCTTGTGGAAAGGACGAAACACCGGGACAGGAAGATGTACCCAGTTTTAGAGCTAGAAATAGCAAGTTAAAATAAGGCTAGTCCG","RBP",94]
["MRPL46_02","MRPL46","GCTTTGAAGAAGAACACCT","CTTTATATATCTTGTGGAAAGGACGAAACACCGGCTTTGAAGAAGAACACCTGTTTTAGAGCTAGAAATAGCAAGTTAAAATAAGGCTAGTCCG","RBP",94]
["MRPL46_03","MRPL46","CTGGATGAAAACCAGCGAC","CTTTATATATCTTGTGGAAAGGACGAAACACCGCTGGATGAAAACCAGCGACGTTTTAGAGCTAGAAATAGCAAGTTAAAATAAGGCTAGTCCG","RBP",94]
["MRPL46_04","MRPL46","GATGTTTGGATACTGCCCC","CTTTATATATCTTGTGGAAAGGACGAAACACCGGATGTTTGGATACTGCCCCGTTTTAGAGCTAGAAATAGCAAGTTAAAATAAGGCTAGTCCG","RBP",94]
["MRPL46_08","MRPL46","TACACATTCAAGTTCCCCC","CTTTATATATCTTGTGGAAAGGACGAAACACCGTACACATTCAAGTTCCCCCGTTTTAGAGCTAGAAATAGCAAGTTAAAATAAGGCTAGTCCG","RBP",94]
["MRPL46_09","MRPL46","AATAAGGGCCATCATGTGT","CTTTATATATCTTGTGGAAAGGACGAAACACCGAATAAGGGCCATCATGTGTGTTTTAGAGCTAGAAATAGCAAGTTAAAATAAGGCTAGTCCG","RBP",94]
["MRPL48_02","MRPL48","CTTCAGCCCAAGAAGAAGA","CTTTATATATCTTGTGGAAAGGACGAAACACCGCTTCAGCCCAAGAAGAAGAGTTTTAGAGCTAGAAATAGCAAGTTAAAATAAGGCTAGTCCG","RBP",94]
["MRPL48_05","MRPL48","AATTCTACTAAGTATCAGT","CTTTATATATCTTGTGGAAAGGACGAAACACCGAATTCTACTAAGTATCAGTGTTTTAGAGCTAGAAATAGCAAGTTAAAATAAGGCTAGTCCG","RBP",94]
["MRPL48_07","MRPL48","GGAGTCAGACTGTCAGTGA","CTTTATATATCTTGTGGAAAGGACGAAACACCGGGAGTCAGACTGTCAGTGAGTTTTAGAGCTAGAAATAGCAAGTTAAAATAAGGCTAGTCCG","RBP",94]
["MRPL48_08","MRPL48","TGTTGCAGTTGCAGGACCA","CTTTATATATCTTGTGGAAAGGACGAAACACCGTGTTGCAGTTGCAGGACCAGTTTTAGAGCTAGAAATAGCAAGTTAAAATAAGGCTAGTCCG","RBP",94]
["MRPL48_10","MRPL48","GCTTACCTACAGAATAGAT","CTTTATATATCTTGTGGAAAGGACGAAACACCGGCTTACCTACAGAATAGATGTTTTAGAGCTAGAAATAGCAAGTTAAAATAAGGCTAGTCCG","RBP",94]
["MRPL49_02","MRPL49","CATGTTCCGGGCTACGCTG","CTTTATATATCTTGTGGAAAGGACGAAACACCGCATGTTCCGGGCTACGCTGGTTTTAGAGCTAGAAATAGCAAGTTAAAATAAGGCTAGTCCG","RBP",94]
["MRPL49_03","MRPL49","GTGGCTGGCAGCCTCCCAG","CTTTATATATCTTGTGGAAAGGACGAAACACCGGTGGCTGGCAGCCTCCCAGGTTTTAGAGCTAGAAATAGCAAGTTAAAATAAGGCTAGTCCG","RBP",94]
["MRPL49_04","MRPL49","CACAGACTCCACAAACCTG","CTTTATATATCTTGTGGAAAGGACGAAACACCGCACAGACTCCACAAACCTGGTTTTAGAGCTAGAAATAGCAAGTTAAAATAAGGCTAGTCCG","RBP",94]
["MRPL49_07","MRPL49","TGAGGTGACAGGTACCCTA","CTTTATATATCTTGTGGAAAGGACGAAACACCGTGAGGTGACAGGTACCCTAGTTTTAGAGCTAGAAATAGCAAGTTAAAATAAGGCTAGTCCG","RBP",94]
["MRPL49_09","MRPL49","TTGCTTCAGAGCCAGACCC","CTTTATATATCTTGTGGAAAGGACGAAACACCGTTGCTTCAGAGCCAGACCCGTTTTAGAGCTAGAAATAGCAAGTTAAAATAAGGCTAGTCCG","RBP",94]
["MRPL53_01","MRPL53","CTCAGTGATTGCGGACGTG","CTTTATATATCTTGTGGAAAGGACGAAACACCGCTCAGTGATTGCGGACGTGGTTTTAGAGCTAGAAATAGCAAGTTAAAATAAGGCTAGTCCG","RBP",94]
["MRPL53_02","MRPL53","AGCGACCAGTATCAGCGCC","CTTTATATATCTTGTGGAAAGGACGAAACACCGAGCGACCAGTATCAGCGCCGTTTTAGAGCTAGAAATAGCAAGTTAAAATAAGGCTAGTCCG","RBP",94]
["MRPL53_04","MRPL53","GCGGTGAGCATTTCCAGAG","CTTTATATATCTTGTGGAAAGGACGAAACACCGGCGGTGAGCATTTCCAGAGGTTTTAGAGCTAGAAATAGCAAGTTAAAATAAGGCTAGTCCG","RBP",94]
["MRPL53_07","MRPL53","CGTAGGACCTTCCTGCAGA","CTTTATATATCTTGTGGAAAGGACGAAACACCGCGTAGGACCTTCCTGCAGAGTTTTAGAGCTAGAAATAGCAAGTTAAAATAAGGCTAGTCCG","RBP",94]
["MRPL53_10","MRPL53","CGCAGACCAAGCCGAGCCA","CTTTATATATCTTGTGGAAAGGACGAAACACCGCGCAGACCAAGCCGAGCCAGTTTTAGAGCTAGAAATAGCAAGTTAAAATAAGGCTAGTCCG","RBP",94]
["MRPL57_02","MRPL57","TCAGTGGATCGGGAAGCAC","CTTTATATATCTTGTGGAAAGGACGAAACACCGTCAGTGGATCGGGAAGCACGTTTTAGAGCTAGAAATAGCAAGTTAAAATAAGGCTAGTCCG","RBP",94]
["MRPL57_04","MRPL57","CTCCGCCTCGATCTCCAGG","CTTTATATATCTTGTGGAAAGGACGAAACACCGCTCCGCCTCGATCTCCAGGGTTTTAGAGCTAGAAATAGCAAGTTAAAATAAGGCTAGTCCG","RBP",94]
["MRPL57_06","MRPL57","GCCTTCGAGGCCATAAAGG","CTTTATATATCTTGTGGAAAGGACGAAACACCGGCCTTCGAGGCCATAAAGGGTTTTAGAGCTAGAAATAGCAAGTTAAAATAAGGCTAGTCCG","RBP",94]
["MRPL57_09","MRPL57","CCTCCTGCGCACCGCGGCG","CTTTATATATCTTGTGGAAAGGACGAAACACCGCCTCCTGCGCACCGCGGCGGTTTTAGAGCTAGAAATAGCAAGTTAAAATAAGGCTAGTCCG","RBP",94]
["MRPL57_10","MRPL57","CGCAATGAATCTATGCGGG","CTTTATATATCTTGTGGAAAGGACGAAACACCGCGCAATGAATCTATGCGGGGTTTTAGAGCTAGAAATAGCAAGTTAAAATAAGGCTAGTCCG","RBP",94]
["MRPS11_04","MRPS11","CGGCCGGGACCATCTGCAC","CTTTATATATCTTGTGGAAAGGACGAAACACCGCGGCCGGGACCATCTGCACGTTTTAGAGCTAGAAATAGCAAGTTAAAATAAGGCTAGTCCG","RBP",94]
["MRPS11_05","MRPS11","CTTCCGAGCCTTCCTGGGG","CTTTATATATCTTGTGGAAAGGACGAAACACCGCTTCCGAGCCTTCCTGGGGGTTTTAGAGCTAGAAATAGCAAGTTAAAATAAGGCTAGTCCG","RBP",94]
["MRPS11_06","MRPS11","ACAGCAGGCATAGCCGCAG","CTTTATATATCTTGTGGAAAGGACGAAACACCGACAGCAGGCATAGCCGCAGGTTTTAGAGCTAGAAATAGCAAGTTAAAATAAGGCTAGTCCG","RBP",94]
["MRPS11_07","MRPS11","ATGCAGGCTGTGAGAAACG","CTTTATATATCTTGTGGAAAGGACGAAACACCGATGCAGGCTGTGAGAAACGGTTTTAGAGCTAGAAATAGCAAGTTAAAATAAGGCTAGTCCG","RBP",94]
["MRPS11_10","MRPS11","TGCACGGACTGATCATGGG","CTTTATATATCTTGTGGAAAGGACGAAACACCGTGCACGGACTGATCATGGGGTTTTAGAGCTAGAAATAGCAAGTTAAAATAAGGCTAGTCCG","RBP",94]
["MRPS12_01","MRPS12","CACCAGATTGTCCTTGTGG","CTTTATATATCTTGTGGAAAGGACGAAACACCGCACCAGATTGTCCTTGTGGGTTTTAGAGCTAGAAATAGCAAGTTAAAATAAGGCTAGTCCG","RBP",94]
["MRPS12_04","MRPS12","CTTGCGGGTAAACGTGCAC","CTTTATATATCTTGTGGAAAGGACGAAACACCGCTTGCGGGTAAACGTGCACGTTTTAGAGCTAGAAATAGCAAGTTAAAATAAGGCTAGTCCG","RBP",94]
["MRPS12_07","MRPS12","GGACCACACCCTTCAGCTG","CTTTATATATCTTGTGGAAAGGACGAAACACCGGGACCACACCCTTCAGCTGGTTTTAGAGCTAGAAATAGCAAGTTAAAATAAGGCTAGTCCG","RBP",94]
["MRPS12_08","MRPS12","CCACGTGCAGAAGAAGTGA","CTTTATATATCTTGTGGAAAGGACGAAACACCGCCACGTGCAGAAGAAGTGAGTTTTAGAGCTAGAAATAGCAAGTTAAAATAAGGCTAGTCCG","RBP",94]
["MRPS12_09","MRPS12","TTCAGGGTAGCCATGGAGC","CTTTATATATCTTGTGGAAAGGACGAAACACCGTTCAGGGTAGCCATGGAGCGTTTTAGAGCTAGAAATAGCAAGTTAAAATAAGGCTAGTCCG","RBP",94]
["MRPS15_05","MRPS15","CCAAAAACAAGCAAAGCGG","CTTTATATATCTTGTGGAAAGGACGAAACACCGCCAAAAACAAGCAAAGCGGGTTTTAGAGCTAGAAATAGCAAGTTAAAATAAGGCTAGTCCG","RBP",94]
["MRPS15_07","MRPS15","CTTGGTCACGAATCGGCGG","CTTTATATATCTTGTGGAAAGGACGAAACACCGCTTGGTCACGAATCGGCGGGTTTTAGAGCTAGAAATAGCAAGTTAAAATAAGGCTAGTCCG","RBP",94]
["MRPS15_08","MRPS15","CACTTGGAGAAACATCGAA","CTTTATATATCTTGTGGAAAGGACGAAACACCGCACTTGGAGAAACATCGAAGTTTTAGAGCTAGAAATAGCAAGTTAAAATAAGGCTAGTCCG","RBP",94]
["MRPS15_09","MRPS15","CTTTGAGAAGATATGCTGG","CTTTATATATCTTGTGGAAAGGACGAAACACCGCTTTGAGAAGATATGCTGGGTTTTAGAGCTAGAAATAGCAAGTTAAAATAAGGCTAGTCCG","RBP",94]
["MRPS15_10","MRPS15","CGGACGACATATCCGCGCG","CTTTATATATCTTGTGGAAAGGACGAAACACCGCGGACGACATATCCGCGCGGTTTTAGAGCTAGAAATAGCAAGTTAAAATAAGGCTAGTCCG","RBP",94]
["MRPS18C_02","MRPS18C","CCGCAAACAGCAACCACAG","CTTTATATATCTTGTGGAAAGGACGAAACACCGCCGCAAACAGCAACCACAGGTTTTAGAGCTAGAAATAGCAAGTTAAAATAAGGCTAGTCCG","RBP",94]
["MRPS18C_04","MRPS18C","CAACAGGTATCCAGCAATG","CTTTATATATCTTGTGGAAAGGACGAAACACCGCAACAGGTATCCAGCAATGGTTTTAGAGCTAGAAATAGCAAGTTAAAATAAGGCTAGTCCG","RBP",94]
["MRPS18C_06","MRPS18C","ACACATCCCGGGACTCACA","CTTTATATATCTTGTGGAAAGGACGAAACACCGACACATCCCGGGACTCACAGTTTTAGAGCTAGAAATAGCAAGTTAAAATAAGGCTAGTCCG","RBP",94]
["MRPS18C_07","MRPS18C","AGTTTGTAACATCAGATAT","CTTTATATATCTTGTGGAAAGGACGAAACACCGAGTTTGTAACATCAGATATGTTTTAGAGCTAGAAATAGCAAGTTAAAATAAGGCTAGTCCG","RBP",94]
["MRPS18C_09","MRPS18C","ACAAGATACATTTCTTAAG","CTTTATATATCTTGTGGAAAGGACGAAACACCGACAAGATACATTTCTTAAGGTTTTAGAGCTAGAAATAGCAAGTTAAAATAAGGCTAGTCCG","RBP",94]
["MRPS24_01","MRPS24","CGACAGCCAGCCTTTACGG","CTTTATATATCTTGTGGAAAGGACGAAACACCGCGACAGCCAGCCTTTACGGGTTTTAGAGCTAGAAATAGCAAGTTAAAATAAGGCTAGTCCG","RBP",94]
["MRPS24_03","MRPS24","CAGTTGGAGATCTGTGCCG",{"$f":"CONCATENATE(\"CTTTATATATCTTGTGGAAAGGACGAAACACCG\",C898,\"GTTTTAGAGCTAGAAATAGCAAGTTAAAATAAGGCTAGTCCG\")","v":"CTTTATATATCTTGTGGAAAGGACGAAACACCGCAGTTGGAGATCTGTGCCGGTTTTAGAGCTAGAAATAGCAAGTTAAAATAAGGCTAGTCCG"},"RBP",{"$f":"LEN(D898)","v":94}]
["MRPS24_04","MRPS24","AAGCCGGTGACCTACGAGG","CTTTATATATCTTGTGGAAAGGACGAAACACCGAAGCCGGTGACCTACGAGGGTTTTAGAGCTAGAAATAGCAAGTTAAAATAAGGCTAGTCCG","RBP",94]
["MRPS24_07","MRPS24","CATGCCGCAGAGCGAACGG","CTTTATATATCTTGTGGAAAGGACGAAACACCGCATGCCGCAGAGCGAACGGGTTTTAGAGCTAGAAATAGCAAGTTAAAATAAGGCTAGTCCG","RBP",94]
["MRPS24_08","MRPS24","AGCAACCCGCTGCACACGG","CTTTATATATCTTGTGGAAAGGACGAAACACCGAGCAACCCGCTGCACACGGGTTTTAGAGCTAGAAATAGCAAGTTAAAATAAGGCTAGTCCG","RBP",94]
["MRPS34_03","MRPS34","CTGGTGCCCAAGCACGAGG","CTTTATATATCTTGTGGAAAGGACGAAACACCGCTGGTGCCCAAGCACGAGGGTTTTAGAGCTAGAAATAGCAAGTTAAAATAAGGCTAGTCCG","RBP",94]
["MRPS34_04","MRPS34","TTCCCTGATGAAGAAAAAG","CTTTATATATCTTGTGGAAAGGACGAAACACCGTTCCCTGATGAAGAAAAAGGTTTTAGAGCTAGAAATAGCAAGTTAAAATAAGGCTAGTCCG","RBP",94]
["MRPS34_05","MRPS34","CGTCATGTACCATGACTGG","CTTTATATATCTTGTGGAAAGGACGAAACACCGCGTCATGTACCATGACTGGGTTTTAGAGCTAGAAATAGCAAGTTAAAATAAGGCTAGTCCG","RBP",94]
["MRPS34_10","MRPS34","TGCGATAATCATGGCCCGG","CTTTATATATCTTGTGGAAAGGACGAAACACCGTGCGATAATCATGGCCCGGGTTTTAGAGCTAGAAATAGCAAGTTAAAATAAGGCTAGTCCG","RBP",94]
["MRPS35_01","MRPS35","CTCAGATTTTTGCACTGAG","CTTTATATATCTTGTGGAAAGGACGAAACACCGCTCAGATTTTTGCACTGAGGTTTTAGAGCTAGAAATAGCAAGTTAAAATAAGGCTAGTCCG","RBP"]
["MRPS35_02","MRPS35","AAGGGCGTGCCCATGGCAA","CTTTATATATCTTGTGGAAAGGACGAAACACCGAAGGGCGTGCCCATGGCAAGTTTTAGAGCTAGAAATAGCAAGTTAAAATAAGGCTAGTCCG","RBP",{"$f":"LEN(D907)","v":94}]
["MRPS35_03","MRPS35","TTCTCGTCACTGTCCAGTG","CTTTATATATCTTGTGGAAAGGACGAAACACCGTTCTCGTCACTGTCCAGTGGTTTTAGAGCTAGAAATAGCAAGTTAAAATAAGGCTAGTCCG","RBP",94]
["MRPS35_08","MRPS35","CTGCAACTGGGTAAACACT","CTTTATATATCTTGTGGAAAGGACGAAACACCGCTGCAACTGGGTAAACACTGTTTTAGAGCTAGAAATAGCAAGTTAAAATAAGGCTAGTCCG","RBP",94]
["MRPS35_09","MRPS35","TAATAGGTGCCCTTTAAGG","CTTTATATATCTTGTGGAAAGGACGAAACACCGTAATAGGTGCCCTTTAAGGGTTTTAGAGCTAGAAATAGCAAGTTAAAATAAGGCTAGTCCG","RBP",94]
["MRPS7_03","MRPS7","CCGGGATAAAAAGCACCAG","CTTTATATATCTTGTGGAAAGGACGAAACACCGCCGGGATAAAAAGCACCAGGTTTTAGAGCTAGAAATAGCAAGTTAAAATAAGGCTAGTCCG","RBP",94]
["MRPS7_05","MRPS7","TATTATCGCAAGCCAGTGG","CTTTATATATCTTGTGGAAAGGACGAAACACCGTATTATCGCAAGCCAGTGGGTTTTAGAGCTAGAAATAGCAAGTTAAAATAAGGCTAGTCCG","RBP",94]
["MRPS7_07","MRPS7","GACTTGCACAAGATGGCAG","CTTTATATATCTTGTGGAAAGGACGAAACACCGGACTTGCACAAGATGGCAGGTTTTAGAGCTAGAAATAGCAAGTTAAAATAAGGCTAGTCCG","RBP",94]
["MRPS7_09","MRPS7","TGGTACCCATCCTCAAGGG","CTTTATATATCTTGTGGAAAGGACGAAACACCGTGGTACCCATCCTCAAGGGGTTTTAGAGCTAGAAATAGCAAGTTAAAATAAGGCTAGTCCG","RBP",94]
["MRPS7_10","MRPS7","CGGGCAACCTTCACTGCGG","CTTTATATATCTTGTGGAAAGGACGAAACACCGCGGGCAACCTTCACTGCGGGTTTTAGAGCTAGAAATAGCAAGTTAAAATAAGGCTAGTCCG","RBP",94]
["MRPS9_03","MRPS9","CAAGGCCTCTGGAAAACCG","CTTTATATATCTTGTGGAAAGGACGAAACACCGCAAGGCCTCTGGAAAACCGGTTTTAGAGCTAGAAATAGCAAGTTAAAATAAGGCTAGTCCG","RBP",94]
["MRPS9_04","MRPS9","GAAGAGATAGTGAAATGGA","CTTTATATATCTTGTGGAAAGGACGAAACACCGGAAGAGATAGTGAAATGGAGTTTTAGAGCTAGAAATAGCAAGTTAAAATAAGGCTAGTCCG","RBP",94]
["MRPS9_05","MRPS9","TTTTAAATCAGCAATCCAG","CTTTATATATCTTGTGGAAAGGACGAAACACCGTTTTAAATCAGCAATCCAGGTTTTAGAGCTAGAAATAGCAAGTTAAAATAAGGCTAGTCCG","RBP",94]
["MRPS9_07","MRPS9","AAACGTGAAACTTACACAG","CTTTATATATCTTGTGGAAAGGACGAAACACCGAAACGTGAAACTTACACAGGTTTTAGAGCTAGAAATAGCAAGTTAAAATAAGGCTAGTCCG","RBP",94]
["MRPS9_08","MRPS9","AGCAGATGGCTGATTAAGG","CTTTATATATCTTGTGGAAAGGACGAAACACCGAGCAGATGGCTGATTAAGGGTTTTAGAGCTAGAAATAGCAAGTTAAAATAAGGCTAGTCCG","RBP",94]
["MTO1_02","MTO1","GAAGGAAACCGCGACCCAA","CTTTATATATCTTGTGGAAAGGACGAAACACCGGAAGGAAACCGCGACCCAAGTTTTAGAGCTAGAAATAGCAAGTTAAAATAAGGCTAGTCCG","RBP",94]
["MTO1_04","MTO1","AAATGATCACATGCATCAG","CTTTATATATCTTGTGGAAAGGACGAAACACCGAAATGATCACATGCATCAGGTTTTAGAGCTAGAAATAGCAAGTTAAAATAAGGCTAGTCCG","RBP",94]
["MTO1_05","MTO1","GTCCGAGAGCCGCACCGAG","CTTTATATATCTTGTGGAAAGGACGAAACACCGGTCCGAGAGCCGCACCGAGGTTTTAGAGCTAGAAATAGCAAGTTAAAATAAGGCTAGTCCG","RBP",94]
["MTO1_07","MTO1","TTCCGATGCCACCAAAGGA","CTTTATATATCTTGTGGAAAGGACGAAACACCGTTCCGATGCCACCAAAGGAGTTTTAGAGCTAGAAATAGCAAGTTAAAATAAGGCTAGTCCG","RBP",94]
["MTO1_08","MTO1","TGAAGTCTTCTTTAGAAGA","CTTTATATATCTTGTGGAAAGGACGAAACACCGTGAAGTCTTCTTTAGAAGAGTTTTAGAGCTAGAAATAGCAAGTTAAAATAAGGCTAGTCCG","RBP",94]
["NCBP2L_02","NCBP2L","ATTTTCATTCTGGTAGAGG","CTTTATATATCTTGTGGAAAGGACGAAACACCGATTTTCATTCTGGTAGAGGGTTTTAGAGCTAGAAATAGCAAGTTAAAATAAGGCTAGTCCG","RBP",94]
["NCBP2L_04","NCBP2L","AGTGGCCGTAAATTTCAGC","CTTTATATATCTTGTGGAAAGGACGAAACACCGAGTGGCCGTAAATTTCAGCGTTTTAGAGCTAGAAATAGCAAGTTAAAATAAGGCTAGTCCG","RBP",94]
["NCBP2L_05","NCBP2L","TGATGCTGAAAATGCCATG","CTTTATATATCTTGTGGAAAGGACGAAACACCGTGATGCTGAAAATGCCATGGTTTTAGAGCTAGAAATAGCAAGTTAAAATAAGGCTAGTCCG","RBP",94]
["NCBP2L_07","NCBP2L","TATGGTCGCGGTAAATCTG","CTTTATATATCTTGTGGAAAGGACGAAACACCGTATGGTCGCGGTAAATCTGGTTTTAGAGCTAGAAATAGCAAGTTAAAATAAGGCTAGTCCG","RBP",94]
["NCBP2L_08","NCBP2L","ACCGGGACCATCAGTTCAG","CTTTATATATCTTGTGGAAAGGACGAAACACCGACCGGGACCATCAGTTCAGGTTTTAGAGCTAGAAATAGCAAGTTAAAATAAGGCTAGTCCG","RBP",94]
["NIFK_02","NIFK","TGCAGACTGGAAATAGCAA","CTTTATATATCTTGTGGAAAGGACGAAACACCGTGCAGACTGGAAATAGCAAGTTTTAGAGCTAGAAATAGCAAGTTAAAATAAGGCTAGTCCG","RBP",94]
["NIFK_04","NIFK","GTTCGCAAGCGCATAACCC","CTTTATATATCTTGTGGAAAGGACGAAACACCGGTTCGCAAGCGCATAACCCGTTTTAGAGCTAGAAATAGCAAGTTAAAATAAGGCTAGTCCG","RBP",94]
["NIFK_05","NIFK","GTTGGTGTACAAACTGGTG","CTTTATATATCTTGTGGAAAGGACGAAACACCGGTTGGTGTACAAACTGGTGGTTTTAGAGCTAGAAATAGCAAGTTAAAATAAGGCTAGTCCG","RBP",94]
["NIFK_08","NIFK","ATGGCGACTTTTTCTGGCC","CTTTATATATCTTGTGGAAAGGACGAAACACCGATGGCGACTTTTTCTGGCCGTTTTAGAGCTAGAAATAGCAAGTTAAAATAAGGCTAGTCCG","RBP",94]
["NIFK_10","NIFK","AGGCTGTCCAGAAGTAAAA","CTTTATATATCTTGTGGAAAGGACGAAACACCGAGGCTGTCCAGAAGTAAAAGTTTTAGAGCTAGAAATAGCAAGTTAAAATAAGGCTAGTCCG","RBP",94]
["NXT1_02","NXT1","CAGGCCTGCAGAGCTGCTG","CTTTATATATCTTGTGGAAAGGACGAAACACCGCAGGCCTGCAGAGCTGCTGGTTTTAGAGCTAGAAATAGCAAGTTAAAATAAGGCTAGTCCG","RBP",94]
["NXT1_07","NXT1","GTTTGAGGGGAACAAACAA","CTTTATATATCTTGTGGAAAGGACGAAACACCGGTTTGAGGGGAACAAACAAGTTTTAGAGCTAGAAATAGCAAGTTAAAATAAGGCTAGTCCG","RBP",94]
["NXT1_08","NXT1","CAGATGACAACAAGGACCG","CTTTATATATCTTGTGGAAAGGACGAAACACCGCAGATGACAACAAGGACCGGTTTTAGAGCTAGAAATAGCAAGTTAAAATAAGGCTAGTCCG","RBP",94]
["NXT1_09","NXT1","CGCCGCCGCTTATCCATGG","CTTTATATATCTTGTGGAAAGGACGAAACACCGCGCCGCCGCTTATCCATGGGTTTTAGAGCTAGAAATAGCAAGTTAAAATAAGGCTAGTCCG","RBP",94]
["NXT1_10","NXT1","GCTGGCCCAGTCCTGGAAG","CTTTATATATCTTGTGGAAAGGACGAAACACCGGCTGGCCCAGTCCTGGAAGGTTTTAGAGCTAGAAATAGCAAGTTAAAATAAGGCTAGTCCG","RBP",94]
["PABPC3_01","PABPC3","GCAGGGACTTGATCACCAG","CTTTATATATCTTGTGGAAAGGACGAAACACCGGCAGGGACTTGATCACCAGGTTTTAGAGCTAGAAATAGCAAGTTAAAATAAGGCTAGTCCG","RBP",94]
["PABPC3_02","PABPC3","AGCACCCCCAGCTACCCAA","CTTTATATATCTTGTGGAAAGGACGAAACACCGAGCACCCCCAGCTACCCAAGTTTTAGAGCTAGAAATAGCAAGTTAAAATAAGGCTAGTCCG","RBP",94]
["PABPC3_05","PABPC3","CATCGCCTCAGTCACGTCG","CTTTATATATCTTGTGGAAAGGACGAAACACCGCATCGCCTCAGTCACGTCGGTTTTAGAGCTAGAAATAGCAAGTTAAAATAAGGCTAGTCCG","RBP",94]
["PABPC3_06","PABPC3","CCGCAGCATATTTATACCG","CTTTATATATCTTGTGGAAAGGACGAAACACCGCCGCAGCATATTTATACCGGTTTTAGAGCTAGAAATAGCAAGTTAAAATAAGGCTAGTCCG","RBP",94]
["PABPC3_07","PABPC3","ATGGAAAACAAATTTACGT","CTTTATATATCTTGTGGAAAGGACGAAACACCGATGGAAAACAAATTTACGTGTTTTAGAGCTAGAAATAGCAAGTTAAAATAAGGCTAGTCCG","RBP",94]
["PARS2_01","PARS2","CTGTGCCCCAAGAAGAGGG","CTTTATATATCTTGTGGAAAGGACGAAACACCGCTGTGCCCCAAGAAGAGGGGTTTTAGAGCTAGAAATAGCAAGTTAAAATAAGGCTAGTCCG","RBP",94]
["PARS2_02","PARS2","AACATACCCAGAGAGCTGG","CTTTATATATCTTGTGGAAAGGACGAAACACCGAACATACCCAGAGAGCTGGGTTTTAGAGCTAGAAATAGCAAGTTAAAATAAGGCTAGTCCG","RBP",94]
["PARS2_05","PARS2","GAAGTTTCGGGATGAGCCC","CTTTATATATCTTGTGGAAAGGACGAAACACCGGAAGTTTCGGGATGAGCCCGTTTTAGAGCTAGAAATAGCAAGTTAAAATAAGGCTAGTCCG","RBP",94]
["PARS2_06","PARS2","CCGATGTGGGCACCATCGG","CTTTATATATCTTGTGGAAAGGACGAAACACCGCCGATGTGGGCACCATCGGGTTTTAGAGCTAGAAATAGCAAGTTAAAATAAGGCTAGTCCG","RBP",94]
["PARS2_07","PARS2","AAAACCAAAGGCATTGAGG","CTTTATATATCTTGTGGAAAGGACGAAACACCGAAAACCAAAGGCATTGAGGGTTTTAGAGCTAGAAATAGCAAGTTAAAATAAGGCTAGTCCG","RBP",94]
["PCBP1_02","PCBP1","CTGGGCCCCGGACATCTGG","CTTTATATATCTTGTGGAAAGGACGAAACACCGCTGGGCCCCGGACATCTGGGTTTTAGAGCTAGAAATAGCAAGTTAAAATAAGGCTAGTCCG","RBP",94]
["PCBP1_03","PCBP1","ATAGTAACCTGCCTACCAG","CTTTATATATCTTGTGGAAAGGACGAAACACCGATAGTAACCTGCCTACCAGGTTTTAGAGCTAGAAATAGCAAGTTAAAATAAGGCTAGTCCG","RBP",94]
["PCBP1_04","PCBP1","GCGCGGATCAACATCTCGG","CTTTATATATCTTGTGGAAAGGACGAAACACCGGCGCGGATCAACATCTCGGGTTTTAGAGCTAGAAATAGCAAGTTAAAATAAGGCTAGTCCG","RBP",94]
["PCBP1_07","PCBP1","ATGATCATCGACAAGCTGG","CTTTATATATCTTGTGGAAAGGACGAAACACCGATGATCATCGACAAGCTGGGTTTTAGAGCTAGAAATAGCAAGTTAAAATAAGGCTAGTCCG","RBP",94]
["PCBP1_09","PCBP1","TCCATGACCAACAGTACCG","CTTTATATATCTTGTGGAAAGGACGAAACACCGTCCATGACCAACAGTACCGGTTTTAGAGCTAGAAATAGCAAGTTAAAATAAGGCTAGTCCG","RBP",94]
["PCBP2_02","PCBP2","GGAATGCCAGCAATAGTGA","CTTTATATATCTTGTGGAAAGGACGAAACACCGGGAATGCCAGCAATAGTGAGTTTTAGAGCTAGAAATAGCAAGTTAAAATAAGGCTAGTCCG","RBP",94]
["PCBP2_04","PCBP2","TTGTCAATGATCATAGCAA","CTTTATATATCTTGTGGAAAGGACGAAACACCGTTGTCAATGATCATAGCAAGTTTTAGAGCTAGAAATAGCAAGTTAAAATAAGGCTAGTCCG","RBP",94]
["PCBP2_05","PCBP2","AAGATCAAGGAAATACGAG","CTTTATATATCTTGTGGAAAGGACGAAACACCGAAGATCAAGGAAATACGAGGTTTTAGAGCTAGAAATAGCAAGTTAAAATAAGGCTAGTCCG","RBP",94]
["PCBP2_07","PCBP2","TACAGGCTTTCCTCGGAGA","CTTTATATATCTTGTGGAAAGGACGAAACACCGTACAGGCTTTCCTCGGAGAGTTTTAGAGCTAGAAATAGCAAGTTAAAATAAGGCTAGTCCG","RBP",94]
["PCBP2_09","PCBP2","CAAAACTTACATCTGGCTG","CTTTATATATCTTGTGGAAAGGACGAAACACCGCAAAACTTACATCTGGCTGGTTTTAGAGCTAGAAATAGCAAGTTAAAATAAGGCTAGTCCG","RBP",94]
["PELP1_01","PELP1","TGACGCAAACACACCGCGA","CTTTATATATCTTGTGGAAAGGACGAAACACCGTGACGCAAACACACCGCGAGTTTTAGAGCTAGAAATAGCAAGTTAAAATAAGGCTAGTCCG","RBP",94]
["PELP1_03","PELP1","TACACCCATGACCAGGGGG",{"$f":"CONCATENATE(\"CTTTATATATCTTGTGGAAAGGACGAAACACCG\",C962,\"GTTTTAGAGCTAGAAATAGCAAGTTAAAATAAGGCTAGTCCG\")","v":"CTTTATATATCTTGTGGAAAGGACGAAACACCGTACACCCATGACCAGGGGGGTTTTAGAGCTAGAAATAGCAAGTTAAAATAAGGCTAGTCCG"},"RBP",94]
["PELP1_04","PELP1","CCCTGAAGCATTCCCGCCG","CTTTATATATCTTGTGGAAAGGACGAAACACCGCCCTGAAGCATTCCCGCCGGTTTTAGAGCTAGAAATAGCAAGTTAAAATAAGGCTAGTCCG","RBP",94]
["PELP1_05","PELP1","TCACAGGACCAGGAACAGG","CTTTATATATCTTGTGGAAAGGACGAAACACCGTCACAGGACCAGGAACAGGGTTTTAGAGCTAGAAATAGCAAGTTAAAATAAGGCTAGTCCG","RBP",94]
["PELP1_09","PELP1","GTCCACTATGACAAGGAGG","CTTTATATATCTTGTGGAAAGGACGAAACACCGGTCCACTATGACAAGGAGGGTTTTAGAGCTAGAAATAGCAAGTTAAAATAAGGCTAGTCCG","RBP",94]
["PIWIL1_03","PIWIL1","GCACCTTTAAGAAAGCCGA","CTTTATATATCTTGTGGAAAGGACGAAACACCGGCACCTTTAAGAAAGCCGAGTTTTAGAGCTAGAAATAGCAAGTTAAAATAAGGCTAGTCCG","RBP",94]
["PIWIL1_05","PIWIL1","AGTAAGACCCGGAATGGAG","CTTTATATATCTTGTGGAAAGGACGAAACACCGAGTAAGACCCGGAATGGAGGTTTTAGAGCTAGAAATAGCAAGTTAAAATAAGGCTAGTCCG","RBP",94]
["PIWIL1_06","PIWIL1","ACCTGGTTATATTCAGCCT","CTTTATATATCTTGTGGAAAGGACGAAACACCGACCTGGTTATATTCAGCCTGTTTTAGAGCTAGAAATAGCAAGTTAAAATAAGGCTAGTCCG","RBP",94]
["PIWIL1_07","PIWIL1","CCTCAGCCGCCACCAGCAG","CTTTATATATCTTGTGGAAAGGACGAAACACCGCCTCAGCCGCCACCAGCAGGTTTTAGAGCTAGAAATAGCAAGTTAAAATAAGGCTAGTCCG","RBP",94]
["PIWIL1_10","PIWIL1","ATGTCATCTATGACAACAG","CTTTATATATCTTGTGGAAAGGACGAAACACCGATGTCATCTATGACAACAGGTTTTAGAGCTAGAAATAGCAAGTTAAAATAAGGCTAGTCCG","RBP",94]
["POLR2I_01","POLR2I","AACAAGATCACGCACGAAG","CTTTATATATCTTGTGGAAAGGACGAAACACCGAACAAGATCACGCACGAAGGTTTTAGAGCTAGAAATAGCAAGTTAAAATAAGGCTAGTCCG","RBP",{"$f":"LEN(D971)","v":94}]
["POLR2I_03","POLR2I","CCAGGACCCCACGTTGCCG","CTTTATATATCTTGTGGAAAGGACGAAACACCGCCAGGACCCCACGTTGCCGGTTTTAGAGCTAGAAATAGCAAGTTAAAATAAGGCTAGTCCG","RBP",94]
["POLR2I_06","POLR2I","TTCCAGTCACACAGTGCGC","CTTTATATATCTTGTGGAAAGGACGAAACACCGTTCCAGTCACACAGTGCGCGTTTTAGAGCTAGAAATAGCAAGTTAAAATAAGGCTAGTCCG","RBP",94]
["POLR2I_07","POLR2I","CTCAGGTGCGGCCACAAGG","CTTTATATATCTTGTGGAAAGGACGAAACACCGCTCAGGTGCGGCCACAAGGGTTTTAGAGCTAGAAATAGCAAGTTAAAATAAGGCTAGTCCG","RBP",94]
["POLR2I_08","POLR2I","CACCGCGTAGAGCAGAATG","CTTTATATATCTTGTGGAAAGGACGAAACACCGCACCGCGTAGAGCAGAATGGTTTTAGAGCTAGAAATAGCAAGTTAAAATAAGGCTAGTCCG","RBP",94]
["PPARGC1B_01","PPARGC1B","TGCAGCTCCCCAAAGCAGG","CTTTATATATCTTGTGGAAAGGACGAAACACCGTGCAGCTCCCCAAAGCAGGGTTTTAGAGCTAGAAATAGCAAGTTAAAATAAGGCTAGTCCG","RBP",94]
["PPARGC1B_03","PPARGC1B","TACTCAGGGCTCTTGCAGG","CTTTATATATCTTGTGGAAAGGACGAAACACCGTACTCAGGGCTCTTGCAGGGTTTTAGAGCTAGAAATAGCAAGTTAAAATAAGGCTAGTCCG","RBP",94]
["PPARGC1B_04","PPARGC1B","CTCCAGCCGCAGTGGGCGC","CTTTATATATCTTGTGGAAAGGACGAAACACCGCTCCAGCCGCAGTGGGCGCGTTTTAGAGCTAGAAATAGCAAGTTAAAATAAGGCTAGTCCG","RBP",94]
["PPARGC1B_06","PPARGC1B","CTGACAGATGTGAGAGCAG","CTTTATATATCTTGTGGAAAGGACGAAACACCGCTGACAGATGTGAGAGCAGGTTTTAGAGCTAGAAATAGCAAGTTAAAATAAGGCTAGTCCG","RBP",94]
["PPARGC1B_09","PPARGC1B","ATCTGCAAATGTCAGCCAG","CTTTATATATCTTGTGGAAAGGACGAAACACCGATCTGCAAATGTCAGCCAGGTTTTAGAGCTAGAAATAGCAAGTTAAAATAAGGCTAGTCCG","RBP",94]
["PPRC1_01","PPRC1","GCAGTGAGACAGCAGCCAG","CTTTATATATCTTGTGGAAAGGACGAAACACCGGCAGTGAGACAGCAGCCAGGTTTTAGAGCTAGAAATAGCAAGTTAAAATAAGGCTAGTCCG","RBP",94]
["PPRC1_02","PPRC1","CAAGATCAAGACCACGCTG","CTTTATATATCTTGTGGAAAGGACGAAACACCGCAAGATCAAGACCACGCTGGTTTTAGAGCTAGAAATAGCAAGTTAAAATAAGGCTAGTCCG","RBP",94]
["PPRC1_05","PPRC1","AGGCCCGAGCCCAAGCCCG","CTTTATATATCTTGTGGAAAGGACGAAACACCGAGGCCCGAGCCCAAGCCCGGTTTTAGAGCTAGAAATAGCAAGTTAAAATAAGGCTAGTCCG","RBP",94]
["PPRC1_08","PPRC1","ACGGGACAGCATCAACTGG","CTTTATATATCTTGTGGAAAGGACGAAACACCGACGGGACAGCATCAACTGGGTTTTAGAGCTAGAAATAGCAAGTTAAAATAAGGCTAGTCCG","RBP",94]
["PPRC1_10","PPRC1","CATCCAGGAGCACAGGCCG","CTTTATATATCTTGTGGAAAGGACGAAACACCGCATCCAGGAGCACAGGCCGGTTTTAGAGCTAGAAATAGCAAGTTAAAATAAGGCTAGTCCG","RBP",94]
["PRPF38A_01","PRPF38A","TATTTCTTACCTGTAGTCG","CTTTATATATCTTGTGGAAAGGACGAAACACCGTATTTCTTACCTGTAGTCGGTTTTAGAGCTAGAAATAGCAAGTTAAAATAAGGCTAGTCCG","RBP",94]
["PRPF38A_02","PRPF38A","TCAAGGTTAAACACAGAAA","CTTTATATATCTTGTGGAAAGGACGAAACACCGTCAAGGTTAAACACAGAAAGTTTTAGAGCTAGAAATAGCAAGTTAAAATAAGGCTAGTCCG","RBP",94]
["PRPF38A_04","PRPF38A","CTTGTAGTCGATAAAGCCA","CTTTATATATCTTGTGGAAAGGACGAAACACCGCTTGTAGTCGATAAAGCCAGTTTTAGAGCTAGAAATAGCAAGTTAAAATAAGGCTAGTCCG","RBP",94]
["PRPF38A_05","PRPF38A","CAGGTATGTCCGCATGCTG","CTTTATATATCTTGTGGAAAGGACGAAACACCGCAGGTATGTCCGCATGCTGGTTTTAGAGCTAGAAATAGCAAGTTAAAATAAGGCTAGTCCG","RBP",94]
["PRPF38A_10","PRPF38A","TCCCACACTGCGCTACAGG","CTTTATATATCTTGTGGAAAGGACGAAACACCGTCCCACACTGCGCTACAGGGTTTTAGAGCTAGAAATAGCAAGTTAAAATAAGGCTAGTCCG","RBP",94]
["PRPF38B_02","PRPF38B","AGTAGAAGTCATCATCGGG","CTTTATATATCTTGTGGAAAGGACGAAACACCGAGTAGAAGTCATCATCGGGGTTTTAGAGCTAGAAATAGCAAGTTAAAATAAGGCTAGTCCG","RBP",94]
["PRPF38B_03","PRPF38B","AGTCCCACAGATCTGTAGG","CTTTATATATCTTGTGGAAAGGACGAAACACCGAGTCCCACAGATCTGTAGGGTTTTAGAGCTAGAAATAGCAAGTTAAAATAAGGCTAGTCCG","RBP",94]
["PRPF38B_06","PRPF38B","AGAGCGTGAAGCCAAAGAA","CTTTATATATCTTGTGGAAAGGACGAAACACCGAGAGCGTGAAGCCAAAGAAGTTTTAGAGCTAGAAATAGCAAGTTAAAATAAGGCTAGTCCG","RBP",94]
["PRPF38B_09","PRPF38B","CTGTAGGACCTAGATGTGA","CTTTATATATCTTGTGGAAAGGACGAAACACCGCTGTAGGACCTAGATGTGAGTTTTAGAGCTAGAAATAGCAAGTTAAAATAAGGCTAGTCCG","RBP",94]
["PRPF38B_10","PRPF38B","GATCCCGAAGTATTGACCG","CTTTATATATCTTGTGGAAAGGACGAAACACCGGATCCCGAAGTATTGACCGGTTTTAGAGCTAGAAATAGCAAGTTAAAATAAGGCTAGTCCG","RBP",94]
["PRPF40B_03","PRPF40B","CAGTGCCTAGCTCCAGAGC","CTTTATATATCTTGTGGAAAGGACGAAACACCGCAGTGCCTAGCTCCAGAGCGTTTTAGAGCTAGAAATAGCAAGTTAAAATAAGGCTAGTCCG","RBP",94]
["PRPF40B_06","PRPF40B","TCTCCGGCCCCCCAAGCGG","CTTTATATATCTTGTGGAAAGGACGAAACACCGTCTCCGGCCCCCCAAGCGGGTTTTAGAGCTAGAAATAGCAAGTTAAAATAAGGCTAGTCCG","RBP",94]
["PRPF40B_07","PRPF40B","ACAGTTCTAGTCAAACAAG","CTTTATATATCTTGTGGAAAGGACGAAACACCGACAGTTCTAGTCAAACAAGGTTTTAGAGCTAGAAATAGCAAGTTAAAATAAGGCTAGTCCG","RBP",94]
["PRPF40B_08","PRPF40B","CAACAACGCAAGAATCGGG","CTTTATATATCTTGTGGAAAGGACGAAACACCGCAACAACGCAAGAATCGGGGTTTTAGAGCTAGAAATAGCAAGTTAAAATAAGGCTAGTCCG","RBP",94]
["PRPF40B_09","PRPF40B","TTCCTGCAGCAGCTGGAGG","CTTTATATATCTTGTGGAAAGGACGAAACACCGTTCCTGCAGCAGCTGGAGGGTTTTAGAGCTAGAAATAGCAAGTTAAAATAAGGCTAGTCCG","RBP",94]
["PRPF4_03","PRPF4","GAGCCATCAGCCGCACAAG","CTTTATATATCTTGTGGAAAGGACGAAACACCGGAGCCATCAGCCGCACAAGGTTTTAGAGCTAGAAATAGCAAGTTAAAATAAGGCTAGTCCG","RBP",94]
["PRPF4_05","PRPF4","GGACCAAATAGCTTGAAGG","CTTTATATATCTTGTGGAAAGGACGAAACACCGGGACCAAATAGCTTGAAGGGTTTTAGAGCTAGAAATAGCAAGTTAAAATAAGGCTAGTCCG","RBP",94]
["PRPF4_07","PRPF4","ATCACATTGCAACCGGCAG","CTTTATATATCTTGTGGAAAGGACGAAACACCGATCACATTGCAACCGGCAGGTTTTAGAGCTAGAAATAGCAAGTTAAAATAAGGCTAGTCCG","RBP",94]
["PRPF4_08","PRPF4","GCAATGAAACGCTTGGAAG","CTTTATATATCTTGTGGAAAGGACGAAACACCGGCAATGAAACGCTTGGAAGGTTTTAGAGCTAGAAATAGCAAGTTAAAATAAGGCTAGTCCG","RBP",94]
["PRPF4_10","PRPF4","ATTGGCTGAGTTTGAGAGA","CTTTATATATCTTGTGGAAAGGACGAAACACCGATTGGCTGAGTTTGAGAGAGTTTTAGAGCTAGAAATAGCAAGTTAAAATAAGGCTAGTCCG","RBP",94]
["PRPF8_02","PRPF8","TGTCAGCATAGTCCAAGGG","CTTTATATATCTTGTGGAAAGGACGAAACACCGTGTCAGCATAGTCCAAGGGGTTTTAGAGCTAGAAATAGCAAGTTAAAATAAGGCTAGTCCG","RBP",94]
["PRPF8_03","PRPF8","TAGAACCAGTCCAACACAG","CTTTATATATCTTGTGGAAAGGACGAAACACCGTAGAACCAGTCCAACACAGGTTTTAGAGCTAGAAATAGCAAGTTAAAATAAGGCTAGTCCG","RBP",94]
["PRPF8_04","PRPF8","GGTGTAGAACACAACCGGG","CTTTATATATCTTGTGGAAAGGACGAAACACCGGGTGTAGAACACAACCGGGGTTTTAGAGCTAGAAATAGCAAGTTAAAATAAGGCTAGTCCG","RBP",94]
["PRPF8_06","PRPF8","CCAGGTCGACACTCAAAGG","CTTTATATATCTTGTGGAAAGGACGAAACACCGCCAGGTCGACACTCAAAGGGTTTTAGAGCTAGAAATAGCAAGTTAAAATAAGGCTAGTCCG","RBP",94]
["PRPF8_10","PRPF8","CGGCACCATCACAATGCAG","CTTTATATATCTTGTGGAAAGGACGAAACACCGCGGCACCATCACAATGCAGGTTTTAGAGCTAGAAATAGCAAGTTAAAATAAGGCTAGTCCG","RBP",94]
["PSMD6_03","PSMD6","CTGCGCGATACGCAAGTCG","CTTTATATATCTTGTGGAAAGGACGAAACACCGCTGCGCGATACGCAAGTCGGTTTTAGAGCTAGAAATAGCAAGTTAAAATAAGGCTAGTCCG","RBP",94]
["PSMD6_04","PSMD6","TCCCGGAGGTGTCCAGCAG","CTTTATATATCTTGTGGAAAGGACGAAACACCGTCCCGGAGGTGTCCAGCAGGTTTTAGAGCTAGAAATAGCAAGTTAAAATAAGGCTAGTCCG","RBP",94]
["PSMD6_06","PSMD6","ACTTGGTTACGACCGGCTG","CTTTATATATCTTGTGGAAAGGACGAAACACCGACTTGGTTACGACCGGCTGGTTTTAGAGCTAGAAATAGCAAGTTAAAATAAGGCTAGTCCG","RBP",94]
["PSMD6_07","PSMD6","ATAGCTTAATAGAAGAAGG","CTTTATATATCTTGTGGAAAGGACGAAACACCGATAGCTTAATAGAAGAAGGGTTTTAGAGCTAGAAATAGCAAGTTAAAATAAGGCTAGTCCG","RBP",94]
["PSMD6_08","PSMD6","CTAACAGGAAGGCATGCGA","CTTTATATATCTTGTGGAAAGGACGAAACACCGCTAACAGGAAGGCATGCGAGTTTTAGAGCTAGAAATAGCAAGTTAAAATAAGGCTAGTCCG","RBP",94]
["PSPC1_01","PSPC1","ATCCGACACAGAGAACAGG","CTTTATATATCTTGTGGAAAGGACGAAACACCGATCCGACACAGAGAACAGGGTTTTAGAGCTAGAAATAGCAAGTTAAAATAAGGCTAGTCCG","RBP",94]
["PSPC1_03","PSPC1","GCGGATGAAGCCGAAGCCA","CTTTATATATCTTGTGGAAAGGACGAAACACCGGCGGATGAAGCCGAAGCCAGTTTTAGAGCTAGAAATAGCAAGTTAAAATAAGGCTAGTCCG","RBP",94]
["PSPC1_04","PSPC1","TAGCGAAGCGAATCCGTAG","CTTTATATATCTTGTGGAAAGGACGAAACACCGTAGCGAAGCGAATCCGTAGGTTTTAGAGCTAGAAATAGCAAGTTAAAATAAGGCTAGTCCG","RBP",94]
["PSPC1_06","PSPC1","TCATACCCATCATTGGAGG","CTTTATATATCTTGTGGAAAGGACGAAACACCGTCATACCCATCATTGGAGGGTTTTAGAGCTAGAAATAGCAAGTTAAAATAAGGCTAGTCCG","RBP",94]
["PSPC1_09","PSPC1","CAGATTTCCCACGAAGAGG","CTTTATATATCTTGTGGAAAGGACGAAACACCGCAGATTTCCCACGAAGAGGGTTTTAGAGCTAGAAATAGCAAGTTAAAATAAGGCTAGTCCG","RBP",94]
["PTBP1_01","PTBP1","AGGCCCTCAGTCTCCGAGG","CTTTATATATCTTGTGGAAAGGACGAAACACCGAGGCCCTCAGTCTCCGAGGGTTTTAGAGCTAGAAATAGCAAGTTAAAATAAGGCTAGTCCG","RBP",94]
["PTBP1_02","PTBP1","CCATGGTCTGGTCCAGCGA","CTTTATATATCTTGTGGAAAGGACGAAACACCGCCATGGTCTGGTCCAGCGAGTTTTAGAGCTAGAAATAGCAAGTTAAAATAAGGCTAGTCCG","RBP",94]
["PTBP1_05","PTBP1","GGGGGAAGTCATCTCCCTG","CTTTATATATCTTGTGGAAAGGACGAAACACCGGGGGGAAGTCATCTCCCTGGTTTTAGAGCTAGAAATAGCAAGTTAAAATAAGGCTAGTCCG","RBP",94]
["PTBP1_06","PTBP1","GACAGCTCTCCCAACCAGG","CTTTATATATCTTGTGGAAAGGACGAAACACCGGACAGCTCTCCCAACCAGGGTTTTAGAGCTAGAAATAGCAAGTTAAAATAAGGCTAGTCCG","RBP",94]
["PTBP1_09","PTBP1","AACGCCCTAGTGCAGATGG","CTTTATATATCTTGTGGAAAGGACGAAACACCGAACGCCCTAGTGCAGATGGGTTTTAGAGCTAGAAATAGCAAGTTAAAATAAGGCTAGTCCG","RBP",94]
["PTBP3_01","PTBP3","GGAAGGATGGCCATTCCTG",{"$f":"CONCATENATE(\"CTTTATATATCTTGTGGAAAGGACGAAACACCG\",C1026,\"GTTTTAGAGCTAGAAATAGCAAGTTAAAATAAGGCTAGTCCG\")","v":"CTTTATATATCTTGTGGAAAGGACGAAACACCGGGAAGGATGGCCATTCCTGGTTTTAGAGCTAGAAATAGCAAGTTAAAATAAGGCTAGTCCG"},"RBP",94]
["PTBP3_03","PTBP3","ATGTTGGAAAGATGCAGAG","CTTTATATATCTTGTGGAAAGGACGAAACACCGATGTTGGAAAGATGCAGAGGTTTTAGAGCTAGAAATAGCAAGTTAAAATAAGGCTAGTCCG","RBP",94]
["PTBP3_06","PTBP3","TGAGAAGGAAACTCTGAGG","CTTTATATATCTTGTGGAAAGGACGAAACACCGTGAGAAGGAAACTCTGAGGGTTTTAGAGCTAGAAATAGCAAGTTAAAATAAGGCTAGTCCG","RBP",94]
["PTBP3_09","PTBP3","TGAGGAAATCCAATGGCTG","CTTTATATATCTTGTGGAAAGGACGAAACACCGTGAGGAAATCCAATGGCTGGTTTTAGAGCTAGAAATAGCAAGTTAAAATAAGGCTAGTCCG","RBP",94]
["PTBP3_10","PTBP3","AATGCCTTGGTTCAGATGG","CTTTATATATCTTGTGGAAAGGACGAAACACCGAATGCCTTGGTTCAGATGGGTTTTAGAGCTAGAAATAGCAAGTTAAAATAAGGCTAGTCCG","RBP",94]
["PUF60_01","PUF60","GCAGCAGCTGCCACAGCAG","CTTTATATATCTTGTGGAAAGGACGAAACACCGGCAGCAGCTGCCACAGCAGGTTTTAGAGCTAGAAATAGCAAGTTAAAATAAGGCTAGTCCG","RBP",94]
["PUF60_06","PUF60","AAGCTGCTCCGCAAGCAGG","CTTTATATATCTTGTGGAAAGGACGAAACACCGAAGCTGCTCCGCAAGCAGGGTTTTAGAGCTAGAAATAGCAAGTTAAAATAAGGCTAGTCCG","RBP",94]
["PUF60_07","PUF60","GGGACCTCATACTCCACGA","CTTTATATATCTTGTGGAAAGGACGAAACACCGGGGACCTCATACTCCACGAGTTTTAGAGCTAGAAATAGCAAGTTAAAATAAGGCTAGTCCG","RBP",94]
["PUF60_08","PUF60","CTGACGCCCGAGCAGCAGG","CTTTATATATCTTGTGGAAAGGACGAAACACCGCTGACGCCCGAGCAGCAGGGTTTTAGAGCTAGAAATAGCAAGTTAAAATAAGGCTAGTCCG","RBP",94]
["PUF60_09","PUF60","CTTGCGGCCAGCAAACCAG","CTTTATATATCTTGTGGAAAGGACGAAACACCGCTTGCGGCCAGCAAACCAGGTTTTAGAGCTAGAAATAGCAAGTTAAAATAAGGCTAGTCCG","RBP",{"$f":"LEN(D1035)","v":94}]
["PUM1_01","PUM1","AAGCTAGGAGATTTGAAGG","CTTTATATATCTTGTGGAAAGGACGAAACACCGAAGCTAGGAGATTTGAAGGGTTTTAGAGCTAGAAATAGCAAGTTAAAATAAGGCTAGTCCG","RBP",94]
["PUM1_02","PUM1","CAGCAGCAGCAGTATGCAC","CTTTATATATCTTGTGGAAAGGACGAAACACCGCAGCAGCAGCAGTATGCACGTTTTAGAGCTAGAAATAGCAAGTTAAAATAAGGCTAGTCCG","RBP",94]
["PUM1_05","PUM1","CTGAATAATCAAACTGAAG","CTTTATATATCTTGTGGAAAGGACGAAACACCGCTGAATAATCAAACTGAAGGTTTTAGAGCTAGAAATAGCAAGTTAAAATAAGGCTAGTCCG","RBP",94]
["PUM1_06","PUM1","CAAACTCCAACACTGGCAG","CTTTATATATCTTGTGGAAAGGACGAAACACCGCAAACTCCAACACTGGCAGGTTTTAGAGCTAGAAATAGCAAGTTAAAATAAGGCTAGTCCG","RBP",94]
["PUM1_07","PUM1","AGGTGTGCACCATGAACGA","CTTTATATATCTTGTGGAAAGGACGAAACACCGAGGTGTGCACCATGAACGAGTTTTAGAGCTAGAAATAGCAAGTTAAAATAAGGCTAGTCCG","RBP",94]
["PUS7L_02","PUS7L","CTGCATAACTAAAATCCGA","CTTTATATATCTTGTGGAAAGGACGAAACACCGCTGCATAACTAAAATCCGAGTTTTAGAGCTAGAAATAGCAAGTTAAAATAAGGCTAGTCCG","RBP",94]
["PUS7L_06","PUS7L","ATCCTTGACAAAAACCAGA","CTTTATATATCTTGTGGAAAGGACGAAACACCGATCCTTGACAAAAACCAGAGTTTTAGAGCTAGAAATAGCAAGTTAAAATAAGGCTAGTCCG","RBP",94]
["PUS7L_07","PUS7L","CTTCTTGGCATTCAGAAAG","CTTTATATATCTTGTGGAAAGGACGAAACACCGCTTCTTGGCATTCAGAAAGGTTTTAGAGCTAGAAATAGCAAGTTAAAATAAGGCTAGTCCG","RBP",94]
["PUS7L_08","PUS7L","GAAGAACAAAGTAGGGCAG","CTTTATATATCTTGTGGAAAGGACGAAACACCGGAAGAACAAAGTAGGGCAGGTTTTAGAGCTAGAAATAGCAAGTTAAAATAAGGCTAGTCCG","RBP",94]
["PUS7L_10","PUS7L","ACCTGGTAACTGAAGAGGA","CTTTATATATCTTGTGGAAAGGACGAAACACCGACCTGGTAACTGAAGAGGAGTTTTAGAGCTAGAAATAGCAAGTTAAAATAAGGCTAGTCCG","RBP",94]
["QARS_01","QARS","GCAAGGGCAAGTTTTCAGA","CTTTATATATCTTGTGGAAAGGACGAAACACCGGCAAGGGCAAGTTTTCAGAGTTTTAGAGCTAGAAATAGCAAGTTAAAATAAGGCTAGTCCG","RBP",94]
["QARS_02","QARS","CTTCTGCTCGCTCAGGCCG","CTTTATATATCTTGTGGAAAGGACGAAACACCGCTTCTGCTCGCTCAGGCCGGTTTTAGAGCTAGAAATAGCAAGTTAAAATAAGGCTAGTCCG","RBP",94]
["QARS_05","QARS","CAGGGACTGGGATGACCCA","CTTTATATATCTTGTGGAAAGGACGAAACACCGCAGGGACTGGGATGACCCAGTTTTAGAGCTAGAAATAGCAAGTTAAAATAAGGCTAGTCCG","RBP",94]
["QARS_08","QARS","GCTAGAAGAAACAGACCGG","CTTTATATATCTTGTGGAAAGGACGAAACACCGGCTAGAAGAAACAGACCGGGTTTTAGAGCTAGAAATAGCAAGTTAAAATAAGGCTAGTCCG","RBP",94]
["QARS_09","QARS","ACCCCAGAGCAGATTGAGG","CTTTATATATCTTGTGGAAAGGACGAAACACCGACCCCAGAGCAGATTGAGGGTTTTAGAGCTAGAAATAGCAAGTTAAAATAAGGCTAGTCCG","RBP",94]
["RAE1_02","RAE1","AGCCGAAGAGCTAAAGCCC","CTTTATATATCTTGTGGAAAGGACGAAACACCGAGCCGAAGAGCTAAAGCCCGTTTTAGAGCTAGAAATAGCAAGTTAAAATAAGGCTAGTCCG","RBP",94]
["RAE1_04","RAE1","GTACCGCATAAATGTCCTG","CTTTATATATCTTGTGGAAAGGACGAAACACCGGTACCGCATAAATGTCCTGGTTTTAGAGCTAGAAATAGCAAGTTAAAATAAGGCTAGTCCG","RBP",94]
["RAE1_05","RAE1","CAAGCGATACAGATCGCAC","CTTTATATATCTTGTGGAAAGGACGAAACACCGCAAGCGATACAGATCGCACGTTTTAGAGCTAGAAATAGCAAGTTAAAATAAGGCTAGTCCG","RBP",94]
["RAE1_06","RAE1","TGCCCTGGGAAGTATCGAG","CTTTATATATCTTGTGGAAAGGACGAAACACCGTGCCCTGGGAAGTATCGAGGTTTTAGAGCTAGAAATAGCAAGTTAAAATAAGGCTAGTCCG","RBP",94]
["RAE1_07","RAE1","TCCAGCAGACATCAAGCAC","CTTTATATATCTTGTGGAAAGGACGAAACACCGTCCAGCAGACATCAAGCACGTTTTAGAGCTAGAAATAGCAAGTTAAAATAAGGCTAGTCCG","RBP",94]
["RALY_02","RALY","GGGCTCCTGACACACAGCG","CTTTATATATCTTGTGGAAAGGACGAAACACCGGGGCTCCTGACACACAGCGGTTTTAGAGCTAGAAATAGCAAGTTAAAATAAGGCTAGTCCG","RBP",94]
["RALY_04","RALY","CGCAGCGATCTGCTCCAAG","CTTTATATATCTTGTGGAAAGGACGAAACACCGCGCAGCGATCTGCTCCAAGGTTTTAGAGCTAGAAATAGCAAGTTAAAATAAGGCTAGTCCG","RBP",94]
["RALY_06","RALY","TAAGCCTGACAGACCCAAG","CTTTATATATCTTGTGGAAAGGACGAAACACCGTAAGCCTGACAGACCCAAGGTTTTAGAGCTAGAAATAGCAAGTTAAAATAAGGCTAGTCCG","RBP",94]
["RALY_07","RALY","CTGGTGAAGAAATCAGATG","CTTTATATATCTTGTGGAAAGGACGAAACACCGCTGGTGAAGAAATCAGATGGTTTTAGAGCTAGAAATAGCAAGTTAAAATAAGGCTAGTCCG","RBP",94]
["RALY_10","RALY","ACAGGCTCTTCGACTACCG","CTTTATATATCTTGTGGAAAGGACGAAACACCGACAGGCTCTTCGACTACCGGTTTTAGAGCTAGAAATAGCAAGTTAAAATAAGGCTAGTCCG","RBP",94]
["RAN_02","RAN","CTACTTTGAACTGGACCTG","CTTTATATATCTTGTGGAAAGGACGAAACACCGCTACTTTGAACTGGACCTGGTTTTAGAGCTAGAAATAGCAAGTTAAAATAAGGCTAGTCCG","RBP",94]
["RAN_07","RAN","TTTCCGTTTCAGCCACCTT","CTTTATATATCTTGTGGAAAGGACGAAACACCGTTTCCGTTTCAGCCACCTTGTTTTAGAGCTAGAAATAGCAAGTTAAAATAAGGCTAGTCCG","RBP",94]
["RAN_08","RAN","AATTCGGTGGACTGAGAGA","CTTTATATATCTTGTGGAAAGGACGAAACACCGAATTCGGTGGACTGAGAGAGTTTTAGAGCTAGAAATAGCAAGTTAAAATAAGGCTAGTCCG","RBP",94]
["RAN_09","RAN","ACAACTGCTCTCCCGGATG","CTTTATATATCTTGTGGAAAGGACGAAACACCGACAACTGCTCTCCCGGATGGTTTTAGAGCTAGAAATAGCAAGTTAAAATAAGGCTAGTCCG","RBP",94]
["RAN_10","RAN","AATTTGAGAAGAAGTATGT","CTTTATATATCTTGTGGAAAGGACGAAACACCGAATTTGAGAAGAAGTATGTGTTTTAGAGCTAGAAATAGCAAGTTAAAATAAGGCTAGTCCG","RBP",94]
["RARS2_03","RARS2","CTCTTCTCACCTGTGGAGG","CTTTATATATCTTGTGGAAAGGACGAAACACCGCTCTTCTCACCTGTGGAGGGTTTTAGAGCTAGAAATAGCAAGTTAAAATAAGGCTAGTCCG","RBP",94]
["RARS2_06","RARS2","AACAGAGAGCTCTTAACAA","CTTTATATATCTTGTGGAAAGGACGAAACACCGAACAGAGAGCTCTTAACAAGTTTTAGAGCTAGAAATAGCAAGTTAAAATAAGGCTAGTCCG","RBP",94]
["RARS2_07","RARS2","GTACCCCAGCCACTTCAGG","CTTTATATATCTTGTGGAAAGGACGAAACACCGGTACCCCAGCCACTTCAGGGTTTTAGAGCTAGAAATAGCAAGTTAAAATAAGGCTAGTCCG","RBP",94]
["RARS2_08","RARS2","ATCTCAGGACTTTCAACCC","CTTTATATATCTTGTGGAAAGGACGAAACACCGATCTCAGGACTTTCAACCCGTTTTAGAGCTAGAAATAGCAAGTTAAAATAAGGCTAGTCCG","RBP",94]
["RARS2_10","RARS2","TACCTGGCAAGCAATAGCG","CTTTATATATCTTGTGGAAAGGACGAAACACCGTACCTGGCAAGCAATAGCGGTTTTAGAGCTAGAAATAGCAAGTTAAAATAAGGCTAGTCCG","RBP",94]
["RBM24_01","RBM24","GTGTAATCAATGTAAGGGG","CTTTATATATCTTGTGGAAAGGACGAAACACCGGTGTAATCAATGTAAGGGGGTTTTAGAGCTAGAAATAGCAAGTTAAAATAAGGCTAGTCCG","RBP",94]
["RBM24_02","RBM24","CAACAGCGCGCTTAACAAC","CTTTATATATCTTGTGGAAAGGACGAAACACCGCAACAGCGCGCTTAACAACGTTTTAGAGCTAGAAATAGCAAGTTAAAATAAGGCTAGTCCG","RBP",94]
["RBM24_07","RBM24","GACCTCGAAGTACTTGCGC","CTTTATATATCTTGTGGAAAGGACGAAACACCGGACCTCGAAGTACTTGCGCGTTTTAGAGCTAGAAATAGCAAGTTAAAATAAGGCTAGTCCG","RBP",94]
["RBM24_09","RBM24","TACCTTTGCAGTTAAAAGG","CTTTATATATCTTGTGGAAAGGACGAAACACCGTACCTTTGCAGTTAAAAGGGTTTTAGAGCTAGAAATAGCAAGTTAAAATAAGGCTAGTCCG","RBP",94]
["RBM24_10","RBM24","CACCAAGATCTTCGTCGGG","CTTTATATATCTTGTGGAAAGGACGAAACACCGCACCAAGATCTTCGTCGGGGTTTTAGAGCTAGAAATAGCAAGTTAAAATAAGGCTAGTCCG","RBP",94]
["RBM27_03","RBM27","AAAGTGAAGACAAAAACGG","CTTTATATATCTTGTGGAAAGGACGAAACACCGAAAGTGAAGACAAAAACGGGTTTTAGAGCTAGAAATAGCAAGTTAAAATAAGGCTAGTCCG","RBP",94]
["RBM27_04","RBM27","CTCCTTCAACAGTGCACGG","CTTTATATATCTTGTGGAAAGGACGAAACACCGCTCCTTCAACAGTGCACGGGTTTTAGAGCTAGAAATAGCAAGTTAAAATAAGGCTAGTCCG","RBP",94]
["RBM27_05","RBM27","AACGAGCTGCCAACAGAGG","CTTTATATATCTTGTGGAAAGGACGAAACACCGAACGAGCTGCCAACAGAGGGTTTTAGAGCTAGAAATAGCAAGTTAAAATAAGGCTAGTCCG","RBP",94]
["RBM27_07","RBM27","GTATTTCAGGAGCCAGCAG","CTTTATATATCTTGTGGAAAGGACGAAACACCGGTATTTCAGGAGCCAGCAGGTTTTAGAGCTAGAAATAGCAAGTTAAAATAAGGCTAGTCCG","RBP",94]
["RBM27_10","RBM27","CAATATCTTACCAATGAGG","CTTTATATATCTTGTGGAAAGGACGAAACACCGCAATATCTTACCAATGAGGGTTTTAGAGCTAGAAATAGCAAGTTAAAATAAGGCTAGTCCG","RBP",94]
["RBMS3_04","RBMS3","ATAGTAGTAAGTGTACTGG","CTTTATATATCTTGTGGAAAGGACGAAACACCGATAGTAGTAAGTGTACTGGGTTTTAGAGCTAGAAATAGCAAGTTAAAATAAGGCTAGTCCG","RBP",94]
["RBMS3_05","RBMS3","CACAGCAAAGGCTCACTGG","CTTTATATATCTTGTGGAAAGGACGAAACACCGCACAGCAAAGGCTCACTGGGTTTTAGAGCTAGAAATAGCAAGTTAAAATAAGGCTAGTCCG","RBP",94]
["RBMS3_07","RBMS3","ACAGCAGCAACAACAGCAG","CTTTATATATCTTGTGGAAAGGACGAAACACCGACAGCAGCAACAACAGCAGGTTTTAGAGCTAGAAATAGCAAGTTAAAATAAGGCTAGTCCG","RBP",94]
["RBMS3_08","RBMS3","CAGCAGCAACAGATAGCAG","CTTTATATATCTTGTGGAAAGGACGAAACACCGCAGCAGCAACAGATAGCAGGTTTTAGAGCTAGAAATAGCAAGTTAAAATAAGGCTAGTCCG","RBP",94]
["RBMS3_10","RBMS3","TCTTGCCAAAGGTACTCAG","CTTTATATATCTTGTGGAAAGGACGAAACACCGTCTTGCCAAAGGTACTCAGGTTTTAGAGCTAGAAATAGCAAGTTAAAATAAGGCTAGTCCG","RBP",94]
["RINT1_02","RINT1","TTTCAGAGATGGTTGACGG","CTTTATATATCTTGTGGAAAGGACGAAACACCGTTTCAGAGATGGTTGACGGGTTTTAGAGCTAGAAATAGCAAGTTAAAATAAGGCTAGTCCG","RBP",94]
["RINT1_04","RINT1","TTGCCATCTCAGTCAGAGC","CTTTATATATCTTGTGGAAAGGACGAAACACCGTTGCCATCTCAGTCAGAGCGTTTTAGAGCTAGAAATAGCAAGTTAAAATAAGGCTAGTCCG","RBP",94]
["RINT1_06","RINT1","GACGAAAGGAAGAACCTCG","CTTTATATATCTTGTGGAAAGGACGAAACACCGGACGAAAGGAAGAACCTCGGTTTTAGAGCTAGAAATAGCAAGTTAAAATAAGGCTAGTCCG","RBP",94]
["RINT1_07","RINT1","CAACAGTTTGTGATTGAGG","CTTTATATATCTTGTGGAAAGGACGAAACACCGCAACAGTTTGTGATTGAGGGTTTTAGAGCTAGAAATAGCAAGTTAAAATAAGGCTAGTCCG","RBP",94]
["RINT1_10","RINT1","TTATGCCAGAATTTAACTG",{"$f":"CONCATENATE(\"CTTTATATATCTTGTGGAAAGGACGAAACACCG\",C1090,\"GTTTTAGAGCTAGAAATAGCAAGTTAAAATAAGGCTAGTCCG\")","v":"CTTTATATATCTTGTGGAAAGGACGAAACACCGTTATGCCAGAATTTAACTGGTTTTAGAGCTAGAAATAGCAAGTTAAAATAAGGCTAGTCCG"},"RBP",94]
["RNASEH1_02","RNASEH1","ACTGGAGAGGCTTACCCAG","CTTTATATATCTTGTGGAAAGGACGAAACACCGACTGGAGAGGCTTACCCAGGTTTTAGAGCTAGAAATAGCAAGTTAAAATAAGGCTAGTCCG","RBP",94]
["RNASEH1_03","RNASEH1","CCCGAACCCGCGAGAGCCG","CTTTATATATCTTGTGGAAAGGACGAAACACCGCCCGAACCCGCGAGAGCCGGTTTTAGAGCTAGAAATAGCAAGTTAAAATAAGGCTAGTCCG","RBP",94]
["RNASEH1_05","RNASEH1","CCGGCCGAGCAGGAAAACG","CTTTATATATCTTGTGGAAAGGACGAAACACCGCCGGCCGAGCAGGAAAACGGTTTTAGAGCTAGAAATAGCAAGTTAAAATAAGGCTAGTCCG","RBP",94]
["RNASEH1_08","RNASEH1","CATGTCCATCTCCATCCAG","CTTTATATATCTTGTGGAAAGGACGAAACACCGCATGTCCATCTCCATCCAGGTTTTAGAGCTAGAAATAGCAAGTTAAAATAAGGCTAGTCCG","RBP",94]
["RNASEH1_10","RNASEH1","AGGAATCGGCGTTTACTGG","CTTTATATATCTTGTGGAAAGGACGAAACACCGAGGAATCGGCGTTTACTGGGTTTTAGAGCTAGAAATAGCAAGTTAAAATAAGGCTAGTCCG","RBP",94]
["RPA2_03","RPA2","AACGCCTTCCCGCGAATGG","CTTTATATATCTTGTGGAAAGGACGAAACACCGAACGCCTTCCCGCGAATGGGTTTTAGAGCTAGAAATAGCAAGTTAAAATAAGGCTAGTCCG","RBP",94]
["RPA2_04","RPA2","CAGAGAAAAGTAGCCAGAG","CTTTATATATCTTGTGGAAAGGACGAAACACCGCAGAGAAAAGTAGCCAGAGGTTTTAGAGCTAGAAATAGCAAGTTAAAATAAGGCTAGTCCG","RBP",94]
["RPA2_05","RPA2","GTCACGATTCTCCGCAAAG","CTTTATATATCTTGTGGAAAGGACGAAACACCGGTCACGATTCTCCGCAAAGGTTTTAGAGCTAGAAATAGCAAGTTAAAATAAGGCTAGTCCG","RBP",94]
["RPA2_08","RPA2","ATCATCAGACATGCAGAGA","CTTTATATATCTTGTGGAAAGGACGAAACACCGATCATCAGACATGCAGAGAGTTTTAGAGCTAGAAATAGCAAGTTAAAATAAGGCTAGTCCG","RBP",{"$f":"LEN(D1099)","v":94}]
["RPA2_09","RPA2","TTTTCTGGAGCATGGGCAG","CTTTATATATCTTGTGGAAAGGACGAAACACCGTTTTCTGGAGCATGGGCAGGTTTTAGAGCTAGAAATAGCAAGTTAAAATAAGGCTAGTCCG","RBP",94]
["RPL11_01","RPL11","GGCCCCTCGAACTGTGCAG","CTTTATATATCTTGTGGAAAGGACGAAACACCGGGCCCCTCGAACTGTGCAGGTTTTAGAGCTAGAAATAGCAAGTTAAAATAAGGCTAGTCCG","RBP",94]
["RPL11_03","RPL11","TCACCTTTGGAAAACACAG","CTTTATATATCTTGTGGAAAGGACGAAACACCGTCACCTTTGGAAAACACAGGTTTTAGAGCTAGAAATAGCAAGTTAAAATAAGGCTAGTCCG","RBP",94]
["RPL11_04","RPL11","TCAAATATGACCCAAGCAT","CTTTATATATCTTGTGGAAAGGACGAAACACCGTCAAATATGACCCAAGCATGTTTTAGAGCTAGAAATAGCAAGTTAAAATAAGGCTAGTCCG","RBP",94]
["RPL11_09","RPL11","GTGAGCTGCTCCAACACCT","CTTTATATATCTTGTGGAAAGGACGAAACACCGGTGAGCTGCTCCAACACCTGTTTTAGAGCTAGAAATAGCAAGTTAAAATAAGGCTAGTCCG","RBP",94]
["RPL11_10","RPL11","CACAGAATCAGCAAAGAGG","CTTTATATATCTTGTGGAAAGGACGAAACACCGCACAGAATCAGCAAAGAGGGTTTTAGAGCTAGAAATAGCAAGTTAAAATAAGGCTAGTCCG","RBP",94]
["RPL13A_03","RPL13A","AGCTCACCTTGTCGTAGGG","CTTTATATATCTTGTGGAAAGGACGAAACACCGAGCTCACCTTGTCGTAGGGGTTTTAGAGCTAGAAATAGCAAGTTAAAATAAGGCTAGTCCG","RBP",94]
["RPL13A_06","RPL13A","CGTCTGAAGCCTACAAGAA","CTTTATATATCTTGTGGAAAGGACGAAACACCGCGTCTGAAGCCTACAAGAAGTTTTAGAGCTAGAAATAGCAAGTTAAAATAAGGCTAGTCCG","RBP",94]
["RPL13A_07","RPL13A","CGGAAGAAGAAACAGCTCA","CTTTATATATCTTGTGGAAAGGACGAAACACCGCGGAAGAAGAAACAGCTCAGTTTTAGAGCTAGAAATAGCAAGTTAAAATAAGGCTAGTCCG","RBP",94]
["RPL13A_08","RPL13A","TAACAGAAAAAGCGGATGG","CTTTATATATCTTGTGGAAAGGACGAAACACCGTAACAGAAAAAGCGGATGGGTTTTAGAGCTAGAAATAGCAAGTTAAAATAAGGCTAGTCCG","RBP",94]
["RPL13A_09","RPL13A","CTCCCTCTAGGCCGGAAGG","CTTTATATATCTTGTGGAAAGGACGAAACACCGCTCCCTCTAGGCCGGAAGGGTTTTAGAGCTAGAAATAGCAAGTTAAAATAAGGCTAGTCCG","RBP",94]
["RPL13_01","RPL13","CTCCACCAGACGTAAGGCC","CTTTATATATCTTGTGGAAAGGACGAAACACCGCTCCACCAGACGTAAGGCCGTTTTAGAGCTAGAAATAGCAAGTTAAAATAAGGCTAGTCCG","RBP",94]
["RPL13_05","RPL13","GCGCCCAGCCGGAATGGCA","CTTTATATATCTTGTGGAAAGGACGAAACACCGGCGCCCAGCCGGAATGGCAGTTTTAGAGCTAGAAATAGCAAGTTAAAATAAGGCTAGTCCG","RBP",94]
["RPL13_06","RPL13","AAAGCTCGAGTCATCACTG","CTTTATATATCTTGTGGAAAGGACGAAACACCGAAAGCTCGAGTCATCACTGGTTTTAGAGCTAGAAATAGCAAGTTAAAATAAGGCTAGTCCG","RBP",94]
["RPL13_07","RPL13","CATTTCTGTGGATCCGAGG","CTTTATATATCTTGTGGAAAGGACGAAACACCGCATTTCTGTGGATCCGAGGGTTTTAGAGCTAGAAATAGCAAGTTAAAATAAGGCTAGTCCG","RBP",94]
["RPL13_09","RPL13","CTCTTCTAGGTCTATAAGA","CTTTATATATCTTGTGGAAAGGACGAAACACCGCTCTTCTAGGTCTATAAGAGTTTTAGAGCTAGAAATAGCAAGTTAAAATAAGGCTAGTCCG","RBP",94]
["RPL18_03","RPL18","ACCATAACTGATGATGTGC","CTTTATATATCTTGTGGAAAGGACGAAACACCGACCATAACTGATGATGTGCGTTTTAGAGCTAGAAATAGCAAGTTAAAATAAGGCTAGTCCG","RBP",94]
["RPL18_06","RPL18","TACCTGAGGCTGTTGGTCA","CTTTATATATCTTGTGGAAAGGACGAAACACCGTACCTGAGGCTGTTGGTCAGTTTTAGAGCTAGAAATAGCAAGTTAAAATAAGGCTAGTCCG","RBP",94]
["RPL18_08","RPL18","CCATCCGGGAAAGGGACAG","CTTTATATATCTTGTGGAAAGGACGAAACACCGCCATCCGGGAAAGGGACAGGTTTTAGAGCTAGAAATAGCAAGTTAAAATAAGGCTAGTCCG","RBP",94]
["RPL18_09","RPL18","GTGGACATCCGCCATAACA","CTTTATATATCTTGTGGAAAGGACGAAACACCGGTGGACATCCGCCATAACAGTTTTAGAGCTAGAAATAGCAAGTTAAAATAAGGCTAGTCCG","RBP",94]
["RPL18_10","RPL18","TGGACTCCCCTAAGGGCTG","CTTTATATATCTTGTGGAAAGGACGAAACACCGTGGACTCCCCTAAGGGCTGGTTTTAGAGCTAGAAATAGCAAGTTAAAATAAGGCTAGTCCG","RBP",94]
["RPL22L1_04","RPL22L1","GAGCAATTTCTACGGGAGA","CTTTATATATCTTGTGGAAAGGACGAAACACCGGAGCAATTTCTACGGGAGAGTTTTAGAGCTAGAAATAGCAAGTTAAAATAAGGCTAGTCCG","RBP",94]
["RPL22L1_05","RPL22L1","ATTTATGTAGCAGAAAGAC","CTTTATATATCTTGTGGAAAGGACGAAACACCGATTTATGTAGCAGAAAGACGTTTTAGAGCTAGAAATAGCAAGTTAAAATAAGGCTAGTCCG","RBP",94]
["RPL22L1_06","RPL22L1","CGAGTGGTTGCATCTGACA","CTTTATATATCTTGTGGAAAGGACGAAACACCGCGAGTGGTTGCATCTGACAGTTTTAGAGCTAGAAATAGCAAGTTAAAATAAGGCTAGTCCG","RBP",94]
["RPL22L1_08","RPL22L1","TGGAAGTAACGAAGTTCGT","CTTTATATATCTTGTGGAAAGGACGAAACACCGTGGAAGTAACGAAGTTCGTGTTTTAGAGCTAGAAATAGCAAGTTAAAATAAGGCTAGTCCG","RBP",94]
["RPL22L1_09","RPL22L1","GCCCAAGAGGTCAACCTGG","CTTTATATATCTTGTGGAAAGGACGAAACACCGGCCCAAGAGGTCAACCTGGGTTTTAGAGCTAGAAATAGCAAGTTAAAATAAGGCTAGTCCG","RBP",94]
["RPL23A_03","RPL23A","GGCCCAACTCACCGAATCA","CTTTATATATCTTGTGGAAAGGACGAAACACCGGGCCCAACTCACCGAATCAGTTTTAGAGCTAGAAATAGCAAGTTAAAATAAGGCTAGTCCG","RBP",94]
["RPL23A_04","RPL23A","CCGCACGTCACCCACCTTC","CTTTATATATCTTGTGGAAAGGACGAAACACCGCCGCACGTCACCCACCTTCGTTTTAGAGCTAGAAATAGCAAGTTAAAATAAGGCTAGTCCG","RBP",94]
["RPL23A_05","RPL23A","CGCCGAAAGCGAAGAAGGA","CTTTATATATCTTGTGGAAAGGACGAAACACCGCGCCGAAAGCGAAGAAGGAGTTTTAGAGCTAGAAATAGCAAGTTAAAATAAGGCTAGTCCG","RBP",94]
["RPL23A_06","RPL23A","GTACTGACTTGTTTCTCCT","CTTTATATATCTTGTGGAAAGGACGAAACACCGGTACTGACTTGTTTCTCCTGTTTTAGAGCTAGAAATAGCAAGTTAAAATAAGGCTAGTCCG","RBP",94]
["RPL23A_10","RPL23A","AAGCTGTATGACATTGATG","CTTTATATATCTTGTGGAAAGGACGAAACACCGAAGCTGTATGACATTGATGGTTTTAGAGCTAGAAATAGCAAGTTAAAATAAGGCTAGTCCG","RBP",94]
["RPL26_01","RPL26","ATGGCACAACTGTCCACGT","CTTTATATATCTTGTGGAAAGGACGAAACACCGATGGCACAACTGTCCACGTGTTTTAGAGCTAGAAATAGCAAGTTAAAATAAGGCTAGTCCG","RBP",94]
["RPL26_02","RPL26","CATAATCTTCCTTCGAATG","CTTTATATATCTTGTGGAAAGGACGAAACACCGCATAATCTTCCTTCGAATGGTTTTAGAGCTAGAAATAGCAAGTTAAAATAAGGCTAGTCCG","RBP",94]
["RPL26_05","RPL26","CGATCCATGCCCATCCGAA","CTTTATATATCTTGTGGAAAGGACGAAACACCGCGATCCATGCCCATCCGAAGTTTTAGAGCTAGAAATAGCAAGTTAAAATAAGGCTAGTCCG","RBP",94]
["RPL26_08","RPL26","CCGAAGCAAGAATCGCAAA","CTTTATATATCTTGTGGAAAGGACGAAACACCGCCGAAGCAAGAATCGCAAAGTTTTAGAGCTAGAAATAGCAAGTTAAAATAAGGCTAGTCCG","RBP",94]
["RPL26_09","RPL26","CCGCAAAAAGATCCTCGAA","CTTTATATATCTTGTGGAAAGGACGAAACACCGCCGCAAAAAGATCCTCGAAGTTTTAGAGCTAGAAATAGCAAGTTAAAATAAGGCTAGTCCG","RBP",94]
["RPL27A_06","RPL27A","ATCATTGATGTGGTGCGAT","CTTTATATATCTTGTGGAAAGGACGAAACACCGATCATTGATGTGGTGCGATGTTTTAGAGCTAGAAATAGCAAGTTAAAATAAGGCTAGTCCG","RBP",94]
["RPL27A_07","RPL27A","CTAGCCACCCAGGCTACTT","CTTTATATATCTTGTGGAAAGGACGAAACACCGCTAGCCACCCAGGCTACTTGTTTTAGAGCTAGAAATAGCAAGTTAAAATAAGGCTAGTCCG","RBP",94]
["RPL27A_08","RPL27A","GCACTTACCTATGCGGCCG","CTTTATATATCTTGTGGAAAGGACGAAACACCGGCACTTACCTATGCGGCCGGTTTTAGAGCTAGAAATAGCAAGTTAAAATAAGGCTAGTCCG","RBP",94]
["RPL27A_09","RPL27A","CAGACCACCAGCATTACCG","CTTTATATATCTTGTGGAAAGGACGAAACACCGCAGACCACCAGCATTACCGGTTTTAGAGCTAGAAATAGCAAGTTAAAATAAGGCTAGTCCG","RBP",94]
["RPL27A_10","RPL27A","TATTCCTGCAGGCAAGCAC","CTTTATATATCTTGTGGAAAGGACGAAACACCGTATTCCTGCAGGCAAGCACGTTTTAGAGCTAGAAATAGCAAGTTAAAATAAGGCTAGTCCG","RBP",94]
["RPL27_03","RPL27","GGCAGCTGTCACTTTGCGG","CTTTATATATCTTGTGGAAAGGACGAAACACCGGGCAGCTGTCACTTTGCGGGTTTTAGAGCTAGAAATAGCAAGTTAAAATAAGGCTAGTCCG","RBP",94]
["RPL27_05","RPL27","CAATCACCTAATGCCCACA","CTTTATATATCTTGTGGAAAGGACGAAACACCGCAATCACCTAATGCCCACAGTTTTAGAGCTAGAAATAGCAAGTTAAAATAAGGCTAGTCCG","RBP",94]
["RPL27_06","RPL27","GTGGTTCTTCCAGAAACTG","CTTTATATATCTTGTGGAAAGGACGAAACACCGGTGGTTCTTCCAGAAACTGGTTTTAGAGCTAGAAATAGCAAGTTAAAATAAGGCTAGTCCG","RBP",94]
["RPL27_09","RPL27","TCCCTTCTAGATACAAGAC","CTTTATATATCTTGTGGAAAGGACGAAACACCGTCCCTTCTAGATACAAGACGTTTTAGAGCTAGAAATAGCAAGTTAAAATAAGGCTAGTCCG","RBP",94]
["RPL27_10","RPL27","CGCAAAGCTGTCATCGTGA","CTTTATATATCTTGTGGAAAGGACGAAACACCGCGCAAAGCTGTCATCGTGAGTTTTAGAGCTAGAAATAGCAAGTTAAAATAAGGCTAGTCCG","RBP",94]
["RPL32_04","RPL32","CGATCTTGGGCTTCACAAG","CTTTATATATCTTGTGGAAAGGACGAAACACCGCGATCTTGGGCTTCACAAGGTTTTAGAGCTAGAAATAGCAAGTTAAAATAAGGCTAGTCCG","RBP",94]
["RPL32_05","RPL32","GTCCACAACGTCAAGGAGC","CTTTATATATCTTGTGGAAAGGACGAAACACCGGTCCACAACGTCAAGGAGCGTTTTAGAGCTAGAAATAGCAAGTTAAAATAAGGCTAGTCCG","RBP",94]
["RPL32_06","RPL32","GGTGACTCTGATGGCCAGT","CTTTATATATCTTGTGGAAAGGACGAAACACCGGGTGACTCTGATGGCCAGTGTTTTAGAGCTAGAAATAGCAAGTTAAAATAAGGCTAGTCCG","RBP",94]
["RPL32_08","RPL32","GGGTTCGTAGAAGATTCAA","CTTTATATATCTTGTGGAAAGGACGAAACACCGGGGTTCGTAGAAGATTCAAGTTTTAGAGCTAGAAATAGCAAGTTAAAATAAGGCTAGTCCG","RBP",94]
["RPL32_10","RPL32","CGCAGTGAAGAAAATGAGT","CTTTATATATCTTGTGGAAAGGACGAAACACCGCGCAGTGAAGAAAATGAGTGTTTTAGAGCTAGAAATAGCAAGTTAAAATAAGGCTAGTCCG","RBP",94]
["RPL35_03","RPL35","TGACCGCGTACTTCCGCAG","CTTTATATATCTTGTGGAAAGGACGAAACACCGTGACCGCGTACTTCCGCAGGTTTTAGAGCTAGAAATAGCAAGTTAAAATAAGGCTAGTCCG","RBP",94]
["RPL35_04","RPL35","TGCGCGCAGGCCAAGATCA","CTTTATATATCTTGTGGAAAGGACGAAACACCGTGCGCGCAGGCCAAGATCAGTTTTAGAGCTAGAAATAGCAAGTTAAAATAAGGCTAGTCCG","RBP",94]
["RPL35_05","RPL35","GACACGTGCCATGCGCCGC","CTTTATATATCTTGTGGAAAGGACGAAACACCGGACACGTGCCATGCGCCGCGTTTTAGAGCTAGAAATAGCAAGTTAAAATAAGGCTAGTCCG","RBP",94]
["RPL35_06","RPL35","ACTGTGAGAACACGGGCAA",{"$f":"CONCATENATE(\"CTTTATATATCTTGTGGAAAGGACGAAACACCG\",C1154,\"GTTTTAGAGCTAGAAATAGCAAGTTAAAATAAGGCTAGTCCG\")","v":"CTTTATATATCTTGTGGAAAGGACGAAACACCGACTGTGAGAACACGGGCAAGTTTTAGAGCTAGAAATAGCAAGTTAAAATAAGGCTAGTCCG"},"RBP",94]
["RPL35_09","RPL35","GATCTTCGCGGGAAGAAGA","CTTTATATATCTTGTGGAAAGGACGAAACACCGGATCTTCGCGGGAAGAAGAGTTTTAGAGCTAGAAATAGCAAGTTAAAATAAGGCTAGTCCG","RBP",94]
["RPL3_04","RPL3","AATACAGGCCACCTTGCGC","CTTTATATATCTTGTGGAAAGGACGAAACACCGAATACAGGCCACCTTGCGCGTTTTAGAGCTAGAAATAGCAAGTTAAAATAAGGCTAGTCCG","RBP",94]
["RPL3_07","RPL3","AGATTTATAAGATTGGCCA","CTTTATATATCTTGTGGAAAGGACGAAACACCGAGATTTATAAGATTGGCCAGTTTTAGAGCTAGAAATAGCAAGTTAAAATAAGGCTAGTCCG","RBP",94]
["RPL3_08","RPL3","CATCAGTGATGAATGCAAG","CTTTATATATCTTGTGGAAAGGACGAAACACCGCATCAGTGATGAATGCAAGGTTTTAGAGCTAGAAATAGCAAGTTAAAATAAGGCTAGTCCG","RBP",94]
["RPL3_09","RPL3","GACCTGCCTCACCTTGCGG","CTTTATATATCTTGTGGAAAGGACGAAACACCGGACCTGCCTCACCTTGCGGGTTTTAGAGCTAGAAATAGCAAGTTAAAATAAGGCTAGTCCG","RBP",94]
["RPL3_10","RPL3","TGCCCCGCAAGACCCACCG","CTTTATATATCTTGTGGAAAGGACGAAACACCGTGCCCCGCAAGACCCACCGGTTTTAGAGCTAGAAATAGCAAGTTAAAATAAGGCTAGTCCG","RBP",94]
["RPL7_01","RPL7","GTTGGAAAACGCTTCAAAG","CTTTATATATCTTGTGGAAAGGACGAAACACCGGTTGGAAAACGCTTCAAAGGTTTTAGAGCTAGAAATAGCAAGTTAAAATAAGGCTAGTCCG","RBP",94]
["RPL7_03","RPL7","ATCAATGGAGTGAGCCCAA","CTTTATATATCTTGTGGAAAGGACGAAACACCGATCAATGGAGTGAGCCCAAGTTTTAGAGCTAGAAATAGCAAGTTAAAATAAGGCTAGTCCG","RBP",94]
["RPL7_07","RPL7","AATTGTCTTCTCCACGAGG","CTTTATATATCTTGTGGAAAGGACGAAACACCGAATTGTCTTCTCCACGAGGGTTTTAGAGCTAGAAATAGCAAGTTAAAATAAGGCTAGTCCG","RBP",{"$f":"LEN(D1163)","v":94}]
["RPL7_09","RPL7","AACGTTAGAGAGAAGAAGA","CTTTATATATCTTGTGGAAAGGACGAAACACCGAACGTTAGAGAGAAGAAGAGTTTTAGAGCTAGAAATAGCAAGTTAAAATAAGGCTAGTCCG","RBP",94]
["RPL7_10","RPL7","TCAGCTTCGAAAGGCAAGG","CTTTATATATCTTGTGGAAAGGACGAAACACCGTCAGCTTCGAAAGGCAAGGGTTTTAGAGCTAGAAATAGCAAGTTAAAATAAGGCTAGTCCG","RBP",94]
["RPLP2_03","RPLP2","TTGATGTCCTTGGCGCTGG","CTTTATATATCTTGTGGAAAGGACGAAACACCGTTGATGTCCTTGGCGCTGGGTTTTAGAGCTAGAAATAGCAAGTTAAAATAAGGCTAGTCCG","RBP",94]
["RPLP2_04","RPLP2","GGCCGCTACCTTGTTGAGC","CTTTATATATCTTGTGGAAAGGACGAAACACCGGGCCGCTACCTTGTTGAGCGTTTTAGAGCTAGAAATAGCAAGTTAAAATAAGGCTAGTCCG","RBP",94]
["RPLP2_05","RPLP2","AGCAGGAATTTAATCAAAA","CTTTATATATCTTGTGGAAAGGACGAAACACCGAGCAGGAATTTAATCAAAAGTTTTAGAGCTAGAAATAGCAAGTTAAAATAAGGCTAGTCCG","RBP",94]
["RPLP2_06","RPLP2","CACCACTTACCTGCAGCAG","CTTTATATATCTTGTGGAAAGGACGAAACACCGCACCACTTACCTGCAGCAGGTTTTAGAGCTAGAAATAGCAAGTTAAAATAAGGCTAGTCCG","RBP",94]
["RPLP2_10","RPLP2","CGGCTACAGCCCCACCAGC","CTTTATATATCTTGTGGAAAGGACGAAACACCGCGGCTACAGCCCCACCAGCGTTTTAGAGCTAGAAATAGCAAGTTAAAATAAGGCTAGTCCG","RBP",94]
["RPN2_02","RPN2","GCATGTTCTAGTTTAACAG","CTTTATATATCTTGTGGAAAGGACGAAACACCGGCATGTTCTAGTTTAACAGGTTTTAGAGCTAGAAATAGCAAGTTAAAATAAGGCTAGTCCG","RBP",94]
["RPN2_03","RPN2","AATGTATTGGACACCACGG","CTTTATATATCTTGTGGAAAGGACGAAACACCGAATGTATTGGACACCACGGGTTTTAGAGCTAGAAATAGCAAGTTAAAATAAGGCTAGTCCG","RBP",94]
["RPN2_04","RPN2","ATCAGGACTTACCCTACAG","CTTTATATATCTTGTGGAAAGGACGAAACACCGATCAGGACTTACCCTACAGGTTTTAGAGCTAGAAATAGCAAGTTAAAATAAGGCTAGTCCG","RBP",94]
["RPN2_05","RPN2","GAGCGAAGAGCAGAAGCAA","CTTTATATATCTTGTGGAAAGGACGAAACACCGGAGCGAAGAGCAGAAGCAAGTTTTAGAGCTAGAAATAGCAAGTTAAAATAAGGCTAGTCCG","RBP",94]
["RPN2_09","RPN2","GAGAGCACAGCAGCTGCAG","CTTTATATATCTTGTGGAAAGGACGAAACACCGGAGAGCACAGCAGCTGCAGGTTTTAGAGCTAGAAATAGCAAGTTAAAATAAGGCTAGTCCG","RBP",94]
["RPS10_01","RPS10","CATGTCATGAAGGCCATGC","CTTTATATATCTTGTGGAAAGGACGAAACACCGCATGTCATGAAGGCCATGCGTTTTAGAGCTAGAAATAGCAAGTTAAAATAAGGCTAGTCCG","RBP",94]
["RPS10_05","RPS10","CTCTGGACGGCTACGGCGT","CTTTATATATCTTGTGGAAAGGACGAAACACCGCTCTGGACGGCTACGGCGTGTTTTAGAGCTAGAAATAGCAAGTTAAAATAAGGCTAGTCCG","RBP",94]
["RPS10_08","RPS10","TCTTACAGAGAGGCGGATT","CTTTATATATCTTGTGGAAAGGACGAAACACCGTCTTACAGAGAGGCGGATTGTTTTAGAGCTAGAAATAGCAAGTTAAAATAAGGCTAGTCCG","RBP",94]
["RPS10_09","RPS10","GACAAGAAAGCCGAGGCTG","CTTTATATATCTTGTGGAAAGGACGAAACACCGGACAAGAAAGCCGAGGCTGGTTTTAGAGCTAGAAATAGCAAGTTAAAATAAGGCTAGTCCG","RBP",94]
["RPS10_10","RPS10","GAACCATACCTTTAGGCCG","CTTTATATATCTTGTGGAAAGGACGAAACACCGGAACCATACCTTTAGGCCGGTTTTAGAGCTAGAAATAGCAAGTTAAAATAAGGCTAGTCCG","RBP",94]
["RPS11_02","RPS11","TAATGTGTCCATTCGAGGG","CTTTATATATCTTGTGGAAAGGACGAAACACCGTAATGTGTCCATTCGAGGGGTTTTAGAGCTAGAAATAGCAAGTTAAAATAAGGCTAGTCCG","RBP",94]
["RPS11_03","RPS11","TGCGCTCACCTGAAGCAGG","CTTTATATATCTTGTGGAAAGGACGAAACACCGTGCGCTCACCTGAAGCAGGGTTTTAGAGCTAGAAATAGCAAGTTAAAATAAGGCTAGTCCG","RBP",94]
["RPS11_05","RPS11","CTTGTGGCGCTTCTCGAAG","CTTTATATATCTTGTGGAAAGGACGAAACACCGCTTGTGGCGCTTCTCGAAGGTTTTAGAGCTAGAAATAGCAAGTTAAAATAAGGCTAGTCCG","RBP",94]
["RPS11_07","RPS11","GGCTTCAAGACACCCAAGG","CTTTATATATCTTGTGGAAAGGACGAAACACCGGGCTTCAAGACACCCAAGGGTTTTAGAGCTAGAAATAGCAAGTTAAAATAAGGCTAGTCCG","RBP",94]
["RPS11_09","RPS11","TCCACAGGGACGTCCAGAT","CTTTATATATCTTGTGGAAAGGACGAAACACCGTCCACAGGGACGTCCAGATGTTTTAGAGCTAGAAATAGCAAGTTAAAATAAGGCTAGTCCG","RBP",94]
["RPS20_02","RPS20","CCAGTTCGAATGCCTACCA","CTTTATATATCTTGTGGAAAGGACGAAACACCGCCAGTTCGAATGCCTACCAGTTTTAGAGCTAGAAATAGCAAGTTAAAATAAGGCTAGTCCG","RBP",94]
["RPS20_03","RPS20","GCAGATTTTAGGAATATAA","CTTTATATATCTTGTGGAAAGGACGAAACACCGGCAGATTTTAGGAATATAAGTTTTAGAGCTAGAAATAGCAAGTTAAAATAAGGCTAGTCCG","RBP",94]
["RPS20_04","RPS20","GACTGGTTTTATTGGACAC","CTTTATATATCTTGTGGAAAGGACGAAACACCGGACTGGTTTTATTGGACACGTTTTAGAGCTAGAAATAGCAAGTTAAAATAAGGCTAGTCCG","RBP",94]
["RPS20_05","RPS20","TTCCAAGGATTTTACGTTG","CTTTATATATCTTGTGGAAAGGACGAAACACCGTTCCAAGGATTTTACGTTGGTTTTAGAGCTAGAAATAGCAAGTTAAAATAAGGCTAGTCCG","RBP",94]
["RPS20_08","RPS20","CTCAAACGACAACGAAAAC","CTTTATATATCTTGTGGAAAGGACGAAACACCGCTCAAACGACAACGAAAACGTTTTAGAGCTAGAAATAGCAAGTTAAAATAAGGCTAGTCCG","RBP",94]
["RPS27A_01","RPS27A","GCCCGTACCTCGAGGGTGA","CTTTATATATCTTGTGGAAAGGACGAAACACCGGCCCGTACCTCGAGGGTGAGTTTTAGAGCTAGAAATAGCAAGTTAAAATAAGGCTAGTCCG","RBP",94]
["RPS27A_03","RPS27A","CTGGCAAGCAGCTGGAAGA","CTTTATATATCTTGTGGAAAGGACGAAACACCGCTGGCAAGCAGCTGGAAGAGTTTTAGAGCTAGAAATAGCAAGTTAAAATAAGGCTAGTCCG","RBP",94]
["RPS27A_04","RPS27A","GCTCACCTTATAATATTTC","CTTTATATATCTTGTGGAAAGGACGAAACACCGGCTCACCTTATAATATTTCGTTTTAGAGCTAGAAATAGCAAGTTAAAATAAGGCTAGTCCG","RBP",94]
["RPS27A_06","RPS27A","TCTGACTACAATATTCAAA","CTTTATATATCTTGTGGAAAGGACGAAACACCGTCTGACTACAATATTCAAAGTTTTAGAGCTAGAAATAGCAAGTTAAAATAAGGCTAGTCCG","RBP",94]
["RPS27A_09","RPS27A","TCAGTCTCTGCTGATCAGG","CTTTATATATCTTGTGGAAAGGACGAAACACCGTCAGTCTCTGCTGATCAGGGTTTTAGAGCTAGAAATAGCAAGTTAAAATAAGGCTAGTCCG","RBP",94]
["RPS27_02","RPS27","TGTCCCTCTTAGCTCGCAA","CTTTATATATCTTGTGGAAAGGACGAAACACCGTGTCCCTCTTAGCTCGCAAGTTTTAGAGCTAGAAATAGCAAGTTAAAATAAGGCTAGTCCG","RBP",94]
["RPS27_03","RPS27","TCATGGATGTGAAATGCCC","CTTTATATATCTTGTGGAAAGGACGAAACACCGTCATGGATGTGAAATGCCCGTTTTAGAGCTAGAAATAGCAAGTTAAAATAAGGCTAGTCCG","RBP",94]
["RPS27_04","RPS27","AAACACAAGAAGAAACGCC","CTTTATATATCTTGTGGAAAGGACGAAACACCGAAACACAAGAAGAAACGCCGTTTTAGAGCTAGAAATAGCAAGTTAAAATAAGGCTAGTCCG","RBP",94]
["RPS27_06","RPS27","CTCTCCAGAAGAGGAGAAG","CTTTATATATCTTGTGGAAAGGACGAAACACCGCTCTCCAGAAGAGGAGAAGGTTTTAGAGCTAGAAATAGCAAGTTAAAATAAGGCTAGTCCG","RBP",94]
["RPS27_10","RPS27","TCCTCCAGGATGTTCCTTC","CTTTATATATCTTGTGGAAAGGACGAAACACCGTCCTCCAGGATGTTCCTTCGTTTTAGAGCTAGAAATAGCAAGTTAAAATAAGGCTAGTCCG","RBP",94]
["RPS28_01","RPS28","TAGGTGCGCGTGGAATTCA","CTTTATATATCTTGTGGAAAGGACGAAACACCGTAGGTGCGCGTGGAATTCAGTTTTAGAGCTAGAAATAGCAAGTTAAAATAAGGCTAGTCCG","RBP",94]
["RPS28_06","RPS28","TCTTTCCTCCAGGTCACCA","CTTTATATATCTTGTGGAAAGGACGAAACACCGTCTTTCCTCCAGGTCACCAGTTTTAGAGCTAGAAATAGCAAGTTAAAATAAGGCTAGTCCG","RBP",94]
["RPS28_07","RPS28","TCTCGCTCTGACTCCAAAA","CTTTATATATCTTGTGGAAAGGACGAAACACCGTCTCGCTCTGACTCCAAAAGTTTTAGAGCTAGAAATAGCAAGTTAAAATAAGGCTAGTCCG","RBP",94]
["RPS28_08","RPS28","CAAGCTCAGCGCAACCTCC","CTTTATATATCTTGTGGAAAGGACGAAACACCGCAAGCTCAGCGCAACCTCCGTTTTAGAGCTAGAAATAGCAAGTTAAAATAAGGCTAGTCCG","RBP",94]
["RPS28_10","RPS28","GTGCACTGTCCCTGAGAAC","CTTTATATATCTTGTGGAAAGGACGAAACACCGGTGCACTGTCCCTGAGAACGTTTTAGAGCTAGAAATAGCAAGTTAAAATAAGGCTAGTCCG","RBP",94]
["RPS4X_01","RPS4X","ATTACACCTGAGGAGGCCA","CTTTATATATCTTGTGGAAAGGACGAAACACCGATTACACCTGAGGAGGCCAGTTTTAGAGCTAGAAATAGCAAGTTAAAATAAGGCTAGTCCG","RBP",94]
["RPS4X_02","RPS4X","AAGATACTTACAAACACAC","CTTTATATATCTTGTGGAAAGGACGAAACACCGAAGATACTTACAAACACACGTTTTAGAGCTAGAAATAGCAAGTTAAAATAAGGCTAGTCCG","RBP",94]
["RPS4X_03","RPS4X","CTCAACTTGTGGGGACCGG","CTTTATATATCTTGTGGAAAGGACGAAACACCGCTCAACTTGTGGGGACCGGGTTTTAGAGCTAGAAATAGCAAGTTAAAATAAGGCTAGTCCG","RBP",94]
["RPS4X_08","RPS4X","CACCTTGATGAGGGGATCG","CTTTATATATCTTGTGGAAAGGACGAAACACCGCACCTTGATGAGGGGATCGGTTTTAGAGCTAGAAATAGCAAGTTAAAATAAGGCTAGTCCG","RBP",94]
["RPS4X_09","RPS4X","GTTCCTCAGGAAAATGATG","CTTTATATATCTTGTGGAAAGGACGAAACACCGGTTCCTCAGGAAAATGATGGTTTTAGAGCTAGAAATAGCAAGTTAAAATAAGGCTAGTCCG","RBP",94]
["RPS5_01","RPS5","CTGTGCACAGGCGCTCGTG","CTTTATATATCTTGTGGAAAGGACGAAACACCGCTGTGCACAGGCGCTCGTGGTTTTAGAGCTAGAAATAGCAAGTTAAAATAAGGCTAGTCCG","RBP",94]
["RPS5_02","RPS5","CTGGGGTCTCTGCCACCGC","CTTTATATATCTTGTGGAAAGGACGAAACACCGCTGGGGTCTCTGCCACCGCGTTTTAGAGCTAGAAATAGCAAGTTAAAATAAGGCTAGTCCG","RBP",94]
["RPS5_04","RPS5","TGATGCACGGCCGCAACAA","CTTTATATATCTTGTGGAAAGGACGAAACACCGTGATGCACGGCCGCAACAAGTTTTAGAGCTAGAAATAGCAAGTTAAAATAAGGCTAGTCCG","RBP",94]
["RPS5_06","RPS5","CCTGGTTCACACGGCGCAG","CTTTATATATCTTGTGGAAAGGACGAAACACCGCCTGGTTCACACGGCGCAGGTTTTAGAGCTAGAAATAGCAAGTTAAAATAAGGCTAGTCCG","RBP",94]
["RPS5_08","RPS5","CTGTCCCAGGATGACCGAG","CTTTATATATCTTGTGGAAAGGACGAAACACCGCTGTCCCAGGATGACCGAGGTTTTAGAGCTAGAAATAGCAAGTTAAAATAAGGCTAGTCCG","RBP",94]
["RPS6_05","RPS6","CTGTAGTATCAGTCAGTCC","CTTTATATATCTTGTGGAAAGGACGAAACACCGCTGTAGTATCAGTCAGTCCGTTTTAGAGCTAGAAATAGCAAGTTAAAATAAGGCTAGTCCG","RBP",94]
["RPS6_07","RPS6","CCGCCTGCTACTGAGTAAG","CTTTATATATCTTGTGGAAAGGACGAAACACCGCCGCCTGCTACTGAGTAAGGTTTTAGAGCTAGAAATAGCAAGTTAAAATAAGGCTAGTCCG","RBP",94]
["RPS6_08","RPS6","GTGGTGGGAACGACAAACA",{"$f":"CONCATENATE(\"CTTTATATATCTTGTGGAAAGGACGAAACACCG\",C1218,\"GTTTTAGAGCTAGAAATAGCAAGTTAAAATAAGGCTAGTCCG\")","v":"CTTTATATATCTTGTGGAAAGGACGAAACACCGGTGGTGGGAACGACAAACAGTTTTAGAGCTAGAAATAGCAAGTTAAAATAAGGCTAGTCCG"},"RBP",94]
["RPS6_09","RPS6","GAAAGCCCTTAAATAAAGA","CTTTATATATCTTGTGGAAAGGACGAAACACCGGAAAGCCCTTAAATAAAGAGTTTTAGAGCTAGAAATAGCAAGTTAAAATAAGGCTAGTCCG","RBP",94]
["RPS6_10","RPS6","ATTTTTAGGTAAGAAACCT","CTTTATATATCTTGTGGAAAGGACGAAACACCGATTTTTAGGTAAGAAACCTGTTTTAGAGCTAGAAATAGCAAGTTAAAATAAGGCTAGTCCG","RBP",94]
["RPSA_01","RPSA","CAGATTGAAAAAGAAGAGC","CTTTATATATCTTGTGGAAAGGACGAAACACCGCAGATTGAAAAAGAAGAGCGTTTTAGAGCTAGAAATAGCAAGTTAAAATAAGGCTAGTCCG","RBP",94]
["RPSA_02","RPSA","ACCTGGCCAGTATTCCTGG","CTTTATATATCTTGTGGAAAGGACGAAACACCGACCTGGCCAGTATTCCTGGGTTTTAGAGCTAGAAATAGCAAGTTAAAATAAGGCTAGTCCG","RBP",94]
["RPSA_03","RPSA","GCTGAGAAGGCAGTGACCA","CTTTATATATCTTGTGGAAAGGACGAAACACCGGCTGAGAAGGCAGTGACCAGTTTTAGAGCTAGAAATAGCAAGTTAAAATAAGGCTAGTCCG","RBP",94]
["RPSA_04","RPSA","TGGAGCGCTCAGCCTGCCA","CTTTATATATCTTGTGGAAAGGACGAAACACCGTGGAGCGCTCAGCCTGCCAGTTTTAGAGCTAGAAATAGCAAGTTAAAATAAGGCTAGTCCG","RBP",94]
["RPSA_06","RPSA","ACACAGCGCAATGGTAGGT","CTTTATATATCTTGTGGAAAGGACGAAACACCGACACAGCGCAATGGTAGGTGTTTTAGAGCTAGAAATAGCAAGTTAAAATAAGGCTAGTCCG","RBP",94]
["RPTOR_01","RPTOR","TGTGCTTCAGATCGTGAAG","CTTTATATATCTTGTGGAAAGGACGAAACACCGTGTGCTTCAGATCGTGAAGGTTTTAGAGCTAGAAATAGCAAGTTAAAATAAGGCTAGTCCG","RBP",94]
["RPTOR_03","RPTOR","TCCAGTTCAGTTCACCCAG","CTTTATATATCTTGTGGAAAGGACGAAACACCGTCCAGTTCAGTTCACCCAGGTTTTAGAGCTAGAAATAGCAAGTTAAAATAAGGCTAGTCCG","RBP",{"$f":"LEN(D1227)","v":94}]
["RPTOR_06","RPTOR","GGCGTGCACATCCACCAGG","CTTTATATATCTTGTGGAAAGGACGAAACACCGGGCGTGCACATCCACCAGGGTTTTAGAGCTAGAAATAGCAAGTTAAAATAAGGCTAGTCCG","RBP",94]
["RPTOR_07","RPTOR","TGCAGTTTTTCATCGACGG","CTTTATATATCTTGTGGAAAGGACGAAACACCGTGCAGTTTTTCATCGACGGGTTTTAGAGCTAGAAATAGCAAGTTAAAATAAGGCTAGTCCG","RBP",94]
["RPTOR_09","RPTOR","CCCAGATGAAAACGAGAAG","CTTTATATATCTTGTGGAAAGGACGAAACACCGCCCAGATGAAAACGAGAAGGTTTTAGAGCTAGAAATAGCAAGTTAAAATAAGGCTAGTCCG","RBP",94]
["RPUSD3_01","RPUSD3","GGCATCAGAGGCAACCCCG","CTTTATATATCTTGTGGAAAGGACGAAACACCGGGCATCAGAGGCAACCCCGGTTTTAGAGCTAGAAATAGCAAGTTAAAATAAGGCTAGTCCG","RBP",94]
["RPUSD3_02","RPUSD3","GGTGCCAGGAGCTCAACAG","CTTTATATATCTTGTGGAAAGGACGAAACACCGGGTGCCAGGAGCTCAACAGGTTTTAGAGCTAGAAATAGCAAGTTAAAATAAGGCTAGTCCG","RBP",94]
["RPUSD3_06","RPUSD3","CCACAGACAGTTCCAGTGA","CTTTATATATCTTGTGGAAAGGACGAAACACCGCCACAGACAGTTCCAGTGAGTTTTAGAGCTAGAAATAGCAAGTTAAAATAAGGCTAGTCCG","RBP",94]
["RPUSD3_09","RPUSD3","GAACCGGCCCAAAACACGG","CTTTATATATCTTGTGGAAAGGACGAAACACCGGAACCGGCCCAAAACACGGGTTTTAGAGCTAGAAATAGCAAGTTAAAATAAGGCTAGTCCG","RBP",94]
["RPUSD3_10","RPUSD3","ATGGGTGAAGTACTTCTGG","CTTTATATATCTTGTGGAAAGGACGAAACACCGATGGGTGAAGTACTTCTGGGTTTTAGAGCTAGAAATAGCAAGTTAAAATAAGGCTAGTCCG","RBP",94]
["RRBP1_01","RRBP1","CTGGCCTCCAAGTTGAGGG","CTTTATATATCTTGTGGAAAGGACGAAACACCGCTGGCCTCCAAGTTGAGGGGTTTTAGAGCTAGAAATAGCAAGTTAAAATAAGGCTAGTCCG","RBP",94]
["RRBP1_02","RRBP1","GAGTCTTCAGAAACAGAGG","CTTTATATATCTTGTGGAAAGGACGAAACACCGGAGTCTTCAGAAACAGAGGGTTTTAGAGCTAGAAATAGCAAGTTAAAATAAGGCTAGTCCG","RBP",94]
["RRBP1_03","RRBP1","CTTCTCGGCATCCGCCCGG","CTTTATATATCTTGTGGAAAGGACGAAACACCGCTTCTCGGCATCCGCCCGGGTTTTAGAGCTAGAAATAGCAAGTTAAAATAAGGCTAGTCCG","RBP",94]
["RRBP1_07","RRBP1","CAGAACTACGCCAAGGAGG","CTTTATATATCTTGTGGAAAGGACGAAACACCGCAGAACTACGCCAAGGAGGGTTTTAGAGCTAGAAATAGCAAGTTAAAATAAGGCTAGTCCG","RBP",94]
["RRBP1_08","RRBP1","GAGCTGGAAAAGCACATGG","CTTTATATATCTTGTGGAAAGGACGAAACACCGGAGCTGGAAAAGCACATGGGTTTTAGAGCTAGAAATAGCAAGTTAAAATAAGGCTAGTCCG","RBP",94]
["RRP1_02","RRP1","GAAGATGAGATCCCAGAGA","CTTTATATATCTTGTGGAAAGGACGAAACACCGGAAGATGAGATCCCAGAGAGTTTTAGAGCTAGAAATAGCAAGTTAAAATAAGGCTAGTCCG","RBP",94]
["RRP1_03","RRP1","CTGGACACACAGGATGAGG","CTTTATATATCTTGTGGAAAGGACGAAACACCGCTGGACACACAGGATGAGGGTTTTAGAGCTAGAAATAGCAAGTTAAAATAAGGCTAGTCCG","RBP",94]
["RRP1_05","RRP1","CTGACCAGTGCCCGAGCAA","CTTTATATATCTTGTGGAAAGGACGAAACACCGCTGACCAGTGCCCGAGCAAGTTTTAGAGCTAGAAATAGCAAGTTAAAATAAGGCTAGTCCG","RBP",94]
["RRP1_06","RRP1","AGACGCGCTGTCCCAGAAG","CTTTATATATCTTGTGGAAAGGACGAAACACCGAGACGCGCTGTCCCAGAAGGTTTTAGAGCTAGAAATAGCAAGTTAAAATAAGGCTAGTCCG","RBP",94]
["RRP1_09","RRP1","CATGCTTTTCAGACCACGG","CTTTATATATCTTGTGGAAAGGACGAAACACCGCATGCTTTTCAGACCACGGGTTTTAGAGCTAGAAATAGCAAGTTAAAATAAGGCTAGTCCG","RBP",94]
["RRS1_01","RRS1","CCAAGGAGAAGGTGCCCCG","CTTTATATATCTTGTGGAAAGGACGAAACACCGCCAAGGAGAAGGTGCCCCGGTTTTAGAGCTAGAAATAGCAAGTTAAAATAAGGCTAGTCCG","RBP",94]
["RRS1_03","RRS1","CCGGGACGACACCAAAGAA","CTTTATATATCTTGTGGAAAGGACGAAACACCGCCGGGACGACACCAAAGAAGTTTTAGAGCTAGAAATAGCAAGTTAAAATAAGGCTAGTCCG","RBP",94]
["RRS1_05","RRS1","AAGATGCAGCTGCCCAGCG","CTTTATATATCTTGTGGAAAGGACGAAACACCGAAGATGCAGCTGCCCAGCGGTTTTAGAGCTAGAAATAGCAAGTTAAAATAAGGCTAGTCCG","RBP",94]
["RRS1_06","RRS1","CTTGGCCACTTGCATGGCG","CTTTATATATCTTGTGGAAAGGACGAAACACCGCTTGGCCACTTGCATGGCGGTTTTAGAGCTAGAAATAGCAAGTTAAAATAAGGCTAGTCCG","RBP",94]
["RRS1_10","RRS1","AAGCGCCCCACAGAGGCGG","CTTTATATATCTTGTGGAAAGGACGAAACACCGAAGCGCCCCACAGAGGCGGGTTTTAGAGCTAGAAATAGCAAGTTAAAATAAGGCTAGTCCG","RBP",94]
["SARS_02","SARS","CCCATGGCCGTGACACCCG","CTTTATATATCTTGTGGAAAGGACGAAACACCGCCCATGGCCGTGACACCCGGTTTTAGAGCTAGAAATAGCAAGTTAAAATAAGGCTAGTCCG","RBP",94]
["SARS_03","SARS","ACCTGCTTCCGTCAGGAGG","CTTTATATATCTTGTGGAAAGGACGAAACACCGACCTGCTTCCGTCAGGAGGGTTTTAGAGCTAGAAATAGCAAGTTAAAATAAGGCTAGTCCG","RBP",94]
["SARS_04","SARS","AGTAAGAAGCTTGACCTGG","CTTTATATATCTTGTGGAAAGGACGAAACACCGAGTAAGAAGCTTGACCTGGGTTTTAGAGCTAGAAATAGCAAGTTAAAATAAGGCTAGTCCG","RBP",94]
["SARS_07","SARS","AACAGGCTGCAGAACATGG","CTTTATATATCTTGTGGAAAGGACGAAACACCGAACAGGCTGCAGAACATGGGTTTTAGAGCTAGAAATAGCAAGTTAAAATAAGGCTAGTCCG","RBP",94]
["SARS_10","SARS","CCGTGGTAGATCAAACGCG","CTTTATATATCTTGTGGAAAGGACGAAACACCGCCGTGGTAGATCAAACGCGGTTTTAGAGCTAGAAATAGCAAGTTAAAATAAGGCTAGTCCG","RBP",94]
["SF3A3_01","SF3A3","GCCTTTCAGAGGTATATGG","CTTTATATATCTTGTGGAAAGGACGAAACACCGGCCTTTCAGAGGTATATGGGTTTTAGAGCTAGAAATAGCAAGTTAAAATAAGGCTAGTCCG","RBP",94]
["SF3A3_02","SF3A3","CGATGGCAGCCTGACACTG","CTTTATATATCTTGTGGAAAGGACGAAACACCGCGATGGCAGCCTGACACTGGTTTTAGAGCTAGAAATAGCAAGTTAAAATAAGGCTAGTCCG","RBP",94]
["SF3A3_04","SF3A3","AATTGCAGATTACGAAAGG","CTTTATATATCTTGTGGAAAGGACGAAACACCGAATTGCAGATTACGAAAGGGTTTTAGAGCTAGAAATAGCAAGTTAAAATAAGGCTAGTCCG","RBP",94]
["SF3A3_05","SF3A3","CAAGTCAAAGGGCACCAAG","CTTTATATATCTTGTGGAAAGGACGAAACACCGCAAGTCAAAGGGCACCAAGGTTTTAGAGCTAGAAATAGCAAGTTAAAATAAGGCTAGTCCG","RBP",94]
["SF3A3_07","SF3A3","AGGAAACATACCTCCCAGG","CTTTATATATCTTGTGGAAAGGACGAAACACCGAGGAAACATACCTCCCAGGGTTTTAGAGCTAGAAATAGCAAGTTAAAATAAGGCTAGTCCG","RBP",94]
["SF3B1_01","SF3B1","GTGTAGGAGACATCAGCAG","CTTTATATATCTTGTGGAAAGGACGAAACACCGGTGTAGGAGACATCAGCAGGTTTTAGAGCTAGAAATAGCAAGTTAAAATAAGGCTAGTCCG","RBP",94]
["SF3B1_04","SF3B1","GGAGTTGCTGCTTCAGCCA","CTTTATATATCTTGTGGAAAGGACGAAACACCGGGAGTTGCTGCTTCAGCCAGTTTTAGAGCTAGAAATAGCAAGTTAAAATAAGGCTAGTCCG","RBP",94]
["SF3B1_05","SF3B1","TAGGAACATAACCAGCTGG","CTTTATATATCTTGTGGAAAGGACGAAACACCGTAGGAACATAACCAGCTGGGTTTTAGAGCTAGAAATAGCAAGTTAAAATAAGGCTAGTCCG","RBP",94]
["SF3B1_06","SF3B1","AGAAGTGTTTAAAAAAGGG","CTTTATATATCTTGTGGAAAGGACGAAACACCGAGAAGTGTTTAAAAAAGGGGTTTTAGAGCTAGAAATAGCAAGTTAAAATAAGGCTAGTCCG","RBP",94]
["SF3B1_09","SF3B1","AGGGTATCCGCCAACACAG","CTTTATATATCTTGTGGAAAGGACGAAACACCGAGGGTATCCGCCAACACAGGTTTTAGAGCTAGAAATAGCAAGTTAAAATAAGGCTAGTCCG","RBP",94]
["SF3B3_04","SF3B3","ATGTGTCTCCTTCTTCCAG","CTTTATATATCTTGTGGAAAGGACGAAACACCGATGTGTCTCCTTCTTCCAGGTTTTAGAGCTAGAAATAGCAAGTTAAAATAAGGCTAGTCCG","RBP",94]
["SF3B3_05","SF3B3","GGTCCCGCCCACAGAGAGG","CTTTATATATCTTGTGGAAAGGACGAAACACCGGGTCCCGCCCACAGAGAGGGTTTTAGAGCTAGAAATAGCAAGTTAAAATAAGGCTAGTCCG","RBP",94]
["SF3B3_06","SF3B3","CTGGCCAGGAACGATGCGA","CTTTATATATCTTGTGGAAAGGACGAAACACCGCTGGCCAGGAACGATGCGAGTTTTAGAGCTAGAAATAGCAAGTTAAAATAAGGCTAGTCCG","RBP",94]
["SF3B3_07","SF3B3","TGGCCTTTAGGCTGACAGG","CTTTATATATCTTGTGGAAAGGACGAAACACCGTGGCCTTTAGGCTGACAGGGTTTTAGAGCTAGAAATAGCAAGTTAAAATAAGGCTAGTCCG","RBP",94]
["SF3B3_08","SF3B3","CCGCTGTCCAATTCCCAGG","CTTTATATATCTTGTGGAAAGGACGAAACACCGCCGCTGTCCAATTCCCAGGGTTTTAGAGCTAGAAATAGCAAGTTAAAATAAGGCTAGTCCG","RBP",94]
["SLTM_02","SLTM","AACCTCTTTGCTTGACCAG","CTTTATATATCTTGTGGAAAGGACGAAACACCGAACCTCTTTGCTTGACCAGGTTTTAGAGCTAGAAATAGCAAGTTAAAATAAGGCTAGTCCG","RBP",94]
["SLTM_03","SLTM","AGAGCTCATGAATTAATAG","CTTTATATATCTTGTGGAAAGGACGAAACACCGAGAGCTCATGAATTAATAGGTTTTAGAGCTAGAAATAGCAAGTTAAAATAAGGCTAGTCCG","RBP",94]
["SLTM_06","SLTM","ATTTTCAGAATCGTCGCGG","CTTTATATATCTTGTGGAAAGGACGAAACACCGATTTTCAGAATCGTCGCGGGTTTTAGAGCTAGAAATAGCAAGTTAAAATAAGGCTAGTCCG","RBP",94]
["SLTM_07","SLTM","ATTGTAGACCATCAAGAAG","CTTTATATATCTTGTGGAAAGGACGAAACACCGATTGTAGACCATCAAGAAGGTTTTAGAGCTAGAAATAGCAAGTTAAAATAAGGCTAGTCCG","RBP",94]
["SLTM_08","SLTM","TTACCTTCCGCCTGACCCG","CTTTATATATCTTGTGGAAAGGACGAAACACCGTTACCTTCCGCCTGACCCGGTTTTAGAGCTAGAAATAGCAAGTTAAAATAAGGCTAGTCCG","RBP",94]
["SMG7_02","SMG7","AAAGAAGGACAACAACAAG","CTTTATATATCTTGTGGAAAGGACGAAACACCGAAAGAAGGACAACAACAAGGTTTTAGAGCTAGAAATAGCAAGTTAAAATAAGGCTAGTCCG","RBP",94]
["SMG7_05","SMG7","CTTTCCATGAGGACAGCAG","CTTTATATATCTTGTGGAAAGGACGAAACACCGCTTTCCATGAGGACAGCAGGTTTTAGAGCTAGAAATAGCAAGTTAAAATAAGGCTAGTCCG","RBP",94]
["SMG7_06","SMG7","ATGAAGGCTCCATAAACCA","CTTTATATATCTTGTGGAAAGGACGAAACACCGATGAAGGCTCCATAAACCAGTTTTAGAGCTAGAAATAGCAAGTTAAAATAAGGCTAGTCCG","RBP",94]
["SMG7_07","SMG7","ATGGGCCTTGAACCTGAGG","CTTTATATATCTTGTGGAAAGGACGAAACACCGATGGGCCTTGAACCTGAGGGTTTTAGAGCTAGAAATAGCAAGTTAAAATAAGGCTAGTCCG","RBP",94]
["SMG7_10","SMG7","CTACAGAATGAGTCTCAGG","CTTTATATATCTTGTGGAAAGGACGAAACACCGCTACAGAATGAGTCTCAGGGTTTTAGAGCTAGAAATAGCAAGTTAAAATAAGGCTAGTCCG","RBP",94]
["SMNDC1_03","SMNDC1","CTTTACAGGTGTTATGAAG","CTTTATATATCTTGTGGAAAGGACGAAACACCGCTTTACAGGTGTTATGAAGGTTTTAGAGCTAGAAATAGCAAGTTAAAATAAGGCTAGTCCG","RBP",94]
["SMNDC1_05","SMNDC1","CCAGCAAAGGTGATTGCAG",{"$f":"CONCATENATE(\"CTTTATATATCTTGTGGAAAGGACGAAACACCG\",C1282,\"GTTTTAGAGCTAGAAATAGCAAGTTAAAATAAGGCTAGTCCG\")","v":"CTTTATATATCTTGTGGAAAGGACGAAACACCGCCAGCAAAGGTGATTGCAGGTTTTAGAGCTAGAAATAGCAAGTTAAAATAAGGCTAGTCCG"},"RBP",94]
["SMNDC1_07","SMNDC1","CAGGCTTGAGGTTCAACAG","CTTTATATATCTTGTGGAAAGGACGAAACACCGCAGGCTTGAGGTTCAACAGGTTTTAGAGCTAGAAATAGCAAGTTAAAATAAGGCTAGTCCG","RBP",94]
["SMNDC1_08","SMNDC1","TGACTGGTAAAGTTGGAGT","CTTTATATATCTTGTGGAAAGGACGAAACACCGTGACTGGTAAAGTTGGAGTGTTTTAGAGCTAGAAATAGCAAGTTAAAATAAGGCTAGTCCG","RBP",94]
["SMNDC1_10","SMNDC1","CCTATTCTAAAAACAAAAA","CTTTATATATCTTGTGGAAAGGACGAAACACCGCCTATTCTAAAAACAAAAAGTTTTAGAGCTAGAAATAGCAAGTTAAAATAAGGCTAGTCCG","RBP",94]
["SRP72_02","SRP72","AGACACCAGAAACCTGCAG","CTTTATATATCTTGTGGAAAGGACGAAACACCGAGACACCAGAAACCTGCAGGTTTTAGAGCTAGAAATAGCAAGTTAAAATAAGGCTAGTCCG","RBP",94]
["SRP72_03","SRP72","GAGAACGTTCTTACTACCG","CTTTATATATCTTGTGGAAAGGACGAAACACCGGAGAACGTTCTTACTACCGGTTTTAGAGCTAGAAATAGCAAGTTAAAATAAGGCTAGTCCG","RBP",94]
["SRP72_07","SRP72","CTTCACACAAGCTATCCAG","CTTTATATATCTTGTGGAAAGGACGAAACACCGCTTCACACAAGCTATCCAGGTTTTAGAGCTAGAAATAGCAAGTTAAAATAAGGCTAGTCCG","RBP",94]
["SRP72_09","SRP72","CATACATTCGGAAGAAGGG","CTTTATATATCTTGTGGAAAGGACGAAACACCGCATACATTCGGAAGAAGGGGTTTTAGAGCTAGAAATAGCAAGTTAAAATAAGGCTAGTCCG","RBP",94]
["SRP72_10","SRP72","GTCTTCTGATAATGAACGG","CTTTATATATCTTGTGGAAAGGACGAAACACCGGTCTTCTGATAATGAACGGGTTTTAGAGCTAGAAATAGCAAGTTAAAATAAGGCTAGTCCG","RBP",94]
["SRPR_02","SRPR","CAATGCCATCAATGAGCCG","CTTTATATATCTTGTGGAAAGGACGAAACACCGCAATGCCATCAATGAGCCGGTTTTAGAGCTAGAAATAGCAAGTTAAAATAAGGCTAGTCCG","RBP",{"$f":"LEN(D1291)","v":94}]
["SRPR_05","SRPR","GTGTAGGGCACTCAAACGC","CTTTATATATCTTGTGGAAAGGACGAAACACCGGTGTAGGGCACTCAAACGCGTTTTAGAGCTAGAAATAGCAAGTTAAAATAAGGCTAGTCCG","RBP",94]
["SRPR_06","SRPR","CTACGCAGCCTCAATGCCA","CTTTATATATCTTGTGGAAAGGACGAAACACCGCTACGCAGCCTCAATGCCAGTTTTAGAGCTAGAAATAGCAAGTTAAAATAAGGCTAGTCCG","RBP",94]
["SRPR_09","SRPR","TCTTTCTCCAGGAACGGGG","CTTTATATATCTTGTGGAAAGGACGAAACACCGTCTTTCTCCAGGAACGGGGGTTTTAGAGCTAGAAATAGCAAGTTAAAATAAGGCTAGTCCG","RBP",94]
["SRPR_10","SRPR","AGCAGCTCTGATGACGAAG","CTTTATATATCTTGTGGAAAGGACGAAACACCGAGCAGCTCTGATGACGAAGGTTTTAGAGCTAGAAATAGCAAGTTAAAATAAGGCTAGTCCG","RBP",94]
["SRRM1_04","SRRM1","ATTCAGATCAGGAAGGAGG","CTTTATATATCTTGTGGAAAGGACGAAACACCGATTCAGATCAGGAAGGAGGGTTTTAGAGCTAGAAATAGCAAGTTAAAATAAGGCTAGTCCG","RBP",94]
["SRRM1_05","SRRM1","GCTAGGCCCCAGGACCCGG","CTTTATATATCTTGTGGAAAGGACGAAACACCGGCTAGGCCCCAGGACCCGGGTTTTAGAGCTAGAAATAGCAAGTTAAAATAAGGCTAGTCCG","RBP",94]
["SRRM1_06","SRRM1","AGCAAGTCCTCCAAGGCGA","CTTTATATATCTTGTGGAAAGGACGAAACACCGAGCAAGTCCTCCAAGGCGAGTTTTAGAGCTAGAAATAGCAAGTTAAAATAAGGCTAGTCCG","RBP",94]
["SRRM1_07","SRRM1","TTTCAGAAGAAGATAAAGG","CTTTATATATCTTGTGGAAAGGACGAAACACCGTTTCAGAAGAAGATAAAGGGTTTTAGAGCTAGAAATAGCAAGTTAAAATAAGGCTAGTCCG","RBP",94]
["SRRM1_10","SRRM1","GACCGTGAACGAGATGAAG","CTTTATATATCTTGTGGAAAGGACGAAACACCGGACCGTGAACGAGATGAAGGTTTTAGAGCTAGAAATAGCAAGTTAAAATAAGGCTAGTCCG","RBP",94]
["SRRM2_04","SRRM2","CTAGAACACCTCAAAGAAG","CTTTATATATCTTGTGGAAAGGACGAAACACCGCTAGAACACCTCAAAGAAGGTTTTAGAGCTAGAAATAGCAAGTTAAAATAAGGCTAGTCCG","RBP",94]
["SRRM2_05","SRRM2","CTGTCCTGCAGCAAGCCGG","CTTTATATATCTTGTGGAAAGGACGAAACACCGCTGTCCTGCAGCAAGCCGGGTTTTAGAGCTAGAAATAGCAAGTTAAAATAAGGCTAGTCCG","RBP",94]
["SRRM2_06","SRRM2","GTCAGGCCGCTCACCCCGG","CTTTATATATCTTGTGGAAAGGACGAAACACCGGTCAGGCCGCTCACCCCGGGTTTTAGAGCTAGAAATAGCAAGTTAAAATAAGGCTAGTCCG","RBP",94]
["SRRM2_07","SRRM2","CAGCAGCAGACATGGACGG","CTTTATATATCTTGTGGAAAGGACGAAACACCGCAGCAGCAGACATGGACGGGTTTTAGAGCTAGAAATAGCAAGTTAAAATAAGGCTAGTCCG","RBP",94]
["SRRM2_09","SRRM2","CTGTGGCATGTGCAGACCG","CTTTATATATCTTGTGGAAAGGACGAAACACCGCTGTGGCATGTGCAGACCGGTTTTAGAGCTAGAAATAGCAAGTTAAAATAAGGCTAGTCCG","RBP",94]
["SRSF11_01","SRSF11","TTATGATGAAGAGGAACAG","CTTTATATATCTTGTGGAAAGGACGAAACACCGTTATGATGAAGAGGAACAGGTTTTAGAGCTAGAAATAGCAAGTTAAAATAAGGCTAGTCCG","RBP",94]
["SRSF11_03","SRSF11","ACGATCCAAAAGCCCAAGG","CTTTATATATCTTGTGGAAAGGACGAAACACCGACGATCCAAAAGCCCAAGGGTTTTAGAGCTAGAAATAGCAAGTTAAAATAAGGCTAGTCCG","RBP",94]
["SRSF11_04","SRSF11","GAGCCCCCAAAGCAGCCAG","CTTTATATATCTTGTGGAAAGGACGAAACACCGGAGCCCCCAAAGCAGCCAGGTTTTAGAGCTAGAAATAGCAAGTTAAAATAAGGCTAGTCCG","RBP",94]
["SRSF11_05","SRSF11","TAAGAAAGAAGAAAAAAGA","CTTTATATATCTTGTGGAAAGGACGAAACACCGTAAGAAAGAAGAAAAAAGAGTTTTAGAGCTAGAAATAGCAAGTTAAAATAAGGCTAGTCCG","RBP",94]
["SRSF11_09","SRSF11","CAAGGGCAGGATCAAGAGT","CTTTATATATCTTGTGGAAAGGACGAAACACCGCAAGGGCAGGATCAAGAGTGTTTTAGAGCTAGAAATAGCAAGTTAAAATAAGGCTAGTCCG","RBP",94]
["SRSF1_02","SRSF1","CTATGGCCCCCCATCCAGG","CTTTATATATCTTGTGGAAAGGACGAAACACCGCTATGGCCCCCCATCCAGGGTTTTAGAGCTAGAAATAGCAAGTTAAAATAAGGCTAGTCCG","RBP",94]
["SRSF1_05","SRSF1","ACCTCAAGAATCGCCGCGG","CTTTATATATCTTGTGGAAAGGACGAAACACCGACCTCAAGAATCGCCGCGGGTTTTAGAGCTAGAAATAGCAAGTTAAAATAAGGCTAGTCCG","RBP",94]
["SRSF1_06","SRSF1","CCTTGGTTCGGATGTCTGG","CTTTATATATCTTGTGGAAAGGACGAAACACCGCCTTGGTTCGGATGTCTGGGTTTTAGAGCTAGAAATAGCAAGTTAAAATAAGGCTAGTCCG","RBP",94]
["SRSF1_07","SRSF1","GATACAGTGGTCTTAACAG","CTTTATATATCTTGTGGAAAGGACGAAACACCGGATACAGTGGTCTTAACAGGTTTTAGAGCTAGAAATAGCAAGTTAAAATAAGGCTAGTCCG","RBP",94]
["SRSF1_09","SRSF1","GGGTCCTCGAACTCAACGA","CTTTATATATCTTGTGGAAAGGACGAAACACCGGGGTCCTCGAACTCAACGAGTTTTAGAGCTAGAAATAGCAAGTTAAAATAAGGCTAGTCCG","RBP",94]
["SRSF9_03","SRSF9","ACTCTCCATACCAAAGCAG","CTTTATATATCTTGTGGAAAGGACGAAACACCGACTCTCCATACCAAAGCAGGTTTTAGAGCTAGAAATAGCAAGTTAAAATAAGGCTAGTCCG","RBP",94]
["SRSF9_04","SRSF9","CCTGCCAGCTGCCTGACGG","CTTTATATATCTTGTGGAAAGGACGAAACACCGCCTGCCAGCTGCCTGACGGGTTTTAGAGCTAGAAATAGCAAGTTAAAATAAGGCTAGTCCG","RBP",94]
["SRSF9_05","SRSF9","AGGACCCACCTCATGAGAG","CTTTATATATCTTGTGGAAAGGACGAAACACCGAGGACCCACCTCATGAGAGGTTTTAGAGCTAGAAATAGCAAGTTAAAATAAGGCTAGTCCG","RBP",94]
["SRSF9_06","SRSF9","AGTTCCCCAGGACTTATGG","CTTTATATATCTTGTGGAAAGGACGAAACACCGAGTTCCCCAGGACTTATGGGTTTTAGAGCTAGAAATAGCAAGTTAAAATAAGGCTAGTCCG","RBP",94]
["SRSF9_10","SRSF9","AATCAGATCTTCTTGTAGG","CTTTATATATCTTGTGGAAAGGACGAAACACCGAATCAGATCTTCTTGTAGGGTTTTAGAGCTAGAAATAGCAAGTTAAAATAAGGCTAGTCCG","RBP",94]
["TARS2_01","TARS2","TTAAGATATCACTTCCTGG","CTTTATATATCTTGTGGAAAGGACGAAACACCGTTAAGATATCACTTCCTGGGTTTTAGAGCTAGAAATAGCAAGTTAAAATAAGGCTAGTCCG","RBP",94]
["TARS2_02","TARS2","AGTCCCCCCAGACCACCAG","CTTTATATATCTTGTGGAAAGGACGAAACACCGAGTCCCCCCAGACCACCAGGTTTTAGAGCTAGAAATAGCAAGTTAAAATAAGGCTAGTCCG","RBP",94]
["TARS2_03","TARS2","CTCTTTCCAGGACAATCCG","CTTTATATATCTTGTGGAAAGGACGAAACACCGCTCTTTCCAGGACAATCCGGTTTTAGAGCTAGAAATAGCAAGTTAAAATAAGGCTAGTCCG","RBP",94]
["TARS2_08","TARS2","CTGACATTCGATTCCCCAG","CTTTATATATCTTGTGGAAAGGACGAAACACCGCTGACATTCGATTCCCCAGGTTTTAGAGCTAGAAATAGCAAGTTAAAATAAGGCTAGTCCG","RBP",94]
["TARS2_09","TARS2","TCCAGTATGCCGAAGGTGG","CTTTATATATCTTGTGGAAAGGACGAAACACCGTCCAGTATGCCGAAGGTGGGTTTTAGAGCTAGAAATAGCAAGTTAAAATAAGGCTAGTCCG","RBP",94]
["TBRG4_03","TBRG4","AGGGTACCATGCCAGACCG","CTTTATATATCTTGTGGAAAGGACGAAACACCGAGGGTACCATGCCAGACCGGTTTTAGAGCTAGAAATAGCAAGTTAAAATAAGGCTAGTCCG","RBP",94]
["TBRG4_04","TBRG4","ACGAGCAGCTTCTCTCAGG","CTTTATATATCTTGTGGAAAGGACGAAACACCGACGAGCAGCTTCTCTCAGGGTTTTAGAGCTAGAAATAGCAAGTTAAAATAAGGCTAGTCCG","RBP",94]
["TBRG4_05","TBRG4","CCCTACATAGAGAAGCAGG","CTTTATATATCTTGTGGAAAGGACGAAACACCGCCCTACATAGAGAAGCAGGGTTTTAGAGCTAGAAATAGCAAGTTAAAATAAGGCTAGTCCG","RBP",94]
["TBRG4_09","TBRG4","CAGTACCTTGTCTTCCAGG","CTTTATATATCTTGTGGAAAGGACGAAACACCGCAGTACCTTGTCTTCCAGGGTTTTAGAGCTAGAAATAGCAAGTTAAAATAAGGCTAGTCCG","RBP",94]
["TBRG4_10","TBRG4","GGGCAAAGGCCTCAAACAG","CTTTATATATCTTGTGGAAAGGACGAAACACCGGGGCAAAGGCCTCAAACAGGTTTTAGAGCTAGAAATAGCAAGTTAAAATAAGGCTAGTCCG","RBP",94]
["TDRD9_02","TDRD9","CTCTGGTGAAGGTCTTCAG","CTTTATATATCTTGTGGAAAGGACGAAACACCGCTCTGGTGAAGGTCTTCAGGTTTTAGAGCTAGAAATAGCAAGTTAAAATAAGGCTAGTCCG","RBP",94]
["TDRD9_03","TDRD9","GGCTATGCCGAGCTCACGG","CTTTATATATCTTGTGGAAAGGACGAAACACCGGGCTATGCCGAGCTCACGGGTTTTAGAGCTAGAAATAGCAAGTTAAAATAAGGCTAGTCCG","RBP",94]
["TDRD9_05","TDRD9","CGGTGCGAATAACATGCTG","CTTTATATATCTTGTGGAAAGGACGAAACACCGCGGTGCGAATAACATGCTGGTTTTAGAGCTAGAAATAGCAAGTTAAAATAAGGCTAGTCCG","RBP",94]
["TDRD9_06","TDRD9","GCAGTGTCCAACCAACCAG","CTTTATATATCTTGTGGAAAGGACGAAACACCGGCAGTGTCCAACCAACCAGGTTTTAGAGCTAGAAATAGCAAGTTAAAATAAGGCTAGTCCG","RBP",94]
["TDRD9_09","TDRD9","AAGGCTTGCAGACAGACAG","CTTTATATATCTTGTGGAAAGGACGAAACACCGAAGGCTTGCAGACAGACAGGTTTTAGAGCTAGAAATAGCAAGTTAAAATAAGGCTAGTCCG","RBP",94]
["THOC5_01","THOC5","CCAGGGTTCAACACCACAG","CTTTATATATCTTGTGGAAAGGACGAAACACCGCCAGGGTTCAACACCACAGGTTTTAGAGCTAGAAATAGCAAGTTAAAATAAGGCTAGTCCG","RBP",94]
["THOC5_02","THOC5","AATAGAAATAGAAGAACGG","CTTTATATATCTTGTGGAAAGGACGAAACACCGAATAGAAATAGAAGAACGGGTTTTAGAGCTAGAAATAGCAAGTTAAAATAAGGCTAGTCCG","RBP",94]
["THOC5_07","THOC5","TTAGAGGAGTTTTATAAGG","CTTTATATATCTTGTGGAAAGGACGAAACACCGTTAGAGGAGTTTTATAAGGGTTTTAGAGCTAGAAATAGCAAGTTAAAATAAGGCTAGTCCG","RBP",94]
["THOC5_09","THOC5","CGCCGGAGACCCACACTGG","CTTTATATATCTTGTGGAAAGGACGAAACACCGCGCCGGAGACCCACACTGGGTTTTAGAGCTAGAAATAGCAAGTTAAAATAAGGCTAGTCCG","RBP",94]
["THOC5_10","THOC5","CTGGTTGGTCAACAGCTGG","CTTTATATATCTTGTGGAAAGGACGAAACACCGCTGGTTGGTCAACAGCTGGGTTTTAGAGCTAGAAATAGCAAGTTAAAATAAGGCTAGTCCG","RBP",94]
["THUMPD1_02","THUMPD1","GAAGGAAAAAATAACCAGC","CTTTATATATCTTGTGGAAAGGACGAAACACCGGAAGGAAAAAATAACCAGCGTTTTAGAGCTAGAAATAGCAAGTTAAAATAAGGCTAGTCCG","RBP",94]
["THUMPD1_03","THUMPD1","CACAGCTTAACTCAAAGCA","CTTTATATATCTTGTGGAAAGGACGAAACACCGCACAGCTTAACTCAAAGCAGTTTTAGAGCTAGAAATAGCAAGTTAAAATAAGGCTAGTCCG","RBP",94]
["THUMPD1_05","THUMPD1","TAAGGCATCTACAGAGATG","CTTTATATATCTTGTGGAAAGGACGAAACACCGTAAGGCATCTACAGAGATGGTTTTAGAGCTAGAAATAGCAAGTTAAAATAAGGCTAGTCCG","RBP",94]
["THUMPD1_06","THUMPD1","AGCAGACTACTCAGCCTGG","CTTTATATATCTTGTGGAAAGGACGAAACACCGAGCAGACTACTCAGCCTGGGTTTTAGAGCTAGAAATAGCAAGTTAAAATAAGGCTAGTCCG","RBP",94]
["THUMPD1_08","THUMPD1","GCCCCGTCAGCTAGAGCCC","CTTTATATATCTTGTGGAAAGGACGAAACACCGGCCCCGTCAGCTAGAGCCCGTTTTAGAGCTAGAAATAGCAAGTTAAAATAAGGCTAGTCCG","RBP",94]
["TIAL1_01","TIAL1","GCCCGTATACTCCATAAGG",{"$f":"CONCATENATE(\"CTTTATATATCTTGTGGAAAGGACGAAACACCG\",C1346,\"GTTTTAGAGCTAGAAATAGCAAGTTAAAATAAGGCTAGTCCG\")","v":"CTTTATATATCTTGTGGAAAGGACGAAACACCGGCCCGTATACTCCATAAGGGTTTTAGAGCTAGAAATAGCAAGTTAAAATAAGGCTAGTCCG"},"RBP",94]
["TIAL1_06","TIAL1","GGGAGAAAAATTTTGGGAA","CTTTATATATCTTGTGGAAAGGACGAAACACCGGGGAGAAAAATTTTGGGAAGTTTTAGAGCTAGAAATAGCAAGTTAAAATAAGGCTAGTCCG","RBP",94]
["TIAL1_08","TIAL1","TTAGGAGGAGGTATTACAG","CTTTATATATCTTGTGGAAAGGACGAAACACCGTTAGGAGGAGGTATTACAGGTTTTAGAGCTAGAAATAGCAAGTTAAAATAAGGCTAGTCCG","RBP",94]
["TIAL1_09","TIAL1","AGCTGTAAAATGATAACAG","CTTTATATATCTTGTGGAAAGGACGAAACACCGAGCTGTAAAATGATAACAGGTTTTAGAGCTAGAAATAGCAAGTTAAAATAAGGCTAGTCCG","RBP",94]
["TIAL1_10","TIAL1","CACCCATCCAAGCAGCAGA","CTTTATATATCTTGTGGAAAGGACGAAACACCGCACCCATCCAAGCAGCAGAGTTTTAGAGCTAGAAATAGCAAGTTAAAATAAGGCTAGTCCG","RBP",94]
["TRA2B_04","TRA2B","AACACCAGGAATTTACATG","CTTTATATATCTTGTGGAAAGGACGAAACACCGAACACCAGGAATTTACATGGTTTTAGAGCTAGAAATAGCAAGTTAAAATAAGGCTAGTCCG","RBP",94]
["TRA2B_06","TRA2B","CACGACTATAGTAAGGAGA","CTTTATATATCTTGTGGAAAGGACGAAACACCGCACGACTATAGTAAGGAGAGTTTTAGAGCTAGAAATAGCAAGTTAAAATAAGGCTAGTCCG","RBP",94]
["TRA2B_08","TRA2B","CAGGAGTCATGAGCGACAG","CTTTATATATCTTGTGGAAAGGACGAAACACCGCAGGAGTCATGAGCGACAGGTTTTAGAGCTAGAAATAGCAAGTTAAAATAAGGCTAGTCCG","RBP",94]
["TRA2B_09","TRA2B","TTGGAGCGAGACCTTGCAG","CTTTATATATCTTGTGGAAAGGACGAAACACCGTTGGAGCGAGACCTTGCAGGTTTTAGAGCTAGAAATAGCAAGTTAAAATAAGGCTAGTCCG","RBP",94]
["TRA2B_10","TRA2B","GTCGGGATTACTATGACAG","CTTTATATATCTTGTGGAAAGGACGAAACACCGGTCGGGATTACTATGACAGGTTTTAGAGCTAGAAATAGCAAGTTAAAATAAGGCTAGTCCG","RBP",{"$f":"LEN(D1355)","v":94}]
["TRDMT1_01","TRDMT1","ATATGGAAGCTACATAGAA","CTTTATATATCTTGTGGAAAGGACGAAACACCGATATGGAAGCTACATAGAAGTTTTAGAGCTAGAAATAGCAAGTTAAAATAAGGCTAGTCCG","RBP",94]
["TRDMT1_03","TRDMT1","CATCCACAAAAATATGCAA","CTTTATATATCTTGTGGAAAGGACGAAACACCGCATCCACAAAAATATGCAAGTTTTAGAGCTAGAAATAGCAAGTTAAAATAAGGCTAGTCCG","RBP",94]
["TRDMT1_06","TRDMT1","ATAGCTCCAGCACCCGCAG","CTTTATATATCTTGTGGAAAGGACGAAACACCGATAGCTCCAGCACCCGCAGGTTTTAGAGCTAGAAATAGCAAGTTAAAATAAGGCTAGTCCG","RBP",94]
["TRDMT1_07","TRDMT1","CCCACATACCGAACTCTGG","CTTTATATATCTTGTGGAAAGGACGAAACACCGCCCACATACCGAACTCTGGGTTTTAGAGCTAGAAATAGCAAGTTAAAATAAGGCTAGTCCG","RBP",94]
["TRDMT1_08","TRDMT1","TGTATACCTGCACAAGTGG","CTTTATATATCTTGTGGAAAGGACGAAACACCGTGTATACCTGCACAAGTGGGTTTTAGAGCTAGAAATAGCAAGTTAAAATAAGGCTAGTCCG","RBP",94]
["TUT1_01","TUT1","GTCACCCAGATCCAAGAAG","CTTTATATATCTTGTGGAAAGGACGAAACACCGGTCACCCAGATCCAAGAAGGTTTTAGAGCTAGAAATAGCAAGTTAAAATAAGGCTAGTCCG","RBP",94]
["TUT1_04","TUT1","ACGCCACAAAGCTCAGCAG","CTTTATATATCTTGTGGAAAGGACGAAACACCGACGCCACAAAGCTCAGCAGGTTTTAGAGCTAGAAATAGCAAGTTAAAATAAGGCTAGTCCG","RBP",94]
["TUT1_07","TUT1","CAGAGCCCTGGGCAGCCAG","CTTTATATATCTTGTGGAAAGGACGAAACACCGCAGAGCCCTGGGCAGCCAGGTTTTAGAGCTAGAAATAGCAAGTTAAAATAAGGCTAGTCCG","RBP",94]
["TUT1_08","TUT1","CCGACCCTGAGCCCAGCAG","CTTTATATATCTTGTGGAAAGGACGAAACACCGCCGACCCTGAGCCCAGCAGGTTTTAGAGCTAGAAATAGCAAGTTAAAATAAGGCTAGTCCG","RBP",94]
["TUT1_09","TUT1","GTGAGCATTCGGTCAGCCG","CTTTATATATCTTGTGGAAAGGACGAAACACCGGTGAGCATTCGGTCAGCCGGTTTTAGAGCTAGAAATAGCAAGTTAAAATAAGGCTAGTCCG","RBP",94]
["U2SURP_01","U2SURP","ATGAAACAGATGAAAAAAG","CTTTATATATCTTGTGGAAAGGACGAAACACCGATGAAACAGATGAAAAAAGGTTTTAGAGCTAGAAATAGCAAGTTAAAATAAGGCTAGTCCG","RBP",94]
["U2SURP_04","U2SURP","ATGAGAGACATAAAACAAA","CTTTATATATCTTGTGGAAAGGACGAAACACCGATGAGAGACATAAAACAAAGTTTTAGAGCTAGAAATAGCAAGTTAAAATAAGGCTAGTCCG","RBP",94]
["U2SURP_07","U2SURP","GAAGAAATAGATCATCTGG","CTTTATATATCTTGTGGAAAGGACGAAACACCGGAAGAAATAGATCATCTGGGTTTTAGAGCTAGAAATAGCAAGTTAAAATAAGGCTAGTCCG","RBP",94]
["U2SURP_09","U2SURP","ATTGAAGAAAAGGAAACAG","CTTTATATATCTTGTGGAAAGGACGAAACACCGATTGAAGAAAAGGAAACAGGTTTTAGAGCTAGAAATAGCAAGTTAAAATAAGGCTAGTCCG","RBP",94]
["U2SURP_10","U2SURP","AGATTCTCCAACTAAATGG","CTTTATATATCTTGTGGAAAGGACGAAACACCGAGATTCTCCAACTAAATGGGTTTTAGAGCTAGAAATAGCAAGTTAAAATAAGGCTAGTCCG","RBP",94]
["UBAP2L_01","UBAP2L","TGATTGTCACATTCTCCGC","CTTTATATATCTTGTGGAAAGGACGAAACACCGTGATTGTCACATTCTCCGCGTTTTAGAGCTAGAAATAGCAAGTTAAAATAAGGCTAGTCCG","RBP",94]
["UBAP2L_04","UBAP2L","CCAGACACAGCACAAGCAG","CTTTATATATCTTGTGGAAAGGACGAAACACCGCCAGACACAGCACAAGCAGGTTTTAGAGCTAGAAATAGCAAGTTAAAATAAGGCTAGTCCG","RBP",94]
["UBAP2L_06","UBAP2L","ATGTCGGTGAAGCTAAAGG","CTTTATATATCTTGTGGAAAGGACGAAACACCGATGTCGGTGAAGCTAAAGGGTTTTAGAGCTAGAAATAGCAAGTTAAAATAAGGCTAGTCCG","RBP",94]
["UBAP2L_07","UBAP2L","ATGTGGATTTGCTTGGCAG","CTTTATATATCTTGTGGAAAGGACGAAACACCGATGTGGATTTGCTTGGCAGGTTTTAGAGCTAGAAATAGCAAGTTAAAATAAGGCTAGTCCG","RBP",94]
["UBAP2L_10","UBAP2L","GACAGGGTCAGACACATGG","CTTTATATATCTTGTGGAAAGGACGAAACACCGGACAGGGTCAGACACATGGGTTTTAGAGCTAGAAATAGCAAGTTAAAATAAGGCTAGTCCG","RBP",94]
["UPF3A_04","UPF3A","GCACCGCCCCCGCAACCGG","CTTTATATATCTTGTGGAAAGGACGAAACACCGGCACCGCCCCCGCAACCGGGTTTTAGAGCTAGAAATAGCAAGTTAAAATAAGGCTAGTCCG","RBP",94]
["UPF3A_07","UPF3A","CGCGACTCGCAGCAGCAGG","CTTTATATATCTTGTGGAAAGGACGAAACACCGCGCGACTCGCAGCAGCAGGGTTTTAGAGCTAGAAATAGCAAGTTAAAATAAGGCTAGTCCG","RBP",94]
["UPF3A_08","UPF3A","GAAGCACAAAGATACCATG","CTTTATATATCTTGTGGAAAGGACGAAACACCGGAAGCACAAAGATACCATGGTTTTAGAGCTAGAAATAGCAAGTTAAAATAAGGCTAGTCCG","RBP",94]
["UPF3A_09","UPF3A","AGACTGGAAGCATCGAAGA","CTTTATATATCTTGTGGAAAGGACGAAACACCGAGACTGGAAGCATCGAAGAGTTTTAGAGCTAGAAATAGCAAGTTAAAATAAGGCTAGTCCG","RBP",94]
["UPF3A_10","UPF3A","GGGCCTCACCTCAGGTCGG","CTTTATATATCTTGTGGAAAGGACGAAACACCGGGGCCTCACCTCAGGTCGGGTTTTAGAGCTAGAAATAGCAAGTTAAAATAAGGCTAGTCCG","RBP",94]
["UPF3B_02","UPF3B","TTAGCCATAGAAAAGAAGG","CTTTATATATCTTGTGGAAAGGACGAAACACCGTTAGCCATAGAAAAGAAGGGTTTTAGAGCTAGAAATAGCAAGTTAAAATAAGGCTAGTCCG","RBP",94]
["UPF3B_03","UPF3B","CCCTTGGAGCTGTCCCCCG","CTTTATATATCTTGTGGAAAGGACGAAACACCGCCCTTGGAGCTGTCCCCCGGTTTTAGAGCTAGAAATAGCAAGTTAAAATAAGGCTAGTCCG","RBP",94]
["UPF3B_04","UPF3B","CATACTTCGAGAAAGAGAG","CTTTATATATCTTGTGGAAAGGACGAAACACCGCATACTTCGAGAAAGAGAGGTTTTAGAGCTAGAAATAGCAAGTTAAAATAAGGCTAGTCCG","RBP",94]
["UPF3B_05","UPF3B","CAGTGATGAAAGAGCCAGT","CTTTATATATCTTGTGGAAAGGACGAAACACCGCAGTGATGAAAGAGCCAGTGTTTTAGAGCTAGAAATAGCAAGTTAAAATAAGGCTAGTCCG","RBP",94]
["UPF3B_07","UPF3B","GCAGACCTGAAGATGAGAG","CTTTATATATCTTGTGGAAAGGACGAAACACCGGCAGACCTGAAGATGAGAGGTTTTAGAGCTAGAAATAGCAAGTTAAAATAAGGCTAGTCCG","RBP",94]
["UTP14C_02","UTP14C","ATTAAGCCCATAAAAGCAG","CTTTATATATCTTGTGGAAAGGACGAAACACCGATTAAGCCCATAAAAGCAGGTTTTAGAGCTAGAAATAGCAAGTTAAAATAAGGCTAGTCCG","RBP",94]
["UTP14C_04","UTP14C","CTGGCTGCTCCTTCCCCAG","CTTTATATATCTTGTGGAAAGGACGAAACACCGCTGGCTGCTCCTTCCCCAGGTTTTAGAGCTAGAAATAGCAAGTTAAAATAAGGCTAGTCCG","RBP",94]
["UTP14C_05","UTP14C","CCTAAGGAGAAGAAAGAGA","CTTTATATATCTTGTGGAAAGGACGAAACACCGCCTAAGGAGAAGAAAGAGAGTTTTAGAGCTAGAAATAGCAAGTTAAAATAAGGCTAGTCCG","RBP",94]
["UTP14C_06","UTP14C","TGAAGAGGAGAGAGACCAA","CTTTATATATCTTGTGGAAAGGACGAAACACCGTGAAGAGGAGAGAGACCAAGTTTTAGAGCTAGAAATAGCAAGTTAAAATAAGGCTAGTCCG","RBP",94]
["UTP14C_10","UTP14C","CAAGCCATGAGCCTGGAAG","CTTTATATATCTTGTGGAAAGGACGAAACACCGCAAGCCATGAGCCTGGAAGGTTTTAGAGCTAGAAATAGCAAGTTAAAATAAGGCTAGTCCG","RBP",94]
["UTP15_01","UTP15","AGCTGCATAATCAAAACTG","CTTTATATATCTTGTGGAAAGGACGAAACACCGAGCTGCATAATCAAAACTGGTTTTAGAGCTAGAAATAGCAAGTTAAAATAAGGCTAGTCCG","RBP",94]
["UTP15_02","UTP15","AAAAAATTACATGAAGCAA","CTTTATATATCTTGTGGAAAGGACGAAACACCGAAAAAATTACATGAAGCAAGTTTTAGAGCTAGAAATAGCAAGTTAAAATAAGGCTAGTCCG","RBP",94]
["UTP15_06","UTP15","GACACCAGAAGACCTCCAG","CTTTATATATCTTGTGGAAAGGACGAAACACCGGACACCAGAAGACCTCCAGGTTTTAGAGCTAGAAATAGCAAGTTAAAATAAGGCTAGTCCG","RBP",94]
["UTP15_07","UTP15","ATGGCCTTCAAACTGCCTG","CTTTATATATCTTGTGGAAAGGACGAAACACCGATGGCCTTCAAACTGCCTGGTTTTAGAGCTAGAAATAGCAAGTTAAAATAAGGCTAGTCCG","RBP",94]
["UTP15_09","UTP15","TCTAAGCAGCTCTGGACAG","CTTTATATATCTTGTGGAAAGGACGAAACACCGTCTAAGCAGCTCTGGACAGGTTTTAGAGCTAGAAATAGCAAGTTAAAATAAGGCTAGTCCG","RBP",94]
["UTP18_03","UTP18","ATGAGATCCGAGCAACAGT","CTTTATATATCTTGTGGAAAGGACGAAACACCGATGAGATCCGAGCAACAGTGTTTTAGAGCTAGAAATAGCAAGTTAAAATAAGGCTAGTCCG","RBP",94]
["UTP18_04","UTP18","GACTCGGGTGACTCAGAAG","CTTTATATATCTTGTGGAAAGGACGAAACACCGGACTCGGGTGACTCAGAAGGTTTTAGAGCTAGAAATAGCAAGTTAAAATAAGGCTAGTCCG","RBP",94]
["UTP18_05","UTP18","TTGAAAATACTGTACAGGA","CTTTATATATCTTGTGGAAAGGACGAAACACCGTTGAAAATACTGTACAGGAGTTTTAGAGCTAGAAATAGCAAGTTAAAATAAGGCTAGTCCG","RBP",94]
["UTP18_07","UTP18","TGTAGTTCTAATTGTGGAG","CTTTATATATCTTGTGGAAAGGACGAAACACCGTGTAGTTCTAATTGTGGAGGTTTTAGAGCTAGAAATAGCAAGTTAAAATAAGGCTAGTCCG","RBP",94]
["UTP18_09","UTP18","TTCGTCTCCTCCGCTCCGG","CTTTATATATCTTGTGGAAAGGACGAAACACCGTTCGTCTCCTCCGCTCCGGGTTTTAGAGCTAGAAATAGCAAGTTAAAATAAGGCTAGTCCG","RBP",94]
["VARS_02","VARS","GCCTCACCAGGAAAGGCGG","CTTTATATATCTTGTGGAAAGGACGAAACACCGGCCTCACCAGGAAAGGCGGGTTTTAGAGCTAGAAATAGCAAGTTAAAATAAGGCTAGTCCG","RBP",94]
["VARS_04","VARS","TACAGCCCTCGGTATGTGG","CTTTATATATCTTGTGGAAAGGACGAAACACCGTACAGCCCTCGGTATGTGGGTTTTAGAGCTAGAAATAGCAAGTTAAAATAAGGCTAGTCCG","RBP",94]
["VARS_05","VARS","CTCTGCTCACCTCCCCAGG","CTTTATATATCTTGTGGAAAGGACGAAACACCGCTCTGCTCACCTCCCCAGGGTTTTAGAGCTAGAAATAGCAAGTTAAAATAAGGCTAGTCCG","RBP",94]
["VARS_07","VARS","CTTAGCGCCAGCTCAAGGG","CTTTATATATCTTGTGGAAAGGACGAAACACCGCTTAGCGCCAGCTCAAGGGGTTTTAGAGCTAGAAATAGCAAGTTAAAATAAGGCTAGTCCG","RBP",94]
["VARS_08","VARS","ATAGCCGCTCGCTATGGGG","CTTTATATATCTTGTGGAAAGGACGAAACACCGATAGCCGCTCGCTATGGGGGTTTTAGAGCTAGAAATAGCAAGTTAAAATAAGGCTAGTCCG","RBP",94]
["VCP_02","VCP","CCATTGATCAAGAAGAAGA","CTTTATATATCTTGTGGAAAGGACGAAACACCGCCATTGATCAAGAAGAAGAGTTTTAGAGCTAGAAATAGCAAGTTAAAATAAGGCTAGTCCG","RBP",94]
["VCP_03","VCP","ATCAAAGAATAGCACACAG","CTTTATATATCTTGTGGAAAGGACGAAACACCGATCAAAGAATAGCACACAGGTTTTAGAGCTAGAAATAGCAAGTTAAAATAAGGCTAGTCCG","RBP",94]
["VCP_04","VCP","GATGAGACCATTGATGCCG","CTTTATATATCTTGTGGAAAGGACGAAACACCGGATGAGACCATTGATGCCGGTTTTAGAGCTAGAAATAGCAAGTTAAAATAAGGCTAGTCCG","RBP",94]
["VCP_08","VCP","ATGGATGGCCTAAAGCAGA","CTTTATATATCTTGTGGAAAGGACGAAACACCGATGGATGGCCTAAAGCAGAGTTTTAGAGCTAGAAATAGCAAGTTAAAATAAGGCTAGTCCG","RBP",94]
["VCP_09","VCP","CTGGCCCCAGTCAGGGCAG",{"$f":"CONCATENATE(\"CTTTATATATCTTGTGGAAAGGACGAAACACCG\",C1410,\"GTTTTAGAGCTAGAAATAGCAAGTTAAAATAAGGCTAGTCCG\")","v":"CTTTATATATCTTGTGGAAAGGACGAAACACCGCTGGCCCCAGTCAGGGCAGGTTTTAGAGCTAGAAATAGCAAGTTAAAATAAGGCTAGTCCG"},"RBP",94]
["XRN1_01","XRN1","CAAAGAGATGAGACGACGA","CTTTATATATCTTGTGGAAAGGACGAAACACCGCAAAGAGATGAGACGACGAGTTTTAGAGCTAGAAATAGCAAGTTAAAATAAGGCTAGTCCG","RBP",94]
["XRN1_04","XRN1","CATATGTTCCATAAAGAAG","CTTTATATATCTTGTGGAAAGGACGAAACACCGCATATGTTCCATAAAGAAGGTTTTAGAGCTAGAAATAGCAAGTTAAAATAAGGCTAGTCCG","RBP",94]
["XRN1_07","XRN1","TGGTGGCAAAAAAACACAA","CTTTATATATCTTGTGGAAAGGACGAAACACCGTGGTGGCAAAAAAACACAAGTTTTAGAGCTAGAAATAGCAAGTTAAAATAAGGCTAGTCCG","RBP",94]
["XRN1_09","XRN1","GATGAACCACTTTAGATGG","CTTTATATATCTTGTGGAAAGGACGAAACACCGGATGAACCACTTTAGATGGGTTTTAGAGCTAGAAATAGCAAGTTAAAATAAGGCTAGTCCG","RBP",94]
["XRN1_10","XRN1","GGAGAAACTCTTCCTACAG","CTTTATATATCTTGTGGAAAGGACGAAACACCGGGAGAAACTCTTCCTACAGGTTTTAGAGCTAGAAATAGCAAGTTAAAATAAGGCTAGTCCG","RBP",94]
["YARS2_03","YARS2","TGCGGCTCAAGAGCCCCGA","CTTTATATATCTTGTGGAAAGGACGAAACACCGTGCGGCTCAAGAGCCCCGAGTTTTAGAGCTAGAAATAGCAAGTTAAAATAAGGCTAGTCCG","RBP",94]
["YARS2_05","YARS2","TTCCCCAAACCATTTACTG","CTTTATATATCTTGTGGAAAGGACGAAACACCGTTCCCCAAACCATTTACTGGTTTTAGAGCTAGAAATAGCAAGTTAAAATAAGGCTAGTCCG","RBP",94]
["YARS2_08","YARS2","ACATGAAGCGAGTCTGCCG","CTTTATATATCTTGTGGAAAGGACGAAACACCGACATGAAGCGAGTCTGCCGGTTTTAGAGCTAGAAATAGCAAGTTAAAATAAGGCTAGTCCG","RBP",94]
["YARS2_09","YARS2","ATCGAATGATAACAGAAGG","CTTTATATATCTTGTGGAAAGGACGAAACACCGATCGAATGATAACAGAAGGGTTTTAGAGCTAGAAATAGCAAGTTAAAATAAGGCTAGTCCG","RBP",{"$f":"LEN(D1419)","v":94}]
["YARS2_10","YARS2","TATGATCAATCTCTGGAAG","CTTTATATATCTTGTGGAAAGGACGAAACACCGTATGATCAATCTCTGGAAGGTTTTAGAGCTAGAAATAGCAAGTTAAAATAAGGCTAGTCCG","RBP",94]
["YTHDC1_01","YTHDC1","AGTCAATACTTTCATCGGG","CTTTATATATCTTGTGGAAAGGACGAAACACCGAGTCAATACTTTCATCGGGGTTTTAGAGCTAGAAATAGCAAGTTAAAATAAGGCTAGTCCG","RBP",94]
["YTHDC1_03","YTHDC1","TAACAGCAGAAAGAAACCA","CTTTATATATCTTGTGGAAAGGACGAAACACCGTAACAGCAGAAAGAAACCAGTTTTAGAGCTAGAAATAGCAAGTTAAAATAAGGCTAGTCCG","RBP",94]
["YTHDC1_06","YTHDC1","GTGTCTCTTGCCAAAGCGA","CTTTATATATCTTGTGGAAAGGACGAAACACCGGTGTCTCTTGCCAAAGCGAGTTTTAGAGCTAGAAATAGCAAGTTAAAATAAGGCTAGTCCG","RBP",94]
["YTHDC1_07","YTHDC1","CTTCAGAATCACATCACGG","CTTTATATATCTTGTGGAAAGGACGAAACACCGCTTCAGAATCACATCACGGGTTTTAGAGCTAGAAATAGCAAGTTAAAATAAGGCTAGTCCG","RBP",94]
["YTHDC1_10","YTHDC1","AGATGAGCCGACTTAGTGA","CTTTATATATCTTGTGGAAAGGACGAAACACCGAGATGAGCCGACTTAGTGAGTTTTAGAGCTAGAAATAGCAAGTTAAAATAAGGCTAGTCCG","RBP",94]
["YTHDF2_01","YTHDF2","GATCTGTACATCAAAAGGA","CTTTATATATCTTGTGGAAAGGACGAAACACCGGATCTGTACATCAAAAGGAGTTTTAGAGCTAGAAATAGCAAGTTAAAATAAGGCTAGTCCG","RBP",94]
["YTHDF2_03","YTHDF2","CTTATGGACAGCTGAGCAA","CTTTATATATCTTGTGGAAAGGACGAAACACCGCTTATGGACAGCTGAGCAAGTTTTAGAGCTAGAAATAGCAAGTTAAAATAAGGCTAGTCCG","RBP",94]
["YTHDF2_04","YTHDF2","AAGCTGCTTGGTCTACGGG","CTTTATATATCTTGTGGAAAGGACGAAACACCGAAGCTGCTTGGTCTACGGGGTTTTAGAGCTAGAAATAGCAAGTTAAAATAAGGCTAGTCCG","RBP",94]
["YTHDF2_05","YTHDF2","GGGTAGCACCTCGGAACCG","CTTTATATATCTTGTGGAAAGGACGAAACACCGGGGTAGCACCTCGGAACCGGTTTTAGAGCTAGAAATAGCAAGTTAAAATAAGGCTAGTCCG","RBP",94]
["YTHDF2_06","YTHDF2","GGCCTGTACCTGCTCCAAG","CTTTATATATCTTGTGGAAAGGACGAAACACCGGGCCTGTACCTGCTCCAAGGTTTTAGAGCTAGAAATAGCAAGTTAAAATAAGGCTAGTCCG","RBP",94]
["ZFP36L2_02","ZFP36L2","AACATGCTGGACAAGAAGG","CTTTATATATCTTGTGGAAAGGACGAAACACCGAACATGCTGGACAAGAAGGGTTTTAGAGCTAGAAATAGCAAGTTAAAATAAGGCTAGTCCG","RBP",94]
["ZFP36L2_03","ZFP36L2","CGCGCCGGGATTCCTCCGA","CTTTATATATCTTGTGGAAAGGACGAAACACCGCGCGCCGGGATTCCTCCGAGTTTTAGAGCTAGAAATAGCAAGTTAAAATAAGGCTAGTCCG","RBP",94]
["ZFP36L2_04","ZFP36L2","CCCTTAAGGAGCCGTCGGG","CTTTATATATCTTGTGGAAAGGACGAAACACCGCCCTTAAGGAGCCGTCGGGGTTTTAGAGCTAGAAATAGCAAGTTAAAATAAGGCTAGTCCG","RBP",94]
["ZFP36L2_07","ZFP36L2","ACATGCTGCGCCTCCGCGG","CTTTATATATCTTGTGGAAAGGACGAAACACCGACATGCTGCGCCTCCGCGGGTTTTAGAGCTAGAAATAGCAAGTTAAAATAAGGCTAGTCCG","RBP",94]
["ZFP36L2_09","ZFP36L2","CTCTGCTGTACGGCACCGG","CTTTATATATCTTGTGGAAAGGACGAAACACCGCTCTGCTGTACGGCACCGGGTTTTAGAGCTAGAAATAGCAAGTTAAAATAAGGCTAGTCCG","RBP",94]
["ZGPAT_02","ZGPAT","GAGACCGTTCCTAAAGCAG","CTTTATATATCTTGTGGAAAGGACGAAACACCGGAGACCGTTCCTAAAGCAGGTTTTAGAGCTAGAAATAGCAAGTTAAAATAAGGCTAGTCCG","RBP",94]
["ZGPAT_03","ZGPAT","GAGCTCATCGAGCTCACCG","CTTTATATATCTTGTGGAAAGGACGAAACACCGGAGCTCATCGAGCTCACCGGTTTTAGAGCTAGAAATAGCAAGTTAAAATAAGGCTAGTCCG","RBP",94]
["ZGPAT_06","ZGPAT","GAAGATCGAGCGAACCCAG","CTTTATATATCTTGTGGAAAGGACGAAACACCGGAAGATCGAGCGAACCCAGGTTTTAGAGCTAGAAATAGCAAGTTAAAATAAGGCTAGTCCG","RBP",94]
["ZGPAT_08","ZGPAT","AGGAGCCCAGCGCCAGCTG","CTTTATATATCTTGTGGAAAGGACGAAACACCGAGGAGCCCAGCGCCAGCTGGTTTTAGAGCTAGAAATAGCAAGTTAAAATAAGGCTAGTCCG","RBP",94]
["ZGPAT_09","ZGPAT","TGCACCTCCCAGCCAGCAA","CTTTATATATCTTGTGGAAAGGACGAAACACCGTGCACCTCCCAGCCAGCAAGTTTTAGAGCTAGAAATAGCAAGTTAAAATAAGGCTAGTCCG","RBP",94]
["ZNF106_02","ZNF106","ACTGCTGATGAGAAAGAGG","CTTTATATATCTTGTGGAAAGGACGAAACACCGACTGCTGATGAGAAAGAGGGTTTTAGAGCTAGAAATAGCAAGTTAAAATAAGGCTAGTCCG","RBP",94]
["ZNF106_04","ZNF106","TCAAGCTAAAATCAAAGAG","CTTTATATATCTTGTGGAAAGGACGAAACACCGTCAAGCTAAAATCAAAGAGGTTTTAGAGCTAGAAATAGCAAGTTAAAATAAGGCTAGTCCG","RBP",94]
["ZNF106_05","ZNF106","GCTAATATTGCGAATGCGG","CTTTATATATCTTGTGGAAAGGACGAAACACCGGCTAATATTGCGAATGCGGGTTTTAGAGCTAGAAATAGCAAGTTAAAATAAGGCTAGTCCG","RBP",94]
["ZNF106_07","ZNF106","CGACAGATATAATTGGCAG","CTTTATATATCTTGTGGAAAGGACGAAACACCGCGACAGATATAATTGGCAGGTTTTAGAGCTAGAAATAGCAAGTTAAAATAAGGCTAGTCCG","RBP",94]
["ZNF106_10","ZNF106","TCTAGCATAAATAAAGAAG","CTTTATATATCTTGTGGAAAGGACGAAACACCGTCTAGCATAAATAAAGAAGGTTTTAGAGCTAGAAATAGCAAGTTAAAATAAGGCTAGTCCG","RBP",94]
["ZNF622_03","ZNF622","CAGCGGGCCCACTATAAGA","CTTTATATATCTTGTGGAAAGGACGAAACACCGCAGCGGGCCCACTATAAGAGTTTTAGAGCTAGAAATAGCAAGTTAAAATAAGGCTAGTCCG","RBP",94]
["ZNF622_05","ZNF622","ACCTGCATAACTTGCCGGG","CTTTATATATCTTGTGGAAAGGACGAAACACCGACCTGCATAACTTGCCGGGGTTTTAGAGCTAGAAATAGCAAGTTAAAATAAGGCTAGTCCG","RBP",94]
["ZNF622_06","ZNF622","GCACCGCTACAACCTGCGG","CTTTATATATCTTGTGGAAAGGACGAAACACCGGCACCGCTACAACCTGCGGGTTTTAGAGCTAGAAATAGCAAGTTAAAATAAGGCTAGTCCG","RBP",94]
["ZNF622_07","ZNF622","GAGGACCCCAATAAGGCTG","CTTTATATATCTTGTGGAAAGGACGAAACACCGGAGGACCCCAATAAGGCTGGTTTTAGAGCTAGAAATAGCAAGTTAAAATAAGGCTAGTCCG","RBP",94]
["ZNF622_09","ZNF622","TTGCTCTCCTCCTCCGCGA","CTTTATATATCTTGTGGAAAGGACGAAACACCGTTGCTCTCCTCCTCCGCGAGTTTTAGAGCTAGAAATAGCAAGTTAAAATAAGGCTAGTCCG","RBP",94]
["ZNF638_03","ZNF638","GTAAAAGAAAATGACCCAG","CTTTATATATCTTGTGGAAAGGACGAAACACCGGTAAAAGAAAATGACCCAGGTTTTAGAGCTAGAAATAGCAAGTTAAAATAAGGCTAGTCCG","RBP",94]
["ZNF638_04","ZNF638","AAACAATCTCAGGAAACAG","CTTTATATATCTTGTGGAAAGGACGAAACACCGAAACAATCTCAGGAAACAGGTTTTAGAGCTAGAAATAGCAAGTTAAAATAAGGCTAGTCCG","RBP",94]
["ZNF638_06","ZNF638","CCAAAGATAGACTTACCAG","CTTTATATATCTTGTGGAAAGGACGAAACACCGCCAAAGATAGACTTACCAGGTTTTAGAGCTAGAAATAGCAAGTTAAAATAAGGCTAGTCCG","RBP",94]
["ZNF638_07","ZNF638","CTCAGAGCAGTCTTACCAG","CTTTATATATCTTGTGGAAAGGACGAAACACCGCTCAGAGCAGTCTTACCAGGTTTTAGAGCTAGAAATAGCAAGTTAAAATAAGGCTAGTCCG","RBP",94]
["ZNF638_09","ZNF638","GAGCTTGAAACTCAAGGAG","CTTTATATATCTTGTGGAAAGGACGAAACACCGGAGCTTGAAACTCAAGGAGGTTTTAGAGCTAGAAATAGCAAGTTAAAATAAGGCTAGTCCG","RBP",94]